Workbook

Sheet 旅費・交通費、諸経費請合計参考
B2: 総務部担当部長 | G2: 担当部長 | J2: 受付
B7: 旅費・交通費、諸経費合計 ( | P7: ）分 | R7: 研究実施場所 | V7: ①技術研究組合NMEMS技術研究機構 高効率ＭＥＨ研究所
R8: 請求者： | U8: 役職 | W8: 課長・代理相当職 | AC8: ▼▲ ▽△
B10: Ｎｏ | C10: 発 生 日 | F10: 請 求 内 容 | U10: 直接費 | X10: 間接費 | AA10: 請求金額 | AD10: 備考
B11: 旅費・交通費
B12: 1 | C12: =IF('請求書報告書-参考'!$B$19="","",'請求書報告書-参考'!$B$19) -> 2013-07-12 | F12: =IF('請求書報告書-参考'!$G$13="","",'請求書報告書-参考'!$G$13) -> EUVLに特化した学会で半導体産業の伸張や、その微細化を担うEUVLの開発経緯と今後の技術展望調査 | U12: =IF('請求書報告書-参考'!$L$43="","",'請求書報告書-参考'!$L$43) -> ¥25,260 | X12: =IF('請求書報告書-1'!$Z$43="","",'請求書報告書-参考'!$P$43) ->  | AA12: =IF('請求書報告書-参考'!$Q$43="","",'請求書報告書-参考'!$Q$43) -> ¥25,260
B13: 2
B14: 3
B15: 4
B16: 5
B17: 6
B18: 7
B19: 8
B20: 9
B21: 10
F22: 合 計 金 額 | U22: =SUM(U12:W21) -> ¥25,260 | X22: =SUM(X12:Z21) -> ¥0 | AA22: =SUM(AA12:AC21) -> ¥25,260
B23: 国内・海外学会参加費
B24: 1 | C24: =国内・海外学会参加伺書参考!C28 -> 2013-02-27 | F24: =国内・海外学会参加伺書参考!G22 -> リソグラフィ技術をテーマとした世界最大の学会であり新規技術と市場経済との関係についての調査 | U24: =国内・海外学会参加伺書参考!H59 -> ¥38,000 | X24: =国内・海外学会参加伺書参考!H61 -> ¥12,000 | AA24: =国内・海外学会参加伺書参考!H57 -> ¥50,000
B25: 2
B26: 3
F27: 合 計 金 額 | U27: =SUM(U24:W26) -> ¥38,000 | X27: =SUM(X24:Z26) -> ¥12,000 | AA27: =SUM(AA24:AC26) -> ¥50,000
B28: 海外旅費
B29: 1 | C29: =海外出張伺書参考!B24 -> 2013-02-25 | F29: =海外出張伺書参考!H17 -> リソグラフィ技術をテーマとした世界最大の学会であり新規技術と市場経済との関係についての調査 | U29: =海外出張精算内訳書!H163 -> ¥0 | X29: =海外出張精算内訳書!H165 -> ¥0 | AA29: =海外出張精算内訳書!H161 -> ¥0
F31: 合 計 金 額 | U31: =SUM(U29:W30) -> ¥0 | X31: =SUM(X29:Z30) -> ¥0 | AA31: =SUM(AA29:AC30) -> ¥0
B32: 諸経費
B33: 1 | AA33: =U33+X33 -> ¥0
B34: 2 | AA34: =U34+X34 -> ¥0
B35: 3 | AA35: =U35+X35 -> ¥0
B36: 4 | AA36: =U36+X36 -> ¥0
B37: 5 | AA37: =U37+X37 -> ¥0
F38: 合 計 金 額 | U38: =SUM(U33:W37) -> ¥0 | X38: =SUM(X33:Z37) -> ¥0 | AA38: =SUM(AA33:AC37) -> ¥0
B39: 総 合 計 | U39: =U22+U31+U38 -> ¥25,260 | X39: =X22+X31+X38 -> ¥0 | AA39: =AA22+AA31+AA38 -> ¥25,260
C40: ＊当月末〆、次月末日支払日とする（但し、当日が休日の場合はその前日とする）

Sheet 旅費・交通費、諸経費合計
B2: ='旅費・交通費、諸経費請合計参考 '!B2:E2 -> 総務部担当部長 | G2: ='旅費・交通費、諸経費請合計参考 '!G2:I2 -> 担当部長 | J2: ='旅費・交通費、諸経費請合計参考 '!J2:L2 -> 受付
AC6: =IF(ISERROR(VLOOKUP(W8,データ!C2:D9,2,0)),"",(VLOOKUP($W$8,データ!$C$2:$D$9,2,0))) -> 
B7: 旅費・交通費、諸経費合計 ( | K7: =IF(C12="",(IF(C24="",(IF(C29="",IF(C33="","",C33),C29)),C24)),C12) ->  | P7: ）分 | R7: 研究実施場所
R8: 請求者： | U8: 役職
B10: Ｎｏ | C10: 発 生 日 | F10: 請 求 内 容 | U10: 直接費 | X10: 間接費 | AA10: 請求金額 | AD10: 備考
B11: 旅費・交通費
B12: 1 | C12: =IF('請求書報告書-1'!$B$19="","",'請求書報告書-1'!$B$19) ->  | F12: =IF('請求書報告書-1'!$G$13="","",'請求書報告書-1'!$G$13) ->  | U12: =IF('請求書報告書-1'!$L$43="","",'請求書報告書-1'!$L$43) -> ¥0 | X12: =IF('請求書報告書-1'!$U$43="","",'請求書報告書-1'!$U$43) -> ¥0 | AA12: =IF('請求書報告書-1'!$AA$41="","",'請求書報告書-1'!$AA$41) -> ¥0
B13: 2 | C13: =IF('請求書報告書-2'!$B$19="","",'請求書報告書-2'!$B$19) ->  | F13: =IF('請求書報告書-2'!$G$13="","",'請求書報告書-2'!$G$13) ->  | U13: =IF('請求書報告書-2'!$L$43="","",'請求書報告書-2'!$L$43) -> ¥0 | X13: =IF('請求書報告書-2'!$U$43="","",'請求書報告書-2'!$U$43) -> ¥0 | AA13: =IF('請求書報告書-2'!$AA$41="","",'請求書報告書-2'!$AA$41) -> ¥0
B14: 3 | C14: =IF('請求書報告書-3'!$B$19="","",'請求書報告書-3'!$B$19) ->  | F14: =IF('請求書報告書-3'!$G$13="","",'請求書報告書-3'!$G$13) ->  | U14: =IF('請求書報告書-3'!$L$43="","",'請求書報告書-3'!$L$43) -> ¥0 | X14: =IF('請求書報告書-3'!$U$43="","",'請求書報告書-3'!$U$43) -> ¥0 | AA14: =IF('請求書報告書-3'!$AA$41="","",'請求書報告書-3'!$AA$41) -> ¥0
B15: 4 | C15: =IF('請求書報告書-4'!$B$19="","",'請求書報告書-4'!$B$19) ->  | F15: =IF('請求書報告書-4'!$G$13="","",'請求書報告書-4'!$G$13) ->  | U15: =IF('請求書報告書-4'!$L$43="","",'請求書報告書-4'!$L$43) -> ¥0 | X15: =IF('請求書報告書-4'!$U$43="","",'請求書報告書-4'!$U$43) -> ¥0 | AA15: =IF('請求書報告書-4'!$AA$41="","",'請求書報告書-4'!$AA$41) -> ¥0
B16: 5 | C16: =IF('請求書報告書-5'!$B$19="","",'請求書報告書-5'!$B$19) ->  | F16: =IF('請求書報告書-5'!$G$13="","",'請求書報告書-5'!$G$13) ->  | U16: =IF('請求書報告書-5'!$L$43="","",'請求書報告書-5'!$L$43) -> ¥0 | X16: =IF('請求書報告書-5'!$U$43="","",'請求書報告書-5'!$U$43) -> ¥0 | AA16: =IF('請求書報告書-5'!$AA$41="","",'請求書報告書-5'!$AA$41) -> ¥0
B17: 6 | C17: =IF('請求書報告書-6'!$B$19="","",'請求書報告書-6'!$B$19) ->  | F17: =IF('請求書報告書-6'!$G$13="","",'請求書報告書-6'!$G$13) ->  | U17: =IF('請求書報告書-6'!$L$43="","",'請求書報告書-6'!$L$43) -> ¥0 | X17: =IF('請求書報告書-6'!$U$43="","",'請求書報告書-6'!$U$43) -> ¥0 | AA17: =IF('請求書報告書-6'!$AA$41="","",'請求書報告書-6'!$AA$41) -> ¥0
B18: 7 | C18: =IF('請求書報告書-7'!$B$19="","",'請求書報告書-7'!$B$19) ->  | F18: =IF('請求書報告書-7'!$G$13="","",'請求書報告書-7'!$G$13) ->  | U18: =IF('請求書報告書-7'!$L$43="","",'請求書報告書-7'!$L$43) -> ¥0 | X18: =IF('請求書報告書-7'!$U$43="","",'請求書報告書-7'!$U$43) -> ¥0 | AA18: =IF('請求書報告書-7'!$AA$41="","",'請求書報告書-7'!$AA$41) -> ¥0
B19: 8 | C19: =IF('請求書報告書-8'!$B$19="","",'請求書報告書-8'!$B$19) ->  | F19: =IF('請求書報告書-8'!$G$13="","",'請求書報告書-8'!$G$13) ->  | U19: =IF('請求書報告書-8'!$L$43="","",'請求書報告書-8'!$L$43) -> ¥0 | X19: =IF('請求書報告書-8'!$U$43="","",'請求書報告書-8'!$U$43) -> ¥0 | AA19: =IF('請求書報告書-8'!$AA$41="","",'請求書報告書-8'!$AA$41) -> ¥0
B20: 9 | C20: =IF('請求書報告書-9'!$B$19="","",'請求書報告書-9'!$B$19) ->  | F20: =IF('請求書報告書-9'!$G$13="","",'請求書報告書-9'!$G$13) ->  | U20: =IF('請求書報告書-9'!$L$43="","",'請求書報告書-9'!$L$43) -> ¥0 | X20: =IF('請求書報告書-9'!$U$43="","",'請求書報告書-9'!$U$43) -> ¥0 | AA20: =IF('請求書報告書-9'!$AA$41="","",'請求書報告書-9'!$AA$41) -> ¥0
B21: 10 | C21: =IF('請求書報告書-10'!$B$19="","",'請求書報告書-10'!$B$19) ->  | F21: =IF('請求書報告書-10'!$G$13="","",'請求書報告書-10'!$G$13) ->  | U21: =IF('請求書報告書-10'!$L$43="","",'請求書報告書-10'!$L$43) -> ¥0 | X21: =IF('請求書報告書-10'!$U$43="","",'請求書報告書-10'!$U$43) -> ¥0 | AA21: =IF('請求書報告書-10'!$AA$41="","",'請求書報告書-10'!$AA$41) -> ¥0
F22: 合 計 金 額 | U22: =SUM(U12:W21) -> ¥0 | X22: =SUM(X12:Z21) -> ¥0 | AA22: =SUM(AA12:AC21) -> ¥0
B23: 国内・海外学会参加費
B24: 1 | C24: =IF('国内・海外学会参加精算書-1'!$V$7="","",'国内・海外学会参加精算書-1'!$V$7) ->  | F24: =IF(C24="","",'国内・海外学会参加精算書-1'!$G$20) ->  | U24: =IF(C24="","\0",'国内・海外学会参加精算書-1'!$H$59) -> \0 | X24: =IF(C24="","\0",'国内・海外学会参加精算書-1'!$H$61) -> \0 | AA24: =IF(C24="","\0",'国内・海外学会参加精算書-1'!$H$57) -> \0
B25: 2 | C25: =IF('国内・海外学会参加精算書-2'!$V$7="","",'国内・海外学会参加精算書-2'!$V$7) ->  | F25: =IF(C25="","",'国内・海外学会参加精算書-2'!$G$20) ->  | U25: =IF(C25="","\0",'国内・海外学会参加精算書-2'!$H$59) -> \0 | X25: =IF(C25="","\0",'国内・海外学会参加精算書-2'!$H$61) -> \0 | AA25: =IF(C25="","\0",'国内・海外学会参加精算書-2'!$H$57) -> \0
B26: 3 | C26: =IF('国内・海外学会参加精算書-3'!$V$7="","",'国内・海外学会参加精算書-3'!$V$7) ->  | F26: =IF(C26="","",'国内・海外学会参加精算書-3'!$G$20) ->  | U26: =IF(C26="","\0",'国内・海外学会参加精算書-3'!$H$59) -> \0 | X26: =IF(C26="","\0",'国内・海外学会参加精算書-3'!$H$61) -> \0 | AA26: =IF(C26="","\0",'国内・海外学会参加精算書-3'!$H$57) -> \0
F27: 合 計 金 額 | U27: =SUM(U24:W26) -> ¥0 | X27: =SUM(X24:Z26) -> ¥0 | AA27: =SUM(AA24:AC26) -> ¥0
B28: 海外旅費
B29: 1 | C29: =IF(海外出張精算内訳書!$W$4="","",海外出張精算内訳書!$W$4) ->  | F29: =IF(C29="","",海外出張精算書!$H$14) ->  | I29: =IF(#REF!="","",#REF!) ->  | L29: =IF(#REF!="","",#REF!) ->  | O29: =IF(#REF!="","",#REF!) ->  | R29: =IF(#REF!="","",#REF!) ->  | U29: =IF(C29="","\0",海外出張精算内訳書!$H$163) -> \0 | X29: =IF(C29="","\0",海外出張精算内訳書!$H$165) -> \0 | AA29: =IF(C29="","\0",海外出張精算内訳書!$H$161) -> \0
F31: 合 計 金 額 | U31: =SUM(U29:W30) -> ¥0 | X31: =SUM(X29:Z30) -> ¥0 | AA31: =SUM(AA29:AC30) -> ¥0
B32: 諸経費
B33: 1 | AA33: =U33+X33 -> ¥0
B34: 2 | AA34: =U34+X34 -> ¥0
B35: 3 | AA35: =U35+X35 -> ¥0
B36: 4 | AA36: =U36+X36 -> ¥0
B37: 5 | AA37: =U37+X37 -> ¥0
F38: 合 計 金 額 | U38: =SUM(U33:W37) -> ¥0 | X38: =SUM(X33:Z37) -> ¥0 | AA38: =SUM(AA33:AC37) -> ¥0
B39: 総 合 計 | U39: =SUM(U22,U27,U31,U38) -> ¥0 | X39: =SUM(X22,X27,X31,X38) -> ¥0 | AA39: =SUM(AA22,AA27,AA31,AA38) -> ¥0
C40: ＊当月末〆、次月末日支払日とする（但し、当日が休日の場合はその前日とする）

Sheet 請求書報告書-参考
B1: 国内旅費請求書 及び 出張報告書
B3: 決裁 | D3: 本 部
D4: 総務担当 部長 | E4: 経理 | F4: 担当部長 | G4: 受付
B9: 研究実施場所 | D9: 役職 | F9: 氏名 | O9: 起案日 | P9: 2014-08-04
B10: ①技術研究組合NMEMS技術研究機構 高効率ＭＥＨ研究所 | D10: 係長相当職以下 | F10: ='旅費・交通費、諸経費請合計参考 '!AC8 -> ▼▲ ▽△ | H10: ㊞
B12: 用務先（機関等名称） | D12: 出張先所在地（県・市） | G12: 出張用務件名※1
B13: 東京国際フォーラム | D13: 東京都千代田区 | G13: EUVLに特化した学会で半導体産業の伸張や、その微細化を担うEUVLの開発経緯と今後の技術展望調査
Q15: 単位：円
B17: 日程 | C17: 出発地※2 | D17: 出発時刻 | E17: 経路 ※3、※4 | I17: 宿泊地 | J17: 直接費 | M17: 宿泊地 | N17: 間接費 | Q17: 計
C18: 到着地※2 | D18: 到着時刻 | J18: 交通費 | K18: 宿泊費 | L18: 日当 | N18: 交通費 | O18: 宿泊費 | P18: 日当
B19: 2013-07-12 | C19: 本部 | D19: 13:00:00 | E19: 本部→(徒歩)→秋葉原→(JR130)→有楽町→(徒歩)→東京国際フォーラム | I19: 東京 | J19: ¥130 | K19: ¥17,000 | L19: ¥4,000 | Q19: =SUM(J19:P20) -> ¥21,130
C20: 東京国際フォーラム | D20: 14:00:00
B21: 2013-07-12 | C21: 東京国際フォーラム | D21: 16:00:00 | E21: 東京国際フォーラム→(徒歩)→有楽町→(JR130)→新宿→(定期)→自宅 | J21: ¥130 | L21: ¥4,000 | Q21: =SUM(J21:P22) -> ¥4,130
C22: 自宅 | D22: 17:00:00
Q23: =SUM(J23:P24) -> ¥0
Q25: =SUM(J25:P26) -> ¥0
Q27: =SUM(J27:P28) -> ¥0
Q29: =SUM(J29:P30) -> ¥0
Q31: =SUM(J31:P32) -> ¥0
Q33: =SUM(J33:P34) -> ¥0
Q35: =SUM(J35:P36) -> ¥0
Q37: =SUM(J37:P38) -> ¥0
B39: 国内出張による日当調整 ※11 | L39: =-ABS(H39*1000) -> ¥0 | P39: =-ABS(H40*1000) -> ¥0 | Q39: =SUM(I39:P40) -> ¥0
B41: 備考 | G41: 合計 | J41: =SUM(J19:J40) -> ¥260 | K41: =SUM(K19:K40) -> ¥17,000 | L41: =SUM(L19:L40) -> ¥8,000 | N41: =SUM(N19:N40) -> ¥0 | O41: =SUM(O19:O40) -> ¥0 | P41: =SUM(P19:P40) -> ¥0 | Q41: =SUM(J41:P42) -> ¥25,260
J43: 直接費計 | L43: =SUM(J41:L42)+H42 -> ¥25,260 | N43: 間接費計 | P43: =SUM(N41:P42)+I42 -> ¥0 | Q43: =L43+P43 -> ¥25,260
B45: 規程：詳細は旅費の運用についてを参照 ※1 用件が同じであれば日付ごとに明細を分けて、1枚の精算書にまとめる。 ※2 出発地・到着地は必ず施設名（駅名等は不可）を記入する。 ※3 交通費のエビデンスとして､駅すぱあと等の経路探索結果をプリントアウトし添付する。（日程は実際の旅費発生日に合せる事） ※4 旅費規程によりつくば研究センター（産総研）⇔本部間往復交通費は定額となっているのでエビデンス不要。 ※5 下記､出張報告の記載をする。 ※6 前泊､後泊およびタクシー利用の場合は本部業務管理者の事前承認を得て､備考欄にその理由記述した場合のみ認める。 ※7 航空機を使用した場合は、半券添付必須（インター ネットでの申し込み等は、領収書添付を必須とする）。 ※8 研究開発との関連､出張により得られた成果等を記入する。 ※9 会議､学会等の出張は､スケジュールの入ったプログラムの写し等を添付のこと。 ※10学会等参加の出張において､学会等参加費用に食事代､懇親会費が含まれる時には食事代､懇親会費を日当から減額する。 尚､食事代等が含まれる旨を備考欄に記載する。(旅費の運用について参照) ※11 ※10の場合、該当する減額分や他業務実施に伴う日当減額分の金額を直接と間接に分けて記載する。(不明の場合は事務局に問合せる)
B51: 出張報告/用務の内容※8､※9

Sheet 請求書報告書-1
B1: 国内旅費請求書 及び 出張報告書
B3: 決裁印 | D3: 本 部
D4: ='請求書報告書-参考'!D4 -> 総務担当 部長 | E4: ='請求書報告書-参考'!E4 -> 経理 | F4: ='請求書報告書-参考'!F4 -> 担当部長 | G4: ='請求書報告書-参考'!G4 -> 受付
B9: 研究実施場所 | D9: 役職 | F9: 氏名 | T9: 起案日 | U9: 2016-11-28
B10: ='旅費・交通費、諸経費合計'!V7 -> 0 | D10: ='旅費・交通費、諸経費合計'!W8 -> 0 | F10: ='旅費・交通費、諸経費合計'!AC8 -> 0 | H10: ㊞
B12: 用務先（機関等名称） | D12: 出張先所在地（県・市） | G12: 出張用務件名※1
AA15: 単位：円
B17: 日程 | C17: 出発地※2 | D17: 出発時刻 | E17: 経路 ※3、※4 | I17: 直接費 | R17: 間接費 | AA17: 計
C18: 到着地※2 | D18: 到着時刻 | I18: 宿泊地 | J18: 交通費 | K18: 宿泊 | L18: 日当 | M18: 宿泊 | N18: 宿泊区分 | P18: 宿泊日当区分 | Q18: 日当 | R18: 宿泊地 | S18: 交通費 | T18: 宿泊 | U18: 日当 | V18: 宿泊 | W18: 宿泊区分 | Y18: 宿泊日当区分 | Z18: 日当
K19: =IF(I19="","",M19) ->  | L19: =IF(AND(COUNTIF($I$19:$I$38,"*")>0),Q19,"") ->  | M19: =IF(I19="","",N19) ->  | N19: =IF($O19="A",データ!$E$10,IF($O19="B",データ!$E$11,IF($O19="C",データ!$E$12,IF($O19="D",データ!$E$13)))) -> FALSE | O19: =IF(ISERROR(VLOOKUP($D$10,データ!$C$2:$D$9,2,0)),"",(VLOOKUP($D$10,データ!$C$2:$D$9,2,0))) ->  | P19: =IF($N19=データ!$E$10,データ!$G$10,IF($N19=データ!$E$11,データ!$G$11,IF($N19=データ!$E$12,データ!$G$12,IF($N19=データ!$E$13,データ!$G$13)))) -> FALSE | Q19: =IF(OR($J19="",(COUNTIF($B19:$B32,$B19+1)=0)),"",P19) ->  | T19: =IF(R19="","",V19) ->  | U19: =IF(AND(COUNTIF($R$19:$R$38,"*")>0),Z19,"") ->  | V19: =IF(R19="","",W19) ->  | W19: =IF($O19="A",データ!$E$10,IF($O19="B",データ!$E$11,IF($O19="C",データ!$E$12,IF($O19="D",データ!$E$13)))) -> FALSE | X19: =IF(ISERROR(VLOOKUP($D$10,データ!$C$2:$D$9,2,0)),"",(VLOOKUP($D$10,データ!$C$2:$D$9,2,0))) ->  | Y19: =IF($W19=データ!$E$10,データ!$G$10,IF($W19=データ!$E$11,データ!$G$11,IF($W19=データ!$E$12,データ!$G$12,IF($W19=データ!$E$13,データ!$G$13)))) -> FALSE | Z19: =IF(OR($S19="",(COUNTIF($B19:$B32,$B19+1)=0)),"",Y19) ->  | AA19: =SUM(J19,K19,L19,S19,T19,U19) -> ¥0
K21: =IF(I21="","",M21) ->  | L21: =IF(AND(COUNTIF($I$19:$I$38,"*")>0),Q21,"") ->  | M21: =IF(I21="","",N21) ->  | N21: =IF($O21="A",データ!$E$10,IF($O21="B",データ!$E$11,IF($O21="C",データ!$E$12,IF($O21="D",データ!$E$13)))) -> FALSE | O21: =IF(ISERROR(VLOOKUP($D$10,データ!$C$2:$D$9,2,0)),"",(VLOOKUP($D$10,データ!$C$2:$D$9,2,0))) ->  | P21: =IF($N21=データ!$E$10,データ!$G$10,IF($N21=データ!$E$11,データ!$G$11,IF($N21=データ!$E$12,データ!$G$12,IF($N21=データ!$E$13,データ!$G$13)))) -> FALSE | Q21: =IF(J21="","",IF($B21=$B19,"",P21)) ->  | T21: =IF(R21="","",V21) ->  | U21: =IF(AND(COUNTIF($R$19:$R$38,"*")>0),Z21,"") ->  | V21: =IF(R21="","",W21) ->  | W21: =IF($O21="A",データ!$E$10,IF($O21="B",データ!$E$11,IF($O21="C",データ!$E$12,IF($O21="D",データ!$E$13)))) -> FALSE | X21: =IF(ISERROR(VLOOKUP($D$10,データ!$C$2:$D$9,2,0)),"",(VLOOKUP($D$10,データ!$C$2:$D$9,2,0))) ->  | Y21: =IF($W21=データ!$E$10,データ!$G$10,IF($W21=データ!$E$11,データ!$G$11,IF($W21=データ!$E$12,データ!$G$12,IF($W21=データ!$E$13,データ!$G$13)))) -> FALSE | Z21: =IF(S21="","",IF($B21=$B19,"",Y21)) ->  | AA21: =SUM(J21,K21,L21,S21,T21,U21) -> ¥0
K23: =IF(I23="","",M23) ->  | L23: =IF(AND(COUNTIF($I$19:$I$38,"*")>0),Q23,"") ->  | M23: =IF(I23="","",N23) ->  | N23: =IF($O23="A",データ!$E$10,IF($O23="B",データ!$E$11,IF($O23="C",データ!$E$12,IF($O23="D",データ!$E$13)))) -> FALSE | O23: =IF(ISERROR(VLOOKUP($D$10,データ!$C$2:$D$9,2,0)),"",(VLOOKUP($D$10,データ!$C$2:$D$9,2,0))) ->  | P23: =IF($N23=データ!$E$10,データ!$G$10,IF($N23=データ!$E$11,データ!$G$11,IF($N23=データ!$E$12,データ!$G$12,IF($N23=データ!$E$13,データ!$G$13)))) -> FALSE | Q23: =IF(J23="","",IF($B23=$B21,"",P23)) ->  | T23: =IF(R23="","",V23) ->  | U23: =IF(AND(COUNTIF($R$19:$R$38,"*")>0),Z23,"") ->  | V23: =IF(R23="","",W23) ->  | W23: =IF($O23="A",データ!$E$10,IF($O23="B",データ!$E$11,IF($O23="C",データ!$E$12,IF($O23="D",データ!$E$13)))) -> FALSE | X23: =IF(ISERROR(VLOOKUP($D$10,データ!$C$2:$D$9,2,0)),"",(VLOOKUP($D$10,データ!$C$2:$D$9,2,0))) ->  | Y23: =IF($W23=データ!$E$10,データ!$G$10,IF($W23=データ!$E$11,データ!$G$11,IF($W23=データ!$E$12,データ!$G$12,IF($W23=データ!$E$13,データ!$G$13)))) -> FALSE | Z23: =IF(S23="","",IF($B23=$B21,"",Y23)) ->  | AA23: =SUM(J23,K23,L23,S23,T23,U23) -> ¥0
K25: =IF(I25="","",M25) ->  | L25: =IF(AND(COUNTIF($I$19:$I$38,"*")>0),Q25,"") ->  | M25: =IF(I25="","",N25) ->  | N25: =IF($O25="A",データ!$E$10,IF($O25="B",データ!$E$11,IF($O25="C",データ!$E$12,IF($O25="D",データ!$E$13)))) -> FALSE | O25: =IF(ISERROR(VLOOKUP($D$10,データ!$C$2:$D$9,2,0)),"",(VLOOKUP($D$10,データ!$C$2:$D$9,2,0))) ->  | P25: =IF($N25=データ!$E$10,データ!$G$10,IF($N25=データ!$E$11,データ!$G$11,IF($N25=データ!$E$12,データ!$G$12,IF($N25=データ!$E$13,データ!$G$13)))) -> FALSE | Q25: =IF(J25="","",IF($B25=$B23,"",P25)) ->  | T25: =IF(R25="","",V25) ->  | U25: =IF(AND(COUNTIF($R$19:$R$38,"*")>0),Z25,"") ->  | V25: =IF(R25="","",W25) ->  | W25: =IF($O25="A",データ!$E$10,IF($O25="B",データ!$E$11,IF($O25="C",データ!$E$12,IF($O25="D",データ!$E$13)))) -> FALSE | X25: =IF(ISERROR(VLOOKUP($D$10,データ!$C$2:$D$9,2,0)),"",(VLOOKUP($D$10,データ!$C$2:$D$9,2,0))) ->  | Y25: =IF($W25=データ!$E$10,データ!$G$10,IF($W25=データ!$E$11,データ!$G$11,IF($W25=データ!$E$12,データ!$G$12,IF($W25=データ!$E$13,データ!$G$13)))) -> FALSE | Z25: =IF(S25="","",IF($B25=$B23,"",Y25)) ->  | AA25: =SUM(J25,K25,L25,S25,T25,U25) -> ¥0
K27: =IF(I27="","",M27) ->  | L27: =IF(AND(COUNTIF($I$19:$I$38,"*")>0),Q27,"") ->  | M27: =IF(I27="","",N27) ->  | N27: =IF($O27="A",データ!$E$10,IF($O27="B",データ!$E$11,IF($O27="C",データ!$E$12,IF($O27="D",データ!$E$13)))) -> FALSE | O27: =IF(ISERROR(VLOOKUP($D$10,データ!$C$2:$D$9,2,0)),"",(VLOOKUP($D$10,データ!$C$2:$D$9,2,0))) ->  | P27: =IF($N27=データ!$E$10,データ!$G$10,IF($N27=データ!$E$11,データ!$G$11,IF($N27=データ!$E$12,データ!$G$12,IF($N27=データ!$E$13,データ!$G$13)))) -> FALSE | Q27: =IF(J27="","",IF($B27=$B25,"",P27)) ->  | T27: =IF(R27="","",V27) ->  | U27: =IF(AND(COUNTIF($R$19:$R$38,"*")>0),Z27,"") ->  | V27: =IF(R27="","",W27) ->  | W27: =IF($O27="A",データ!$E$10,IF($O27="B",データ!$E$11,IF($O27="C",データ!$E$12,IF($O27="D",データ!$E$13)))) -> FALSE | X27: =IF(ISERROR(VLOOKUP($D$10,データ!$C$2:$D$9,2,0)),"",(VLOOKUP($D$10,データ!$C$2:$D$9,2,0))) ->  | Y27: =IF($W27=データ!$E$10,データ!$G$10,IF($W27=データ!$E$11,データ!$G$11,IF($W27=データ!$E$12,データ!$G$12,IF($W27=データ!$E$13,データ!$G$13)))) -> FALSE | Z27: =IF(S27="","",IF($B27=$B25,"",Y27)) ->  | AA27: =SUM(J27,K27,L27,S27,T27,U27) -> ¥0
K29: =IF(I29="","",M29) ->  | L29: =IF(AND(COUNTIF($I$19:$I$38,"*")>0),Q29,"") ->  | M29: =IF(I29="","",N29) ->  | N29: =IF($O29="A",データ!$E$10,IF($O29="B",データ!$E$11,IF($O29="C",データ!$E$12,IF($O29="D",データ!$E$13)))) -> FALSE | O29: =IF(ISERROR(VLOOKUP($D$10,データ!$C$2:$D$9,2,0)),"",(VLOOKUP($D$10,データ!$C$2:$D$9,2,0))) ->  | P29: =IF($N29=データ!$E$10,データ!$G$10,IF($N29=データ!$E$11,データ!$G$11,IF($N29=データ!$E$12,データ!$G$12,IF($N29=データ!$E$13,データ!$G$13)))) -> FALSE | Q29: =IF(J29="","",IF($B29=$B27,"",P29)) ->  | T29: =IF(R29="","",V29) ->  | U29: =IF(AND(COUNTIF($R$19:$R$38,"*")>0),Z29,"") ->  | V29: =IF(R29="","",W29) ->  | W29: =IF($O29="A",データ!$E$10,IF($O29="B",データ!$E$11,IF($O29="C",データ!$E$12,IF($O29="D",データ!$E$13)))) -> FALSE | X29: =IF(ISERROR(VLOOKUP($D$10,データ!$C$2:$D$9,2,0)),"",(VLOOKUP($D$10,データ!$C$2:$D$9,2,0))) ->  | Y29: =IF($W29=データ!$E$10,データ!$G$10,IF($W29=データ!$E$11,データ!$G$11,IF($W29=データ!$E$12,データ!$G$12,IF($W29=データ!$E$13,データ!$G$13)))) -> FALSE | Z29: =IF(S29="","",IF($B29=$B27,"",Y29)) ->  | AA29: =SUM(J29,K29,L29,S29,T29,U29) -> ¥0
K31: =IF(I31="","",M31) ->  | L31: =IF(AND(COUNTIF($I$19:$I$38,"*")>0),Q31,"") ->  | M31: =IF(I31="","",N31) ->  | N31: =IF($O31="A",データ!$E$10,IF($O31="B",データ!$E$11,IF($O31="C",データ!$E$12,IF($O31="D",データ!$E$13)))) -> FALSE | O31: =IF(ISERROR(VLOOKUP($D$10,データ!$C$2:$D$9,2,0)),"",(VLOOKUP($D$10,データ!$C$2:$D$9,2,0))) ->  | P31: =IF($N31=データ!$E$10,データ!$G$10,IF($N31=データ!$E$11,データ!$G$11,IF($N31=データ!$E$12,データ!$G$12,IF($N31=データ!$E$13,データ!$G$13)))) -> FALSE | Q31: =IF(J31="","",IF($B31=$B29,"",P31)) ->  | T31: =IF(R31="","",V31) ->  | U31: =IF(AND(COUNTIF($R$19:$R$38,"*")>0),Z31,"") ->  | V31: =IF(R31="","",W31) ->  | W31: =IF($O31="A",データ!$E$10,IF($O31="B",データ!$E$11,IF($O31="C",データ!$E$12,IF($O31="D",データ!$E$13)))) -> FALSE | X31: =IF(ISERROR(VLOOKUP($D$10,データ!$C$2:$D$9,2,0)),"",(VLOOKUP($D$10,データ!$C$2:$D$9,2,0))) ->  | Y31: =IF($W31=データ!$E$10,データ!$G$10,IF($W31=データ!$E$11,データ!$G$11,IF($W31=データ!$E$12,データ!$G$12,IF($W31=データ!$E$13,データ!$G$13)))) -> FALSE | Z31: =IF(S31="","",IF($B31=$B29,"",Y31)) ->  | AA31: =SUM(J31,K31,L31,S31,T31,U31) -> ¥0
K33: =IF(I33="","",M33) ->  | L33: =IF(AND(COUNTIF($I$19:$I$38,"*")>0),Q33,"") ->  | M33: =IF(I33="","",N33) ->  | N33: =IF($O33="A",データ!$E$10,IF($O33="B",データ!$E$11,IF($O33="C",データ!$E$12,IF($O33="D",データ!$E$13)))) -> FALSE | O33: =IF(ISERROR(VLOOKUP($D$10,データ!$C$2:$D$9,2,0)),"",(VLOOKUP($D$10,データ!$C$2:$D$9,2,0))) ->  | P33: =IF($N33=データ!$E$10,データ!$G$10,IF($N33=データ!$E$11,データ!$G$11,IF($N33=データ!$E$12,データ!$G$12,IF($N33=データ!$E$13,データ!$G$13)))) -> FALSE | Q33: =IF(J33="","",IF($B33=$B31,"",P33)) ->  | T33: =IF(R33="","",V33) ->  | U33: =IF(AND(COUNTIF($R$19:$R$38,"*")>0),Z33,"") ->  | V33: =IF(R33="","",W33) ->  | W33: =IF($O33="A",データ!$E$10,IF($O33="B",データ!$E$11,IF($O33="C",データ!$E$12,IF($O33="D",データ!$E$13)))) -> FALSE | X33: =IF(ISERROR(VLOOKUP($D$10,データ!$C$2:$D$9,2,0)),"",(VLOOKUP($D$10,データ!$C$2:$D$9,2,0))) ->  | Y33: =IF($W33=データ!$E$10,データ!$G$10,IF($W33=データ!$E$11,データ!$G$11,IF($W33=データ!$E$12,データ!$G$12,IF($W33=データ!$E$13,データ!$G$13)))) -> FALSE | Z33: =IF(S33="","",IF($B33=$B31,"",Y33)) ->  | AA33: =SUM(J33,K33,L33,S33,T33,U33) -> ¥0
K35: =IF(I35="","",M35) ->  | L35: =IF(AND(COUNTIF($I$19:$I$38,"*")>0),Q35,"") ->  | M35: =IF(I35="","",N35) ->  | N35: =IF($O35="A",データ!$E$10,IF($O35="B",データ!$E$11,IF($O35="C",データ!$E$12,IF($O35="D",データ!$E$13)))) -> FALSE | O35: =IF(ISERROR(VLOOKUP($D$10,データ!$C$2:$D$9,2,0)),"",(VLOOKUP($D$10,データ!$C$2:$D$9,2,0))) ->  | P35: =IF($N35=データ!$E$10,データ!$G$10,IF($N35=データ!$E$11,データ!$G$11,IF($N35=データ!$E$12,データ!$G$12,IF($N35=データ!$E$13,データ!$G$13)))) -> FALSE | Q35: =IF(J35="","",IF($B35=$B33,"",P35)) ->  | T35: =IF(R35="","",V35) ->  | U35: =IF(AND(COUNTIF($R$19:$R$38,"*")>0),Z35,"") ->  | V35: =IF(R35="","",W35) ->  | W35: =IF($O35="A",データ!$E$10,IF($O35="B",データ!$E$11,IF($O35="C",データ!$E$12,IF($O35="D",データ!$E$13)))) -> FALSE | X35: =IF(ISERROR(VLOOKUP($D$10,データ!$C$2:$D$9,2,0)),"",(VLOOKUP($D$10,データ!$C$2:$D$9,2,0))) ->  | Y35: =IF($W35=データ!$E$10,データ!$G$10,IF($W35=データ!$E$11,データ!$G$11,IF($W35=データ!$E$12,データ!$G$12,IF($W35=データ!$E$13,データ!$G$13)))) -> FALSE | Z35: =IF(S35="","",IF($B35=$B33,"",Y35)) ->  | AA35: =SUM(J35,K35,L35,S35,T35,U35) -> ¥0
K37: =IF(I37="","",M37) ->  | L37: =IF(AND(COUNTIF($I$19:$I$38,"*")>0),Q37,"") ->  | M37: =IF(I37="","",N37) ->  | N37: =IF($O37="A",データ!$E$10,IF($O37="B",データ!$E$11,IF($O37="C",データ!$E$12,IF($O37="D",データ!$E$13)))) -> FALSE | O37: =IF(ISERROR(VLOOKUP($D$10,データ!$C$2:$D$9,2,0)),"",(VLOOKUP($D$10,データ!$C$2:$D$9,2,0))) ->  | P37: =IF($N37=データ!$E$10,データ!$G$10,IF($N37=データ!$E$11,データ!$G$11,IF($N37=データ!$E$12,データ!$G$12,IF($N37=データ!$E$13,データ!$G$13)))) -> FALSE | Q37: =IF(J37="","",IF($B37=$B35,"",P37)) ->  | T37: =IF(R37="","",V37) ->  | U37: =IF(AND(COUNTIF($R$19:$R$38,"*")>0),Z37,"") ->  | V37: =IF(R37="","",W37) ->  | W37: =IF($O37="A",データ!$E$10,IF($O37="B",データ!$E$11,IF($O37="C",データ!$E$12,IF($O37="D",データ!$E$13)))) -> FALSE | X37: =IF(ISERROR(VLOOKUP($D$10,データ!$C$2:$D$9,2,0)),"",(VLOOKUP($D$10,データ!$C$2:$D$9,2,0))) ->  | Y37: =IF($W37=データ!$E$10,データ!$G$10,IF($W37=データ!$E$11,データ!$G$11,IF($W37=データ!$E$12,データ!$G$12,IF($W37=データ!$E$13,データ!$G$13)))) -> FALSE | Z37: =IF(S37="","",IF($B37=$B35,"",Y37)) ->  | AA37: =SUM(J37,K37,L37,S37,T37,U37) -> ¥0
B39: ='請求書報告書-参考'!B39:F40 -> 国内出張による日当調整 ※11 | L39: ¥0 | U39: ¥0 | AA39: =SUM(J39,K39,L39,S39,T39,U39) -> ¥0
B41: 備考 | G41: 合計 | J41: =SUM(J19:J40) -> ¥0 | K41: =SUM(K19:K40) -> ¥0 | L41: =SUM(L19:L40) -> ¥0 | Q41: =SUM(Q19:Q38) -> ¥0 | S41: =SUM(S19:S40) -> ¥0 | T41: =SUM(T19:T40) -> ¥0 | U41: =SUM(U19:U40) -> ¥0 | V41: =SUM(V19:V38) -> ¥0 | Z41: =SUM(Z19:Z38) -> ¥0 | AA41: =SUM(J41,K41,L41,S41,T41,U41) -> ¥0
J43: 直接費計 | L43: =SUM(J41,K41,L41) -> ¥0 | R43: 間接費計 | U43: =SUM(S41,T41,U41) -> ¥0
B45: ='請求書報告書-参考'!B45:O49 -> 規程：詳細は旅費の運用についてを参照 ※1 用件が同じであれば日付ごとに明細を分けて、1枚の精算書にまとめる。 ※2 出発地・到着地は必ず施設名（駅名等は不可）を記入する。 ※3 交通費のエビデンスとして､駅すぱあと等の経路探索結果をプリントアウトし添付する。（日程は実際の旅費発生日に合せる事） ※4 旅費規程によりつくば研究センター（産総研）⇔本部間往復交通費は定額となっているのでエビデンス不要。 ※5 下記､出張報告の記載をする。 ※6 前泊､後泊およびタクシー利用の場合は本部業務管理者の事前承認を得て､備考欄にその理由記述した場合のみ認める。 ※7 航空機を使用した場合は、半券添付必須（インター ネットでの申し込み等は、領収書添付を必須とする）。 ※8 研究開発との関連､出張により得られた成果等を記入する。 ※9 会議､学会等の出張は､スケジュールの入ったプログラムの写し等を添付のこと。 ※10学会等参加の出張において､学会等参加費用に食事代､懇親会費が含まれる時には食事代､懇親会費を日当から減額する。 尚､食事代等が含まれる旨を備考欄に記載する。(旅費の運用について参照) ※11 ※10の場合、該当する減額分や他業務実施に伴う日当減額分の金額を直接と間接に分けて記載する。(不明の場合は事務局に問合せる)
B51: 出張報告/用務の内容※8､※9

Sheet 請求書報告書-2
B1: 国内旅費請求書 及び 出張報告書
B3: 決裁印 | D3: 本 部
D4: ='請求書報告書-参考'!D4 -> 総務担当 部長 | E4: ='請求書報告書-参考'!E4 -> 経理 | F4: ='請求書報告書-参考'!F4 -> 担当部長 | G4: ='請求書報告書-参考'!G4 -> 受付
B9: 研究実施場所 | D9: 役職 | F9: 氏名 | T9: 起案日
B10: ='旅費・交通費、諸経費合計'!V7 -> 0 | D10: ='旅費・交通費、諸経費合計'!W8 -> 0 | F10: ='旅費・交通費、諸経費合計'!AC8 -> 0 | H10: ㊞
B12: 用務先（機関等名称） | D12: 出張先所在地（県・市） | G12: 出張用務件名※1
AA15: 単位：円
B17: 日程 | C17: 出発地※2 | D17: 出発時刻 | E17: 経路 ※3、※4 | I17: 直接費 | R17: 間接費 | AA17: 計
C18: 到着地※2 | D18: 到着時刻 | I18: 宿泊地 | J18: 交通費 | K18: 宿泊 | L18: 日当 | M18: 宿泊 | N18: 宿泊区分 | P18: 宿泊日当区分 | Q18: 日当 | R18: 宿泊地 | S18: 交通費 | T18: 宿泊 | U18: 日当 | V18: 宿泊 | W18: 宿泊区分 | Y18: 宿泊日当区分 | Z18: 日当
K19: =IF(I19="","",M19) ->  | L19: =IF(AND(COUNTIF($I$19:$I$38,"*")>0),Q19,"") ->  | M19: =IF(I19="","",N19) ->  | N19: =IF($O19="A",データ!$E$10,IF($O19="B",データ!$E$11,IF($O19="C",データ!$E$12,IF($O19="D",データ!$E$13)))) -> FALSE | O19: =IF(ISERROR(VLOOKUP($D$10,データ!$C$2:$D$9,2,0)),"",(VLOOKUP($D$10,データ!$C$2:$D$9,2,0))) ->  | P19: =IF($N19=データ!$E$10,データ!$G$10,IF($N19=データ!$E$11,データ!$G$11,IF($N19=データ!$E$12,データ!$G$12,IF($N19=データ!$E$13,データ!$G$13)))) -> FALSE | Q19: =IF(OR($J19="",(COUNTIF($B19:$B32,$B19+1)=0)),"",P19) ->  | T19: =IF(R19="","",V19) ->  | U19: =IF(AND(COUNTIF($R$19:$R$38,"*")>0),Z19,"") ->  | V19: =IF(R19="","",W19) ->  | W19: =IF($O19="A",データ!$E$10,IF($O19="B",データ!$E$11,IF($O19="C",データ!$E$12,IF($O19="D",データ!$E$13)))) -> FALSE | X19: =IF(ISERROR(VLOOKUP($D$10,データ!$C$2:$D$9,2,0)),"",(VLOOKUP($D$10,データ!$C$2:$D$9,2,0))) ->  | Y19: =IF($W19=データ!$E$10,データ!$G$10,IF($W19=データ!$E$11,データ!$G$11,IF($W19=データ!$E$12,データ!$G$12,IF($W19=データ!$E$13,データ!$G$13)))) -> FALSE | Z19: =IF(OR($S19="",(COUNTIF($B19:$B32,$B19+1)=0)),"",Y19) ->  | AA19: =SUM(J19,K19,L19,S19,T19,U19) -> ¥0
K21: =IF(I21="","",M21) ->  | L21: =IF(AND(COUNTIF($I$19:$I$38,"*")>0),Q21,"") ->  | M21: =IF(I21="","",N21) ->  | N21: =IF($O21="A",データ!$E$10,IF($O21="B",データ!$E$11,IF($O21="C",データ!$E$12,IF($O21="D",データ!$E$13)))) -> FALSE | O21: =IF(ISERROR(VLOOKUP($D$10,データ!$C$2:$D$9,2,0)),"",(VLOOKUP($D$10,データ!$C$2:$D$9,2,0))) ->  | P21: =IF($N21=データ!$E$10,データ!$G$10,IF($N21=データ!$E$11,データ!$G$11,IF($N21=データ!$E$12,データ!$G$12,IF($N21=データ!$E$13,データ!$G$13)))) -> FALSE | Q21: =IF(J21="","",IF($B21=$B19,"",P21)) ->  | T21: =IF(R21="","",V21) ->  | U21: =IF(AND(COUNTIF($R$19:$R$38,"*")>0),Z21,"") ->  | V21: =IF(R21="","",W21) ->  | W21: =IF($O21="A",データ!$E$10,IF($O21="B",データ!$E$11,IF($O21="C",データ!$E$12,IF($O21="D",データ!$E$13)))) -> FALSE | X21: =IF(ISERROR(VLOOKUP($D$10,データ!$C$2:$D$9,2,0)),"",(VLOOKUP($D$10,データ!$C$2:$D$9,2,0))) ->  | Y21: =IF($W21=データ!$E$10,データ!$G$10,IF($W21=データ!$E$11,データ!$G$11,IF($W21=データ!$E$12,データ!$G$12,IF($W21=データ!$E$13,データ!$G$13)))) -> FALSE | Z21: =IF(S21="","",IF($B21=$B19,"",Y21)) ->  | AA21: =SUM(J21,K21,L21,S21,T21,U21) -> ¥0
K23: =IF(I23="","",M23) ->  | L23: =IF(AND(COUNTIF($I$19:$I$38,"*")>0),Q23,"") ->  | M23: =IF(I23="","",N23) ->  | N23: =IF($O23="A",データ!$E$10,IF($O23="B",データ!$E$11,IF($O23="C",データ!$E$12,IF($O23="D",データ!$E$13)))) -> FALSE | O23: =IF(ISERROR(VLOOKUP($D$10,データ!$C$2:$D$9,2,0)),"",(VLOOKUP($D$10,データ!$C$2:$D$9,2,0))) ->  | P23: =IF($N23=データ!$E$10,データ!$G$10,IF($N23=データ!$E$11,データ!$G$11,IF($N23=データ!$E$12,データ!$G$12,IF($N23=データ!$E$13,データ!$G$13)))) -> FALSE | Q23: =IF(J23="","",IF($B23=$B21,"",P23)) ->  | T23: =IF(R23="","",V23) ->  | U23: =IF(AND(COUNTIF($R$19:$R$38,"*")>0),Z23,"") ->  | V23: =IF(R23="","",W23) ->  | W23: =IF($O23="A",データ!$E$10,IF($O23="B",データ!$E$11,IF($O23="C",データ!$E$12,IF($O23="D",データ!$E$13)))) -> FALSE | X23: =IF(ISERROR(VLOOKUP($D$10,データ!$C$2:$D$9,2,0)),"",(VLOOKUP($D$10,データ!$C$2:$D$9,2,0))) ->  | Y23: =IF($W23=データ!$E$10,データ!$G$10,IF($W23=データ!$E$11,データ!$G$11,IF($W23=データ!$E$12,データ!$G$12,IF($W23=データ!$E$13,データ!$G$13)))) -> FALSE | Z23: =IF(S23="","",IF($B23=$B21,"",Y23)) ->  | AA23: =SUM(J23,K23,L23,S23,T23,U23) -> ¥0
K25: =IF(I25="","",M25) ->  | L25: =IF(AND(COUNTIF($I$19:$I$38,"*")>0),Q25,"") ->  | M25: =IF(I25="","",N25) ->  | N25: =IF($O25="A",データ!$E$10,IF($O25="B",データ!$E$11,IF($O25="C",データ!$E$12,IF($O25="D",データ!$E$13)))) -> FALSE | O25: =IF(ISERROR(VLOOKUP($D$10,データ!$C$2:$D$9,2,0)),"",(VLOOKUP($D$10,データ!$C$2:$D$9,2,0))) ->  | P25: =IF($N25=データ!$E$10,データ!$G$10,IF($N25=データ!$E$11,データ!$G$11,IF($N25=データ!$E$12,データ!$G$12,IF($N25=データ!$E$13,データ!$G$13)))) -> FALSE | Q25: =IF(J25="","",IF($B25=$B23,"",P25)) ->  | T25: =IF(R25="","",V25) ->  | U25: =IF(AND(COUNTIF($R$19:$R$38,"*")>0),Z25,"") ->  | V25: =IF(R25="","",W25) ->  | W25: =IF($O25="A",データ!$E$10,IF($O25="B",データ!$E$11,IF($O25="C",データ!$E$12,IF($O25="D",データ!$E$13)))) -> FALSE | X25: =IF(ISERROR(VLOOKUP($D$10,データ!$C$2:$D$9,2,0)),"",(VLOOKUP($D$10,データ!$C$2:$D$9,2,0))) ->  | Y25: =IF($W25=データ!$E$10,データ!$G$10,IF($W25=データ!$E$11,データ!$G$11,IF($W25=データ!$E$12,データ!$G$12,IF($W25=データ!$E$13,データ!$G$13)))) -> FALSE | Z25: =IF(S25="","",IF($B25=$B23,"",Y25)) ->  | AA25: =SUM(J25,K25,L25,S25,T25,U25) -> ¥0
K27: =IF(I27="","",M27) ->  | L27: =IF(AND(COUNTIF($I$19:$I$38,"*")>0),Q27,"") ->  | M27: =IF(I27="","",N27) ->  | N27: =IF($O27="A",データ!$E$10,IF($O27="B",データ!$E$11,IF($O27="C",データ!$E$12,IF($O27="D",データ!$E$13)))) -> FALSE | O27: =IF(ISERROR(VLOOKUP($D$10,データ!$C$2:$D$9,2,0)),"",(VLOOKUP($D$10,データ!$C$2:$D$9,2,0))) ->  | P27: =IF($N27=データ!$E$10,データ!$G$10,IF($N27=データ!$E$11,データ!$G$11,IF($N27=データ!$E$12,データ!$G$12,IF($N27=データ!$E$13,データ!$G$13)))) -> FALSE | Q27: =IF(J27="","",IF($B27=$B25,"",P27)) ->  | T27: =IF(R27="","",V27) ->  | U27: =IF(AND(COUNTIF($R$19:$R$38,"*")>0),Z27,"") ->  | V27: =IF(R27="","",W27) ->  | W27: =IF($O27="A",データ!$E$10,IF($O27="B",データ!$E$11,IF($O27="C",データ!$E$12,IF($O27="D",データ!$E$13)))) -> FALSE | X27: =IF(ISERROR(VLOOKUP($D$10,データ!$C$2:$D$9,2,0)),"",(VLOOKUP($D$10,データ!$C$2:$D$9,2,0))) ->  | Y27: =IF($W27=データ!$E$10,データ!$G$10,IF($W27=データ!$E$11,データ!$G$11,IF($W27=データ!$E$12,データ!$G$12,IF($W27=データ!$E$13,データ!$G$13)))) -> FALSE | Z27: =IF(S27="","",IF($B27=$B25,"",Y27)) ->  | AA27: =SUM(J27,K27,L27,S27,T27,U27) -> ¥0
K29: =IF(I29="","",M29) ->  | L29: =IF(AND(COUNTIF($I$19:$I$38,"*")>0),Q29,"") ->  | M29: =IF(I29="","",N29) ->  | N29: =IF($O29="A",データ!$E$10,IF($O29="B",データ!$E$11,IF($O29="C",データ!$E$12,IF($O29="D",データ!$E$13)))) -> FALSE | O29: =IF(ISERROR(VLOOKUP($D$10,データ!$C$2:$D$9,2,0)),"",(VLOOKUP($D$10,データ!$C$2:$D$9,2,0))) ->  | P29: =IF($N29=データ!$E$10,データ!$G$10,IF($N29=データ!$E$11,データ!$G$11,IF($N29=データ!$E$12,データ!$G$12,IF($N29=データ!$E$13,データ!$G$13)))) -> FALSE | Q29: =IF(J29="","",IF($B29=$B27,"",P29)) ->  | T29: =IF(R29="","",V29) ->  | U29: =IF(AND(COUNTIF($R$19:$R$38,"*")>0),Z29,"") ->  | V29: =IF(R29="","",W29) ->  | W29: =IF($O29="A",データ!$E$10,IF($O29="B",データ!$E$11,IF($O29="C",データ!$E$12,IF($O29="D",データ!$E$13)))) -> FALSE | X29: =IF(ISERROR(VLOOKUP($D$10,データ!$C$2:$D$9,2,0)),"",(VLOOKUP($D$10,データ!$C$2:$D$9,2,0))) ->  | Y29: =IF($W29=データ!$E$10,データ!$G$10,IF($W29=データ!$E$11,データ!$G$11,IF($W29=データ!$E$12,データ!$G$12,IF($W29=データ!$E$13,データ!$G$13)))) -> FALSE | Z29: =IF(S29="","",IF($B29=$B27,"",Y29)) ->  | AA29: =SUM(J29,K29,L29,S29,T29,U29) -> ¥0
K31: =IF(I31="","",M31) ->  | L31: =IF(AND(COUNTIF($I$19:$I$38,"*")>0),Q31,"") ->  | M31: =IF(I31="","",N31) ->  | N31: =IF($O31="A",データ!$E$10,IF($O31="B",データ!$E$11,IF($O31="C",データ!$E$12,IF($O31="D",データ!$E$13)))) -> FALSE | O31: =IF(ISERROR(VLOOKUP($D$10,データ!$C$2:$D$9,2,0)),"",(VLOOKUP($D$10,データ!$C$2:$D$9,2,0))) ->  | P31: =IF($N31=データ!$E$10,データ!$G$10,IF($N31=データ!$E$11,データ!$G$11,IF($N31=データ!$E$12,データ!$G$12,IF($N31=データ!$E$13,データ!$G$13)))) -> FALSE | Q31: =IF(J31="","",IF($B31=$B29,"",P31)) ->  | T31: =IF(R31="","",V31) ->  | U31: =IF(AND(COUNTIF($R$19:$R$38,"*")>0),Z31,"") ->  | V31: =IF(R31="","",W31) ->  | W31: =IF($O31="A",データ!$E$10,IF($O31="B",データ!$E$11,IF($O31="C",データ!$E$12,IF($O31="D",データ!$E$13)))) -> FALSE | X31: =IF(ISERROR(VLOOKUP($D$10,データ!$C$2:$D$9,2,0)),"",(VLOOKUP($D$10,データ!$C$2:$D$9,2,0))) ->  | Y31: =IF($W31=データ!$E$10,データ!$G$10,IF($W31=データ!$E$11,データ!$G$11,IF($W31=データ!$E$12,データ!$G$12,IF($W31=データ!$E$13,データ!$G$13)))) -> FALSE | Z31: =IF(S31="","",IF($B31=$B29,"",Y31)) ->  | AA31: =SUM(J31,K31,L31,S31,T31,U31) -> ¥0
K33: =IF(I33="","",M33) ->  | L33: =IF(AND(COUNTIF($I$19:$I$38,"*")>0),Q33,"") ->  | M33: =IF(I33="","",N33) ->  | N33: =IF($O33="A",データ!$E$10,IF($O33="B",データ!$E$11,IF($O33="C",データ!$E$12,IF($O33="D",データ!$E$13)))) -> FALSE | O33: =IF(ISERROR(VLOOKUP($D$10,データ!$C$2:$D$9,2,0)),"",(VLOOKUP($D$10,データ!$C$2:$D$9,2,0))) ->  | P33: =IF($N33=データ!$E$10,データ!$G$10,IF($N33=データ!$E$11,データ!$G$11,IF($N33=データ!$E$12,データ!$G$12,IF($N33=データ!$E$13,データ!$G$13)))) -> FALSE | Q33: =IF(J33="","",IF($B33=$B31,"",P33)) ->  | T33: =IF(R33="","",V33) ->  | U33: =IF(AND(COUNTIF($R$19:$R$38,"*")>0),Z33,"") ->  | V33: =IF(R33="","",W33) ->  | W33: =IF($O33="A",データ!$E$10,IF($O33="B",データ!$E$11,IF($O33="C",データ!$E$12,IF($O33="D",データ!$E$13)))) -> FALSE | X33: =IF(ISERROR(VLOOKUP($D$10,データ!$C$2:$D$9,2,0)),"",(VLOOKUP($D$10,データ!$C$2:$D$9,2,0))) ->  | Y33: =IF($W33=データ!$E$10,データ!$G$10,IF($W33=データ!$E$11,データ!$G$11,IF($W33=データ!$E$12,データ!$G$12,IF($W33=データ!$E$13,データ!$G$13)))) -> FALSE | Z33: =IF(S33="","",IF($B33=$B31,"",Y33)) ->  | AA33: =SUM(J33,K33,L33,S33,T33,U33) -> ¥0
K35: =IF(I35="","",M35) ->  | L35: =IF(AND(COUNTIF($I$19:$I$38,"*")>0),Q35,"") ->  | M35: =IF(I35="","",N35) ->  | N35: =IF($O35="A",データ!$E$10,IF($O35="B",データ!$E$11,IF($O35="C",データ!$E$12,IF($O35="D",データ!$E$13)))) -> FALSE | O35: =IF(ISERROR(VLOOKUP($D$10,データ!$C$2:$D$9,2,0)),"",(VLOOKUP($D$10,データ!$C$2:$D$9,2,0))) ->  | P35: =IF($N35=データ!$E$10,データ!$G$10,IF($N35=データ!$E$11,データ!$G$11,IF($N35=データ!$E$12,データ!$G$12,IF($N35=データ!$E$13,データ!$G$13)))) -> FALSE | Q35: =IF(J35="","",IF($B35=$B33,"",P35)) ->  | T35: =IF(R35="","",V35) ->  | U35: =IF(AND(COUNTIF($R$19:$R$38,"*")>0),Z35,"") ->  | V35: =IF(R35="","",W35) ->  | W35: =IF($O35="A",データ!$E$10,IF($O35="B",データ!$E$11,IF($O35="C",データ!$E$12,IF($O35="D",データ!$E$13)))) -> FALSE | X35: =IF(ISERROR(VLOOKUP($D$10,データ!$C$2:$D$9,2,0)),"",(VLOOKUP($D$10,データ!$C$2:$D$9,2,0))) ->  | Y35: =IF($W35=データ!$E$10,データ!$G$10,IF($W35=データ!$E$11,データ!$G$11,IF($W35=データ!$E$12,データ!$G$12,IF($W35=データ!$E$13,データ!$G$13)))) -> FALSE | Z35: =IF(S35="","",IF($B35=$B33,"",Y35)) ->  | AA35: =SUM(J35,K35,L35,S35,T35,U35) -> ¥0
K37: =IF(I37="","",M37) ->  | L37: =IF(AND(COUNTIF($I$19:$I$38,"*")>0),Q37,"") ->  | M37: =IF(I37="","",N37) ->  | N37: =IF($O37="A",データ!$E$10,IF($O37="B",データ!$E$11,IF($O37="C",データ!$E$12,IF($O37="D",データ!$E$13)))) -> FALSE | O37: =IF(ISERROR(VLOOKUP($D$10,データ!$C$2:$D$9,2,0)),"",(VLOOKUP($D$10,データ!$C$2:$D$9,2,0))) ->  | P37: =IF($N37=データ!$E$10,データ!$G$10,IF($N37=データ!$E$11,データ!$G$11,IF($N37=データ!$E$12,データ!$G$12,IF($N37=データ!$E$13,データ!$G$13)))) -> FALSE | Q37: =IF(J37="","",IF($B37=$B35,"",P37)) ->  | T37: =IF(R37="","",V37) ->  | U37: =IF(AND(COUNTIF($R$19:$R$38,"*")>0),Z37,"") ->  | V37: =IF(R37="","",W37) ->  | W37: =IF($O37="A",データ!$E$10,IF($O37="B",データ!$E$11,IF($O37="C",データ!$E$12,IF($O37="D",データ!$E$13)))) -> FALSE | X37: =IF(ISERROR(VLOOKUP($D$10,データ!$C$2:$D$9,2,0)),"",(VLOOKUP($D$10,データ!$C$2:$D$9,2,0))) ->  | Y37: =IF($W37=データ!$E$10,データ!$G$10,IF($W37=データ!$E$11,データ!$G$11,IF($W37=データ!$E$12,データ!$G$12,IF($W37=データ!$E$13,データ!$G$13)))) -> FALSE | Z37: =IF(S37="","",IF($B37=$B35,"",Y37)) ->  | AA37: =SUM(J37,K37,L37,S37,T37,U37) -> ¥0
B39: ='請求書報告書-参考'!B39:F40 -> 国内出張による日当調整 ※11 | L39: ¥0 | U39: ¥0 | AA39: =SUM(J39,K39,L39,S39,T39,U39) -> ¥0
B41: 備考 | G41: 合計 | J41: =SUM(J19:J40) -> ¥0 | K41: =SUM(K19:K40) -> ¥0 | L41: =SUM(L19:L40) -> ¥0 | Q41: =SUM(Q19:Q38) -> ¥0 | S41: =SUM(S19:S40) -> ¥0 | T41: =SUM(T19:T40) -> ¥0 | U41: =SUM(U19:U40) -> ¥0 | V41: =SUM(V19:V38) -> ¥0 | Z41: =SUM(Z19:Z38) -> ¥0 | AA41: =SUM(J41,K41,L41,S41,T41,U41) -> ¥0
J43: 直接費計 | L43: =SUM(J41,K41,L41) -> ¥0 | R43: 間接費計 | U43: =SUM(S41,T41,U41) -> ¥0
B45: ='請求書報告書-参考'!B45:O49 -> 規程：詳細は旅費の運用についてを参照 ※1 用件が同じであれば日付ごとに明細を分けて、1枚の精算書にまとめる。 ※2 出発地・到着地は必ず施設名（駅名等は不可）を記入する。 ※3 交通費のエビデンスとして､駅すぱあと等の経路探索結果をプリントアウトし添付する。（日程は実際の旅費発生日に合せる事） ※4 旅費規程によりつくば研究センター（産総研）⇔本部間往復交通費は定額となっているのでエビデンス不要。 ※5 下記､出張報告の記載をする。 ※6 前泊､後泊およびタクシー利用の場合は本部業務管理者の事前承認を得て､備考欄にその理由記述した場合のみ認める。 ※7 航空機を使用した場合は、半券添付必須（インター ネットでの申し込み等は、領収書添付を必須とする）。 ※8 研究開発との関連､出張により得られた成果等を記入する。 ※9 会議､学会等の出張は､スケジュールの入ったプログラムの写し等を添付のこと。 ※10学会等参加の出張において､学会等参加費用に食事代､懇親会費が含まれる時には食事代､懇親会費を日当から減額する。 尚､食事代等が含まれる旨を備考欄に記載する。(旅費の運用について参照) ※11 ※10の場合、該当する減額分や他業務実施に伴う日当減額分の金額を直接と間接に分けて記載する。(不明の場合は事務局に問合せる)
B51: 出張報告/用務の内容※8､※9
B52: （目的） （内容） （結果報告）

Sheet 請求書報告書-3
B1: 国内旅費請求書 及び 出張報告書
B3: 決裁印 | D3: 本 部
D4: ='請求書報告書-参考'!D4 -> 総務担当 部長 | E4: ='請求書報告書-参考'!E4 -> 経理 | F4: ='請求書報告書-参考'!F4 -> 担当部長 | G4: ='請求書報告書-参考'!G4 -> 受付
B9: 研究実施場所 | D9: 役職 | F9: 氏名 | T9: 起案日
B10: ='旅費・交通費、諸経費合計'!V7 -> 0 | D10: ='旅費・交通費、諸経費合計'!W8 -> 0 | F10: ='旅費・交通費、諸経費合計'!AC8 -> 0 | H10: ㊞
B12: 用務先（機関等名称） | D12: 出張先所在地（県・市） | G12: 出張用務件名※1
AA15: 単位：円
B17: 日程 | C17: 出発地※2 | D17: 出発時刻 | E17: 経路 ※3、※4 | I17: 直接費 | R17: 間接費 | AA17: 計
C18: 到着地※2 | D18: 到着時刻 | I18: 宿泊地 | J18: 交通費 | K18: 宿泊 | L18: 日当 | M18: 宿泊 | N18: 宿泊区分 | P18: 宿泊日当区分 | Q18: 日当 | R18: 宿泊地 | S18: 交通費 | T18: 宿泊 | U18: 日当 | V18: 宿泊 | W18: 宿泊区分 | Y18: 宿泊日当区分 | Z18: 日当
K19: =IF(I19="","",M19) ->  | L19: =IF(AND(COUNTIF($I$19:$I$38,"*")>0),Q19,"") ->  | M19: =IF(I19="","",N19) ->  | N19: =IF($O19="A",データ!$E$10,IF($O19="B",データ!$E$11,IF($O19="C",データ!$E$12,IF($O19="D",データ!$E$13)))) -> FALSE | O19: =IF(ISERROR(VLOOKUP($D$10,データ!$C$2:$D$9,2,0)),"",(VLOOKUP($D$10,データ!$C$2:$D$9,2,0))) ->  | P19: =IF($N19=データ!$E$10,データ!$G$10,IF($N19=データ!$E$11,データ!$G$11,IF($N19=データ!$E$12,データ!$G$12,IF($N19=データ!$E$13,データ!$G$13)))) -> FALSE | Q19: =IF(OR($J19="",(COUNTIF($B19:$B32,$B19+1)=0)),"",P19) ->  | T19: =IF(R19="","",V19) ->  | U19: =IF(AND(COUNTIF($R$19:$R$38,"*")>0),Z19,"") ->  | V19: =IF(R19="","",W19) ->  | W19: =IF($O19="A",データ!$E$10,IF($O19="B",データ!$E$11,IF($O19="C",データ!$E$12,IF($O19="D",データ!$E$13)))) -> FALSE | X19: =IF(ISERROR(VLOOKUP($D$10,データ!$C$2:$D$9,2,0)),"",(VLOOKUP($D$10,データ!$C$2:$D$9,2,0))) ->  | Y19: =IF($W19=データ!$E$10,データ!$G$10,IF($W19=データ!$E$11,データ!$G$11,IF($W19=データ!$E$12,データ!$G$12,IF($W19=データ!$E$13,データ!$G$13)))) -> FALSE | Z19: =IF(OR($S19="",(COUNTIF($B19:$B32,$B19+1)=0)),"",Y19) ->  | AA19: =SUM(J19,K19,L19,S19,T19,U19) -> ¥0
K21: =IF(I21="","",M21) ->  | L21: =IF(AND(COUNTIF($I$19:$I$38,"*")>0),Q21,"") ->  | M21: =IF(I21="","",N21) ->  | N21: =IF($O21="A",データ!$E$10,IF($O21="B",データ!$E$11,IF($O21="C",データ!$E$12,IF($O21="D",データ!$E$13)))) -> FALSE | O21: =IF(ISERROR(VLOOKUP($D$10,データ!$C$2:$D$9,2,0)),"",(VLOOKUP($D$10,データ!$C$2:$D$9,2,0))) ->  | P21: =IF($N21=データ!$E$10,データ!$G$10,IF($N21=データ!$E$11,データ!$G$11,IF($N21=データ!$E$12,データ!$G$12,IF($N21=データ!$E$13,データ!$G$13)))) -> FALSE | Q21: =IF(J21="","",IF($B21=$B19,"",P21)) ->  | T21: =IF(R21="","",V21) ->  | U21: =IF(AND(COUNTIF($R$19:$R$38,"*")>0),Z21,"") ->  | V21: =IF(R21="","",W21) ->  | W21: =IF($O21="A",データ!$E$10,IF($O21="B",データ!$E$11,IF($O21="C",データ!$E$12,IF($O21="D",データ!$E$13)))) -> FALSE | X21: =IF(ISERROR(VLOOKUP($D$10,データ!$C$2:$D$9,2,0)),"",(VLOOKUP($D$10,データ!$C$2:$D$9,2,0))) ->  | Y21: =IF($W21=データ!$E$10,データ!$G$10,IF($W21=データ!$E$11,データ!$G$11,IF($W21=データ!$E$12,データ!$G$12,IF($W21=データ!$E$13,データ!$G$13)))) -> FALSE | Z21: =IF(S21="","",IF($B21=$B19,"",Y21)) ->  | AA21: =SUM(J21,K21,L21,S21,T21,U21) -> ¥0
K23: =IF(I23="","",M23) ->  | L23: =IF(AND(COUNTIF($I$19:$I$38,"*")>0),Q23,"") ->  | M23: =IF(I23="","",N23) ->  | N23: =IF($O23="A",データ!$E$10,IF($O23="B",データ!$E$11,IF($O23="C",データ!$E$12,IF($O23="D",データ!$E$13)))) -> FALSE | O23: =IF(ISERROR(VLOOKUP($D$10,データ!$C$2:$D$9,2,0)),"",(VLOOKUP($D$10,データ!$C$2:$D$9,2,0))) ->  | P23: =IF($N23=データ!$E$10,データ!$G$10,IF($N23=データ!$E$11,データ!$G$11,IF($N23=データ!$E$12,データ!$G$12,IF($N23=データ!$E$13,データ!$G$13)))) -> FALSE | Q23: =IF(J23="","",IF($B23=$B21,"",P23)) ->  | T23: =IF(R23="","",V23) ->  | U23: =IF(AND(COUNTIF($R$19:$R$38,"*")>0),Z23,"") ->  | V23: =IF(R23="","",W23) ->  | W23: =IF($O23="A",データ!$E$10,IF($O23="B",データ!$E$11,IF($O23="C",データ!$E$12,IF($O23="D",データ!$E$13)))) -> FALSE | X23: =IF(ISERROR(VLOOKUP($D$10,データ!$C$2:$D$9,2,0)),"",(VLOOKUP($D$10,データ!$C$2:$D$9,2,0))) ->  | Y23: =IF($W23=データ!$E$10,データ!$G$10,IF($W23=データ!$E$11,データ!$G$11,IF($W23=データ!$E$12,データ!$G$12,IF($W23=データ!$E$13,データ!$G$13)))) -> FALSE | Z23: =IF(S23="","",IF($B23=$B21,"",Y23)) ->  | AA23: =SUM(J23,K23,L23,S23,T23,U23) -> ¥0
K25: =IF(I25="","",M25) ->  | L25: =IF(AND(COUNTIF($I$19:$I$38,"*")>0),Q25,"") ->  | M25: =IF(I25="","",N25) ->  | N25: =IF($O25="A",データ!$E$10,IF($O25="B",データ!$E$11,IF($O25="C",データ!$E$12,IF($O25="D",データ!$E$13)))) -> FALSE | O25: =IF(ISERROR(VLOOKUP($D$10,データ!$C$2:$D$9,2,0)),"",(VLOOKUP($D$10,データ!$C$2:$D$9,2,0))) ->  | P25: =IF($N25=データ!$E$10,データ!$G$10,IF($N25=データ!$E$11,データ!$G$11,IF($N25=データ!$E$12,データ!$G$12,IF($N25=データ!$E$13,データ!$G$13)))) -> FALSE | Q25: =IF(J25="","",IF($B25=$B23,"",P25)) ->  | T25: =IF(R25="","",V25) ->  | U25: =IF(AND(COUNTIF($R$19:$R$38,"*")>0),Z25,"") ->  | V25: =IF(R25="","",W25) ->  | W25: =IF($O25="A",データ!$E$10,IF($O25="B",データ!$E$11,IF($O25="C",データ!$E$12,IF($O25="D",データ!$E$13)))) -> FALSE | X25: =IF(ISERROR(VLOOKUP($D$10,データ!$C$2:$D$9,2,0)),"",(VLOOKUP($D$10,データ!$C$2:$D$9,2,0))) ->  | Y25: =IF($W25=データ!$E$10,データ!$G$10,IF($W25=データ!$E$11,データ!$G$11,IF($W25=データ!$E$12,データ!$G$12,IF($W25=データ!$E$13,データ!$G$13)))) -> FALSE | Z25: =IF(S25="","",IF($B25=$B23,"",Y25)) ->  | AA25: =SUM(J25,K25,L25,S25,T25,U25) -> ¥0
K27: =IF(I27="","",M27) ->  | L27: =IF(AND(COUNTIF($I$19:$I$38,"*")>0),Q27,"") ->  | M27: =IF(I27="","",N27) ->  | N27: =IF($O27="A",データ!$E$10,IF($O27="B",データ!$E$11,IF($O27="C",データ!$E$12,IF($O27="D",データ!$E$13)))) -> FALSE | O27: =IF(ISERROR(VLOOKUP($D$10,データ!$C$2:$D$9,2,0)),"",(VLOOKUP($D$10,データ!$C$2:$D$9,2,0))) ->  | P27: =IF($N27=データ!$E$10,データ!$G$10,IF($N27=データ!$E$11,データ!$G$11,IF($N27=データ!$E$12,データ!$G$12,IF($N27=データ!$E$13,データ!$G$13)))) -> FALSE | Q27: =IF(J27="","",IF($B27=$B25,"",P27)) ->  | T27: =IF(R27="","",V27) ->  | U27: =IF(AND(COUNTIF($R$19:$R$38,"*")>0),Z27,"") ->  | V27: =IF(R27="","",W27) ->  | W27: =IF($O27="A",データ!$E$10,IF($O27="B",データ!$E$11,IF($O27="C",データ!$E$12,IF($O27="D",データ!$E$13)))) -> FALSE | X27: =IF(ISERROR(VLOOKUP($D$10,データ!$C$2:$D$9,2,0)),"",(VLOOKUP($D$10,データ!$C$2:$D$9,2,0))) ->  | Y27: =IF($W27=データ!$E$10,データ!$G$10,IF($W27=データ!$E$11,データ!$G$11,IF($W27=データ!$E$12,データ!$G$12,IF($W27=データ!$E$13,データ!$G$13)))) -> FALSE | Z27: =IF(S27="","",IF($B27=$B25,"",Y27)) ->  | AA27: =SUM(J27,K27,L27,S27,T27,U27) -> ¥0
K29: =IF(I29="","",M29) ->  | L29: =IF(AND(COUNTIF($I$19:$I$38,"*")>0),Q29,"") ->  | M29: =IF(I29="","",N29) ->  | N29: =IF($O29="A",データ!$E$10,IF($O29="B",データ!$E$11,IF($O29="C",データ!$E$12,IF($O29="D",データ!$E$13)))) -> FALSE | O29: =IF(ISERROR(VLOOKUP($D$10,データ!$C$2:$D$9,2,0)),"",(VLOOKUP($D$10,データ!$C$2:$D$9,2,0))) ->  | P29: =IF($N29=データ!$E$10,データ!$G$10,IF($N29=データ!$E$11,データ!$G$11,IF($N29=データ!$E$12,データ!$G$12,IF($N29=データ!$E$13,データ!$G$13)))) -> FALSE | Q29: =IF(J29="","",IF($B29=$B27,"",P29)) ->  | T29: =IF(R29="","",V29) ->  | U29: =IF(AND(COUNTIF($R$19:$R$38,"*")>0),Z29,"") ->  | V29: =IF(R29="","",W29) ->  | W29: =IF($O29="A",データ!$E$10,IF($O29="B",データ!$E$11,IF($O29="C",データ!$E$12,IF($O29="D",データ!$E$13)))) -> FALSE | X29: =IF(ISERROR(VLOOKUP($D$10,データ!$C$2:$D$9,2,0)),"",(VLOOKUP($D$10,データ!$C$2:$D$9,2,0))) ->  | Y29: =IF($W29=データ!$E$10,データ!$G$10,IF($W29=データ!$E$11,データ!$G$11,IF($W29=データ!$E$12,データ!$G$12,IF($W29=データ!$E$13,データ!$G$13)))) -> FALSE | Z29: =IF(S29="","",IF($B29=$B27,"",Y29)) ->  | AA29: =SUM(J29,K29,L29,S29,T29,U29) -> ¥0
K31: =IF(I31="","",M31) ->  | L31: =IF(AND(COUNTIF($I$19:$I$38,"*")>0),Q31,"") ->  | M31: =IF(I31="","",N31) ->  | N31: =IF($O31="A",データ!$E$10,IF($O31="B",データ!$E$11,IF($O31="C",データ!$E$12,IF($O31="D",データ!$E$13)))) -> FALSE | O31: =IF(ISERROR(VLOOKUP($D$10,データ!$C$2:$D$9,2,0)),"",(VLOOKUP($D$10,データ!$C$2:$D$9,2,0))) ->  | P31: =IF($N31=データ!$E$10,データ!$G$10,IF($N31=データ!$E$11,データ!$G$11,IF($N31=データ!$E$12,データ!$G$12,IF($N31=データ!$E$13,データ!$G$13)))) -> FALSE | Q31: =IF(J31="","",IF($B31=$B29,"",P31)) ->  | T31: =IF(R31="","",V31) ->  | U31: =IF(AND(COUNTIF($R$19:$R$38,"*")>0),Z31,"") ->  | V31: =IF(R31="","",W31) ->  | W31: =IF($O31="A",データ!$E$10,IF($O31="B",データ!$E$11,IF($O31="C",データ!$E$12,IF($O31="D",データ!$E$13)))) -> FALSE | X31: =IF(ISERROR(VLOOKUP($D$10,データ!$C$2:$D$9,2,0)),"",(VLOOKUP($D$10,データ!$C$2:$D$9,2,0))) ->  | Y31: =IF($W31=データ!$E$10,データ!$G$10,IF($W31=データ!$E$11,データ!$G$11,IF($W31=データ!$E$12,データ!$G$12,IF($W31=データ!$E$13,データ!$G$13)))) -> FALSE | Z31: =IF(S31="","",IF($B31=$B29,"",Y31)) ->  | AA31: =SUM(J31,K31,L31,S31,T31,U31) -> ¥0
K33: =IF(I33="","",M33) ->  | L33: =IF(AND(COUNTIF($I$19:$I$38,"*")>0),Q33,"") ->  | M33: =IF(I33="","",N33) ->  | N33: =IF($O33="A",データ!$E$10,IF($O33="B",データ!$E$11,IF($O33="C",データ!$E$12,IF($O33="D",データ!$E$13)))) -> FALSE | O33: =IF(ISERROR(VLOOKUP($D$10,データ!$C$2:$D$9,2,0)),"",(VLOOKUP($D$10,データ!$C$2:$D$9,2,0))) ->  | P33: =IF($N33=データ!$E$10,データ!$G$10,IF($N33=データ!$E$11,データ!$G$11,IF($N33=データ!$E$12,データ!$G$12,IF($N33=データ!$E$13,データ!$G$13)))) -> FALSE | Q33: =IF(J33="","",IF($B33=$B31,"",P33)) ->  | T33: =IF(R33="","",V33) ->  | U33: =IF(AND(COUNTIF($R$19:$R$38,"*")>0),Z33,"") ->  | V33: =IF(R33="","",W33) ->  | W33: =IF($O33="A",データ!$E$10,IF($O33="B",データ!$E$11,IF($O33="C",データ!$E$12,IF($O33="D",データ!$E$13)))) -> FALSE | X33: =IF(ISERROR(VLOOKUP($D$10,データ!$C$2:$D$9,2,0)),"",(VLOOKUP($D$10,データ!$C$2:$D$9,2,0))) ->  | Y33: =IF($W33=データ!$E$10,データ!$G$10,IF($W33=データ!$E$11,データ!$G$11,IF($W33=データ!$E$12,データ!$G$12,IF($W33=データ!$E$13,データ!$G$13)))) -> FALSE | Z33: =IF(S33="","",IF($B33=$B31,"",Y33)) ->  | AA33: =SUM(J33,K33,L33,S33,T33,U33) -> ¥0
K35: =IF(I35="","",M35) ->  | L35: =IF(AND(COUNTIF($I$19:$I$38,"*")>0),Q35,"") ->  | M35: =IF(I35="","",N35) ->  | N35: =IF($O35="A",データ!$E$10,IF($O35="B",データ!$E$11,IF($O35="C",データ!$E$12,IF($O35="D",データ!$E$13)))) -> FALSE | O35: =IF(ISERROR(VLOOKUP($D$10,データ!$C$2:$D$9,2,0)),"",(VLOOKUP($D$10,データ!$C$2:$D$9,2,0))) ->  | P35: =IF($N35=データ!$E$10,データ!$G$10,IF($N35=データ!$E$11,データ!$G$11,IF($N35=データ!$E$12,データ!$G$12,IF($N35=データ!$E$13,データ!$G$13)))) -> FALSE | Q35: =IF(J35="","",IF($B35=$B33,"",P35)) ->  | T35: =IF(R35="","",V35) ->  | U35: =IF(AND(COUNTIF($R$19:$R$38,"*")>0),Z35,"") ->  | V35: =IF(R35="","",W35) ->  | W35: =IF($O35="A",データ!$E$10,IF($O35="B",データ!$E$11,IF($O35="C",データ!$E$12,IF($O35="D",データ!$E$13)))) -> FALSE | X35: =IF(ISERROR(VLOOKUP($D$10,データ!$C$2:$D$9,2,0)),"",(VLOOKUP($D$10,データ!$C$2:$D$9,2,0))) ->  | Y35: =IF($W35=データ!$E$10,データ!$G$10,IF($W35=データ!$E$11,データ!$G$11,IF($W35=データ!$E$12,データ!$G$12,IF($W35=データ!$E$13,データ!$G$13)))) -> FALSE | Z35: =IF(S35="","",IF($B35=$B33,"",Y35)) ->  | AA35: =SUM(J35,K35,L35,S35,T35,U35) -> ¥0
K37: =IF(I37="","",M37) ->  | L37: =IF(AND(COUNTIF($I$19:$I$38,"*")>0),Q37,"") ->  | M37: =IF(I37="","",N37) ->  | N37: =IF($O37="A",データ!$E$10,IF($O37="B",データ!$E$11,IF($O37="C",データ!$E$12,IF($O37="D",データ!$E$13)))) -> FALSE | O37: =IF(ISERROR(VLOOKUP($D$10,データ!$C$2:$D$9,2,0)),"",(VLOOKUP($D$10,データ!$C$2:$D$9,2,0))) ->  | P37: =IF($N37=データ!$E$10,データ!$G$10,IF($N37=データ!$E$11,データ!$G$11,IF($N37=データ!$E$12,データ!$G$12,IF($N37=データ!$E$13,データ!$G$13)))) -> FALSE | Q37: =IF(J37="","",IF($B37=$B35,"",P37)) ->  | T37: =IF(R37="","",V37) ->  | U37: =IF(AND(COUNTIF($R$19:$R$38,"*")>0),Z37,"") ->  | V37: =IF(R37="","",W37) ->  | W37: =IF($O37="A",データ!$E$10,IF($O37="B",データ!$E$11,IF($O37="C",データ!$E$12,IF($O37="D",データ!$E$13)))) -> FALSE | X37: =IF(ISERROR(VLOOKUP($D$10,データ!$C$2:$D$9,2,0)),"",(VLOOKUP($D$10,データ!$C$2:$D$9,2,0))) ->  | Y37: =IF($W37=データ!$E$10,データ!$G$10,IF($W37=データ!$E$11,データ!$G$11,IF($W37=データ!$E$12,データ!$G$12,IF($W37=データ!$E$13,データ!$G$13)))) -> FALSE | Z37: =IF(S37="","",IF($B37=$B35,"",Y37)) ->  | AA37: =SUM(J37,K37,L37,S37,T37,U37) -> ¥0
B39: ='請求書報告書-参考'!B39:F40 -> 国内出張による日当調整 ※11 | L39: ¥0 | U39: ¥0 | AA39: =SUM(J39,K39,L39,S39,T39,U39) -> ¥0
B41: 備考 | G41: 合計 | J41: =SUM(J19:J40) -> ¥0 | K41: =SUM(K19:K40) -> ¥0 | L41: =SUM(L19:L40) -> ¥0 | Q41: =SUM(Q19:Q38) -> ¥0 | S41: =SUM(S19:S40) -> ¥0 | T41: =SUM(T19:T40) -> ¥0 | U41: =SUM(U19:U40) -> ¥0 | V41: =SUM(V19:V38) -> ¥0 | Z41: =SUM(Z19:Z38) -> ¥0 | AA41: =SUM(J41,K41,L41,S41,T41,U41) -> ¥0
J43: 直接費計 | L43: =SUM(J41,K41,L41) -> ¥0 | R43: 間接費計 | U43: =SUM(S41,T41,U41) -> ¥0
B45: ='請求書報告書-参考'!B45:O49 -> 規程：詳細は旅費の運用についてを参照 ※1 用件が同じであれば日付ごとに明細を分けて、1枚の精算書にまとめる。 ※2 出発地・到着地は必ず施設名（駅名等は不可）を記入する。 ※3 交通費のエビデンスとして､駅すぱあと等の経路探索結果をプリントアウトし添付する。（日程は実際の旅費発生日に合せる事） ※4 旅費規程によりつくば研究センター（産総研）⇔本部間往復交通費は定額となっているのでエビデンス不要。 ※5 下記､出張報告の記載をする。 ※6 前泊､後泊およびタクシー利用の場合は本部業務管理者の事前承認を得て､備考欄にその理由記述した場合のみ認める。 ※7 航空機を使用した場合は、半券添付必須（インター ネットでの申し込み等は、領収書添付を必須とする）。 ※8 研究開発との関連､出張により得られた成果等を記入する。 ※9 会議､学会等の出張は､スケジュールの入ったプログラムの写し等を添付のこと。 ※10学会等参加の出張において､学会等参加費用に食事代､懇親会費が含まれる時には食事代､懇親会費を日当から減額する。 尚､食事代等が含まれる旨を備考欄に記載する。(旅費の運用について参照) ※11 ※10の場合、該当する減額分や他業務実施に伴う日当減額分の金額を直接と間接に分けて記載する。(不明の場合は事務局に問合せる)
B51: 出張報告/用務の内容※8､※9
B52: （目的） （内容） （結果報告）

Sheet 請求書報告書-4
B1: 国内旅費請求書 及び 出張報告書
B3: 決裁印 | D3: 本 部
D4: ='請求書報告書-参考'!D4 -> 総務担当 部長 | E4: ='請求書報告書-参考'!E4 -> 経理 | F4: ='請求書報告書-参考'!F4 -> 担当部長 | G4: ='請求書報告書-参考'!G4 -> 受付
B9: 研究実施場所 | D9: 役職 | F9: 氏名 | T9: 起案日
B10: ='旅費・交通費、諸経費合計'!V7 -> 0 | D10: ='旅費・交通費、諸経費合計'!W8 -> 0 | F10: ='旅費・交通費、諸経費合計'!AC8 -> 0 | H10: ㊞
B12: 用務先（機関等名称） | D12: 出張先所在地（県・市） | G12: 出張用務件名※1
AA15: 単位：円
B17: 日程 | C17: 出発地※2 | D17: 出発時刻 | E17: 経路 ※3、※4 | I17: 直接費 | R17: 間接費 | AA17: 計
C18: 到着地※2 | D18: 到着時刻 | I18: 宿泊地 | J18: 交通費 | K18: 宿泊 | L18: 日当 | M18: 宿泊 | N18: 宿泊区分 | P18: 宿泊日当区分 | Q18: 日当 | R18: 宿泊地 | S18: 交通費 | T18: 宿泊 | U18: 日当 | V18: 宿泊 | W18: 宿泊区分 | Y18: 宿泊日当区分 | Z18: 日当
K19: =IF(I19="","",M19) ->  | L19: =IF(AND(COUNTIF($I$19:$I$38,"*")>0),Q19,"") ->  | M19: =IF(I19="","",N19) ->  | N19: =IF($O19="A",データ!$E$10,IF($O19="B",データ!$E$11,IF($O19="C",データ!$E$12,IF($O19="D",データ!$E$13)))) -> FALSE | O19: =IF(ISERROR(VLOOKUP($D$10,データ!$C$2:$D$9,2,0)),"",(VLOOKUP($D$10,データ!$C$2:$D$9,2,0))) ->  | P19: =IF($N19=データ!$E$10,データ!$G$10,IF($N19=データ!$E$11,データ!$G$11,IF($N19=データ!$E$12,データ!$G$12,IF($N19=データ!$E$13,データ!$G$13)))) -> FALSE | Q19: =IF(OR($J19="",(COUNTIF($B19:$B32,$B19+1)=0)),"",P19) ->  | T19: =IF(R19="","",V19) ->  | U19: =IF(AND(COUNTIF($R$19:$R$38,"*")>0),Z19,"") ->  | V19: =IF(R19="","",W19) ->  | W19: =IF($O19="A",データ!$E$10,IF($O19="B",データ!$E$11,IF($O19="C",データ!$E$12,IF($O19="D",データ!$E$13)))) -> FALSE | X19: =IF(ISERROR(VLOOKUP($D$10,データ!$C$2:$D$9,2,0)),"",(VLOOKUP($D$10,データ!$C$2:$D$9,2,0))) ->  | Y19: =IF($W19=データ!$E$10,データ!$G$10,IF($W19=データ!$E$11,データ!$G$11,IF($W19=データ!$E$12,データ!$G$12,IF($W19=データ!$E$13,データ!$G$13)))) -> FALSE | Z19: =IF(OR($S19="",(COUNTIF($B19:$B32,$B19+1)=0)),"",Y19) ->  | AA19: =SUM(J19,K19,L19,S19,T19,U19) -> ¥0
K21: =IF(I21="","",M21) ->  | L21: =IF(AND(COUNTIF($I$19:$I$38,"*")>0),Q21,"") ->  | M21: =IF(I21="","",N21) ->  | N21: =IF($O21="A",データ!$E$10,IF($O21="B",データ!$E$11,IF($O21="C",データ!$E$12,IF($O21="D",データ!$E$13)))) -> FALSE | O21: =IF(ISERROR(VLOOKUP($D$10,データ!$C$2:$D$9,2,0)),"",(VLOOKUP($D$10,データ!$C$2:$D$9,2,0))) ->  | P21: =IF($N21=データ!$E$10,データ!$G$10,IF($N21=データ!$E$11,データ!$G$11,IF($N21=データ!$E$12,データ!$G$12,IF($N21=データ!$E$13,データ!$G$13)))) -> FALSE | Q21: =IF(J21="","",IF($B21=$B19,"",P21)) ->  | T21: =IF(R21="","",V21) ->  | U21: =IF(AND(COUNTIF($R$19:$R$38,"*")>0),Z21,"") ->  | V21: =IF(R21="","",W21) ->  | W21: =IF($O21="A",データ!$E$10,IF($O21="B",データ!$E$11,IF($O21="C",データ!$E$12,IF($O21="D",データ!$E$13)))) -> FALSE | X21: =IF(ISERROR(VLOOKUP($D$10,データ!$C$2:$D$9,2,0)),"",(VLOOKUP($D$10,データ!$C$2:$D$9,2,0))) ->  | Y21: =IF($W21=データ!$E$10,データ!$G$10,IF($W21=データ!$E$11,データ!$G$11,IF($W21=データ!$E$12,データ!$G$12,IF($W21=データ!$E$13,データ!$G$13)))) -> FALSE | Z21: =IF(S21="","",IF($B21=$B19,"",Y21)) ->  | AA21: =SUM(J21,K21,L21,S21,T21,U21) -> ¥0
K23: =IF(I23="","",M23) ->  | L23: =IF(AND(COUNTIF($I$19:$I$38,"*")>0),Q23,"") ->  | M23: =IF(I23="","",N23) ->  | N23: =IF($O23="A",データ!$E$10,IF($O23="B",データ!$E$11,IF($O23="C",データ!$E$12,IF($O23="D",データ!$E$13)))) -> FALSE | O23: =IF(ISERROR(VLOOKUP($D$10,データ!$C$2:$D$9,2,0)),"",(VLOOKUP($D$10,データ!$C$2:$D$9,2,0))) ->  | P23: =IF($N23=データ!$E$10,データ!$G$10,IF($N23=データ!$E$11,データ!$G$11,IF($N23=データ!$E$12,データ!$G$12,IF($N23=データ!$E$13,データ!$G$13)))) -> FALSE | Q23: =IF(J23="","",IF($B23=$B21,"",P23)) ->  | T23: =IF(R23="","",V23) ->  | U23: =IF(AND(COUNTIF($R$19:$R$38,"*")>0),Z23,"") ->  | V23: =IF(R23="","",W23) ->  | W23: =IF($O23="A",データ!$E$10,IF($O23="B",データ!$E$11,IF($O23="C",データ!$E$12,IF($O23="D",データ!$E$13)))) -> FALSE | X23: =IF(ISERROR(VLOOKUP($D$10,データ!$C$2:$D$9,2,0)),"",(VLOOKUP($D$10,データ!$C$2:$D$9,2,0))) ->  | Y23: =IF($W23=データ!$E$10,データ!$G$10,IF($W23=データ!$E$11,データ!$G$11,IF($W23=データ!$E$12,データ!$G$12,IF($W23=データ!$E$13,データ!$G$13)))) -> FALSE | Z23: =IF(S23="","",IF($B23=$B21,"",Y23)) ->  | AA23: =SUM(J23,K23,L23,S23,T23,U23) -> ¥0
K25: =IF(I25="","",M25) ->  | L25: =IF(AND(COUNTIF($I$19:$I$38,"*")>0),Q25,"") ->  | M25: =IF(I25="","",N25) ->  | N25: =IF($O25="A",データ!$E$10,IF($O25="B",データ!$E$11,IF($O25="C",データ!$E$12,IF($O25="D",データ!$E$13)))) -> FALSE | O25: =IF(ISERROR(VLOOKUP($D$10,データ!$C$2:$D$9,2,0)),"",(VLOOKUP($D$10,データ!$C$2:$D$9,2,0))) ->  | P25: =IF($N25=データ!$E$10,データ!$G$10,IF($N25=データ!$E$11,データ!$G$11,IF($N25=データ!$E$12,データ!$G$12,IF($N25=データ!$E$13,データ!$G$13)))) -> FALSE | Q25: =IF(J25="","",IF($B25=$B23,"",P25)) ->  | T25: =IF(R25="","",V25) ->  | U25: =IF(AND(COUNTIF($R$19:$R$38,"*")>0),Z25,"") ->  | V25: =IF(R25="","",W25) ->  | W25: =IF($O25="A",データ!$E$10,IF($O25="B",データ!$E$11,IF($O25="C",データ!$E$12,IF($O25="D",データ!$E$13)))) -> FALSE | X25: =IF(ISERROR(VLOOKUP($D$10,データ!$C$2:$D$9,2,0)),"",(VLOOKUP($D$10,データ!$C$2:$D$9,2,0))) ->  | Y25: =IF($W25=データ!$E$10,データ!$G$10,IF($W25=データ!$E$11,データ!$G$11,IF($W25=データ!$E$12,データ!$G$12,IF($W25=データ!$E$13,データ!$G$13)))) -> FALSE | Z25: =IF(S25="","",IF($B25=$B23,"",Y25)) ->  | AA25: =SUM(J25,K25,L25,S25,T25,U25) -> ¥0
K27: =IF(I27="","",M27) ->  | L27: =IF(AND(COUNTIF($I$19:$I$38,"*")>0),Q27,"") ->  | M27: =IF(I27="","",N27) ->  | N27: =IF($O27="A",データ!$E$10,IF($O27="B",データ!$E$11,IF($O27="C",データ!$E$12,IF($O27="D",データ!$E$13)))) -> FALSE | O27: =IF(ISERROR(VLOOKUP($D$10,データ!$C$2:$D$9,2,0)),"",(VLOOKUP($D$10,データ!$C$2:$D$9,2,0))) ->  | P27: =IF($N27=データ!$E$10,データ!$G$10,IF($N27=データ!$E$11,データ!$G$11,IF($N27=データ!$E$12,データ!$G$12,IF($N27=データ!$E$13,データ!$G$13)))) -> FALSE | Q27: =IF(J27="","",IF($B27=$B25,"",P27)) ->  | T27: =IF(R27="","",V27) ->  | U27: =IF(AND(COUNTIF($R$19:$R$38,"*")>0),Z27,"") ->  | V27: =IF(R27="","",W27) ->  | W27: =IF($O27="A",データ!$E$10,IF($O27="B",データ!$E$11,IF($O27="C",データ!$E$12,IF($O27="D",データ!$E$13)))) -> FALSE | X27: =IF(ISERROR(VLOOKUP($D$10,データ!$C$2:$D$9,2,0)),"",(VLOOKUP($D$10,データ!$C$2:$D$9,2,0))) ->  | Y27: =IF($W27=データ!$E$10,データ!$G$10,IF($W27=データ!$E$11,データ!$G$11,IF($W27=データ!$E$12,データ!$G$12,IF($W27=データ!$E$13,データ!$G$13)))) -> FALSE | Z27: =IF(S27="","",IF($B27=$B25,"",Y27)) ->  | AA27: =SUM(J27,K27,L27,S27,T27,U27) -> ¥0
K29: =IF(I29="","",M29) ->  | L29: =IF(AND(COUNTIF($I$19:$I$38,"*")>0),Q29,"") ->  | M29: =IF(I29="","",N29) ->  | N29: =IF($O29="A",データ!$E$10,IF($O29="B",データ!$E$11,IF($O29="C",データ!$E$12,IF($O29="D",データ!$E$13)))) -> FALSE | O29: =IF(ISERROR(VLOOKUP($D$10,データ!$C$2:$D$9,2,0)),"",(VLOOKUP($D$10,データ!$C$2:$D$9,2,0))) ->  | P29: =IF($N29=データ!$E$10,データ!$G$10,IF($N29=データ!$E$11,データ!$G$11,IF($N29=データ!$E$12,データ!$G$12,IF($N29=データ!$E$13,データ!$G$13)))) -> FALSE | Q29: =IF(J29="","",IF($B29=$B27,"",P29)) ->  | T29: =IF(R29="","",V29) ->  | U29: =IF(AND(COUNTIF($R$19:$R$38,"*")>0),Z29,"") ->  | V29: =IF(R29="","",W29) ->  | W29: =IF($O29="A",データ!$E$10,IF($O29="B",データ!$E$11,IF($O29="C",データ!$E$12,IF($O29="D",データ!$E$13)))) -> FALSE | X29: =IF(ISERROR(VLOOKUP($D$10,データ!$C$2:$D$9,2,0)),"",(VLOOKUP($D$10,データ!$C$2:$D$9,2,0))) ->  | Y29: =IF($W29=データ!$E$10,データ!$G$10,IF($W29=データ!$E$11,データ!$G$11,IF($W29=データ!$E$12,データ!$G$12,IF($W29=データ!$E$13,データ!$G$13)))) -> FALSE | Z29: =IF(S29="","",IF($B29=$B27,"",Y29)) ->  | AA29: =SUM(J29,K29,L29,S29,T29,U29) -> ¥0
K31: =IF(I31="","",M31) ->  | L31: =IF(AND(COUNTIF($I$19:$I$38,"*")>0),Q31,"") ->  | M31: =IF(I31="","",N31) ->  | N31: =IF($O31="A",データ!$E$10,IF($O31="B",データ!$E$11,IF($O31="C",データ!$E$12,IF($O31="D",データ!$E$13)))) -> FALSE | O31: =IF(ISERROR(VLOOKUP($D$10,データ!$C$2:$D$9,2,0)),"",(VLOOKUP($D$10,データ!$C$2:$D$9,2,0))) ->  | P31: =IF($N31=データ!$E$10,データ!$G$10,IF($N31=データ!$E$11,データ!$G$11,IF($N31=データ!$E$12,データ!$G$12,IF($N31=データ!$E$13,データ!$G$13)))) -> FALSE | Q31: =IF(J31="","",IF($B31=$B29,"",P31)) ->  | T31: =IF(R31="","",V31) ->  | U31: =IF(AND(COUNTIF($R$19:$R$38,"*")>0),Z31,"") ->  | V31: =IF(R31="","",W31) ->  | W31: =IF($O31="A",データ!$E$10,IF($O31="B",データ!$E$11,IF($O31="C",データ!$E$12,IF($O31="D",データ!$E$13)))) -> FALSE | X31: =IF(ISERROR(VLOOKUP($D$10,データ!$C$2:$D$9,2,0)),"",(VLOOKUP($D$10,データ!$C$2:$D$9,2,0))) ->  | Y31: =IF($W31=データ!$E$10,データ!$G$10,IF($W31=データ!$E$11,データ!$G$11,IF($W31=データ!$E$12,データ!$G$12,IF($W31=データ!$E$13,データ!$G$13)))) -> FALSE | Z31: =IF(S31="","",IF($B31=$B29,"",Y31)) ->  | AA31: =SUM(J31,K31,L31,S31,T31,U31) -> ¥0
K33: =IF(I33="","",M33) ->  | L33: =IF(AND(COUNTIF($I$19:$I$38,"*")>0),Q33,"") ->  | M33: =IF(I33="","",N33) ->  | N33: =IF($O33="A",データ!$E$10,IF($O33="B",データ!$E$11,IF($O33="C",データ!$E$12,IF($O33="D",データ!$E$13)))) -> FALSE | O33: =IF(ISERROR(VLOOKUP($D$10,データ!$C$2:$D$9,2,0)),"",(VLOOKUP($D$10,データ!$C$2:$D$9,2,0))) ->  | P33: =IF($N33=データ!$E$10,データ!$G$10,IF($N33=データ!$E$11,データ!$G$11,IF($N33=データ!$E$12,データ!$G$12,IF($N33=データ!$E$13,データ!$G$13)))) -> FALSE | Q33: =IF(J33="","",IF($B33=$B31,"",P33)) ->  | T33: =IF(R33="","",V33) ->  | U33: =IF(AND(COUNTIF($R$19:$R$38,"*")>0),Z33,"") ->  | V33: =IF(R33="","",W33) ->  | W33: =IF($O33="A",データ!$E$10,IF($O33="B",データ!$E$11,IF($O33="C",データ!$E$12,IF($O33="D",データ!$E$13)))) -> FALSE | X33: =IF(ISERROR(VLOOKUP($D$10,データ!$C$2:$D$9,2,0)),"",(VLOOKUP($D$10,データ!$C$2:$D$9,2,0))) ->  | Y33: =IF($W33=データ!$E$10,データ!$G$10,IF($W33=データ!$E$11,データ!$G$11,IF($W33=データ!$E$12,データ!$G$12,IF($W33=データ!$E$13,データ!$G$13)))) -> FALSE | Z33: =IF(S33="","",IF($B33=$B31,"",Y33)) ->  | AA33: =SUM(J33,K33,L33,S33,T33,U33) -> ¥0
K35: =IF(I35="","",M35) ->  | L35: =IF(AND(COUNTIF($I$19:$I$38,"*")>0),Q35,"") ->  | M35: =IF(I35="","",N35) ->  | N35: =IF($O35="A",データ!$E$10,IF($O35="B",データ!$E$11,IF($O35="C",データ!$E$12,IF($O35="D",データ!$E$13)))) -> FALSE | O35: =IF(ISERROR(VLOOKUP($D$10,データ!$C$2:$D$9,2,0)),"",(VLOOKUP($D$10,データ!$C$2:$D$9,2,0))) ->  | P35: =IF($N35=データ!$E$10,データ!$G$10,IF($N35=データ!$E$11,データ!$G$11,IF($N35=データ!$E$12,データ!$G$12,IF($N35=データ!$E$13,データ!$G$13)))) -> FALSE | Q35: =IF(J35="","",IF($B35=$B33,"",P35)) ->  | T35: =IF(R35="","",V35) ->  | U35: =IF(AND(COUNTIF($R$19:$R$38,"*")>0),Z35,"") ->  | V35: =IF(R35="","",W35) ->  | W35: =IF($O35="A",データ!$E$10,IF($O35="B",データ!$E$11,IF($O35="C",データ!$E$12,IF($O35="D",データ!$E$13)))) -> FALSE | X35: =IF(ISERROR(VLOOKUP($D$10,データ!$C$2:$D$9,2,0)),"",(VLOOKUP($D$10,データ!$C$2:$D$9,2,0))) ->  | Y35: =IF($W35=データ!$E$10,データ!$G$10,IF($W35=データ!$E$11,データ!$G$11,IF($W35=データ!$E$12,データ!$G$12,IF($W35=データ!$E$13,データ!$G$13)))) -> FALSE | Z35: =IF(S35="","",IF($B35=$B33,"",Y35)) ->  | AA35: =SUM(J35,K35,L35,S35,T35,U35) -> ¥0
K37: =IF(I37="","",M37) ->  | L37: =IF(AND(COUNTIF($I$19:$I$38,"*")>0),Q37,"") ->  | M37: =IF(I37="","",N37) ->  | N37: =IF($O37="A",データ!$E$10,IF($O37="B",データ!$E$11,IF($O37="C",データ!$E$12,IF($O37="D",データ!$E$13)))) -> FALSE | O37: =IF(ISERROR(VLOOKUP($D$10,データ!$C$2:$D$9,2,0)),"",(VLOOKUP($D$10,データ!$C$2:$D$9,2,0))) ->  | P37: =IF($N37=データ!$E$10,データ!$G$10,IF($N37=データ!$E$11,データ!$G$11,IF($N37=データ!$E$12,データ!$G$12,IF($N37=データ!$E$13,データ!$G$13)))) -> FALSE | Q37: =IF(J37="","",IF($B37=$B35,"",P37)) ->  | T37: =IF(R37="","",V37) ->  | U37: =IF(AND(COUNTIF($R$19:$R$38,"*")>0),Z37,"") ->  | V37: =IF(R37="","",W37) ->  | W37: =IF($O37="A",データ!$E$10,IF($O37="B",データ!$E$11,IF($O37="C",データ!$E$12,IF($O37="D",データ!$E$13)))) -> FALSE | X37: =IF(ISERROR(VLOOKUP($D$10,データ!$C$2:$D$9,2,0)),"",(VLOOKUP($D$10,データ!$C$2:$D$9,2,0))) ->  | Y37: =IF($W37=データ!$E$10,データ!$G$10,IF($W37=データ!$E$11,データ!$G$11,IF($W37=データ!$E$12,データ!$G$12,IF($W37=データ!$E$13,データ!$G$13)))) -> FALSE | Z37: =IF(S37="","",IF($B37=$B35,"",Y37)) ->  | AA37: =SUM(J37,K37,L37,S37,T37,U37) -> ¥0
B39: ='請求書報告書-参考'!B39:F40 -> 国内出張による日当調整 ※11 | L39: ¥0 | U39: ¥0 | AA39: =SUM(J39,K39,L39,S39,T39,U39) -> ¥0
B41: 備考 | G41: 合計 | J41: =SUM(J19:J40) -> ¥0 | K41: =SUM(K19:K40) -> ¥0 | L41: =SUM(L19:L40) -> ¥0 | Q41: =SUM(Q19:Q38) -> ¥0 | S41: =SUM(S19:S40) -> ¥0 | T41: =SUM(T19:T40) -> ¥0 | U41: =SUM(U19:U40) -> ¥0 | V41: =SUM(V19:V38) -> ¥0 | Z41: =SUM(Z19:Z38) -> ¥0 | AA41: =SUM(J41,K41,L41,S41,T41,U41) -> ¥0
J43: 直接費計 | L43: =SUM(J41,K41,L41) -> ¥0 | R43: 間接費計 | U43: =SUM(S41,T41,U41) -> ¥0
B45: ='請求書報告書-参考'!B45:O49 -> 規程：詳細は旅費の運用についてを参照 ※1 用件が同じであれば日付ごとに明細を分けて、1枚の精算書にまとめる。 ※2 出発地・到着地は必ず施設名（駅名等は不可）を記入する。 ※3 交通費のエビデンスとして､駅すぱあと等の経路探索結果をプリントアウトし添付する。（日程は実際の旅費発生日に合せる事） ※4 旅費規程によりつくば研究センター（産総研）⇔本部間往復交通費は定額となっているのでエビデンス不要。 ※5 下記､出張報告の記載をする。 ※6 前泊､後泊およびタクシー利用の場合は本部業務管理者の事前承認を得て､備考欄にその理由記述した場合のみ認める。 ※7 航空機を使用した場合は、半券添付必須（インター ネットでの申し込み等は、領収書添付を必須とする）。 ※8 研究開発との関連､出張により得られた成果等を記入する。 ※9 会議､学会等の出張は､スケジュールの入ったプログラムの写し等を添付のこと。 ※10学会等参加の出張において､学会等参加費用に食事代､懇親会費が含まれる時には食事代､懇親会費を日当から減額する。 尚､食事代等が含まれる旨を備考欄に記載する。(旅費の運用について参照) ※11 ※10の場合、該当する減額分や他業務実施に伴う日当減額分の金額を直接と間接に分けて記載する。(不明の場合は事務局に問合せる)
B51: 出張報告/用務の内容※8､※9
B52: （目的） （内容） （結果報告）

Sheet 請求書報告書-5
B1: 国内旅費請求書 及び 出張報告書
B3: 決裁印 | D3: 本 部
D4: ='請求書報告書-参考'!D4 -> 総務担当 部長 | E4: ='請求書報告書-参考'!E4 -> 経理 | F4: ='請求書報告書-参考'!F4 -> 担当部長 | G4: ='請求書報告書-参考'!G4 -> 受付
B9: 研究実施場所 | D9: 役職 | F9: 氏名 | T9: 起案日
B10: ='旅費・交通費、諸経費合計'!V7 -> 0 | D10: ='旅費・交通費、諸経費合計'!W8 -> 0 | F10: ='旅費・交通費、諸経費合計'!AC8 -> 0 | H10: ㊞
B12: 用務先（機関等名称） | D12: 出張先所在地（県・市） | G12: 出張用務件名※1
AA15: 単位：円
B17: 日程 | C17: 出発地※2 | D17: 出発時刻 | E17: 経路 ※3、※4 | I17: 直接費 | R17: 間接費 | AA17: 計
C18: 到着地※2 | D18: 到着時刻 | I18: 宿泊地 | J18: 交通費 | K18: 宿泊 | L18: 日当 | M18: 宿泊 | N18: 宿泊区分 | P18: 宿泊日当区分 | Q18: 日当 | R18: 宿泊地 | S18: 交通費 | T18: 宿泊 | U18: 日当 | V18: 宿泊 | W18: 宿泊区分 | Y18: 宿泊日当区分 | Z18: 日当
K19: =IF(I19="","",M19) ->  | L19: =IF(AND(COUNTIF($I$19:$I$38,"*")>0),Q19,"") ->  | M19: =IF(I19="","",N19) ->  | N19: =IF($O19="A",データ!$E$10,IF($O19="B",データ!$E$11,IF($O19="C",データ!$E$12,IF($O19="D",データ!$E$13)))) -> FALSE | O19: =IF(ISERROR(VLOOKUP($D$10,データ!$C$2:$D$9,2,0)),"",(VLOOKUP($D$10,データ!$C$2:$D$9,2,0))) ->  | P19: =IF($N19=データ!$E$10,データ!$G$10,IF($N19=データ!$E$11,データ!$G$11,IF($N19=データ!$E$12,データ!$G$12,IF($N19=データ!$E$13,データ!$G$13)))) -> FALSE | Q19: =IF(OR($J19="",(COUNTIF($B19:$B32,$B19+1)=0)),"",P19) ->  | T19: =IF(R19="","",V19) ->  | U19: =IF(AND(COUNTIF($R$19:$R$38,"*")>0),Z19,"") ->  | V19: =IF(R19="","",W19) ->  | W19: =IF($O19="A",データ!$E$10,IF($O19="B",データ!$E$11,IF($O19="C",データ!$E$12,IF($O19="D",データ!$E$13)))) -> FALSE | X19: =IF(ISERROR(VLOOKUP($D$10,データ!$C$2:$D$9,2,0)),"",(VLOOKUP($D$10,データ!$C$2:$D$9,2,0))) ->  | Y19: =IF($W19=データ!$E$10,データ!$G$10,IF($W19=データ!$E$11,データ!$G$11,IF($W19=データ!$E$12,データ!$G$12,IF($W19=データ!$E$13,データ!$G$13)))) -> FALSE | Z19: =IF(OR($S19="",(COUNTIF($B19:$B32,$B19+1)=0)),"",Y19) ->  | AA19: =SUM(J19,K19,L19,S19,T19,U19) -> ¥0
K21: =IF(I21="","",M21) ->  | L21: =IF(AND(COUNTIF($I$19:$I$38,"*")>0),Q21,"") ->  | M21: =IF(I21="","",N21) ->  | N21: =IF($O21="A",データ!$E$10,IF($O21="B",データ!$E$11,IF($O21="C",データ!$E$12,IF($O21="D",データ!$E$13)))) -> FALSE | O21: =IF(ISERROR(VLOOKUP($D$10,データ!$C$2:$D$9,2,0)),"",(VLOOKUP($D$10,データ!$C$2:$D$9,2,0))) ->  | P21: =IF($N21=データ!$E$10,データ!$G$10,IF($N21=データ!$E$11,データ!$G$11,IF($N21=データ!$E$12,データ!$G$12,IF($N21=データ!$E$13,データ!$G$13)))) -> FALSE | Q21: =IF(J21="","",IF($B21=$B19,"",P21)) ->  | T21: =IF(R21="","",V21) ->  | U21: =IF(AND(COUNTIF($R$19:$R$38,"*")>0),Z21,"") ->  | V21: =IF(R21="","",W21) ->  | W21: =IF($O21="A",データ!$E$10,IF($O21="B",データ!$E$11,IF($O21="C",データ!$E$12,IF($O21="D",データ!$E$13)))) -> FALSE | X21: =IF(ISERROR(VLOOKUP($D$10,データ!$C$2:$D$9,2,0)),"",(VLOOKUP($D$10,データ!$C$2:$D$9,2,0))) ->  | Y21: =IF($W21=データ!$E$10,データ!$G$10,IF($W21=データ!$E$11,データ!$G$11,IF($W21=データ!$E$12,データ!$G$12,IF($W21=データ!$E$13,データ!$G$13)))) -> FALSE | Z21: =IF(S21="","",IF($B21=$B19,"",Y21)) ->  | AA21: =SUM(J21,K21,L21,S21,T21,U21) -> ¥0
K23: =IF(I23="","",M23) ->  | L23: =IF(AND(COUNTIF($I$19:$I$38,"*")>0),Q23,"") ->  | M23: =IF(I23="","",N23) ->  | N23: =IF($O23="A",データ!$E$10,IF($O23="B",データ!$E$11,IF($O23="C",データ!$E$12,IF($O23="D",データ!$E$13)))) -> FALSE | O23: =IF(ISERROR(VLOOKUP($D$10,データ!$C$2:$D$9,2,0)),"",(VLOOKUP($D$10,データ!$C$2:$D$9,2,0))) ->  | P23: =IF($N23=データ!$E$10,データ!$G$10,IF($N23=データ!$E$11,データ!$G$11,IF($N23=データ!$E$12,データ!$G$12,IF($N23=データ!$E$13,データ!$G$13)))) -> FALSE | Q23: =IF(J23="","",IF($B23=$B21,"",P23)) ->  | T23: =IF(R23="","",V23) ->  | U23: =IF(AND(COUNTIF($R$19:$R$38,"*")>0),Z23,"") ->  | V23: =IF(R23="","",W23) ->  | W23: =IF($O23="A",データ!$E$10,IF($O23="B",データ!$E$11,IF($O23="C",データ!$E$12,IF($O23="D",データ!$E$13)))) -> FALSE | X23: =IF(ISERROR(VLOOKUP($D$10,データ!$C$2:$D$9,2,0)),"",(VLOOKUP($D$10,データ!$C$2:$D$9,2,0))) ->  | Y23: =IF($W23=データ!$E$10,データ!$G$10,IF($W23=データ!$E$11,データ!$G$11,IF($W23=データ!$E$12,データ!$G$12,IF($W23=データ!$E$13,データ!$G$13)))) -> FALSE | Z23: =IF(S23="","",IF($B23=$B21,"",Y23)) ->  | AA23: =SUM(J23,K23,L23,S23,T23,U23) -> ¥0
K25: =IF(I25="","",M25) ->  | L25: =IF(AND(COUNTIF($I$19:$I$38,"*")>0),Q25,"") ->  | M25: =IF(I25="","",N25) ->  | N25: =IF($O25="A",データ!$E$10,IF($O25="B",データ!$E$11,IF($O25="C",データ!$E$12,IF($O25="D",データ!$E$13)))) -> FALSE | O25: =IF(ISERROR(VLOOKUP($D$10,データ!$C$2:$D$9,2,0)),"",(VLOOKUP($D$10,データ!$C$2:$D$9,2,0))) ->  | P25: =IF($N25=データ!$E$10,データ!$G$10,IF($N25=データ!$E$11,データ!$G$11,IF($N25=データ!$E$12,データ!$G$12,IF($N25=データ!$E$13,データ!$G$13)))) -> FALSE | Q25: =IF(J25="","",IF($B25=$B23,"",P25)) ->  | T25: =IF(R25="","",V25) ->  | U25: =IF(AND(COUNTIF($R$19:$R$38,"*")>0),Z25,"") ->  | V25: =IF(R25="","",W25) ->  | W25: =IF($O25="A",データ!$E$10,IF($O25="B",データ!$E$11,IF($O25="C",データ!$E$12,IF($O25="D",データ!$E$13)))) -> FALSE | X25: =IF(ISERROR(VLOOKUP($D$10,データ!$C$2:$D$9,2,0)),"",(VLOOKUP($D$10,データ!$C$2:$D$9,2,0))) ->  | Y25: =IF($W25=データ!$E$10,データ!$G$10,IF($W25=データ!$E$11,データ!$G$11,IF($W25=データ!$E$12,データ!$G$12,IF($W25=データ!$E$13,データ!$G$13)))) -> FALSE | Z25: =IF(S25="","",IF($B25=$B23,"",Y25)) ->  | AA25: =SUM(J25,K25,L25,S25,T25,U25) -> ¥0
K27: =IF(I27="","",M27) ->  | L27: =IF(AND(COUNTIF($I$19:$I$38,"*")>0),Q27,"") ->  | M27: =IF(I27="","",N27) ->  | N27: =IF($O27="A",データ!$E$10,IF($O27="B",データ!$E$11,IF($O27="C",データ!$E$12,IF($O27="D",データ!$E$13)))) -> FALSE | O27: =IF(ISERROR(VLOOKUP($D$10,データ!$C$2:$D$9,2,0)),"",(VLOOKUP($D$10,データ!$C$2:$D$9,2,0))) ->  | P27: =IF($N27=データ!$E$10,データ!$G$10,IF($N27=データ!$E$11,データ!$G$11,IF($N27=データ!$E$12,データ!$G$12,IF($N27=データ!$E$13,データ!$G$13)))) -> FALSE | Q27: =IF(J27="","",IF($B27=$B25,"",P27)) ->  | T27: =IF(R27="","",V27) ->  | U27: =IF(AND(COUNTIF($R$19:$R$38,"*")>0),Z27,"") ->  | V27: =IF(R27="","",W27) ->  | W27: =IF($O27="A",データ!$E$10,IF($O27="B",データ!$E$11,IF($O27="C",データ!$E$12,IF($O27="D",データ!$E$13)))) -> FALSE | X27: =IF(ISERROR(VLOOKUP($D$10,データ!$C$2:$D$9,2,0)),"",(VLOOKUP($D$10,データ!$C$2:$D$9,2,0))) ->  | Y27: =IF($W27=データ!$E$10,データ!$G$10,IF($W27=データ!$E$11,データ!$G$11,IF($W27=データ!$E$12,データ!$G$12,IF($W27=データ!$E$13,データ!$G$13)))) -> FALSE | Z27: =IF(S27="","",IF($B27=$B25,"",Y27)) ->  | AA27: =SUM(J27,K27,L27,S27,T27,U27) -> ¥0
K29: =IF(I29="","",M29) ->  | L29: =IF(AND(COUNTIF($I$19:$I$38,"*")>0),Q29,"") ->  | M29: =IF(I29="","",N29) ->  | N29: =IF($O29="A",データ!$E$10,IF($O29="B",データ!$E$11,IF($O29="C",データ!$E$12,IF($O29="D",データ!$E$13)))) -> FALSE | O29: =IF(ISERROR(VLOOKUP($D$10,データ!$C$2:$D$9,2,0)),"",(VLOOKUP($D$10,データ!$C$2:$D$9,2,0))) ->  | P29: =IF($N29=データ!$E$10,データ!$G$10,IF($N29=データ!$E$11,データ!$G$11,IF($N29=データ!$E$12,データ!$G$12,IF($N29=データ!$E$13,データ!$G$13)))) -> FALSE | Q29: =IF(J29="","",IF($B29=$B27,"",P29)) ->  | T29: =IF(R29="","",V29) ->  | U29: =IF(AND(COUNTIF($R$19:$R$38,"*")>0),Z29,"") ->  | V29: =IF(R29="","",W29) ->  | W29: =IF($O29="A",データ!$E$10,IF($O29="B",データ!$E$11,IF($O29="C",データ!$E$12,IF($O29="D",データ!$E$13)))) -> FALSE | X29: =IF(ISERROR(VLOOKUP($D$10,データ!$C$2:$D$9,2,0)),"",(VLOOKUP($D$10,データ!$C$2:$D$9,2,0))) ->  | Y29: =IF($W29=データ!$E$10,データ!$G$10,IF($W29=データ!$E$11,データ!$G$11,IF($W29=データ!$E$12,データ!$G$12,IF($W29=データ!$E$13,データ!$G$13)))) -> FALSE | Z29: =IF(S29="","",IF($B29=$B27,"",Y29)) ->  | AA29: =SUM(J29,K29,L29,S29,T29,U29) -> ¥0
K31: =IF(I31="","",M31) ->  | L31: =IF(AND(COUNTIF($I$19:$I$38,"*")>0),Q31,"") ->  | M31: =IF(I31="","",N31) ->  | N31: =IF($O31="A",データ!$E$10,IF($O31="B",データ!$E$11,IF($O31="C",データ!$E$12,IF($O31="D",データ!$E$13)))) -> FALSE | O31: =IF(ISERROR(VLOOKUP($D$10,データ!$C$2:$D$9,2,0)),"",(VLOOKUP($D$10,データ!$C$2:$D$9,2,0))) ->  | P31: =IF($N31=データ!$E$10,データ!$G$10,IF($N31=データ!$E$11,データ!$G$11,IF($N31=データ!$E$12,データ!$G$12,IF($N31=データ!$E$13,データ!$G$13)))) -> FALSE | Q31: =IF(J31="","",IF($B31=$B29,"",P31)) ->  | T31: =IF(R31="","",V31) ->  | U31: =IF(AND(COUNTIF($R$19:$R$38,"*")>0),Z31,"") ->  | V31: =IF(R31="","",W31) ->  | W31: =IF($O31="A",データ!$E$10,IF($O31="B",データ!$E$11,IF($O31="C",データ!$E$12,IF($O31="D",データ!$E$13)))) -> FALSE | X31: =IF(ISERROR(VLOOKUP($D$10,データ!$C$2:$D$9,2,0)),"",(VLOOKUP($D$10,データ!$C$2:$D$9,2,0))) ->  | Y31: =IF($W31=データ!$E$10,データ!$G$10,IF($W31=データ!$E$11,データ!$G$11,IF($W31=データ!$E$12,データ!$G$12,IF($W31=データ!$E$13,データ!$G$13)))) -> FALSE | Z31: =IF(S31="","",IF($B31=$B29,"",Y31)) ->  | AA31: =SUM(J31,K31,L31,S31,T31,U31) -> ¥0
K33: =IF(I33="","",M33) ->  | L33: =IF(AND(COUNTIF($I$19:$I$38,"*")>0),Q33,"") ->  | M33: =IF(I33="","",N33) ->  | N33: =IF($O33="A",データ!$E$10,IF($O33="B",データ!$E$11,IF($O33="C",データ!$E$12,IF($O33="D",データ!$E$13)))) -> FALSE | O33: =IF(ISERROR(VLOOKUP($D$10,データ!$C$2:$D$9,2,0)),"",(VLOOKUP($D$10,データ!$C$2:$D$9,2,0))) ->  | P33: =IF($N33=データ!$E$10,データ!$G$10,IF($N33=データ!$E$11,データ!$G$11,IF($N33=データ!$E$12,データ!$G$12,IF($N33=データ!$E$13,データ!$G$13)))) -> FALSE | Q33: =IF(J33="","",IF($B33=$B31,"",P33)) ->  | T33: =IF(R33="","",V33) ->  | U33: =IF(AND(COUNTIF($R$19:$R$38,"*")>0),Z33,"") ->  | V33: =IF(R33="","",W33) ->  | W33: =IF($O33="A",データ!$E$10,IF($O33="B",データ!$E$11,IF($O33="C",データ!$E$12,IF($O33="D",データ!$E$13)))) -> FALSE | X33: =IF(ISERROR(VLOOKUP($D$10,データ!$C$2:$D$9,2,0)),"",(VLOOKUP($D$10,データ!$C$2:$D$9,2,0))) ->  | Y33: =IF($W33=データ!$E$10,データ!$G$10,IF($W33=データ!$E$11,データ!$G$11,IF($W33=データ!$E$12,データ!$G$12,IF($W33=データ!$E$13,データ!$G$13)))) -> FALSE | Z33: =IF(S33="","",IF($B33=$B31,"",Y33)) ->  | AA33: =SUM(J33,K33,L33,S33,T33,U33) -> ¥0
K35: =IF(I35="","",M35) ->  | L35: =IF(AND(COUNTIF($I$19:$I$38,"*")>0),Q35,"") ->  | M35: =IF(I35="","",N35) ->  | N35: =IF($O35="A",データ!$E$10,IF($O35="B",データ!$E$11,IF($O35="C",データ!$E$12,IF($O35="D",データ!$E$13)))) -> FALSE | O35: =IF(ISERROR(VLOOKUP($D$10,データ!$C$2:$D$9,2,0)),"",(VLOOKUP($D$10,データ!$C$2:$D$9,2,0))) ->  | P35: =IF($N35=データ!$E$10,データ!$G$10,IF($N35=データ!$E$11,データ!$G$11,IF($N35=データ!$E$12,データ!$G$12,IF($N35=データ!$E$13,データ!$G$13)))) -> FALSE | Q35: =IF(J35="","",IF($B35=$B33,"",P35)) ->  | T35: =IF(R35="","",V35) ->  | U35: =IF(AND(COUNTIF($R$19:$R$38,"*")>0),Z35,"") ->  | V35: =IF(R35="","",W35) ->  | W35: =IF($O35="A",データ!$E$10,IF($O35="B",データ!$E$11,IF($O35="C",データ!$E$12,IF($O35="D",データ!$E$13)))) -> FALSE | X35: =IF(ISERROR(VLOOKUP($D$10,データ!$C$2:$D$9,2,0)),"",(VLOOKUP($D$10,データ!$C$2:$D$9,2,0))) ->  | Y35: =IF($W35=データ!$E$10,データ!$G$10,IF($W35=データ!$E$11,データ!$G$11,IF($W35=データ!$E$12,データ!$G$12,IF($W35=データ!$E$13,データ!$G$13)))) -> FALSE | Z35: =IF(S35="","",IF($B35=$B33,"",Y35)) ->  | AA35: =SUM(J35,K35,L35,S35,T35,U35) -> ¥0
K37: =IF(I37="","",M37) ->  | L37: =IF(AND(COUNTIF($I$19:$I$38,"*")>0),Q37,"") ->  | M37: =IF(I37="","",N37) ->  | N37: =IF($O37="A",データ!$E$10,IF($O37="B",データ!$E$11,IF($O37="C",データ!$E$12,IF($O37="D",データ!$E$13)))) -> FALSE | O37: =IF(ISERROR(VLOOKUP($D$10,データ!$C$2:$D$9,2,0)),"",(VLOOKUP($D$10,データ!$C$2:$D$9,2,0))) ->  | P37: =IF($N37=データ!$E$10,データ!$G$10,IF($N37=データ!$E$11,データ!$G$11,IF($N37=データ!$E$12,データ!$G$12,IF($N37=データ!$E$13,データ!$G$13)))) -> FALSE | Q37: =IF(J37="","",IF($B37=$B35,"",P37)) ->  | T37: =IF(R37="","",V37) ->  | U37: =IF(AND(COUNTIF($R$19:$R$38,"*")>0),Z37,"") ->  | V37: =IF(R37="","",W37) ->  | W37: =IF($O37="A",データ!$E$10,IF($O37="B",データ!$E$11,IF($O37="C",データ!$E$12,IF($O37="D",データ!$E$13)))) -> FALSE | X37: =IF(ISERROR(VLOOKUP($D$10,データ!$C$2:$D$9,2,0)),"",(VLOOKUP($D$10,データ!$C$2:$D$9,2,0))) ->  | Y37: =IF($W37=データ!$E$10,データ!$G$10,IF($W37=データ!$E$11,データ!$G$11,IF($W37=データ!$E$12,データ!$G$12,IF($W37=データ!$E$13,データ!$G$13)))) -> FALSE | Z37: =IF(S37="","",IF($B37=$B35,"",Y37)) ->  | AA37: =SUM(J37,K37,L37,S37,T37,U37) -> ¥0
B39: ='請求書報告書-参考'!B39:F40 -> 国内出張による日当調整 ※11 | L39: ¥0 | U39: ¥0 | AA39: =SUM(J39,K39,L39,S39,T39,U39) -> ¥0
B41: 備考 | G41: 合計 | J41: =SUM(J19:J40) -> ¥0 | K41: =SUM(K19:K40) -> ¥0 | L41: =SUM(L19:L40) -> ¥0 | Q41: =SUM(Q19:Q38) -> ¥0 | S41: =SUM(S19:S40) -> ¥0 | T41: =SUM(T19:T40) -> ¥0 | U41: =SUM(U19:U40) -> ¥0 | V41: =SUM(V19:V38) -> ¥0 | Z41: =SUM(Z19:Z38) -> ¥0 | AA41: =SUM(J41,K41,L41,S41,T41,U41) -> ¥0
J43: 直接費計 | L43: =SUM(J41,K41,L41) -> ¥0 | R43: 間接費計 | U43: =SUM(S41,T41,U41) -> ¥0
B45: ='請求書報告書-参考'!B45:O49 -> 規程：詳細は旅費の運用についてを参照 ※1 用件が同じであれば日付ごとに明細を分けて、1枚の精算書にまとめる。 ※2 出発地・到着地は必ず施設名（駅名等は不可）を記入する。 ※3 交通費のエビデンスとして､駅すぱあと等の経路探索結果をプリントアウトし添付する。（日程は実際の旅費発生日に合せる事） ※4 旅費規程によりつくば研究センター（産総研）⇔本部間往復交通費は定額となっているのでエビデンス不要。 ※5 下記､出張報告の記載をする。 ※6 前泊､後泊およびタクシー利用の場合は本部業務管理者の事前承認を得て､備考欄にその理由記述した場合のみ認める。 ※7 航空機を使用した場合は、半券添付必須（インター ネットでの申し込み等は、領収書添付を必須とする）。 ※8 研究開発との関連､出張により得られた成果等を記入する。 ※9 会議､学会等の出張は､スケジュールの入ったプログラムの写し等を添付のこと。 ※10学会等参加の出張において､学会等参加費用に食事代､懇親会費が含まれる時には食事代､懇親会費を日当から減額する。 尚､食事代等が含まれる旨を備考欄に記載する。(旅費の運用について参照) ※11 ※10の場合、該当する減額分や他業務実施に伴う日当減額分の金額を直接と間接に分けて記載する。(不明の場合は事務局に問合せる)
B51: 出張報告/用務の内容※8､※9
B52: （目的） （内容） （結果報告）

Sheet 請求書報告書-6 (hidden)
B1: 国内旅費請求書 及び 出張報告書
B3: 決裁印 | D3: 本 部
D4: ='請求書報告書-参考'!D4 -> 総務担当 部長 | E4: ='請求書報告書-参考'!E4 -> 経理 | F4: ='請求書報告書-参考'!F4 -> 担当部長 | G4: ='請求書報告書-参考'!G4 -> 受付
B9: 研究実施場所 | D9: 役職 | F9: 氏名 | T9: 起案日
B10: ='旅費・交通費、諸経費合計'!V7 -> 0 | D10: ='旅費・交通費、諸経費合計'!W8 -> 0 | F10: ='旅費・交通費、諸経費合計'!AC8 -> 0 | H10: ㊞
B12: 用務先（機関等名称） | D12: 出張先所在地（県・市） | G12: 出張用務件名※1
AA15: 単位：円
B17: 日程 | C17: 出発地※2 | D17: 出発時刻 | E17: 経路 ※3、※4 | I17: 直接費 | R17: 間接費 | AA17: 計
C18: 到着地※2 | D18: 到着時刻 | I18: 宿泊地 | J18: 交通費 | K18: 宿泊 | L18: 日当 | M18: 宿泊 | N18: 宿泊区分 | P18: 宿泊日当区分 | Q18: 日当 | R18: 宿泊地 | S18: 交通費 | T18: 宿泊 | U18: 日当 | V18: 宿泊 | W18: 宿泊区分 | Y18: 宿泊日当区分 | Z18: 日当
K19: =IF(I19="","",M19) ->  | L19: =IF(AND(COUNTIF($I$19:$I$38,"*")>0),Q19,"") ->  | M19: =IF(I19="","",N19) ->  | N19: =IF($O19="A",データ!$E$10,IF($O19="B",データ!$E$11,IF($O19="C",データ!$E$12,IF($O19="D",データ!$E$13)))) -> FALSE | O19: =IF(ISERROR(VLOOKUP($D$10,データ!$C$2:$D$9,2,0)),"",(VLOOKUP($D$10,データ!$C$2:$D$9,2,0))) ->  | P19: =IF($N19=データ!$E$10,データ!$G$10,IF($N19=データ!$E$11,データ!$G$11,IF($N19=データ!$E$12,データ!$G$12,IF($N19=データ!$E$13,データ!$G$13)))) -> FALSE | Q19: =IF(OR($J19="",(COUNTIF($B19:$B32,$B19+1)=0)),"",P19) ->  | T19: =IF(R19="","",V19) ->  | U19: =IF(AND(COUNTIF($R$19:$R$38,"*")>0),Z19,"") ->  | V19: =IF(R19="","",W19) ->  | W19: =IF($O19="A",データ!$E$10,IF($O19="B",データ!$E$11,IF($O19="C",データ!$E$12,IF($O19="D",データ!$E$13)))) -> FALSE | X19: =IF(ISERROR(VLOOKUP($D$10,データ!$C$2:$D$9,2,0)),"",(VLOOKUP($D$10,データ!$C$2:$D$9,2,0))) ->  | Y19: =IF($W19=データ!$E$10,データ!$G$10,IF($W19=データ!$E$11,データ!$G$11,IF($W19=データ!$E$12,データ!$G$12,IF($W19=データ!$E$13,データ!$G$13)))) -> FALSE | Z19: =IF(OR($S19="",(COUNTIF($B19:$B32,$B19+1)=0)),"",Y19) ->  | AA19: =SUM(J19,K19,L19,S19,T19,U19) -> ¥0
K21: =IF(I21="","",M21) ->  | L21: =IF(AND(COUNTIF($I$19:$I$38,"*")>0),Q21,"") ->  | M21: =IF(I21="","",N21) ->  | N21: =IF($O21="A",データ!$E$10,IF($O21="B",データ!$E$11,IF($O21="C",データ!$E$12,IF($O21="D",データ!$E$13)))) -> FALSE | O21: =IF(ISERROR(VLOOKUP($D$10,データ!$C$2:$D$9,2,0)),"",(VLOOKUP($D$10,データ!$C$2:$D$9,2,0))) ->  | P21: =IF($N21=データ!$E$10,データ!$G$10,IF($N21=データ!$E$11,データ!$G$11,IF($N21=データ!$E$12,データ!$G$12,IF($N21=データ!$E$13,データ!$G$13)))) -> FALSE | Q21: =IF(J21="","",IF($B21=$B19,"",P21)) ->  | T21: =IF(R21="","",V21) ->  | U21: =IF(AND(COUNTIF($R$19:$R$38,"*")>0),Z21,"") ->  | V21: =IF(R21="","",W21) ->  | W21: =IF($O21="A",データ!$E$10,IF($O21="B",データ!$E$11,IF($O21="C",データ!$E$12,IF($O21="D",データ!$E$13)))) -> FALSE | X21: =IF(ISERROR(VLOOKUP($D$10,データ!$C$2:$D$9,2,0)),"",(VLOOKUP($D$10,データ!$C$2:$D$9,2,0))) ->  | Y21: =IF($W21=データ!$E$10,データ!$G$10,IF($W21=データ!$E$11,データ!$G$11,IF($W21=データ!$E$12,データ!$G$12,IF($W21=データ!$E$13,データ!$G$13)))) -> FALSE | Z21: =IF(S21="","",IF($B21=$B19,"",Y21)) ->  | AA21: =SUM(J21,K21,L21,S21,T21,U21) -> ¥0
K23: =IF(I23="","",M23) ->  | L23: =IF(AND(COUNTIF($I$19:$I$38,"*")>0),Q23,"") ->  | M23: =IF(I23="","",N23) ->  | N23: =IF($O23="A",データ!$E$10,IF($O23="B",データ!$E$11,IF($O23="C",データ!$E$12,IF($O23="D",データ!$E$13)))) -> FALSE | O23: =IF(ISERROR(VLOOKUP($D$10,データ!$C$2:$D$9,2,0)),"",(VLOOKUP($D$10,データ!$C$2:$D$9,2,0))) ->  | P23: =IF($N23=データ!$E$10,データ!$G$10,IF($N23=データ!$E$11,データ!$G$11,IF($N23=データ!$E$12,データ!$G$12,IF($N23=データ!$E$13,データ!$G$13)))) -> FALSE | Q23: =IF(J23="","",IF($B23=$B21,"",P23)) ->  | T23: =IF(R23="","",V23) ->  | U23: =IF(AND(COUNTIF($R$19:$R$38,"*")>0),Z23,"") ->  | V23: =IF(R23="","",W23) ->  | W23: =IF($O23="A",データ!$E$10,IF($O23="B",データ!$E$11,IF($O23="C",データ!$E$12,IF($O23="D",データ!$E$13)))) -> FALSE | X23: =IF(ISERROR(VLOOKUP($D$10,データ!$C$2:$D$9,2,0)),"",(VLOOKUP($D$10,データ!$C$2:$D$9,2,0))) ->  | Y23: =IF($W23=データ!$E$10,データ!$G$10,IF($W23=データ!$E$11,データ!$G$11,IF($W23=データ!$E$12,データ!$G$12,IF($W23=データ!$E$13,データ!$G$13)))) -> FALSE | Z23: =IF(S23="","",IF($B23=$B21,"",Y23)) ->  | AA23: =SUM(J23,K23,L23,S23,T23,U23) -> ¥0
K25: =IF(I25="","",M25) ->  | L25: =IF(AND(COUNTIF($I$19:$I$38,"*")>0),Q25,"") ->  | M25: =IF(I25="","",N25) ->  | N25: =IF($O25="A",データ!$E$10,IF($O25="B",データ!$E$11,IF($O25="C",データ!$E$12,IF($O25="D",データ!$E$13)))) -> FALSE | O25: =IF(ISERROR(VLOOKUP($D$10,データ!$C$2:$D$9,2,0)),"",(VLOOKUP($D$10,データ!$C$2:$D$9,2,0))) ->  | P25: =IF($N25=データ!$E$10,データ!$G$10,IF($N25=データ!$E$11,データ!$G$11,IF($N25=データ!$E$12,データ!$G$12,IF($N25=データ!$E$13,データ!$G$13)))) -> FALSE | Q25: =IF(J25="","",IF($B25=$B23,"",P25)) ->  | T25: =IF(R25="","",V25) ->  | U25: =IF(AND(COUNTIF($R$19:$R$38,"*")>0),Z25,"") ->  | V25: =IF(R25="","",W25) ->  | W25: =IF($O25="A",データ!$E$10,IF($O25="B",データ!$E$11,IF($O25="C",データ!$E$12,IF($O25="D",データ!$E$13)))) -> FALSE | X25: =IF(ISERROR(VLOOKUP($D$10,データ!$C$2:$D$9,2,0)),"",(VLOOKUP($D$10,データ!$C$2:$D$9,2,0))) ->  | Y25: =IF($W25=データ!$E$10,データ!$G$10,IF($W25=データ!$E$11,データ!$G$11,IF($W25=データ!$E$12,データ!$G$12,IF($W25=データ!$E$13,データ!$G$13)))) -> FALSE | Z25: =IF(S25="","",IF($B25=$B23,"",Y25)) ->  | AA25: =SUM(J25,K25,L25,S25,T25,U25) -> ¥0
K27: =IF(I27="","",M27) ->  | L27: =IF(AND(COUNTIF($I$19:$I$38,"*")>0),Q27,"") ->  | M27: =IF(I27="","",N27) ->  | N27: =IF($O27="A",データ!$E$10,IF($O27="B",データ!$E$11,IF($O27="C",データ!$E$12,IF($O27="D",データ!$E$13)))) -> FALSE | O27: =IF(ISERROR(VLOOKUP($D$10,データ!$C$2:$D$9,2,0)),"",(VLOOKUP($D$10,データ!$C$2:$D$9,2,0))) ->  | P27: =IF($N27=データ!$E$10,データ!$G$10,IF($N27=データ!$E$11,データ!$G$11,IF($N27=データ!$E$12,データ!$G$12,IF($N27=データ!$E$13,データ!$G$13)))) -> FALSE | Q27: =IF(J27="","",IF($B27=$B25,"",P27)) ->  | T27: =IF(R27="","",V27) ->  | U27: =IF(AND(COUNTIF($R$19:$R$38,"*")>0),Z27,"") ->  | V27: =IF(R27="","",W27) ->  | W27: =IF($O27="A",データ!$E$10,IF($O27="B",データ!$E$11,IF($O27="C",データ!$E$12,IF($O27="D",データ!$E$13)))) -> FALSE | X27: =IF(ISERROR(VLOOKUP($D$10,データ!$C$2:$D$9,2,0)),"",(VLOOKUP($D$10,データ!$C$2:$D$9,2,0))) ->  | Y27: =IF($W27=データ!$E$10,データ!$G$10,IF($W27=データ!$E$11,データ!$G$11,IF($W27=データ!$E$12,データ!$G$12,IF($W27=データ!$E$13,データ!$G$13)))) -> FALSE | Z27: =IF(S27="","",IF($B27=$B25,"",Y27)) ->  | AA27: =SUM(J27,K27,L27,S27,T27,U27) -> ¥0
K29: =IF(I29="","",M29) ->  | L29: =IF(AND(COUNTIF($I$19:$I$38,"*")>0),Q29,"") ->  | M29: =IF(I29="","",N29) ->  | N29: =IF($O29="A",データ!$E$10,IF($O29="B",データ!$E$11,IF($O29="C",データ!$E$12,IF($O29="D",データ!$E$13)))) -> FALSE | O29: =IF(ISERROR(VLOOKUP($D$10,データ!$C$2:$D$9,2,0)),"",(VLOOKUP($D$10,データ!$C$2:$D$9,2,0))) ->  | P29: =IF($N29=データ!$E$10,データ!$G$10,IF($N29=データ!$E$11,データ!$G$11,IF($N29=データ!$E$12,データ!$G$12,IF($N29=データ!$E$13,データ!$G$13)))) -> FALSE | Q29: =IF(J29="","",IF($B29=$B27,"",P29)) ->  | T29: =IF(R29="","",V29) ->  | U29: =IF(AND(COUNTIF($R$19:$R$38,"*")>0),Z29,"") ->  | V29: =IF(R29="","",W29) ->  | W29: =IF($O29="A",データ!$E$10,IF($O29="B",データ!$E$11,IF($O29="C",データ!$E$12,IF($O29="D",データ!$E$13)))) -> FALSE | X29: =IF(ISERROR(VLOOKUP($D$10,データ!$C$2:$D$9,2,0)),"",(VLOOKUP($D$10,データ!$C$2:$D$9,2,0))) ->  | Y29: =IF($W29=データ!$E$10,データ!$G$10,IF($W29=データ!$E$11,データ!$G$11,IF($W29=データ!$E$12,データ!$G$12,IF($W29=データ!$E$13,データ!$G$13)))) -> FALSE | Z29: =IF(S29="","",IF($B29=$B27,"",Y29)) ->  | AA29: =SUM(J29,K29,L29,S29,T29,U29) -> ¥0
K31: =IF(I31="","",M31) ->  | L31: =IF(AND(COUNTIF($I$19:$I$38,"*")>0),Q31,"") ->  | M31: =IF(I31="","",N31) ->  | N31: =IF($O31="A",データ!$E$10,IF($O31="B",データ!$E$11,IF($O31="C",データ!$E$12,IF($O31="D",データ!$E$13)))) -> FALSE | O31: =IF(ISERROR(VLOOKUP($D$10,データ!$C$2:$D$9,2,0)),"",(VLOOKUP($D$10,データ!$C$2:$D$9,2,0))) ->  | P31: =IF($N31=データ!$E$10,データ!$G$10,IF($N31=データ!$E$11,データ!$G$11,IF($N31=データ!$E$12,データ!$G$12,IF($N31=データ!$E$13,データ!$G$13)))) -> FALSE | Q31: =IF(J31="","",IF($B31=$B29,"",P31)) ->  | T31: =IF(R31="","",V31) ->  | U31: =IF(AND(COUNTIF($R$19:$R$38,"*")>0),Z31,"") ->  | V31: =IF(R31="","",W31) ->  | W31: =IF($O31="A",データ!$E$10,IF($O31="B",データ!$E$11,IF($O31="C",データ!$E$12,IF($O31="D",データ!$E$13)))) -> FALSE | X31: =IF(ISERROR(VLOOKUP($D$10,データ!$C$2:$D$9,2,0)),"",(VLOOKUP($D$10,データ!$C$2:$D$9,2,0))) ->  | Y31: =IF($W31=データ!$E$10,データ!$G$10,IF($W31=データ!$E$11,データ!$G$11,IF($W31=データ!$E$12,データ!$G$12,IF($W31=データ!$E$13,データ!$G$13)))) -> FALSE | Z31: =IF(S31="","",IF($B31=$B29,"",Y31)) ->  | AA31: =SUM(J31,K31,L31,S31,T31,U31) -> ¥0
K33: =IF(I33="","",M33) ->  | L33: =IF(AND(COUNTIF($I$19:$I$38,"*")>0),Q33,"") ->  | M33: =IF(I33="","",N33) ->  | N33: =IF($O33="A",データ!$E$10,IF($O33="B",データ!$E$11,IF($O33="C",データ!$E$12,IF($O33="D",データ!$E$13)))) -> FALSE | O33: =IF(ISERROR(VLOOKUP($D$10,データ!$C$2:$D$9,2,0)),"",(VLOOKUP($D$10,データ!$C$2:$D$9,2,0))) ->  | P33: =IF($N33=データ!$E$10,データ!$G$10,IF($N33=データ!$E$11,データ!$G$11,IF($N33=データ!$E$12,データ!$G$12,IF($N33=データ!$E$13,データ!$G$13)))) -> FALSE | Q33: =IF(J33="","",IF($B33=$B31,"",P33)) ->  | T33: =IF(R33="","",V33) ->  | U33: =IF(AND(COUNTIF($R$19:$R$38,"*")>0),Z33,"") ->  | V33: =IF(R33="","",W33) ->  | W33: =IF($O33="A",データ!$E$10,IF($O33="B",データ!$E$11,IF($O33="C",データ!$E$12,IF($O33="D",データ!$E$13)))) -> FALSE | X33: =IF(ISERROR(VLOOKUP($D$10,データ!$C$2:$D$9,2,0)),"",(VLOOKUP($D$10,データ!$C$2:$D$9,2,0))) ->  | Y33: =IF($W33=データ!$E$10,データ!$G$10,IF($W33=データ!$E$11,データ!$G$11,IF($W33=データ!$E$12,データ!$G$12,IF($W33=データ!$E$13,データ!$G$13)))) -> FALSE | Z33: =IF(S33="","",IF($B33=$B31,"",Y33)) ->  | AA33: =SUM(J33,K33,L33,S33,T33,U33) -> ¥0
K35: =IF(I35="","",M35) ->  | L35: =IF(AND(COUNTIF($I$19:$I$38,"*")>0),Q35,"") ->  | M35: =IF(I35="","",N35) ->  | N35: =IF($O35="A",データ!$E$10,IF($O35="B",データ!$E$11,IF($O35="C",データ!$E$12,IF($O35="D",データ!$E$13)))) -> FALSE | O35: =IF(ISERROR(VLOOKUP($D$10,データ!$C$2:$D$9,2,0)),"",(VLOOKUP($D$10,データ!$C$2:$D$9,2,0))) ->  | P35: =IF($N35=データ!$E$10,データ!$G$10,IF($N35=データ!$E$11,データ!$G$11,IF($N35=データ!$E$12,データ!$G$12,IF($N35=データ!$E$13,データ!$G$13)))) -> FALSE | Q35: =IF(J35="","",IF($B35=$B33,"",P35)) ->  | T35: =IF(R35="","",V35) ->  | U35: =IF(AND(COUNTIF($R$19:$R$38,"*")>0),Z35,"") ->  | V35: =IF(R35="","",W35) ->  | W35: =IF($O35="A",データ!$E$10,IF($O35="B",データ!$E$11,IF($O35="C",データ!$E$12,IF($O35="D",データ!$E$13)))) -> FALSE | X35: =IF(ISERROR(VLOOKUP($D$10,データ!$C$2:$D$9,2,0)),"",(VLOOKUP($D$10,データ!$C$2:$D$9,2,0))) ->  | Y35: =IF($W35=データ!$E$10,データ!$G$10,IF($W35=データ!$E$11,データ!$G$11,IF($W35=データ!$E$12,データ!$G$12,IF($W35=データ!$E$13,データ!$G$13)))) -> FALSE | Z35: =IF(S35="","",IF($B35=$B33,"",Y35)) ->  | AA35: =SUM(J35,K35,L35,S35,T35,U35) -> ¥0
K37: =IF(I37="","",M37) ->  | L37: =IF(AND(COUNTIF($I$19:$I$38,"*")>0),Q37,"") ->  | M37: =IF(I37="","",N37) ->  | N37: =IF($O37="A",データ!$E$10,IF($O37="B",データ!$E$11,IF($O37="C",データ!$E$12,IF($O37="D",データ!$E$13)))) -> FALSE | O37: =IF(ISERROR(VLOOKUP($D$10,データ!$C$2:$D$9,2,0)),"",(VLOOKUP($D$10,データ!$C$2:$D$9,2,0))) ->  | P37: =IF($N37=データ!$E$10,データ!$G$10,IF($N37=データ!$E$11,データ!$G$11,IF($N37=データ!$E$12,データ!$G$12,IF($N37=データ!$E$13,データ!$G$13)))) -> FALSE | Q37: =IF(J37="","",IF($B37=$B35,"",P37)) ->  | T37: =IF(R37="","",V37) ->  | U37: =IF(AND(COUNTIF($R$19:$R$38,"*")>0),Z37,"") ->  | V37: =IF(R37="","",W37) ->  | W37: =IF($O37="A",データ!$E$10,IF($O37="B",データ!$E$11,IF($O37="C",データ!$E$12,IF($O37="D",データ!$E$13)))) -> FALSE | X37: =IF(ISERROR(VLOOKUP($D$10,データ!$C$2:$D$9,2,0)),"",(VLOOKUP($D$10,データ!$C$2:$D$9,2,0))) ->  | Y37: =IF($W37=データ!$E$10,データ!$G$10,IF($W37=データ!$E$11,データ!$G$11,IF($W37=データ!$E$12,データ!$G$12,IF($W37=データ!$E$13,データ!$G$13)))) -> FALSE | Z37: =IF(S37="","",IF($B37=$B35,"",Y37)) ->  | AA37: =SUM(J37,K37,L37,S37,T37,U37) -> ¥0
B39: ='請求書報告書-参考'!B39:F40 -> 国内出張による日当調整 ※11 | L39: ¥0 | U39: ¥0 | AA39: =SUM(J39,K39,L39,S39,T39,U39) -> ¥0
B41: 備考 | G41: 合計 | J41: =SUM(J19:J40) -> ¥0 | K41: =SUM(K19:K40) -> ¥0 | L41: =SUM(L19:L40) -> ¥0 | Q41: =SUM(Q19:Q38) -> ¥0 | S41: =SUM(S19:S40) -> ¥0 | T41: =SUM(T19:T40) -> ¥0 | U41: =SUM(U19:U40) -> ¥0 | V41: =SUM(V19:V38) -> ¥0 | Z41: =SUM(Z19:Z38) -> ¥0 | AA41: =SUM(J41,K41,L41,S41,T41,U41) -> ¥0
J43: 直接費計 | L43: =SUM(J41,K41,L41) -> ¥0 | R43: 間接費計 | U43: =SUM(S41,T41,U41) -> ¥0
B45: ='請求書報告書-参考'!B45:O49 -> 規程：詳細は旅費の運用についてを参照 ※1 用件が同じであれば日付ごとに明細を分けて、1枚の精算書にまとめる。 ※2 出発地・到着地は必ず施設名（駅名等は不可）を記入する。 ※3 交通費のエビデンスとして､駅すぱあと等の経路探索結果をプリントアウトし添付する。（日程は実際の旅費発生日に合せる事） ※4 旅費規程によりつくば研究センター（産総研）⇔本部間往復交通費は定額となっているのでエビデンス不要。 ※5 下記､出張報告の記載をする。 ※6 前泊､後泊およびタクシー利用の場合は本部業務管理者の事前承認を得て､備考欄にその理由記述した場合のみ認める。 ※7 航空機を使用した場合は、半券添付必須（インター ネットでの申し込み等は、領収書添付を必須とする）。 ※8 研究開発との関連､出張により得られた成果等を記入する。 ※9 会議､学会等の出張は､スケジュールの入ったプログラムの写し等を添付のこと。 ※10学会等参加の出張において､学会等参加費用に食事代､懇親会費が含まれる時には食事代､懇親会費を日当から減額する。 尚､食事代等が含まれる旨を備考欄に記載する。(旅費の運用について参照) ※11 ※10の場合、該当する減額分や他業務実施に伴う日当減額分の金額を直接と間接に分けて記載する。(不明の場合は事務局に問合せる)
B51: 出張報告/用務の内容※8､※9
B52: （目的） （内容） （結果報告）

Sheet 請求書報告書-7 (hidden)
B1: 国内旅費請求書 及び 出張報告書
B3: 決裁印 | D3: 本 部
D4: ='請求書報告書-参考'!D4 -> 総務担当 部長 | E4: ='請求書報告書-参考'!E4 -> 経理 | F4: ='請求書報告書-参考'!F4 -> 担当部長 | G4: ='請求書報告書-参考'!G4 -> 受付
B9: 研究実施場所 | D9: 役職 | F9: 氏名 | T9: 起案日
B10: ='旅費・交通費、諸経費合計'!V7 -> 0 | D10: ='旅費・交通費、諸経費合計'!W8 -> 0 | F10: ='旅費・交通費、諸経費合計'!AC8 -> 0 | H10: ㊞
B12: 用務先（機関等名称） | D12: 出張先所在地（県・市） | G12: 出張用務件名※1
AA15: 単位：円
B17: 日程 | C17: 出発地※2 | D17: 出発時刻 | E17: 経路 ※3、※4 | I17: 直接費 | R17: 間接費 | AA17: 計
C18: 到着地※2 | D18: 到着時刻 | I18: 宿泊地 | J18: 交通費 | K18: 宿泊 | L18: 日当 | M18: 宿泊 | N18: 宿泊区分 | P18: 宿泊日当区分 | Q18: 日当 | R18: 宿泊地 | S18: 交通費 | T18: 宿泊 | U18: 日当 | V18: 宿泊 | W18: 宿泊区分 | Y18: 宿泊日当区分 | Z18: 日当
K19: =IF(I19="","",M19) ->  | L19: =IF(AND(COUNTIF($I$19:$I$38,"*")>0),Q19,"") ->  | M19: =IF(I19="","",N19) ->  | N19: =IF($O19="A",データ!$E$10,IF($O19="B",データ!$E$11,IF($O19="C",データ!$E$12,IF($O19="D",データ!$E$13)))) -> FALSE | O19: =IF(ISERROR(VLOOKUP($D$10,データ!$C$2:$D$9,2,0)),"",(VLOOKUP($D$10,データ!$C$2:$D$9,2,0))) ->  | P19: =IF($N19=データ!$E$10,データ!$G$10,IF($N19=データ!$E$11,データ!$G$11,IF($N19=データ!$E$12,データ!$G$12,IF($N19=データ!$E$13,データ!$G$13)))) -> FALSE | Q19: =IF(OR($J19="",(COUNTIF($B19:$B32,$B19+1)=0)),"",P19) ->  | T19: =IF(R19="","",V19) ->  | U19: =IF(AND(COUNTIF($R$19:$R$38,"*")>0),Z19,"") ->  | V19: =IF(R19="","",W19) ->  | W19: =IF($O19="A",データ!$E$10,IF($O19="B",データ!$E$11,IF($O19="C",データ!$E$12,IF($O19="D",データ!$E$13)))) -> FALSE | X19: =IF(ISERROR(VLOOKUP($D$10,データ!$C$2:$D$9,2,0)),"",(VLOOKUP($D$10,データ!$C$2:$D$9,2,0))) ->  | Y19: =IF($W19=データ!$E$10,データ!$G$10,IF($W19=データ!$E$11,データ!$G$11,IF($W19=データ!$E$12,データ!$G$12,IF($W19=データ!$E$13,データ!$G$13)))) -> FALSE | Z19: =IF(OR($S19="",(COUNTIF($B19:$B32,$B19+1)=0)),"",Y19) ->  | AA19: =SUM(J19,K19,L19,S19,T19,U19) -> ¥0
K21: =IF(I21="","",M21) ->  | L21: =IF(AND(COUNTIF($I$19:$I$38,"*")>0),Q21,"") ->  | M21: =IF(I21="","",N21) ->  | N21: =IF($O21="A",データ!$E$10,IF($O21="B",データ!$E$11,IF($O21="C",データ!$E$12,IF($O21="D",データ!$E$13)))) -> FALSE | O21: =IF(ISERROR(VLOOKUP($D$10,データ!$C$2:$D$9,2,0)),"",(VLOOKUP($D$10,データ!$C$2:$D$9,2,0))) ->  | P21: =IF($N21=データ!$E$10,データ!$G$10,IF($N21=データ!$E$11,データ!$G$11,IF($N21=データ!$E$12,データ!$G$12,IF($N21=データ!$E$13,データ!$G$13)))) -> FALSE | Q21: =IF(J21="","",IF($B21=$B19,"",P21)) ->  | T21: =IF(R21="","",V21) ->  | U21: =IF(AND(COUNTIF($R$19:$R$38,"*")>0),Z21,"") ->  | V21: =IF(R21="","",W21) ->  | W21: =IF($O21="A",データ!$E$10,IF($O21="B",データ!$E$11,IF($O21="C",データ!$E$12,IF($O21="D",データ!$E$13)))) -> FALSE | X21: =IF(ISERROR(VLOOKUP($D$10,データ!$C$2:$D$9,2,0)),"",(VLOOKUP($D$10,データ!$C$2:$D$9,2,0))) ->  | Y21: =IF($W21=データ!$E$10,データ!$G$10,IF($W21=データ!$E$11,データ!$G$11,IF($W21=データ!$E$12,データ!$G$12,IF($W21=データ!$E$13,データ!$G$13)))) -> FALSE | Z21: =IF(S21="","",IF($B21=$B19,"",Y21)) ->  | AA21: =SUM(J21,K21,L21,S21,T21,U21) -> ¥0
K23: =IF(I23="","",M23) ->  | L23: =IF(AND(COUNTIF($I$19:$I$38,"*")>0),Q23,"") ->  | M23: =IF(I23="","",N23) ->  | N23: =IF($O23="A",データ!$E$10,IF($O23="B",データ!$E$11,IF($O23="C",データ!$E$12,IF($O23="D",データ!$E$13)))) -> FALSE | O23: =IF(ISERROR(VLOOKUP($D$10,データ!$C$2:$D$9,2,0)),"",(VLOOKUP($D$10,データ!$C$2:$D$9,2,0))) ->  | P23: =IF($N23=データ!$E$10,データ!$G$10,IF($N23=データ!$E$11,データ!$G$11,IF($N23=データ!$E$12,データ!$G$12,IF($N23=データ!$E$13,データ!$G$13)))) -> FALSE | Q23: =IF(J23="","",IF($B23=$B21,"",P23)) ->  | T23: =IF(R23="","",V23) ->  | U23: =IF(AND(COUNTIF($R$19:$R$38,"*")>0),Z23,"") ->  | V23: =IF(R23="","",W23) ->  | W23: =IF($O23="A",データ!$E$10,IF($O23="B",データ!$E$11,IF($O23="C",データ!$E$12,IF($O23="D",データ!$E$13)))) -> FALSE | X23: =IF(ISERROR(VLOOKUP($D$10,データ!$C$2:$D$9,2,0)),"",(VLOOKUP($D$10,データ!$C$2:$D$9,2,0))) ->  | Y23: =IF($W23=データ!$E$10,データ!$G$10,IF($W23=データ!$E$11,データ!$G$11,IF($W23=データ!$E$12,データ!$G$12,IF($W23=データ!$E$13,データ!$G$13)))) -> FALSE | Z23: =IF(S23="","",IF($B23=$B21,"",Y23)) ->  | AA23: =SUM(J23,K23,L23,S23,T23,U23) -> ¥0
K25: =IF(I25="","",M25) ->  | L25: =IF(AND(COUNTIF($I$19:$I$38,"*")>0),Q25,"") ->  | M25: =IF(I25="","",N25) ->  | N25: =IF($O25="A",データ!$E$10,IF($O25="B",データ!$E$11,IF($O25="C",データ!$E$12,IF($O25="D",データ!$E$13)))) -> FALSE | O25: =IF(ISERROR(VLOOKUP($D$10,データ!$C$2:$D$9,2,0)),"",(VLOOKUP($D$10,データ!$C$2:$D$9,2,0))) ->  | P25: =IF($N25=データ!$E$10,データ!$G$10,IF($N25=データ!$E$11,データ!$G$11,IF($N25=データ!$E$12,データ!$G$12,IF($N25=データ!$E$13,データ!$G$13)))) -> FALSE | Q25: =IF(J25="","",IF($B25=$B23,"",P25)) ->  | T25: =IF(R25="","",V25) ->  | U25: =IF(AND(COUNTIF($R$19:$R$38,"*")>0),Z25,"") ->  | V25: =IF(R25="","",W25) ->  | W25: =IF($O25="A",データ!$E$10,IF($O25="B",データ!$E$11,IF($O25="C",データ!$E$12,IF($O25="D",データ!$E$13)))) -> FALSE | X25: =IF(ISERROR(VLOOKUP($D$10,データ!$C$2:$D$9,2,0)),"",(VLOOKUP($D$10,データ!$C$2:$D$9,2,0))) ->  | Y25: =IF($W25=データ!$E$10,データ!$G$10,IF($W25=データ!$E$11,データ!$G$11,IF($W25=データ!$E$12,データ!$G$12,IF($W25=データ!$E$13,データ!$G$13)))) -> FALSE | Z25: =IF(S25="","",IF($B25=$B23,"",Y25)) ->  | AA25: =SUM(J25,K25,L25,S25,T25,U25) -> ¥0
K27: =IF(I27="","",M27) ->  | L27: =IF(AND(COUNTIF($I$19:$I$38,"*")>0),Q27,"") ->  | M27: =IF(I27="","",N27) ->  | N27: =IF($O27="A",データ!$E$10,IF($O27="B",データ!$E$11,IF($O27="C",データ!$E$12,IF($O27="D",データ!$E$13)))) -> FALSE | O27: =IF(ISERROR(VLOOKUP($D$10,データ!$C$2:$D$9,2,0)),"",(VLOOKUP($D$10,データ!$C$2:$D$9,2,0))) ->  | P27: =IF($N27=データ!$E$10,データ!$G$10,IF($N27=データ!$E$11,データ!$G$11,IF($N27=データ!$E$12,データ!$G$12,IF($N27=データ!$E$13,データ!$G$13)))) -> FALSE | Q27: =IF(J27="","",IF($B27=$B25,"",P27)) ->  | T27: =IF(R27="","",V27) ->  | U27: =IF(AND(COUNTIF($R$19:$R$38,"*")>0),Z27,"") ->  | V27: =IF(R27="","",W27) ->  | W27: =IF($O27="A",データ!$E$10,IF($O27="B",データ!$E$11,IF($O27="C",データ!$E$12,IF($O27="D",データ!$E$13)))) -> FALSE | X27: =IF(ISERROR(VLOOKUP($D$10,データ!$C$2:$D$9,2,0)),"",(VLOOKUP($D$10,データ!$C$2:$D$9,2,0))) ->  | Y27: =IF($W27=データ!$E$10,データ!$G$10,IF($W27=データ!$E$11,データ!$G$11,IF($W27=データ!$E$12,データ!$G$12,IF($W27=データ!$E$13,データ!$G$13)))) -> FALSE | Z27: =IF(S27="","",IF($B27=$B25,"",Y27)) ->  | AA27: =SUM(J27,K27,L27,S27,T27,U27) -> ¥0
K29: =IF(I29="","",M29) ->  | L29: =IF(AND(COUNTIF($I$19:$I$38,"*")>0),Q29,"") ->  | M29: =IF(I29="","",N29) ->  | N29: =IF($O29="A",データ!$E$10,IF($O29="B",データ!$E$11,IF($O29="C",データ!$E$12,IF($O29="D",データ!$E$13)))) -> FALSE | O29: =IF(ISERROR(VLOOKUP($D$10,データ!$C$2:$D$9,2,0)),"",(VLOOKUP($D$10,データ!$C$2:$D$9,2,0))) ->  | P29: =IF($N29=データ!$E$10,データ!$G$10,IF($N29=データ!$E$11,データ!$G$11,IF($N29=データ!$E$12,データ!$G$12,IF($N29=データ!$E$13,データ!$G$13)))) -> FALSE | Q29: =IF(J29="","",IF($B29=$B27,"",P29)) ->  | T29: =IF(R29="","",V29) ->  | U29: =IF(AND(COUNTIF($R$19:$R$38,"*")>0),Z29,"") ->  | V29: =IF(R29="","",W29) ->  | W29: =IF($O29="A",データ!$E$10,IF($O29="B",データ!$E$11,IF($O29="C",データ!$E$12,IF($O29="D",データ!$E$13)))) -> FALSE | X29: =IF(ISERROR(VLOOKUP($D$10,データ!$C$2:$D$9,2,0)),"",(VLOOKUP($D$10,データ!$C$2:$D$9,2,0))) ->  | Y29: =IF($W29=データ!$E$10,データ!$G$10,IF($W29=データ!$E$11,データ!$G$11,IF($W29=データ!$E$12,データ!$G$12,IF($W29=データ!$E$13,データ!$G$13)))) -> FALSE | Z29: =IF(S29="","",IF($B29=$B27,"",Y29)) ->  | AA29: =SUM(J29,K29,L29,S29,T29,U29) -> ¥0
K31: =IF(I31="","",M31) ->  | L31: =IF(AND(COUNTIF($I$19:$I$38,"*")>0),Q31,"") ->  | M31: =IF(I31="","",N31) ->  | N31: =IF($O31="A",データ!$E$10,IF($O31="B",データ!$E$11,IF($O31="C",データ!$E$12,IF($O31="D",データ!$E$13)))) -> FALSE | O31: =IF(ISERROR(VLOOKUP($D$10,データ!$C$2:$D$9,2,0)),"",(VLOOKUP($D$10,データ!$C$2:$D$9,2,0))) ->  | P31: =IF($N31=データ!$E$10,データ!$G$10,IF($N31=データ!$E$11,データ!$G$11,IF($N31=データ!$E$12,データ!$G$12,IF($N31=データ!$E$13,データ!$G$13)))) -> FALSE | Q31: =IF(J31="","",IF($B31=$B29,"",P31)) ->  | T31: =IF(R31="","",V31) ->  | U31: =IF(AND(COUNTIF($R$19:$R$38,"*")>0),Z31,"") ->  | V31: =IF(R31="","",W31) ->  | W31: =IF($O31="A",データ!$E$10,IF($O31="B",データ!$E$11,IF($O31="C",データ!$E$12,IF($O31="D",データ!$E$13)))) -> FALSE | X31: =IF(ISERROR(VLOOKUP($D$10,データ!$C$2:$D$9,2,0)),"",(VLOOKUP($D$10,データ!$C$2:$D$9,2,0))) ->  | Y31: =IF($W31=データ!$E$10,データ!$G$10,IF($W31=データ!$E$11,データ!$G$11,IF($W31=データ!$E$12,データ!$G$12,IF($W31=データ!$E$13,データ!$G$13)))) -> FALSE | Z31: =IF(S31="","",IF($B31=$B29,"",Y31)) ->  | AA31: =SUM(J31,K31,L31,S31,T31,U31) -> ¥0
K33: =IF(I33="","",M33) ->  | L33: =IF(AND(COUNTIF($I$19:$I$38,"*")>0),Q33,"") ->  | M33: =IF(I33="","",N33) ->  | N33: =IF($O33="A",データ!$E$10,IF($O33="B",データ!$E$11,IF($O33="C",データ!$E$12,IF($O33="D",データ!$E$13)))) -> FALSE | O33: =IF(ISERROR(VLOOKUP($D$10,データ!$C$2:$D$9,2,0)),"",(VLOOKUP($D$10,データ!$C$2:$D$9,2,0))) ->  | P33: =IF($N33=データ!$E$10,データ!$G$10,IF($N33=データ!$E$11,データ!$G$11,IF($N33=データ!$E$12,データ!$G$12,IF($N33=データ!$E$13,データ!$G$13)))) -> FALSE | Q33: =IF(J33="","",IF($B33=$B31,"",P33)) ->  | T33: =IF(R33="","",V33) ->  | U33: =IF(AND(COUNTIF($R$19:$R$38,"*")>0),Z33,"") ->  | V33: =IF(R33="","",W33) ->  | W33: =IF($O33="A",データ!$E$10,IF($O33="B",データ!$E$11,IF($O33="C",データ!$E$12,IF($O33="D",データ!$E$13)))) -> FALSE | X33: =IF(ISERROR(VLOOKUP($D$10,データ!$C$2:$D$9,2,0)),"",(VLOOKUP($D$10,データ!$C$2:$D$9,2,0))) ->  | Y33: =IF($W33=データ!$E$10,データ!$G$10,IF($W33=データ!$E$11,データ!$G$11,IF($W33=データ!$E$12,データ!$G$12,IF($W33=データ!$E$13,データ!$G$13)))) -> FALSE | Z33: =IF(S33="","",IF($B33=$B31,"",Y33)) ->  | AA33: =SUM(J33,K33,L33,S33,T33,U33) -> ¥0
K35: =IF(I35="","",M35) ->  | L35: =IF(AND(COUNTIF($I$19:$I$38,"*")>0),Q35,"") ->  | M35: =IF(I35="","",N35) ->  | N35: =IF($O35="A",データ!$E$10,IF($O35="B",データ!$E$11,IF($O35="C",データ!$E$12,IF($O35="D",データ!$E$13)))) -> FALSE | O35: =IF(ISERROR(VLOOKUP($D$10,データ!$C$2:$D$9,2,0)),"",(VLOOKUP($D$10,データ!$C$2:$D$9,2,0))) ->  | P35: =IF($N35=データ!$E$10,データ!$G$10,IF($N35=データ!$E$11,データ!$G$11,IF($N35=データ!$E$12,データ!$G$12,IF($N35=データ!$E$13,データ!$G$13)))) -> FALSE | Q35: =IF(J35="","",IF($B35=$B33,"",P35)) ->  | T35: =IF(R35="","",V35) ->  | U35: =IF(AND(COUNTIF($R$19:$R$38,"*")>0),Z35,"") ->  | V35: =IF(R35="","",W35) ->  | W35: =IF($O35="A",データ!$E$10,IF($O35="B",データ!$E$11,IF($O35="C",データ!$E$12,IF($O35="D",データ!$E$13)))) -> FALSE | X35: =IF(ISERROR(VLOOKUP($D$10,データ!$C$2:$D$9,2,0)),"",(VLOOKUP($D$10,データ!$C$2:$D$9,2,0))) ->  | Y35: =IF($W35=データ!$E$10,データ!$G$10,IF($W35=データ!$E$11,データ!$G$11,IF($W35=データ!$E$12,データ!$G$12,IF($W35=データ!$E$13,データ!$G$13)))) -> FALSE | Z35: =IF(S35="","",IF($B35=$B33,"",Y35)) ->  | AA35: =SUM(J35,K35,L35,S35,T35,U35) -> ¥0
K37: =IF(I37="","",M37) ->  | L37: =IF(AND(COUNTIF($I$19:$I$38,"*")>0),Q37,"") ->  | M37: =IF(I37="","",N37) ->  | N37: =IF($O37="A",データ!$E$10,IF($O37="B",データ!$E$11,IF($O37="C",データ!$E$12,IF($O37="D",データ!$E$13)))) -> FALSE | O37: =IF(ISERROR(VLOOKUP($D$10,データ!$C$2:$D$9,2,0)),"",(VLOOKUP($D$10,データ!$C$2:$D$9,2,0))) ->  | P37: =IF($N37=データ!$E$10,データ!$G$10,IF($N37=データ!$E$11,データ!$G$11,IF($N37=データ!$E$12,データ!$G$12,IF($N37=データ!$E$13,データ!$G$13)))) -> FALSE | Q37: =IF(J37="","",IF($B37=$B35,"",P37)) ->  | T37: =IF(R37="","",V37) ->  | U37: =IF(AND(COUNTIF($R$19:$R$38,"*")>0),Z37,"") ->  | V37: =IF(R37="","",W37) ->  | W37: =IF($O37="A",データ!$E$10,IF($O37="B",データ!$E$11,IF($O37="C",データ!$E$12,IF($O37="D",データ!$E$13)))) -> FALSE | X37: =IF(ISERROR(VLOOKUP($D$10,データ!$C$2:$D$9,2,0)),"",(VLOOKUP($D$10,データ!$C$2:$D$9,2,0))) ->  | Y37: =IF($W37=データ!$E$10,データ!$G$10,IF($W37=データ!$E$11,データ!$G$11,IF($W37=データ!$E$12,データ!$G$12,IF($W37=データ!$E$13,データ!$G$13)))) -> FALSE | Z37: =IF(S37="","",IF($B37=$B35,"",Y37)) ->  | AA37: =SUM(J37,K37,L37,S37,T37,U37) -> ¥0
B39: ='請求書報告書-参考'!B39:F40 -> 国内出張による日当調整 ※11 | L39: ¥0 | U39: ¥0 | AA39: =SUM(J39,K39,L39,S39,T39,U39) -> ¥0
B41: 備考 | G41: 合計 | J41: =SUM(J19:J40) -> ¥0 | K41: =SUM(K19:K40) -> ¥0 | L41: =SUM(L19:L40) -> ¥0 | Q41: =SUM(Q19:Q38) -> ¥0 | S41: =SUM(S19:S40) -> ¥0 | T41: =SUM(T19:T40) -> ¥0 | U41: =SUM(U19:U40) -> ¥0 | V41: =SUM(V19:V38) -> ¥0 | Z41: =SUM(Z19:Z38) -> ¥0 | AA41: =SUM(J41,K41,L41,S41,T41,U41) -> ¥0
J43: 直接費計 | L43: =SUM(J41,K41,L41) -> ¥0 | R43: 間接費計 | U43: =SUM(S41,T41,U41) -> ¥0
B45: ='請求書報告書-参考'!B45:O49 -> 規程：詳細は旅費の運用についてを参照 ※1 用件が同じであれば日付ごとに明細を分けて、1枚の精算書にまとめる。 ※2 出発地・到着地は必ず施設名（駅名等は不可）を記入する。 ※3 交通費のエビデンスとして､駅すぱあと等の経路探索結果をプリントアウトし添付する。（日程は実際の旅費発生日に合せる事） ※4 旅費規程によりつくば研究センター（産総研）⇔本部間往復交通費は定額となっているのでエビデンス不要。 ※5 下記､出張報告の記載をする。 ※6 前泊､後泊およびタクシー利用の場合は本部業務管理者の事前承認を得て､備考欄にその理由記述した場合のみ認める。 ※7 航空機を使用した場合は、半券添付必須（インター ネットでの申し込み等は、領収書添付を必須とする）。 ※8 研究開発との関連､出張により得られた成果等を記入する。 ※9 会議､学会等の出張は､スケジュールの入ったプログラムの写し等を添付のこと。 ※10学会等参加の出張において､学会等参加費用に食事代､懇親会費が含まれる時には食事代､懇親会費を日当から減額する。 尚､食事代等が含まれる旨を備考欄に記載する。(旅費の運用について参照) ※11 ※10の場合、該当する減額分や他業務実施に伴う日当減額分の金額を直接と間接に分けて記載する。(不明の場合は事務局に問合せる)
B51: 出張報告/用務の内容※8､※9
B52: （目的） （内容） （結果報告）

Sheet 請求書報告書-8 (hidden)
B1: 国内旅費請求書 及び 出張報告書
B3: 決裁印 | D3: 本 部
D4: ='請求書報告書-参考'!D4 -> 総務担当 部長 | E4: ='請求書報告書-参考'!E4 -> 経理 | F4: ='請求書報告書-参考'!F4 -> 担当部長 | G4: ='請求書報告書-参考'!G4 -> 受付
B9: 研究実施場所 | D9: 役職 | F9: 氏名 | T9: 起案日
B10: ='旅費・交通費、諸経費合計'!V7 -> 0 | D10: ='旅費・交通費、諸経費合計'!W8 -> 0 | F10: ='旅費・交通費、諸経費合計'!AC8 -> 0 | H10: ㊞
B12: 用務先（機関等名称） | D12: 出張先所在地（県・市） | G12: 出張用務件名※1
AA15: 単位：円
B17: 日程 | C17: 出発地※2 | D17: 出発時刻 | E17: 経路 ※3、※4 | I17: 直接費 | R17: 間接費 | AA17: 計
C18: 到着地※2 | D18: 到着時刻 | I18: 宿泊地 | J18: 交通費 | K18: 宿泊 | L18: 日当 | M18: 宿泊 | N18: 宿泊区分 | P18: 宿泊日当区分 | Q18: 日当 | R18: 宿泊地 | S18: 交通費 | T18: 宿泊 | U18: 日当 | V18: 宿泊 | W18: 宿泊区分 | Y18: 宿泊日当区分 | Z18: 日当
K19: =IF(I19="","",M19) ->  | L19: =IF(AND(COUNTIF($I$19:$I$38,"*")>0),Q19,"") ->  | M19: =IF(I19="","",N19) ->  | N19: =IF($O19="A",データ!$E$10,IF($O19="B",データ!$E$11,IF($O19="C",データ!$E$12,IF($O19="D",データ!$E$13)))) -> FALSE | O19: =IF(ISERROR(VLOOKUP($D$10,データ!$C$2:$D$9,2,0)),"",(VLOOKUP($D$10,データ!$C$2:$D$9,2,0))) ->  | P19: =IF($N19=データ!$E$10,データ!$G$10,IF($N19=データ!$E$11,データ!$G$11,IF($N19=データ!$E$12,データ!$G$12,IF($N19=データ!$E$13,データ!$G$13)))) -> FALSE | Q19: =IF(OR($J19="",(COUNTIF($B19:$B32,$B19+1)=0)),"",P19) ->  | T19: =IF(R19="","",V19) ->  | U19: =IF(AND(COUNTIF($R$19:$R$38,"*")>0),Z19,"") ->  | V19: =IF(R19="","",W19) ->  | W19: =IF($O19="A",データ!$E$10,IF($O19="B",データ!$E$11,IF($O19="C",データ!$E$12,IF($O19="D",データ!$E$13)))) -> FALSE | X19: =IF(ISERROR(VLOOKUP($D$10,データ!$C$2:$D$9,2,0)),"",(VLOOKUP($D$10,データ!$C$2:$D$9,2,0))) ->  | Y19: =IF($W19=データ!$E$10,データ!$G$10,IF($W19=データ!$E$11,データ!$G$11,IF($W19=データ!$E$12,データ!$G$12,IF($W19=データ!$E$13,データ!$G$13)))) -> FALSE | Z19: =IF(OR($S19="",(COUNTIF($B19:$B32,$B19+1)=0)),"",Y19) ->  | AA19: =SUM(J19,K19,L19,S19,T19,U19) -> ¥0
K21: =IF(I21="","",M21) ->  | L21: =IF(AND(COUNTIF($I$19:$I$38,"*")>0),Q21,"") ->  | M21: =IF(I21="","",N21) ->  | N21: =IF($O21="A",データ!$E$10,IF($O21="B",データ!$E$11,IF($O21="C",データ!$E$12,IF($O21="D",データ!$E$13)))) -> FALSE | O21: =IF(ISERROR(VLOOKUP($D$10,データ!$C$2:$D$9,2,0)),"",(VLOOKUP($D$10,データ!$C$2:$D$9,2,0))) ->  | P21: =IF($N21=データ!$E$10,データ!$G$10,IF($N21=データ!$E$11,データ!$G$11,IF($N21=データ!$E$12,データ!$G$12,IF($N21=データ!$E$13,データ!$G$13)))) -> FALSE | Q21: =IF(J21="","",IF($B21=$B19,"",P21)) ->  | T21: =IF(R21="","",V21) ->  | U21: =IF(AND(COUNTIF($R$19:$R$38,"*")>0),Z21,"") ->  | V21: =IF(R21="","",W21) ->  | W21: =IF($O21="A",データ!$E$10,IF($O21="B",データ!$E$11,IF($O21="C",データ!$E$12,IF($O21="D",データ!$E$13)))) -> FALSE | X21: =IF(ISERROR(VLOOKUP($D$10,データ!$C$2:$D$9,2,0)),"",(VLOOKUP($D$10,データ!$C$2:$D$9,2,0))) ->  | Y21: =IF($W21=データ!$E$10,データ!$G$10,IF($W21=データ!$E$11,データ!$G$11,IF($W21=データ!$E$12,データ!$G$12,IF($W21=データ!$E$13,データ!$G$13)))) -> FALSE | Z21: =IF(S21="","",IF($B21=$B19,"",Y21)) ->  | AA21: =SUM(J21,K21,L21,S21,T21,U21) -> ¥0
K23: =IF(I23="","",M23) ->  | L23: =IF(AND(COUNTIF($I$19:$I$38,"*")>0),Q23,"") ->  | M23: =IF(I23="","",N23) ->  | N23: =IF($O23="A",データ!$E$10,IF($O23="B",データ!$E$11,IF($O23="C",データ!$E$12,IF($O23="D",データ!$E$13)))) -> FALSE | O23: =IF(ISERROR(VLOOKUP($D$10,データ!$C$2:$D$9,2,0)),"",(VLOOKUP($D$10,データ!$C$2:$D$9,2,0))) ->  | P23: =IF($N23=データ!$E$10,データ!$G$10,IF($N23=データ!$E$11,データ!$G$11,IF($N23=データ!$E$12,データ!$G$12,IF($N23=データ!$E$13,データ!$G$13)))) -> FALSE | Q23: =IF(J23="","",IF($B23=$B21,"",P23)) ->  | T23: =IF(R23="","",V23) ->  | U23: =IF(AND(COUNTIF($R$19:$R$38,"*")>0),Z23,"") ->  | V23: =IF(R23="","",W23) ->  | W23: =IF($O23="A",データ!$E$10,IF($O23="B",データ!$E$11,IF($O23="C",データ!$E$12,IF($O23="D",データ!$E$13)))) -> FALSE | X23: =IF(ISERROR(VLOOKUP($D$10,データ!$C$2:$D$9,2,0)),"",(VLOOKUP($D$10,データ!$C$2:$D$9,2,0))) ->  | Y23: =IF($W23=データ!$E$10,データ!$G$10,IF($W23=データ!$E$11,データ!$G$11,IF($W23=データ!$E$12,データ!$G$12,IF($W23=データ!$E$13,データ!$G$13)))) -> FALSE | Z23: =IF(S23="","",IF($B23=$B21,"",Y23)) ->  | AA23: =SUM(J23,K23,L23,S23,T23,U23) -> ¥0
K25: =IF(I25="","",M25) ->  | L25: =IF(AND(COUNTIF($I$19:$I$38,"*")>0),Q25,"") ->  | M25: =IF(I25="","",N25) ->  | N25: =IF($O25="A",データ!$E$10,IF($O25="B",データ!$E$11,IF($O25="C",データ!$E$12,IF($O25="D",データ!$E$13)))) -> FALSE | O25: =IF(ISERROR(VLOOKUP($D$10,データ!$C$2:$D$9,2,0)),"",(VLOOKUP($D$10,データ!$C$2:$D$9,2,0))) ->  | P25: =IF($N25=データ!$E$10,データ!$G$10,IF($N25=データ!$E$11,データ!$G$11,IF($N25=データ!$E$12,データ!$G$12,IF($N25=データ!$E$13,データ!$G$13)))) -> FALSE | Q25: =IF(J25="","",IF($B25=$B23,"",P25)) ->  | T25: =IF(R25="","",V25) ->  | U25: =IF(AND(COUNTIF($R$19:$R$38,"*")>0),Z25,"") ->  | V25: =IF(R25="","",W25) ->  | W25: =IF($O25="A",データ!$E$10,IF($O25="B",データ!$E$11,IF($O25="C",データ!$E$12,IF($O25="D",データ!$E$13)))) -> FALSE | X25: =IF(ISERROR(VLOOKUP($D$10,データ!$C$2:$D$9,2,0)),"",(VLOOKUP($D$10,データ!$C$2:$D$9,2,0))) ->  | Y25: =IF($W25=データ!$E$10,データ!$G$10,IF($W25=データ!$E$11,データ!$G$11,IF($W25=データ!$E$12,データ!$G$12,IF($W25=データ!$E$13,データ!$G$13)))) -> FALSE | Z25: =IF(S25="","",IF($B25=$B23,"",Y25)) ->  | AA25: =SUM(J25,K25,L25,S25,T25,U25) -> ¥0
K27: =IF(I27="","",M27) ->  | L27: =IF(AND(COUNTIF($I$19:$I$38,"*")>0),Q27,"") ->  | M27: =IF(I27="","",N27) ->  | N27: =IF($O27="A",データ!$E$10,IF($O27="B",データ!$E$11,IF($O27="C",データ!$E$12,IF($O27="D",データ!$E$13)))) -> FALSE | O27: =IF(ISERROR(VLOOKUP($D$10,データ!$C$2:$D$9,2,0)),"",(VLOOKUP($D$10,データ!$C$2:$D$9,2,0))) ->  | P27: =IF($N27=データ!$E$10,データ!$G$10,IF($N27=データ!$E$11,データ!$G$11,IF($N27=データ!$E$12,データ!$G$12,IF($N27=データ!$E$13,データ!$G$13)))) -> FALSE | Q27: =IF(J27="","",IF($B27=$B25,"",P27)) ->  | T27: =IF(R27="","",V27) ->  | U27: =IF(AND(COUNTIF($R$19:$R$38,"*")>0),Z27,"") ->  | V27: =IF(R27="","",W27) ->  | W27: =IF($O27="A",データ!$E$10,IF($O27="B",データ!$E$11,IF($O27="C",データ!$E$12,IF($O27="D",データ!$E$13)))) -> FALSE | X27: =IF(ISERROR(VLOOKUP($D$10,データ!$C$2:$D$9,2,0)),"",(VLOOKUP($D$10,データ!$C$2:$D$9,2,0))) ->  | Y27: =IF($W27=データ!$E$10,データ!$G$10,IF($W27=データ!$E$11,データ!$G$11,IF($W27=データ!$E$12,データ!$G$12,IF($W27=データ!$E$13,データ!$G$13)))) -> FALSE | Z27: =IF(S27="","",IF($B27=$B25,"",Y27)) ->  | AA27: =SUM(J27,K27,L27,S27,T27,U27) -> ¥0
K29: =IF(I29="","",M29) ->  | L29: =IF(AND(COUNTIF($I$19:$I$38,"*")>0),Q29,"") ->  | M29: =IF(I29="","",N29) ->  | N29: =IF($O29="A",データ!$E$10,IF($O29="B",データ!$E$11,IF($O29="C",データ!$E$12,IF($O29="D",データ!$E$13)))) -> FALSE | O29: =IF(ISERROR(VLOOKUP($D$10,データ!$C$2:$D$9,2,0)),"",(VLOOKUP($D$10,データ!$C$2:$D$9,2,0))) ->  | P29: =IF($N29=データ!$E$10,データ!$G$10,IF($N29=データ!$E$11,データ!$G$11,IF($N29=データ!$E$12,データ!$G$12,IF($N29=データ!$E$13,データ!$G$13)))) -> FALSE | Q29: =IF(J29="","",IF($B29=$B27,"",P29)) ->  | T29: =IF(R29="","",V29) ->  | U29: =IF(AND(COUNTIF($R$19:$R$38,"*")>0),Z29,"") ->  | V29: =IF(R29="","",W29) ->  | W29: =IF($O29="A",データ!$E$10,IF($O29="B",データ!$E$11,IF($O29="C",データ!$E$12,IF($O29="D",データ!$E$13)))) -> FALSE | X29: =IF(ISERROR(VLOOKUP($D$10,データ!$C$2:$D$9,2,0)),"",(VLOOKUP($D$10,データ!$C$2:$D$9,2,0))) ->  | Y29: =IF($W29=データ!$E$10,データ!$G$10,IF($W29=データ!$E$11,データ!$G$11,IF($W29=データ!$E$12,データ!$G$12,IF($W29=データ!$E$13,データ!$G$13)))) -> FALSE | Z29: =IF(S29="","",IF($B29=$B27,"",Y29)) ->  | AA29: =SUM(J29,K29,L29,S29,T29,U29) -> ¥0
K31: =IF(I31="","",M31) ->  | L31: =IF(AND(COUNTIF($I$19:$I$38,"*")>0),Q31,"") ->  | M31: =IF(I31="","",N31) ->  | N31: =IF($O31="A",データ!$E$10,IF($O31="B",データ!$E$11,IF($O31="C",データ!$E$12,IF($O31="D",データ!$E$13)))) -> FALSE | O31: =IF(ISERROR(VLOOKUP($D$10,データ!$C$2:$D$9,2,0)),"",(VLOOKUP($D$10,データ!$C$2:$D$9,2,0))) ->  | P31: =IF($N31=データ!$E$10,データ!$G$10,IF($N31=データ!$E$11,データ!$G$11,IF($N31=データ!$E$12,データ!$G$12,IF($N31=データ!$E$13,データ!$G$13)))) -> FALSE | Q31: =IF(J31="","",IF($B31=$B29,"",P31)) ->  | T31: =IF(R31="","",V31) ->  | U31: =IF(AND(COUNTIF($R$19:$R$38,"*")>0),Z31,"") ->  | V31: =IF(R31="","",W31) ->  | W31: =IF($O31="A",データ!$E$10,IF($O31="B",データ!$E$11,IF($O31="C",データ!$E$12,IF($O31="D",データ!$E$13)))) -> FALSE | X31: =IF(ISERROR(VLOOKUP($D$10,データ!$C$2:$D$9,2,0)),"",(VLOOKUP($D$10,データ!$C$2:$D$9,2,0))) ->  | Y31: =IF($W31=データ!$E$10,データ!$G$10,IF($W31=データ!$E$11,データ!$G$11,IF($W31=データ!$E$12,データ!$G$12,IF($W31=データ!$E$13,データ!$G$13)))) -> FALSE | Z31: =IF(S31="","",IF($B31=$B29,"",Y31)) ->  | AA31: =SUM(J31,K31,L31,S31,T31,U31) -> ¥0
K33: =IF(I33="","",M33) ->  | L33: =IF(AND(COUNTIF($I$19:$I$38,"*")>0),Q33,"") ->  | M33: =IF(I33="","",N33) ->  | N33: =IF($O33="A",データ!$E$10,IF($O33="B",データ!$E$11,IF($O33="C",データ!$E$12,IF($O33="D",データ!$E$13)))) -> FALSE | O33: =IF(ISERROR(VLOOKUP($D$10,データ!$C$2:$D$9,2,0)),"",(VLOOKUP($D$10,データ!$C$2:$D$9,2,0))) ->  | P33: =IF($N33=データ!$E$10,データ!$G$10,IF($N33=データ!$E$11,データ!$G$11,IF($N33=データ!$E$12,データ!$G$12,IF($N33=データ!$E$13,データ!$G$13)))) -> FALSE | Q33: =IF(J33="","",IF($B33=$B31,"",P33)) ->  | T33: =IF(R33="","",V33) ->  | U33: =IF(AND(COUNTIF($R$19:$R$38,"*")>0),Z33,"") ->  | V33: =IF(R33="","",W33) ->  | W33: =IF($O33="A",データ!$E$10,IF($O33="B",データ!$E$11,IF($O33="C",データ!$E$12,IF($O33="D",データ!$E$13)))) -> FALSE | X33: =IF(ISERROR(VLOOKUP($D$10,データ!$C$2:$D$9,2,0)),"",(VLOOKUP($D$10,データ!$C$2:$D$9,2,0))) ->  | Y33: =IF($W33=データ!$E$10,データ!$G$10,IF($W33=データ!$E$11,データ!$G$11,IF($W33=データ!$E$12,データ!$G$12,IF($W33=データ!$E$13,データ!$G$13)))) -> FALSE | Z33: =IF(S33="","",IF($B33=$B31,"",Y33)) ->  | AA33: =SUM(J33,K33,L33,S33,T33,U33) -> ¥0
K35: =IF(I35="","",M35) ->  | L35: =IF(AND(COUNTIF($I$19:$I$38,"*")>0),Q35,"") ->  | M35: =IF(I35="","",N35) ->  | N35: =IF($O35="A",データ!$E$10,IF($O35="B",データ!$E$11,IF($O35="C",データ!$E$12,IF($O35="D",データ!$E$13)))) -> FALSE | O35: =IF(ISERROR(VLOOKUP($D$10,データ!$C$2:$D$9,2,0)),"",(VLOOKUP($D$10,データ!$C$2:$D$9,2,0))) ->  | P35: =IF($N35=データ!$E$10,データ!$G$10,IF($N35=データ!$E$11,データ!$G$11,IF($N35=データ!$E$12,データ!$G$12,IF($N35=データ!$E$13,データ!$G$13)))) -> FALSE | Q35: =IF(J35="","",IF($B35=$B33,"",P35)) ->  | T35: =IF(R35="","",V35) ->  | U35: =IF(AND(COUNTIF($R$19:$R$38,"*")>0),Z35,"") ->  | V35: =IF(R35="","",W35) ->  | W35: =IF($O35="A",データ!$E$10,IF($O35="B",データ!$E$11,IF($O35="C",データ!$E$12,IF($O35="D",データ!$E$13)))) -> FALSE | X35: =IF(ISERROR(VLOOKUP($D$10,データ!$C$2:$D$9,2,0)),"",(VLOOKUP($D$10,データ!$C$2:$D$9,2,0))) ->  | Y35: =IF($W35=データ!$E$10,データ!$G$10,IF($W35=データ!$E$11,データ!$G$11,IF($W35=データ!$E$12,データ!$G$12,IF($W35=データ!$E$13,データ!$G$13)))) -> FALSE | Z35: =IF(S35="","",IF($B35=$B33,"",Y35)) ->  | AA35: =SUM(J35,K35,L35,S35,T35,U35) -> ¥0
K37: =IF(I37="","",M37) ->  | L37: =IF(AND(COUNTIF($I$19:$I$38,"*")>0),Q37,"") ->  | M37: =IF(I37="","",N37) ->  | N37: =IF($O37="A",データ!$E$10,IF($O37="B",データ!$E$11,IF($O37="C",データ!$E$12,IF($O37="D",データ!$E$13)))) -> FALSE | O37: =IF(ISERROR(VLOOKUP($D$10,データ!$C$2:$D$9,2,0)),"",(VLOOKUP($D$10,データ!$C$2:$D$9,2,0))) ->  | P37: =IF($N37=データ!$E$10,データ!$G$10,IF($N37=データ!$E$11,データ!$G$11,IF($N37=データ!$E$12,データ!$G$12,IF($N37=データ!$E$13,データ!$G$13)))) -> FALSE | Q37: =IF(J37="","",IF($B37=$B35,"",P37)) ->  | T37: =IF(R37="","",V37) ->  | U37: =IF(AND(COUNTIF($R$19:$R$38,"*")>0),Z37,"") ->  | V37: =IF(R37="","",W37) ->  | W37: =IF($O37="A",データ!$E$10,IF($O37="B",データ!$E$11,IF($O37="C",データ!$E$12,IF($O37="D",データ!$E$13)))) -> FALSE | X37: =IF(ISERROR(VLOOKUP($D$10,データ!$C$2:$D$9,2,0)),"",(VLOOKUP($D$10,データ!$C$2:$D$9,2,0))) ->  | Y37: =IF($W37=データ!$E$10,データ!$G$10,IF($W37=データ!$E$11,データ!$G$11,IF($W37=データ!$E$12,データ!$G$12,IF($W37=データ!$E$13,データ!$G$13)))) -> FALSE | Z37: =IF(S37="","",IF($B37=$B35,"",Y37)) ->  | AA37: =SUM(J37,K37,L37,S37,T37,U37) -> ¥0
B39: ='請求書報告書-参考'!B39:F40 -> 国内出張による日当調整 ※11 | L39: ¥0 | U39: ¥0 | AA39: =SUM(J39,K39,L39,S39,T39,U39) -> ¥0
B41: 備考 | G41: 合計 | J41: =SUM(J19:J40) -> ¥0 | K41: =SUM(K19:K40) -> ¥0 | L41: =SUM(L19:L40) -> ¥0 | Q41: =SUM(Q19:Q38) -> ¥0 | S41: =SUM(S19:S40) -> ¥0 | T41: =SUM(T19:T40) -> ¥0 | U41: =SUM(U19:U40) -> ¥0 | V41: =SUM(V19:V38) -> ¥0 | Z41: =SUM(Z19:Z38) -> ¥0 | AA41: =SUM(J41,K41,L41,S41,T41,U41) -> ¥0
J43: 直接費計 | L43: =SUM(J41,K41,L41) -> ¥0 | R43: 間接費計 | U43: =SUM(S41,T41,U41) -> ¥0
B45: ='請求書報告書-参考'!B45:O49 -> 規程：詳細は旅費の運用についてを参照 ※1 用件が同じであれば日付ごとに明細を分けて、1枚の精算書にまとめる。 ※2 出発地・到着地は必ず施設名（駅名等は不可）を記入する。 ※3 交通費のエビデンスとして､駅すぱあと等の経路探索結果をプリントアウトし添付する。（日程は実際の旅費発生日に合せる事） ※4 旅費規程によりつくば研究センター（産総研）⇔本部間往復交通費は定額となっているのでエビデンス不要。 ※5 下記､出張報告の記載をする。 ※6 前泊､後泊およびタクシー利用の場合は本部業務管理者の事前承認を得て､備考欄にその理由記述した場合のみ認める。 ※7 航空機を使用した場合は、半券添付必須（インター ネットでの申し込み等は、領収書添付を必須とする）。 ※8 研究開発との関連､出張により得られた成果等を記入する。 ※9 会議､学会等の出張は､スケジュールの入ったプログラムの写し等を添付のこと。 ※10学会等参加の出張において､学会等参加費用に食事代､懇親会費が含まれる時には食事代､懇親会費を日当から減額する。 尚､食事代等が含まれる旨を備考欄に記載する。(旅費の運用について参照) ※11 ※10の場合、該当する減額分や他業務実施に伴う日当減額分の金額を直接と間接に分けて記載する。(不明の場合は事務局に問合せる)
B51: 出張報告/用務の内容※8､※9
B52: （目的） （内容） （結果報告）

Sheet 請求書報告書-9 (hidden)
B1: 国内旅費請求書 及び 出張報告書
B3: 決裁印 | D3: 本 部
D4: ='請求書報告書-参考'!D4 -> 総務担当 部長 | E4: ='請求書報告書-参考'!E4 -> 経理 | F4: ='請求書報告書-参考'!F4 -> 担当部長 | G4: ='請求書報告書-参考'!G4 -> 受付
B9: 研究実施場所 | D9: 役職 | F9: 氏名 | T9: 起案日
B10: ='旅費・交通費、諸経費合計'!V7 -> 0 | D10: ='旅費・交通費、諸経費合計'!W8 -> 0 | F10: ='旅費・交通費、諸経費合計'!AC8 -> 0 | H10: ㊞
B12: 用務先（機関等名称） | D12: 出張先所在地（県・市） | G12: 出張用務件名※1
AA15: 単位：円
B17: 日程 | C17: 出発地※2 | D17: 出発時刻 | E17: 経路 ※3、※4 | I17: 直接費 | R17: 間接費 | AA17: 計
C18: 到着地※2 | D18: 到着時刻 | I18: 宿泊地 | J18: 交通費 | K18: 宿泊 | L18: 日当 | M18: 宿泊 | N18: 宿泊区分 | P18: 宿泊日当区分 | Q18: 日当 | R18: 宿泊地 | S18: 交通費 | T18: 宿泊 | U18: 日当 | V18: 宿泊 | W18: 宿泊区分 | Y18: 宿泊日当区分 | Z18: 日当
K19: =IF(I19="","",M19) ->  | L19: =IF(AND(COUNTIF($I$19:$I$38,"*")>0),Q19,"") ->  | M19: =IF(I19="","",N19) ->  | N19: =IF($O19="A",データ!$E$10,IF($O19="B",データ!$E$11,IF($O19="C",データ!$E$12,IF($O19="D",データ!$E$13)))) -> FALSE | O19: =IF(ISERROR(VLOOKUP($D$10,データ!$C$2:$D$9,2,0)),"",(VLOOKUP($D$10,データ!$C$2:$D$9,2,0))) ->  | P19: =IF($N19=データ!$E$10,データ!$G$10,IF($N19=データ!$E$11,データ!$G$11,IF($N19=データ!$E$12,データ!$G$12,IF($N19=データ!$E$13,データ!$G$13)))) -> FALSE | Q19: =IF(OR($J19="",(COUNTIF($B19:$B32,$B19+1)=0)),"",P19) ->  | T19: =IF(R19="","",V19) ->  | U19: =IF(AND(COUNTIF($R$19:$R$38,"*")>0),Z19,"") ->  | V19: =IF(R19="","",W19) ->  | W19: =IF($O19="A",データ!$E$10,IF($O19="B",データ!$E$11,IF($O19="C",データ!$E$12,IF($O19="D",データ!$E$13)))) -> FALSE | X19: =IF(ISERROR(VLOOKUP($D$10,データ!$C$2:$D$9,2,0)),"",(VLOOKUP($D$10,データ!$C$2:$D$9,2,0))) ->  | Y19: =IF($W19=データ!$E$10,データ!$G$10,IF($W19=データ!$E$11,データ!$G$11,IF($W19=データ!$E$12,データ!$G$12,IF($W19=データ!$E$13,データ!$G$13)))) -> FALSE | Z19: =IF(OR($S19="",(COUNTIF($B19:$B32,$B19+1)=0)),"",Y19) ->  | AA19: =SUM(J19,K19,L19,S19,T19,U19) -> ¥0
K21: =IF(I21="","",M21) ->  | L21: =IF(AND(COUNTIF($I$19:$I$38,"*")>0),Q21,"") ->  | M21: =IF(I21="","",N21) ->  | N21: =IF($O21="A",データ!$E$10,IF($O21="B",データ!$E$11,IF($O21="C",データ!$E$12,IF($O21="D",データ!$E$13)))) -> FALSE | O21: =IF(ISERROR(VLOOKUP($D$10,データ!$C$2:$D$9,2,0)),"",(VLOOKUP($D$10,データ!$C$2:$D$9,2,0))) ->  | P21: =IF($N21=データ!$E$10,データ!$G$10,IF($N21=データ!$E$11,データ!$G$11,IF($N21=データ!$E$12,データ!$G$12,IF($N21=データ!$E$13,データ!$G$13)))) -> FALSE | Q21: =IF(J21="","",IF($B21=$B19,"",P21)) ->  | T21: =IF(R21="","",V21) ->  | U21: =IF(AND(COUNTIF($R$19:$R$38,"*")>0),Z21,"") ->  | V21: =IF(R21="","",W21) ->  | W21: =IF($O21="A",データ!$E$10,IF($O21="B",データ!$E$11,IF($O21="C",データ!$E$12,IF($O21="D",データ!$E$13)))) -> FALSE | X21: =IF(ISERROR(VLOOKUP($D$10,データ!$C$2:$D$9,2,0)),"",(VLOOKUP($D$10,データ!$C$2:$D$9,2,0))) ->  | Y21: =IF($W21=データ!$E$10,データ!$G$10,IF($W21=データ!$E$11,データ!$G$11,IF($W21=データ!$E$12,データ!$G$12,IF($W21=データ!$E$13,データ!$G$13)))) -> FALSE | Z21: =IF(S21="","",IF($B21=$B19,"",Y21)) ->  | AA21: =SUM(J21,K21,L21,S21,T21,U21) -> ¥0
K23: =IF(I23="","",M23) ->  | L23: =IF(AND(COUNTIF($I$19:$I$38,"*")>0),Q23,"") ->  | M23: =IF(I23="","",N23) ->  | N23: =IF($O23="A",データ!$E$10,IF($O23="B",データ!$E$11,IF($O23="C",データ!$E$12,IF($O23="D",データ!$E$13)))) -> FALSE | O23: =IF(ISERROR(VLOOKUP($D$10,データ!$C$2:$D$9,2,0)),"",(VLOOKUP($D$10,データ!$C$2:$D$9,2,0))) ->  | P23: =IF($N23=データ!$E$10,データ!$G$10,IF($N23=データ!$E$11,データ!$G$11,IF($N23=データ!$E$12,データ!$G$12,IF($N23=データ!$E$13,データ!$G$13)))) -> FALSE | Q23: =IF(J23="","",IF($B23=$B21,"",P23)) ->  | T23: =IF(R23="","",V23) ->  | U23: =IF(AND(COUNTIF($R$19:$R$38,"*")>0),Z23,"") ->  | V23: =IF(R23="","",W23) ->  | W23: =IF($O23="A",データ!$E$10,IF($O23="B",データ!$E$11,IF($O23="C",データ!$E$12,IF($O23="D",データ!$E$13)))) -> FALSE | X23: =IF(ISERROR(VLOOKUP($D$10,データ!$C$2:$D$9,2,0)),"",(VLOOKUP($D$10,データ!$C$2:$D$9,2,0))) ->  | Y23: =IF($W23=データ!$E$10,データ!$G$10,IF($W23=データ!$E$11,データ!$G$11,IF($W23=データ!$E$12,データ!$G$12,IF($W23=データ!$E$13,データ!$G$13)))) -> FALSE | Z23: =IF(S23="","",IF($B23=$B21,"",Y23)) ->  | AA23: =SUM(J23,K23,L23,S23,T23,U23) -> ¥0
K25: =IF(I25="","",M25) ->  | L25: =IF(AND(COUNTIF($I$19:$I$38,"*")>0),Q25,"") ->  | M25: =IF(I25="","",N25) ->  | N25: =IF($O25="A",データ!$E$10,IF($O25="B",データ!$E$11,IF($O25="C",データ!$E$12,IF($O25="D",データ!$E$13)))) -> FALSE | O25: =IF(ISERROR(VLOOKUP($D$10,データ!$C$2:$D$9,2,0)),"",(VLOOKUP($D$10,データ!$C$2:$D$9,2,0))) ->  | P25: =IF($N25=データ!$E$10,データ!$G$10,IF($N25=データ!$E$11,データ!$G$11,IF($N25=データ!$E$12,データ!$G$12,IF($N25=データ!$E$13,データ!$G$13)))) -> FALSE | Q25: =IF(J25="","",IF($B25=$B23,"",P25)) ->  | T25: =IF(R25="","",V25) ->  | U25: =IF(AND(COUNTIF($R$19:$R$38,"*")>0),Z25,"") ->  | V25: =IF(R25="","",W25) ->  | W25: =IF($O25="A",データ!$E$10,IF($O25="B",データ!$E$11,IF($O25="C",データ!$E$12,IF($O25="D",データ!$E$13)))) -> FALSE | X25: =IF(ISERROR(VLOOKUP($D$10,データ!$C$2:$D$9,2,0)),"",(VLOOKUP($D$10,データ!$C$2:$D$9,2,0))) ->  | Y25: =IF($W25=データ!$E$10,データ!$G$10,IF($W25=データ!$E$11,データ!$G$11,IF($W25=データ!$E$12,データ!$G$12,IF($W25=データ!$E$13,データ!$G$13)))) -> FALSE | Z25: =IF(S25="","",IF($B25=$B23,"",Y25)) ->  | AA25: =SUM(J25,K25,L25,S25,T25,U25) -> ¥0
K27: =IF(I27="","",M27) ->  | L27: =IF(AND(COUNTIF($I$19:$I$38,"*")>0),Q27,"") ->  | M27: =IF(I27="","",N27) ->  | N27: =IF($O27="A",データ!$E$10,IF($O27="B",データ!$E$11,IF($O27="C",データ!$E$12,IF($O27="D",データ!$E$13)))) -> FALSE | O27: =IF(ISERROR(VLOOKUP($D$10,データ!$C$2:$D$9,2,0)),"",(VLOOKUP($D$10,データ!$C$2:$D$9,2,0))) ->  | P27: =IF($N27=データ!$E$10,データ!$G$10,IF($N27=データ!$E$11,データ!$G$11,IF($N27=データ!$E$12,データ!$G$12,IF($N27=データ!$E$13,データ!$G$13)))) -> FALSE | Q27: =IF(J27="","",IF($B27=$B25,"",P27)) ->  | T27: =IF(R27="","",V27) ->  | U27: =IF(AND(COUNTIF($R$19:$R$38,"*")>0),Z27,"") ->  | V27: =IF(R27="","",W27) ->  | W27: =IF($O27="A",データ!$E$10,IF($O27="B",データ!$E$11,IF($O27="C",データ!$E$12,IF($O27="D",データ!$E$13)))) -> FALSE | X27: =IF(ISERROR(VLOOKUP($D$10,データ!$C$2:$D$9,2,0)),"",(VLOOKUP($D$10,データ!$C$2:$D$9,2,0))) ->  | Y27: =IF($W27=データ!$E$10,データ!$G$10,IF($W27=データ!$E$11,データ!$G$11,IF($W27=データ!$E$12,データ!$G$12,IF($W27=データ!$E$13,データ!$G$13)))) -> FALSE | Z27: =IF(S27="","",IF($B27=$B25,"",Y27)) ->  | AA27: =SUM(J27,K27,L27,S27,T27,U27) -> ¥0
K29: =IF(I29="","",M29) ->  | L29: =IF(AND(COUNTIF($I$19:$I$38,"*")>0),Q29,"") ->  | M29: =IF(I29="","",N29) ->  | N29: =IF($O29="A",データ!$E$10,IF($O29="B",データ!$E$11,IF($O29="C",データ!$E$12,IF($O29="D",データ!$E$13)))) -> FALSE | O29: =IF(ISERROR(VLOOKUP($D$10,データ!$C$2:$D$9,2,0)),"",(VLOOKUP($D$10,データ!$C$2:$D$9,2,0))) ->  | P29: =IF($N29=データ!$E$10,データ!$G$10,IF($N29=データ!$E$11,データ!$G$11,IF($N29=データ!$E$12,データ!$G$12,IF($N29=データ!$E$13,データ!$G$13)))) -> FALSE | Q29: =IF(J29="","",IF($B29=$B27,"",P29)) ->  | T29: =IF(R29="","",V29) ->  | U29: =IF(AND(COUNTIF($R$19:$R$38,"*")>0),Z29,"") ->  | V29: =IF(R29="","",W29) ->  | W29: =IF($O29="A",データ!$E$10,IF($O29="B",データ!$E$11,IF($O29="C",データ!$E$12,IF($O29="D",データ!$E$13)))) -> FALSE | X29: =IF(ISERROR(VLOOKUP($D$10,データ!$C$2:$D$9,2,0)),"",(VLOOKUP($D$10,データ!$C$2:$D$9,2,0))) ->  | Y29: =IF($W29=データ!$E$10,データ!$G$10,IF($W29=データ!$E$11,データ!$G$11,IF($W29=データ!$E$12,データ!$G$12,IF($W29=データ!$E$13,データ!$G$13)))) -> FALSE | Z29: =IF(S29="","",IF($B29=$B27,"",Y29)) ->  | AA29: =SUM(J29,K29,L29,S29,T29,U29) -> ¥0
K31: =IF(I31="","",M31) ->  | L31: =IF(AND(COUNTIF($I$19:$I$38,"*")>0),Q31,"") ->  | M31: =IF(I31="","",N31) ->  | N31: =IF($O31="A",データ!$E$10,IF($O31="B",データ!$E$11,IF($O31="C",データ!$E$12,IF($O31="D",データ!$E$13)))) -> FALSE | O31: =IF(ISERROR(VLOOKUP($D$10,データ!$C$2:$D$9,2,0)),"",(VLOOKUP($D$10,データ!$C$2:$D$9,2,0))) ->  | P31: =IF($N31=データ!$E$10,データ!$G$10,IF($N31=データ!$E$11,データ!$G$11,IF($N31=データ!$E$12,データ!$G$12,IF($N31=データ!$E$13,データ!$G$13)))) -> FALSE | Q31: =IF(J31="","",IF($B31=$B29,"",P31)) ->  | T31: =IF(R31="","",V31) ->  | U31: =IF(AND(COUNTIF($R$19:$R$38,"*")>0),Z31,"") ->  | V31: =IF(R31="","",W31) ->  | W31: =IF($O31="A",データ!$E$10,IF($O31="B",データ!$E$11,IF($O31="C",データ!$E$12,IF($O31="D",データ!$E$13)))) -> FALSE | X31: =IF(ISERROR(VLOOKUP($D$10,データ!$C$2:$D$9,2,0)),"",(VLOOKUP($D$10,データ!$C$2:$D$9,2,0))) ->  | Y31: =IF($W31=データ!$E$10,データ!$G$10,IF($W31=データ!$E$11,データ!$G$11,IF($W31=データ!$E$12,データ!$G$12,IF($W31=データ!$E$13,データ!$G$13)))) -> FALSE | Z31: =IF(S31="","",IF($B31=$B29,"",Y31)) ->  | AA31: =SUM(J31,K31,L31,S31,T31,U31) -> ¥0
K33: =IF(I33="","",M33) ->  | L33: =IF(AND(COUNTIF($I$19:$I$38,"*")>0),Q33,"") ->  | M33: =IF(I33="","",N33) ->  | N33: =IF($O33="A",データ!$E$10,IF($O33="B",データ!$E$11,IF($O33="C",データ!$E$12,IF($O33="D",データ!$E$13)))) -> FALSE | O33: =IF(ISERROR(VLOOKUP($D$10,データ!$C$2:$D$9,2,0)),"",(VLOOKUP($D$10,データ!$C$2:$D$9,2,0))) ->  | P33: =IF($N33=データ!$E$10,データ!$G$10,IF($N33=データ!$E$11,データ!$G$11,IF($N33=データ!$E$12,データ!$G$12,IF($N33=データ!$E$13,データ!$G$13)))) -> FALSE | Q33: =IF(J33="","",IF($B33=$B31,"",P33)) ->  | T33: =IF(R33="","",V33) ->  | U33: =IF(AND(COUNTIF($R$19:$R$38,"*")>0),Z33,"") ->  | V33: =IF(R33="","",W33) ->  | W33: =IF($O33="A",データ!$E$10,IF($O33="B",データ!$E$11,IF($O33="C",データ!$E$12,IF($O33="D",データ!$E$13)))) -> FALSE | X33: =IF(ISERROR(VLOOKUP($D$10,データ!$C$2:$D$9,2,0)),"",(VLOOKUP($D$10,データ!$C$2:$D$9,2,0))) ->  | Y33: =IF($W33=データ!$E$10,データ!$G$10,IF($W33=データ!$E$11,データ!$G$11,IF($W33=データ!$E$12,データ!$G$12,IF($W33=データ!$E$13,データ!$G$13)))) -> FALSE | Z33: =IF(S33="","",IF($B33=$B31,"",Y33)) ->  | AA33: =SUM(J33,K33,L33,S33,T33,U33) -> ¥0
K35: =IF(I35="","",M35) ->  | L35: =IF(AND(COUNTIF($I$19:$I$38,"*")>0),Q35,"") ->  | M35: =IF(I35="","",N35) ->  | N35: =IF($O35="A",データ!$E$10,IF($O35="B",データ!$E$11,IF($O35="C",データ!$E$12,IF($O35="D",データ!$E$13)))) -> FALSE | O35: =IF(ISERROR(VLOOKUP($D$10,データ!$C$2:$D$9,2,0)),"",(VLOOKUP($D$10,データ!$C$2:$D$9,2,0))) ->  | P35: =IF($N35=データ!$E$10,データ!$G$10,IF($N35=データ!$E$11,データ!$G$11,IF($N35=データ!$E$12,データ!$G$12,IF($N35=データ!$E$13,データ!$G$13)))) -> FALSE | Q35: =IF(J35="","",IF($B35=$B33,"",P35)) ->  | T35: =IF(R35="","",V35) ->  | U35: =IF(AND(COUNTIF($R$19:$R$38,"*")>0),Z35,"") ->  | V35: =IF(R35="","",W35) ->  | W35: =IF($O35="A",データ!$E$10,IF($O35="B",データ!$E$11,IF($O35="C",データ!$E$12,IF($O35="D",データ!$E$13)))) -> FALSE | X35: =IF(ISERROR(VLOOKUP($D$10,データ!$C$2:$D$9,2,0)),"",(VLOOKUP($D$10,データ!$C$2:$D$9,2,0))) ->  | Y35: =IF($W35=データ!$E$10,データ!$G$10,IF($W35=データ!$E$11,データ!$G$11,IF($W35=データ!$E$12,データ!$G$12,IF($W35=データ!$E$13,データ!$G$13)))) -> FALSE | Z35: =IF(S35="","",IF($B35=$B33,"",Y35)) ->  | AA35: =SUM(J35,K35,L35,S35,T35,U35) -> ¥0
K37: =IF(I37="","",M37) ->  | L37: =IF(AND(COUNTIF($I$19:$I$38,"*")>0),Q37,"") ->  | M37: =IF(I37="","",N37) ->  | N37: =IF($O37="A",データ!$E$10,IF($O37="B",データ!$E$11,IF($O37="C",データ!$E$12,IF($O37="D",データ!$E$13)))) -> FALSE | O37: =IF(ISERROR(VLOOKUP($D$10,データ!$C$2:$D$9,2,0)),"",(VLOOKUP($D$10,データ!$C$2:$D$9,2,0))) ->  | P37: =IF($N37=データ!$E$10,データ!$G$10,IF($N37=データ!$E$11,データ!$G$11,IF($N37=データ!$E$12,データ!$G$12,IF($N37=データ!$E$13,データ!$G$13)))) -> FALSE | Q37: =IF(J37="","",IF($B37=$B35,"",P37)) ->  | T37: =IF(R37="","",V37) ->  | U37: =IF(AND(COUNTIF($R$19:$R$38,"*")>0),Z37,"") ->  | V37: =IF(R37="","",W37) ->  | W37: =IF($O37="A",データ!$E$10,IF($O37="B",データ!$E$11,IF($O37="C",データ!$E$12,IF($O37="D",データ!$E$13)))) -> FALSE | X37: =IF(ISERROR(VLOOKUP($D$10,データ!$C$2:$D$9,2,0)),"",(VLOOKUP($D$10,データ!$C$2:$D$9,2,0))) ->  | Y37: =IF($W37=データ!$E$10,データ!$G$10,IF($W37=データ!$E$11,データ!$G$11,IF($W37=データ!$E$12,データ!$G$12,IF($W37=データ!$E$13,データ!$G$13)))) -> FALSE | Z37: =IF(S37="","",IF($B37=$B35,"",Y37)) ->  | AA37: =SUM(J37,K37,L37,S37,T37,U37) -> ¥0
B39: ='請求書報告書-参考'!B39:F40 -> 国内出張による日当調整 ※11 | L39: ¥0 | U39: ¥0 | AA39: =SUM(J39,K39,L39,S39,T39,U39) -> ¥0
B41: 備考 | G41: 合計 | J41: =SUM(J19:J40) -> ¥0 | K41: =SUM(K19:K40) -> ¥0 | L41: =SUM(L19:L40) -> ¥0 | Q41: =SUM(Q19:Q38) -> ¥0 | S41: =SUM(S19:S40) -> ¥0 | T41: =SUM(T19:T40) -> ¥0 | U41: =SUM(U19:U40) -> ¥0 | V41: =SUM(V19:V38) -> ¥0 | Z41: =SUM(Z19:Z38) -> ¥0 | AA41: =SUM(J41,K41,L41,S41,T41,U41) -> ¥0
J43: 直接費計 | L43: =SUM(J41,K41,L41) -> ¥0 | R43: 間接費計 | U43: =SUM(S41,T41,U41) -> ¥0
B45: ='請求書報告書-参考'!B45:O49 -> 規程：詳細は旅費の運用についてを参照 ※1 用件が同じであれば日付ごとに明細を分けて、1枚の精算書にまとめる。 ※2 出発地・到着地は必ず施設名（駅名等は不可）を記入する。 ※3 交通費のエビデンスとして､駅すぱあと等の経路探索結果をプリントアウトし添付する。（日程は実際の旅費発生日に合せる事） ※4 旅費規程によりつくば研究センター（産総研）⇔本部間往復交通費は定額となっているのでエビデンス不要。 ※5 下記､出張報告の記載をする。 ※6 前泊､後泊およびタクシー利用の場合は本部業務管理者の事前承認を得て､備考欄にその理由記述した場合のみ認める。 ※7 航空機を使用した場合は、半券添付必須（インター ネットでの申し込み等は、領収書添付を必須とする）。 ※8 研究開発との関連､出張により得られた成果等を記入する。 ※9 会議､学会等の出張は､スケジュールの入ったプログラムの写し等を添付のこと。 ※10学会等参加の出張において､学会等参加費用に食事代､懇親会費が含まれる時には食事代､懇親会費を日当から減額する。 尚､食事代等が含まれる旨を備考欄に記載する。(旅費の運用について参照) ※11 ※10の場合、該当する減額分や他業務実施に伴う日当減額分の金額を直接と間接に分けて記載する。(不明の場合は事務局に問合せる)
B51: 出張報告/用務の内容※8､※9
B52: （目的） （内容） （結果報告）

Sheet 請求書報告書-10 (hidden)
B1: 国内旅費請求書 及び 出張報告書
B3: 決裁印 | D3: 本 部
D4: ='請求書報告書-参考'!D4 -> 総務担当 部長 | E4: ='請求書報告書-参考'!E4 -> 経理 | F4: ='請求書報告書-参考'!F4 -> 担当部長 | G4: ='請求書報告書-参考'!G4 -> 受付
B9: 研究実施場所 | D9: 役職 | F9: 氏名 | T9: 起案日
B10: ='旅費・交通費、諸経費合計'!V7 -> 0 | D10: ='旅費・交通費、諸経費合計'!W8 -> 0 | F10: ='旅費・交通費、諸経費合計'!AC8 -> 0 | H10: ㊞
B12: 用務先（機関等名称） | D12: 出張先所在地（県・市） | G12: 出張用務件名※1
AA15: 単位：円
B17: 日程 | C17: 出発地※2 | D17: 出発時刻 | E17: 経路 ※3、※4 | I17: 直接費 | R17: 間接費 | AA17: 計
C18: 到着地※2 | D18: 到着時刻 | I18: 宿泊地 | J18: 交通費 | K18: 宿泊 | L18: 日当 | M18: 宿泊 | N18: 宿泊区分 | P18: 宿泊日当区分 | Q18: 日当 | R18: 宿泊地 | S18: 交通費 | T18: 宿泊 | U18: 日当 | V18: 宿泊 | W18: 宿泊区分 | Y18: 宿泊日当区分 | Z18: 日当
K19: =IF(I19="","",M19) ->  | L19: =IF(AND(COUNTIF($I$19:$I$38,"*")>0),Q19,"") ->  | M19: =IF(I19="","",N19) ->  | N19: =IF($O19="A",データ!$E$10,IF($O19="B",データ!$E$11,IF($O19="C",データ!$E$12,IF($O19="D",データ!$E$13)))) -> FALSE | O19: =IF(ISERROR(VLOOKUP($D$10,データ!$C$2:$D$9,2,0)),"",(VLOOKUP($D$10,データ!$C$2:$D$9,2,0))) ->  | P19: =IF($N19=データ!$E$10,データ!$G$10,IF($N19=データ!$E$11,データ!$G$11,IF($N19=データ!$E$12,データ!$G$12,IF($N19=データ!$E$13,データ!$G$13)))) -> FALSE | Q19: =IF(OR($J19="",(COUNTIF($B19:$B32,$B19+1)=0)),"",P19) ->  | T19: =IF(R19="","",V19) ->  | U19: =IF(AND(COUNTIF($R$19:$R$38,"*")>0),Z19,"") ->  | V19: =IF(R19="","",W19) ->  | W19: =IF($O19="A",データ!$E$10,IF($O19="B",データ!$E$11,IF($O19="C",データ!$E$12,IF($O19="D",データ!$E$13)))) -> FALSE | X19: =IF(ISERROR(VLOOKUP($D$10,データ!$C$2:$D$9,2,0)),"",(VLOOKUP($D$10,データ!$C$2:$D$9,2,0))) ->  | Y19: =IF($W19=データ!$E$10,データ!$G$10,IF($W19=データ!$E$11,データ!$G$11,IF($W19=データ!$E$12,データ!$G$12,IF($W19=データ!$E$13,データ!$G$13)))) -> FALSE | Z19: =IF(OR($S19="",(COUNTIF($B19:$B32,$B19+1)=0)),"",Y19) ->  | AA19: =SUM(J19,K19,L19,S19,T19,U19) -> ¥0
K21: =IF(I21="","",M21) ->  | L21: =IF(AND(COUNTIF($I$19:$I$38,"*")>0),Q21,"") ->  | M21: =IF(I21="","",N21) ->  | N21: =IF($O21="A",データ!$E$10,IF($O21="B",データ!$E$11,IF($O21="C",データ!$E$12,IF($O21="D",データ!$E$13)))) -> FALSE | O21: =IF(ISERROR(VLOOKUP($D$10,データ!$C$2:$D$9,2,0)),"",(VLOOKUP($D$10,データ!$C$2:$D$9,2,0))) ->  | P21: =IF($N21=データ!$E$10,データ!$G$10,IF($N21=データ!$E$11,データ!$G$11,IF($N21=データ!$E$12,データ!$G$12,IF($N21=データ!$E$13,データ!$G$13)))) -> FALSE | Q21: =IF(J21="","",IF($B21=$B19,"",P21)) ->  | T21: =IF(R21="","",V21) ->  | U21: =IF(AND(COUNTIF($R$19:$R$38,"*")>0),Z21,"") ->  | V21: =IF(R21="","",W21) ->  | W21: =IF($O21="A",データ!$E$10,IF($O21="B",データ!$E$11,IF($O21="C",データ!$E$12,IF($O21="D",データ!$E$13)))) -> FALSE | X21: =IF(ISERROR(VLOOKUP($D$10,データ!$C$2:$D$9,2,0)),"",(VLOOKUP($D$10,データ!$C$2:$D$9,2,0))) ->  | Y21: =IF($W21=データ!$E$10,データ!$G$10,IF($W21=データ!$E$11,データ!$G$11,IF($W21=データ!$E$12,データ!$G$12,IF($W21=データ!$E$13,データ!$G$13)))) -> FALSE | Z21: =IF(S21="","",IF($B21=$B19,"",Y21)) ->  | AA21: =SUM(J21,K21,L21,S21,T21,U21) -> ¥0
K23: =IF(I23="","",M23) ->  | L23: =IF(AND(COUNTIF($I$19:$I$38,"*")>0),Q23,"") ->  | M23: =IF(I23="","",N23) ->  | N23: =IF($O23="A",データ!$E$10,IF($O23="B",データ!$E$11,IF($O23="C",データ!$E$12,IF($O23="D",データ!$E$13)))) -> FALSE | O23: =IF(ISERROR(VLOOKUP($D$10,データ!$C$2:$D$9,2,0)),"",(VLOOKUP($D$10,データ!$C$2:$D$9,2,0))) ->  | P23: =IF($N23=データ!$E$10,データ!$G$10,IF($N23=データ!$E$11,データ!$G$11,IF($N23=データ!$E$12,データ!$G$12,IF($N23=データ!$E$13,データ!$G$13)))) -> FALSE | Q23: =IF(J23="","",IF($B23=$B21,"",P23)) ->  | T23: =IF(R23="","",V23) ->  | U23: =IF(AND(COUNTIF($R$19:$R$38,"*")>0),Z23,"") ->  | V23: =IF(R23="","",W23) ->  | W23: =IF($O23="A",データ!$E$10,IF($O23="B",データ!$E$11,IF($O23="C",データ!$E$12,IF($O23="D",データ!$E$13)))) -> FALSE | X23: =IF(ISERROR(VLOOKUP($D$10,データ!$C$2:$D$9,2,0)),"",(VLOOKUP($D$10,データ!$C$2:$D$9,2,0))) ->  | Y23: =IF($W23=データ!$E$10,データ!$G$10,IF($W23=データ!$E$11,データ!$G$11,IF($W23=データ!$E$12,データ!$G$12,IF($W23=データ!$E$13,データ!$G$13)))) -> FALSE | Z23: =IF(S23="","",IF($B23=$B21,"",Y23)) ->  | AA23: =SUM(J23,K23,L23,S23,T23,U23) -> ¥0
K25: =IF(I25="","",M25) ->  | L25: =IF(AND(COUNTIF($I$19:$I$38,"*")>0),Q25,"") ->  | M25: =IF(I25="","",N25) ->  | N25: =IF($O25="A",データ!$E$10,IF($O25="B",データ!$E$11,IF($O25="C",データ!$E$12,IF($O25="D",データ!$E$13)))) -> FALSE | O25: =IF(ISERROR(VLOOKUP($D$10,データ!$C$2:$D$9,2,0)),"",(VLOOKUP($D$10,データ!$C$2:$D$9,2,0))) ->  | P25: =IF($N25=データ!$E$10,データ!$G$10,IF($N25=データ!$E$11,データ!$G$11,IF($N25=データ!$E$12,データ!$G$12,IF($N25=データ!$E$13,データ!$G$13)))) -> FALSE | Q25: =IF(J25="","",IF($B25=$B23,"",P25)) ->  | T25: =IF(R25="","",V25) ->  | U25: =IF(AND(COUNTIF($R$19:$R$38,"*")>0),Z25,"") ->  | V25: =IF(R25="","",W25) ->  | W25: =IF($O25="A",データ!$E$10,IF($O25="B",データ!$E$11,IF($O25="C",データ!$E$12,IF($O25="D",データ!$E$13)))) -> FALSE | X25: =IF(ISERROR(VLOOKUP($D$10,データ!$C$2:$D$9,2,0)),"",(VLOOKUP($D$10,データ!$C$2:$D$9,2,0))) ->  | Y25: =IF($W25=データ!$E$10,データ!$G$10,IF($W25=データ!$E$11,データ!$G$11,IF($W25=データ!$E$12,データ!$G$12,IF($W25=データ!$E$13,データ!$G$13)))) -> FALSE | Z25: =IF(S25="","",IF($B25=$B23,"",Y25)) ->  | AA25: =SUM(J25,K25,L25,S25,T25,U25) -> ¥0
K27: =IF(I27="","",M27) ->  | L27: =IF(AND(COUNTIF($I$19:$I$38,"*")>0),Q27,"") ->  | M27: =IF(I27="","",N27) ->  | N27: =IF($O27="A",データ!$E$10,IF($O27="B",データ!$E$11,IF($O27="C",データ!$E$12,IF($O27="D",データ!$E$13)))) -> FALSE | O27: =IF(ISERROR(VLOOKUP($D$10,データ!$C$2:$D$9,2,0)),"",(VLOOKUP($D$10,データ!$C$2:$D$9,2,0))) ->  | P27: =IF($N27=データ!$E$10,データ!$G$10,IF($N27=データ!$E$11,データ!$G$11,IF($N27=データ!$E$12,データ!$G$12,IF($N27=データ!$E$13,データ!$G$13)))) -> FALSE | Q27: =IF(J27="","",IF($B27=$B25,"",P27)) ->  | T27: =IF(R27="","",V27) ->  | U27: =IF(AND(COUNTIF($R$19:$R$38,"*")>0),Z27,"") ->  | V27: =IF(R27="","",W27) ->  | W27: =IF($O27="A",データ!$E$10,IF($O27="B",データ!$E$11,IF($O27="C",データ!$E$12,IF($O27="D",データ!$E$13)))) -> FALSE | X27: =IF(ISERROR(VLOOKUP($D$10,データ!$C$2:$D$9,2,0)),"",(VLOOKUP($D$10,データ!$C$2:$D$9,2,0))) ->  | Y27: =IF($W27=データ!$E$10,データ!$G$10,IF($W27=データ!$E$11,データ!$G$11,IF($W27=データ!$E$12,データ!$G$12,IF($W27=データ!$E$13,データ!$G$13)))) -> FALSE | Z27: =IF(S27="","",IF($B27=$B25,"",Y27)) ->  | AA27: =SUM(J27,K27,L27,S27,T27,U27) -> ¥0
K29: =IF(I29="","",M29) ->  | L29: =IF(AND(COUNTIF($I$19:$I$38,"*")>0),Q29,"") ->  | M29: =IF(I29="","",N29) ->  | N29: =IF($O29="A",データ!$E$10,IF($O29="B",データ!$E$11,IF($O29="C",データ!$E$12,IF($O29="D",データ!$E$13)))) -> FALSE | O29: =IF(ISERROR(VLOOKUP($D$10,データ!$C$2:$D$9,2,0)),"",(VLOOKUP($D$10,データ!$C$2:$D$9,2,0))) ->  | P29: =IF($N29=データ!$E$10,データ!$G$10,IF($N29=データ!$E$11,データ!$G$11,IF($N29=データ!$E$12,データ!$G$12,IF($N29=データ!$E$13,データ!$G$13)))) -> FALSE | Q29: =IF(J29="","",IF($B29=$B27,"",P29)) ->  | T29: =IF(R29="","",V29) ->  | U29: =IF(AND(COUNTIF($R$19:$R$38,"*")>0),Z29,"") ->  | V29: =IF(R29="","",W29) ->  | W29: =IF($O29="A",データ!$E$10,IF($O29="B",データ!$E$11,IF($O29="C",データ!$E$12,IF($O29="D",データ!$E$13)))) -> FALSE | X29: =IF(ISERROR(VLOOKUP($D$10,データ!$C$2:$D$9,2,0)),"",(VLOOKUP($D$10,データ!$C$2:$D$9,2,0))) ->  | Y29: =IF($W29=データ!$E$10,データ!$G$10,IF($W29=データ!$E$11,データ!$G$11,IF($W29=データ!$E$12,データ!$G$12,IF($W29=データ!$E$13,データ!$G$13)))) -> FALSE | Z29: =IF(S29="","",IF($B29=$B27,"",Y29)) ->  | AA29: =SUM(J29,K29,L29,S29,T29,U29) -> ¥0
K31: =IF(I31="","",M31) ->  | L31: =IF(AND(COUNTIF($I$19:$I$38,"*")>0),Q31,"") ->  | M31: =IF(I31="","",N31) ->  | N31: =IF($O31="A",データ!$E$10,IF($O31="B",データ!$E$11,IF($O31="C",データ!$E$12,IF($O31="D",データ!$E$13)))) -> FALSE | O31: =IF(ISERROR(VLOOKUP($D$10,データ!$C$2:$D$9,2,0)),"",(VLOOKUP($D$10,データ!$C$2:$D$9,2,0))) ->  | P31: =IF($N31=データ!$E$10,データ!$G$10,IF($N31=データ!$E$11,データ!$G$11,IF($N31=データ!$E$12,データ!$G$12,IF($N31=データ!$E$13,データ!$G$13)))) -> FALSE | Q31: =IF(J31="","",IF($B31=$B29,"",P31)) ->  | T31: =IF(R31="","",V31) ->  | U31: =IF(AND(COUNTIF($R$19:$R$38,"*")>0),Z31,"") ->  | V31: =IF(R31="","",W31) ->  | W31: =IF($O31="A",データ!$E$10,IF($O31="B",データ!$E$11,IF($O31="C",データ!$E$12,IF($O31="D",データ!$E$13)))) -> FALSE | X31: =IF(ISERROR(VLOOKUP($D$10,データ!$C$2:$D$9,2,0)),"",(VLOOKUP($D$10,データ!$C$2:$D$9,2,0))) ->  | Y31: =IF($W31=データ!$E$10,データ!$G$10,IF($W31=データ!$E$11,データ!$G$11,IF($W31=データ!$E$12,データ!$G$12,IF($W31=データ!$E$13,データ!$G$13)))) -> FALSE | Z31: =IF(S31="","",IF($B31=$B29,"",Y31)) ->  | AA31: =SUM(J31,K31,L31,S31,T31,U31) -> ¥0
K33: =IF(I33="","",M33) ->  | L33: =IF(AND(COUNTIF($I$19:$I$38,"*")>0),Q33,"") ->  | M33: =IF(I33="","",N33) ->  | N33: =IF($O33="A",データ!$E$10,IF($O33="B",データ!$E$11,IF($O33="C",データ!$E$12,IF($O33="D",データ!$E$13)))) -> FALSE | O33: =IF(ISERROR(VLOOKUP($D$10,データ!$C$2:$D$9,2,0)),"",(VLOOKUP($D$10,データ!$C$2:$D$9,2,0))) ->  | P33: =IF($N33=データ!$E$10,データ!$G$10,IF($N33=データ!$E$11,データ!$G$11,IF($N33=データ!$E$12,データ!$G$12,IF($N33=データ!$E$13,データ!$G$13)))) -> FALSE | Q33: =IF(J33="","",IF($B33=$B31,"",P33)) ->  | T33: =IF(R33="","",V33) ->  | U33: =IF(AND(COUNTIF($R$19:$R$38,"*")>0),Z33,"") ->  | V33: =IF(R33="","",W33) ->  | W33: =IF($O33="A",データ!$E$10,IF($O33="B",データ!$E$11,IF($O33="C",データ!$E$12,IF($O33="D",データ!$E$13)))) -> FALSE | X33: =IF(ISERROR(VLOOKUP($D$10,データ!$C$2:$D$9,2,0)),"",(VLOOKUP($D$10,データ!$C$2:$D$9,2,0))) ->  | Y33: =IF($W33=データ!$E$10,データ!$G$10,IF($W33=データ!$E$11,データ!$G$11,IF($W33=データ!$E$12,データ!$G$12,IF($W33=データ!$E$13,データ!$G$13)))) -> FALSE | Z33: =IF(S33="","",IF($B33=$B31,"",Y33)) ->  | AA33: =SUM(J33,K33,L33,S33,T33,U33) -> ¥0
K35: =IF(I35="","",M35) ->  | L35: =IF(AND(COUNTIF($I$19:$I$38,"*")>0),Q35,"") ->  | M35: =IF(I35="","",N35) ->  | N35: =IF($O35="A",データ!$E$10,IF($O35="B",データ!$E$11,IF($O35="C",データ!$E$12,IF($O35="D",データ!$E$13)))) -> FALSE | O35: =IF(ISERROR(VLOOKUP($D$10,データ!$C$2:$D$9,2,0)),"",(VLOOKUP($D$10,データ!$C$2:$D$9,2,0))) ->  | P35: =IF($N35=データ!$E$10,データ!$G$10,IF($N35=データ!$E$11,データ!$G$11,IF($N35=データ!$E$12,データ!$G$12,IF($N35=データ!$E$13,データ!$G$13)))) -> FALSE | Q35: =IF(J35="","",IF($B35=$B33,"",P35)) ->  | T35: =IF(R35="","",V35) ->  | U35: =IF(AND(COUNTIF($R$19:$R$38,"*")>0),Z35,"") ->  | V35: =IF(R35="","",W35) ->  | W35: =IF($O35="A",データ!$E$10,IF($O35="B",データ!$E$11,IF($O35="C",データ!$E$12,IF($O35="D",データ!$E$13)))) -> FALSE | X35: =IF(ISERROR(VLOOKUP($D$10,データ!$C$2:$D$9,2,0)),"",(VLOOKUP($D$10,データ!$C$2:$D$9,2,0))) ->  | Y35: =IF($W35=データ!$E$10,データ!$G$10,IF($W35=データ!$E$11,データ!$G$11,IF($W35=データ!$E$12,データ!$G$12,IF($W35=データ!$E$13,データ!$G$13)))) -> FALSE | Z35: =IF(S35="","",IF($B35=$B33,"",Y35)) ->  | AA35: =SUM(J35,K35,L35,S35,T35,U35) -> ¥0
K37: =IF(I37="","",M37) ->  | L37: =IF(AND(COUNTIF($I$19:$I$38,"*")>0),Q37,"") ->  | M37: =IF(I37="","",N37) ->  | N37: =IF($O37="A",データ!$E$10,IF($O37="B",データ!$E$11,IF($O37="C",データ!$E$12,IF($O37="D",データ!$E$13)))) -> FALSE | O37: =IF(ISERROR(VLOOKUP($D$10,データ!$C$2:$D$9,2,0)),"",(VLOOKUP($D$10,データ!$C$2:$D$9,2,0))) ->  | P37: =IF($N37=データ!$E$10,データ!$G$10,IF($N37=データ!$E$11,データ!$G$11,IF($N37=データ!$E$12,データ!$G$12,IF($N37=データ!$E$13,データ!$G$13)))) -> FALSE | Q37: =IF(J37="","",IF($B37=$B35,"",P37)) ->  | T37: =IF(R37="","",V37) ->  | U37: =IF(AND(COUNTIF($R$19:$R$38,"*")>0),Z37,"") ->  | V37: =IF(R37="","",W37) ->  | W37: =IF($O37="A",データ!$E$10,IF($O37="B",データ!$E$11,IF($O37="C",データ!$E$12,IF($O37="D",データ!$E$13)))) -> FALSE | X37: =IF(ISERROR(VLOOKUP($D$10,データ!$C$2:$D$9,2,0)),"",(VLOOKUP($D$10,データ!$C$2:$D$9,2,0))) ->  | Y37: =IF($W37=データ!$E$10,データ!$G$10,IF($W37=データ!$E$11,データ!$G$11,IF($W37=データ!$E$12,データ!$G$12,IF($W37=データ!$E$13,データ!$G$13)))) -> FALSE | Z37: =IF(S37="","",IF($B37=$B35,"",Y37)) ->  | AA37: =SUM(J37,K37,L37,S37,T37,U37) -> ¥0
B39: ='請求書報告書-参考'!B39:F40 -> 国内出張による日当調整 ※11 | L39: ¥0 | U39: ¥0 | AA39: =SUM(J39,K39,L39,S39,T39,U39) -> ¥0
B41: 備考 | G41: 合計 | J41: =SUM(J19:J40) -> ¥0 | K41: =SUM(K19:K40) -> ¥0 | L41: =SUM(L19:L40) -> ¥0 | Q41: =SUM(Q19:Q38) -> ¥0 | S41: =SUM(S19:S40) -> ¥0 | T41: =SUM(T19:T40) -> ¥0 | U41: =SUM(U19:U40) -> ¥0 | V41: =SUM(V19:V38) -> ¥0 | Z41: =SUM(Z19:Z38) -> ¥0 | AA41: =SUM(J41,K41,L41,S41,T41,U41) -> ¥0
J43: 直接費計 | L43: =SUM(J41,K41,L41) -> ¥0 | R43: 間接費計 | U43: =SUM(S41,T41,U41) -> ¥0
B45: ='請求書報告書-参考'!B45:O49 -> 規程：詳細は旅費の運用についてを参照 ※1 用件が同じであれば日付ごとに明細を分けて、1枚の精算書にまとめる。 ※2 出発地・到着地は必ず施設名（駅名等は不可）を記入する。 ※3 交通費のエビデンスとして､駅すぱあと等の経路探索結果をプリントアウトし添付する。（日程は実際の旅費発生日に合せる事） ※4 旅費規程によりつくば研究センター（産総研）⇔本部間往復交通費は定額となっているのでエビデンス不要。 ※5 下記､出張報告の記載をする。 ※6 前泊､後泊およびタクシー利用の場合は本部業務管理者の事前承認を得て､備考欄にその理由記述した場合のみ認める。 ※7 航空機を使用した場合は、半券添付必須（インター ネットでの申し込み等は、領収書添付を必須とする）。 ※8 研究開発との関連､出張により得られた成果等を記入する。 ※9 会議､学会等の出張は､スケジュールの入ったプログラムの写し等を添付のこと。 ※10学会等参加の出張において､学会等参加費用に食事代､懇親会費が含まれる時には食事代､懇親会費を日当から減額する。 尚､食事代等が含まれる旨を備考欄に記載する。(旅費の運用について参照) ※11 ※10の場合、該当する減額分や他業務実施に伴う日当減額分の金額を直接と間接に分けて記載する。(不明の場合は事務局に問合せる)
B51: 出張報告/用務の内容※8､※9
B52: （目的） （内容） （結果報告）

Sheet 手続き方法
B1: 学会参加及び海外出張の手続き
B3: ＊取引旅行会社担当者 東武トップツアーズ株式会社 国際営業部 前田 満豊 TEL：03-5348-3895 FAX： 03-5348-3799 〒160-0023 東京都新宿区西新宿7-5-25 西新宿木村屋ビルディングビル16F e-Mail ： mitsutoyo_maeda@tobutoptours.co.jp
B5: 事前承認と確認
B7: ・1か月前にまでに本部にお知らせ (緊急に決まった場合は決まった時点) 本部業務管理者に承認を得ていること）
B9: 海外出張の場合
B10: ・実施計画書に記載及び予算措置がとられていること
B11: ･未記載の場合は、期中での計画外海外出張の必要理由書(予算振替処置を含)を本部業務管理者に提出し、本部業務管理者がリーダ及びNEDOに承認を得る。リーダ及びNEDO承認が得られた場合のみ、海外出張が可能。
B13: 海外出張伺書の提出
B15: ・本部の事前承認が得られたら、すぐに海外出張伺書を提出のこと ・出張代金の見積書(上記東武トップツアー前田氏から取り寄せ） 等添付のこと
B17: ☆★旅行会社との日程等の打合せ、海外旅行傷害保険（セットプランの死亡後遺障害保険、登録研究員は5,000万円、交流研究員は3,000万円）に加入、航空券は正規割引運賃PEX運賃等を購入、同時に宿泊の手配も旅行会社に依頼しても良いが宿泊代は出張者の個人支払となるため請求は別にしてもらうこと(宿泊代は規程の金額があるため）★☆
A19: 注意!! | B19: 学会参加費に食事代（バンケット代、懇親会費等）が含まれている場合は、 １回当たり1,000円を日当から減額する。
B21: 学会等参加伺書の提出
B23: ・学会参加がある場合には、海外出張伺書と同時に学会参加伺書を提出のこと
A25: 注意!! | B25: 学会参加費に食事代（バンケット代、懇親会費等）が含まれている場合は、 食事代を除いて参加費を計上する（金額が明記されておらず、不明の場合は、 食事代として3,000円を除いて参加費を計上する。食事代は、間接費から の支払いとなる。）
B27: 学会参加登録
B29: ・本部より承認が得られてからすること （カード支払の場合には、精算時にカードのご利用代金明細書も添付のこと）
B31: 航空券の購入
B33: ・本部より承認が得られてからすること
B35: 学会参加精算書、海外出張精算書及び海外出張報告書の提出
B37: 帰国後、エビデンスを添付して精算書の作成及び報告書の作成
A38: 注意!! | B38: ※海外出張報告書はシートの後半にある報告書様式に記入する
B39: ※海外出張した場合は、MEMSの波(ブログ)(http://www.nanomicro.biz/mems/)に必ず投稿する（投稿前に本部業務管理者の承認を得ること）
B43: 「MEMSの波」の入力
B44: ブラウザーから入力する
B45: https://app.cocolog-nifty.com/t/app/を開く
B46: ID：memswave PW：aki8bara

Sheet 国内・海外学会参加伺書参考
G1: 国内 ・ 海外 学会参加伺書
G3: 本 部
B4: 決裁印 | G4: ='請求書報告書-参考'!D4 -> 総務担当 部長 | I4: ='請求書報告書-参考'!E4 -> 経理 | K4: 業務管理者 | M4: ='請求書報告書-参考'!F4 -> 担当部長 | O4: 受付
T7: 起案日 | V7: 2016-08-01
B10: 海外出張を伴う学会等参加の場合 ※※
B15: 参加者 | F15: 研究実施場所 | J15: 役職 | M15: 氏名 | P15: 会員情報 ※1
F16: ①技術研究組合NMEMS技術研究機構 インフラモニタリング研究所 | J16: 主幹研究員 | M16: ▲▼ △▽ ㊞
B18: 開催地(国･都市） | G18: アメリカ・サンノゼ
B20: 学会名（会場/訪問先） | G20: 2011 SPIE Advanced Lithography
B22: 学会会議概要と目的 | G22: リソグラフィ技術をテーマとした世界最大の学会であり新規技術と市場経済との関係についての調査
C25: 1．学会等参加費
C27: 日付 | F27: 項目 | L27: 現地支払額 | O27: 円換算 | Q27: 換算レート ※4 | T27: 換算レートエビデンス資料No. | V27: エビデンス添付資料No. | W27: 計上
C28: 2013-02-27 | F28: 学会参加費 | L28: USD | M28: 500.00 | O28: =TRUNC(M28*Q28) -> ¥50,000 | Q28: ¥100.00 | S28: =IF(ISERROR(VLOOKUP(L28,データ!$D$31:$E$48,2,0)),"",(VLOOKUP(L28,データ!$D$31:$E$48,2,0))) -> /USD | T28: ② | V28: ① | W28: 直
C29: 計 | O29: =SUM(O28:P28) -> ¥50,000
C31: 2．学会等開催の懇親会等費用(懇親会等費用が参加費とは別途領収書が発行されている場合) ※6
C33: 日付 | F33: 項目 | L33: 現地支払額 | O33: 円換算 | Q33: 換算レート | T33: 換算レートエビデンス資料No. | V33: エビデンス添付資料No. | W33: 計上
F34: 懇親会費 | O34: =TRUNC(M34*Q34) -> ¥0 | S34: =IF(ISERROR(VLOOKUP(L34,データ!$D$31:$E$48,2,0)),"",(VLOOKUP(L34,データ!$D$31:$E$48,2,0))) ->  | W34: 間
O35: =TRUNC(M35*Q35) -> ¥0 | S35: =IF(ISERROR(VLOOKUP(L35,データ!$D$31:$E$48,2,0)),"",(VLOOKUP(L35,データ!$D$31:$E$48,2,0))) -> 
C36: 計 | O36: =SUM(O34:P35) -> ¥0
C38: 3．学会等開催の懇親会等費用による参加費の研究開発直接費/間接費調整(学会等参加費に含まれる場合) ※5,※7
C40: 日付 | F40: 項目 | L40: 現地支払額 | O40: 円換算 | Q40: 換算レート | T40: 換算レートエビデンス資料No. | V40: エビデンス添付資料No. | W40: 計上
C41: 2013-02-27 | F41: 学会開催の懇親会等費用 | M41: 12,000.00 | O41: =TRUNC(M41*Q41) -> ¥12,000 | Q41: ¥1.00 | S41: =IF(ISERROR(VLOOKUP(L41,データ!$D$31:$E$48,2,0)),"",(VLOOKUP(L41,データ!$D$31:$E$48,2,0))) ->  | T41: ② | V41: ① | W41: 間
O42: =TRUNC(M42*Q42) -> ¥0 | S42: =IF(ISERROR(VLOOKUP(L42,データ!$D$31:$E$48,2,0)),"",(VLOOKUP(L42,データ!$D$31:$E$48,2,0))) ->  | W42: 間
O43: =TRUNC(M43*Q43) -> ¥0 | S43: =IF(ISERROR(VLOOKUP(L43,データ!$D$31:$E$48,2,0)),"",(VLOOKUP(L43,データ!$D$31:$E$48,2,0))) ->  | W43: 間
C44: 計 | O44: =SUM(O41:P43) -> ¥12,000
C46: 4．その他
C48: 日付 | F48: 項目 | L48: 現地支払額 | O48: 円換算 | Q48: 換算レート | T48: 換算レートエビデンス資料No. | V48: エビデンス添付資料No. | W48: 計上
F49: 両替手数料 | O49: =TRUNC(M49*Q49) -> ¥0 | S49: =IF(ISERROR(VLOOKUP(L49,データ!$D$31:$E$48,2,0)),"",(VLOOKUP(L49,データ!$D$31:$E$48,2,0))) ->  | W49: 直
O50: =TRUNC(M50*Q50) -> ¥0 | S50: =IF(ISERROR(VLOOKUP(L50,データ!$D$31:$E$48,2,0)),"",(VLOOKUP(L50,データ!$D$31:$E$48,2,0))) -> 
O51: =TRUNC(M51*Q51) -> ¥0 | S51: =IF(ISERROR(VLOOKUP(L51,データ!$D$31:$E$48,2,0)),"",(VLOOKUP(L51,データ!$D$31:$E$48,2,0))) -> 
C52: 計 | O52: =SUM(O49:P51) -> ¥0
B57: 本人精算 | F57: 合計額 | H57: =H59+H61 -> ¥50,000
F59: 研究開発費 | H59: =SUMIF(W28,"直",O28)+SUMIF(W49:W51,"直",O49:P51)-IF(W28="直",O44) -> ¥38,000
F61: 間接費 | H61: =O36+IF(W28="直",O44)+SUMIF(W28,"間",O29)+SUMIF(W49:W51,"間",O49:P51) -> ¥12,000
B65: ※※ 海外出張を伴う学会参加の場合は､実施計画書への記載､予算措置を確認する。 予算措置がない場合は、【手続き方法】シートに書かれている【□事前承認】を参考に事前承認を得たあと、学会参加伺書を提出のこと。 ※1 参加する学会の主催学会会員/非会員をチェックする。 ※2 エビデンスには①､②のようにNo.を振る。 ※3 計上は研究開発直接費の場合は”直”､それ以外の間接費の場合は”間”を選択。 ※4 学会等参加費の換算レートは､学会参加伺書を作成した日付の東京三菱UFJ銀行外為TTSレートを使用し、エビデンスを添付して提出すること。 手数料が別記されている場合はその他に記載。
D66: 東京三菱UFJ銀行外為TTSレート | J66: http://www.bk.mufg.jp/gdocs/kinri/list_j/kinri/kawase.html
B67: ※5 バンケット､懇親会費用が学会等参加費に含まれる場合､金額が明記されている場合はエビデンスを添付し､その金額を懇親会等費用に記述する。 金額が明記されていない場合は\3,000/回とする。(学会等参加費の運用について参照) ※6 バンケット､懇親会費用について別途領収書が発行されている場合に記述。

Sheet 国内・海外学会参加伺書-1
G1: 国内 ・ 海外 学会参加伺書
G3: 本 部
B4: 決裁印 | G4: =国内・海外学会参加伺書参考!G4 -> 総務担当 部長 | I4: =国内・海外学会参加伺書参考!I4 -> 経理 | K4: =国内・海外学会参加伺書参考!K4 -> 業務管理者 | M4: =国内・海外学会参加伺書参考!M4 -> 担当部長 | O4: =国内・海外学会参加伺書参考!O4 -> 受付
T7: 起案日
B10: 海外出張を伴う学会等参加の場合 ※※
B15: 参加者 | F15: 研究実施場所 | J15: 役職 | M15: 氏名 | P15: 会員情報 ※1
F16: ='旅費・交通費、諸経費合計'!V7 -> 0 | J16: ='旅費・交通費、諸経費合計'!W8 -> 0 | M16: ='旅費・交通費、諸経費合計'!AC8 -> 0 | O16: ㊞
B18: 開催地(国･都市）
B20: 学会名（会場/訪問先）
B22: 学会会議概要と目的
C25: 1．学会等参加費
C27: 日付 | F27: 項目 | L27: 現地支払額 | O27: 円換算 | Q27: 換算レート ※4 | T27: 換算レートエビデンス資料No. | V27: エビデンス添付資料No. | W27: 計上
F28: 学会参加費 | O28: =TRUNC(M28*Q28) -> ¥0 | S28: =IF(ISERROR(VLOOKUP(L28,データ!$D$31:$E$48,2,0)),"",(VLOOKUP(L28,データ!$D$31:$E$48,2,0))) ->  | W28: 直
C29: 計 | O29: =SUM(O28:P28) -> ¥0
C31: =国内・海外学会参加伺書参考!C31 -> 2．学会等開催の懇親会等費用(懇親会等費用が参加費とは別途領収書が発行されている場合) ※6
C33: 日付 | F33: 項目 | L33: 現地支払額 | O33: 円換算 | Q33: 換算レート | T33: 換算レートエビデンス資料No. | V33: エビデンス添付資料No. | W33: 計上
F34: 懇親会費 | O34: =TRUNC(M34*Q34) -> ¥0 | S34: =IF(ISERROR(VLOOKUP(L34,データ!$D$31:$E$48,2,0)),"",(VLOOKUP(L34,データ!$D$31:$E$48,2,0))) ->  | W34: 間
O35: =TRUNC(M35*Q35) -> ¥0 | S35: =IF(ISERROR(VLOOKUP(L35,データ!$D$31:$E$48,2,0)),"",(VLOOKUP(L35,データ!$D$31:$E$48,2,0))) ->  | W35: 間
C36: 計 | O36: =SUM(O34:P35) -> ¥0
C38: =国内・海外学会参加伺書参考!C38 -> 3．学会等開催の懇親会等費用による参加費の研究開発直接費/間接費調整(学会等参加費に含まれる場合) ※5,※7
C40: 日付 | F40: 項目 | L40: 現地支払額 | O40: 円換算 | Q40: 換算レート | T40: 換算レートエビデンス資料No. | V40: エビデンス添付資料No. | W40: 計上
F41: =国内・海外学会参加伺書参考!F41 -> 学会開催の懇親会等費用 | O41: =TRUNC(M41*Q41) -> ¥0 | S41: =IF(ISERROR(VLOOKUP(L41,データ!$D$31:$E$48,2,0)),"",(VLOOKUP(L41,データ!$D$31:$E$48,2,0))) ->  | W41: 間
O42: =TRUNC(M42*Q42) -> ¥0 | S42: =IF(ISERROR(VLOOKUP(L42,データ!$D$31:$E$48,2,0)),"",(VLOOKUP(L42,データ!$D$31:$E$48,2,0))) ->  | W42: 間
O43: =TRUNC(M43*Q43) -> ¥0 | S43: =IF(ISERROR(VLOOKUP(L43,データ!$D$31:$E$48,2,0)),"",(VLOOKUP(L43,データ!$D$31:$E$48,2,0))) ->  | W43: 間
C44: 計 | O44: =SUM(O41:P43) -> ¥0
C46: 4．その他
C48: 日付 | F48: 項目 | L48: 現地支払額 | O48: 円換算 | Q48: 換算レート | T48: 換算レートエビデンス資料No. | V48: エビデンス添付資料No. | W48: 計上
F49: 両替手数料 | O49: =TRUNC(M49*Q49) -> ¥0 | S49: =IF(ISERROR(VLOOKUP(L49,データ!$D$31:$E$48,2,0)),"",(VLOOKUP(L49,データ!$D$31:$E$48,2,0))) -> 
O50: =TRUNC(M50*Q50) -> ¥0 | S50: =IF(ISERROR(VLOOKUP(L50,データ!$D$31:$E$48,2,0)),"",(VLOOKUP(L50,データ!$D$31:$E$48,2,0))) -> 
O51: =TRUNC(M51*Q51) -> ¥0 | S51: =IF(ISERROR(VLOOKUP(L51,データ!$D$31:$E$48,2,0)),"",(VLOOKUP(L51,データ!$D$31:$E$48,2,0))) -> 
C52: 計 | O52: =SUM(O49:P51) -> ¥0
B57: 本人精算 | F57: 合計額 | H57: =H59+H61 -> ¥0
F59: 研究開発費 | H59: =SUMIF(W28,"直",O28)+SUMIF(W49:W51,"直",O49:P51)-IF(W28="直",O44) -> ¥0
F61: 間接費 | H61: =O36+IF(W28="直",O44)+SUMIF(W28,"間",O29)+SUMIF(W49:W51,"間",O49:P51) -> ¥0
B65: =国内・海外学会参加伺書参考!B65 -> ※※ 海外出張を伴う学会参加の場合は､実施計画書への記載､予算措置を確認する。 予算措置がない場合は、【手続き方法】シートに書かれている【□事前承認】を参考に事前承認を得たあと、学会参加伺書を提出のこと。 ※1 参加する学会の主催学会会員/非会員をチェックする。 ※2 エビデンスには①､②のようにNo.を振る。 ※3 計上は研究開発直接費の場合は”直”､それ以外の間接費の場合は”間”を選択。 ※4 学会等参加費の換算レートは､学会参加伺書を作成した日付の東京三菱UFJ銀行外為TTSレートを使用し、エビデンスを添付して提出すること。 手数料が別記されている場合はその他に記載。
D66: 東京三菱UFJ銀行外為TTSレート | J66: http://www.bk.mufg.jp/gdocs/kinri/list_j/kinri/kawase.html
B67: =国内・海外学会参加伺書参考!B67 -> ※5 バンケット､懇親会費用が学会等参加費に含まれる場合､金額が明記されている場合はエビデンスを添付し､その金額を懇親会等費用に記述する。 金額が明記されていない場合は\3,000/回とする。(学会等参加費の運用について参照) ※6 バンケット､懇親会費用について別途領収書が発行されている場合に記述。

Sheet 国内・海外学会参加精算書-1
G1: 国内 ・ 海外 学会参加精算書
G3: 本 部
B4: 決裁印 | G4: =国内・海外学会参加伺書参考!G4 -> 総務担当 部長 | I4: =国内・海外学会参加伺書参考!I4 -> 経理 | K4: =国内・海外学会参加伺書参考!K4 -> 業務管理者 | M4: =国内・海外学会参加伺書参考!M4 -> 担当部長 | O4: =国内・海外学会参加伺書参考!O4 -> 受付
T7: 起案日
B10: 海外出張を伴う学会等参加の場合 ※※
B15: 参加者 | F15: 研究実施場所 | J15: 役職 | M15: 氏名 | P15: 会員情報 ※1
F16: ='国内・海外学会参加伺書-1'!F16 -> 0 | J16: ='国内・海外学会参加伺書-1'!J16 -> 0 | M16: ='国内・海外学会参加伺書-1'!M16 -> 0 | O16: ㊞
B18: 開催地(国･都市） | G18: ='国内・海外学会参加伺書-1'!G18 -> 0
B20: 学会名（会場/訪問先） | G20: ='国内・海外学会参加伺書-1'!G20 -> 0
B22: 学会会議概要と目的 | G22: ='国内・海外学会参加伺書-1'!G22 -> 0
C25: 1．学会等参加費
C27: 日付 | F27: 項目 | L27: 現地支払額 | O27: 円換算 | Q27: 換算レート ※4 | T27: 換算レートエビデンス資料No. | V27: エビデンス添付資料No. | W27: 計上
C28: =IF('国内・海外学会参加伺書-1'!C28="","",'国内・海外学会参加伺書-1'!C28) ->  | F28: =IF('国内・海外学会参加伺書-1'!F28="","",'国内・海外学会参加伺書-1'!F28) -> 学会参加費 | M28: ='国内・海外学会参加伺書-1'!M28:N28 -> 0.00 | O28: =TRUNC(M28*Q28) -> ¥0 | Q28: ='国内・海外学会参加伺書-1'!Q28 -> ¥0.00 | S28: =IF(ISERROR(VLOOKUP(L28,データ!$D$31:$E$48,2,0)),"",(VLOOKUP(L28,データ!$D$31:$E$48,2,0))) ->  | T28: =IF('国内・海外学会参加伺書-1'!T28="","",'国内・海外学会参加伺書-1'!T28) ->  | V28: =IF('国内・海外学会参加伺書-1'!V28="","",'国内・海外学会参加伺書-1'!V28) ->  | W28: 直
C29: 計 | O29: =SUM(O28:P28) -> ¥0
C31: =国内・海外学会参加伺書参考!C31 -> 2．学会等開催の懇親会等費用(懇親会等費用が参加費とは別途領収書が発行されている場合) ※6
C33: 日付 | F33: 項目 | L33: 現地支払額 | O33: 円換算 | Q33: 換算レート | T33: 換算レートエビデンス資料No. | V33: エビデンス添付資料No. | W33: 計上
C34: =IF('国内・海外学会参加伺書-1'!C34="","",'国内・海外学会参加伺書-1'!C34) ->  | F34: =IF('国内・海外学会参加伺書-1'!F34="","",'国内・海外学会参加伺書-1'!F34) -> 懇親会費 | M34: ='国内・海外学会参加伺書-1'!M34 -> 0.00 | O34: =TRUNC(M34*Q34) -> ¥0 | Q34: ='国内・海外学会参加伺書-1'!Q34 -> ¥0.00 | S34: =IF(ISERROR(VLOOKUP(L34,データ!$D$31:$E$48,2,0)),"",(VLOOKUP(L34,データ!$D$31:$E$48,2,0))) ->  | T34: =IF('国内・海外学会参加伺書-1'!T34="","",'国内・海外学会参加伺書-1'!T34) ->  | V34: =IF('国内・海外学会参加伺書-1'!V34="","",'国内・海外学会参加伺書-1'!V34) ->  | W34: 間
C35: =IF('国内・海外学会参加伺書-1'!C35="","",'国内・海外学会参加伺書-1'!C35) ->  | F35: =IF('国内・海外学会参加伺書-1'!F35="","",'国内・海外学会参加伺書-1'!F35) ->  | M35: ='国内・海外学会参加伺書-1'!M35 -> 0.00 | O35: =TRUNC(M35*Q35) -> ¥0 | Q35: ='国内・海外学会参加伺書-1'!Q35 -> ¥0.00 | S35: =IF(ISERROR(VLOOKUP(L35,データ!$D$31:$E$48,2,0)),"",(VLOOKUP(L35,データ!$D$31:$E$48,2,0))) ->  | T35: =IF('国内・海外学会参加伺書-1'!T35="","",'国内・海外学会参加伺書-1'!T35) ->  | V35: =IF('国内・海外学会参加伺書-1'!V35="","",'国内・海外学会参加伺書-1'!V35) ->  | W35: =IF('国内・海外学会参加伺書-1'!W35="","",'国内・海外学会参加伺書-1'!W35) -> 間
C36: 計 | O36: =SUM(O34:P35) -> ¥0
C38: =国内・海外学会参加伺書参考!C38 -> 3．学会等開催の懇親会等費用による参加費の研究開発直接費/間接費調整(学会等参加費に含まれる場合) ※5,※7
C40: 日付 | F40: 項目 | L40: 現地支払額 | O40: 円換算 | Q40: 換算レート | T40: 換算レートエビデンス資料No. | V40: エビデンス添付資料No. | W40: 計上
F41: =国内・海外学会参加伺書参考!F41 -> 学会開催の懇親会等費用 | M41: ='国内・海外学会参加伺書-1'!M41 -> 0.00 | O41: =TRUNC(M41*Q41) -> ¥0 | Q41: ='国内・海外学会参加伺書-1'!Q41 -> ¥0.00 | S41: =IF(ISERROR(VLOOKUP(L41,データ!$D$31:$E$48,2,0)),"",(VLOOKUP(L41,データ!$D$31:$E$48,2,0))) ->  | T41: =IF('国内・海外学会参加伺書-1'!T41="","",'国内・海外学会参加伺書-1'!T41) ->  | V41: =IF('国内・海外学会参加伺書-1'!V41="","",'国内・海外学会参加伺書-1'!V41) ->  | W41: =IF('国内・海外学会参加伺書-1'!W41="","",'国内・海外学会参加伺書-1'!W41) -> 間
C42: =IF('国内・海外学会参加伺書-1'!C42="","",'国内・海外学会参加伺書-1'!C42) ->  | F42: =IF('国内・海外学会参加伺書-1'!F42="","",'国内・海外学会参加伺書-1'!F42) ->  | M42: ='国内・海外学会参加伺書-1'!M42 -> 0.00 | O42: =TRUNC(M42*Q42) -> ¥0 | Q42: ='国内・海外学会参加伺書-1'!Q42 -> ¥0.00 | S42: =IF(ISERROR(VLOOKUP(L42,データ!$D$31:$E$48,2,0)),"",(VLOOKUP(L42,データ!$D$31:$E$48,2,0))) ->  | T42: =IF('国内・海外学会参加伺書-1'!T42="","",'国内・海外学会参加伺書-1'!T42) ->  | V42: =IF('国内・海外学会参加伺書-1'!V42="","",'国内・海外学会参加伺書-1'!V42) ->  | W42: 間
C43: =IF('国内・海外学会参加伺書-1'!C43="","",'国内・海外学会参加伺書-1'!C43) ->  | F43: =IF('国内・海外学会参加伺書-1'!F43="","",'国内・海外学会参加伺書-1'!F43) ->  | M43: ='国内・海外学会参加伺書-1'!M43 -> 0.00 | O43: =TRUNC(M43*Q43) -> ¥0 | Q43: ='国内・海外学会参加伺書-1'!Q43 -> ¥0.00 | S43: =IF(ISERROR(VLOOKUP(L43,データ!$D$31:$E$48,2,0)),"",(VLOOKUP(L43,データ!$D$31:$E$48,2,0))) ->  | T43: =IF('国内・海外学会参加伺書-1'!T43="","",'国内・海外学会参加伺書-1'!T43) ->  | V43: =IF('国内・海外学会参加伺書-1'!V43="","",'国内・海外学会参加伺書-1'!V43) ->  | W43: 間
B44: ※1 経路には交通手段を記述する。 ※2 交通費のエビデンスとして､駅すぱあと等のプリントアウトを添付する。 ※3 出張先における行動が判るように記述する。宿泊先から出張先との往復も記述。交通費がかからない場合は徒歩と記述。 ※4 前泊､後泊は業務管理者の事前承認を得て､備考欄にその理由記述した場合のみ認める。 ※5 タクシー利用について､目的地までの公共機関がない場合、又は公共機関があっても待ち時間が１時間以上の場合､ 会議資料など大量の荷物がある場合で､担当副所長の事前承認を得て､備考欄にその理由記述した場合のみ認める。 ※6 旅行会社からの旅行代金お見積書､旅行計画表を添付する。 | C44: 計 | O44: =SUM(O41:P43) -> ¥0
C46: 4．その他
C48: 日付 | F48: 項目 | L48: 現地支払額 | O48: 円換算 | Q48: 換算レート | T48: 換算レートエビデンス資料No. | V48: エビデンス添付資料No. | W48: 計上
C49: =IF('国内・海外学会参加伺書-1'!C49="","",'国内・海外学会参加伺書-1'!C49) ->  | F49: =IF('国内・海外学会参加伺書-1'!F49="","",'国内・海外学会参加伺書-1'!F49) -> 両替手数料 | M49: ='国内・海外学会参加伺書-1'!M49 -> 0.00 | O49: =TRUNC(M49*Q49) -> ¥0 | Q49: ='国内・海外学会参加伺書-1'!Q49 -> ¥0.00 | S49: =IF(ISERROR(VLOOKUP(L49,データ!$D$31:$E$48,2,0)),"",(VLOOKUP(L49,データ!$D$31:$E$48,2,0))) ->  | T49: =IF('国内・海外学会参加伺書-1'!T49="","",'国内・海外学会参加伺書-1'!T49) ->  | V49: =IF('国内・海外学会参加伺書-1'!V49="","",'国内・海外学会参加伺書-1'!V49) ->  | W49: =IF('国内・海外学会参加伺書-1'!W49="","",'国内・海外学会参加伺書-1'!W49) -> 
C50: =IF('国内・海外学会参加伺書-1'!C50="","",'国内・海外学会参加伺書-1'!C50) ->  | F50: =IF('国内・海外学会参加伺書-1'!F50="","",'国内・海外学会参加伺書-1'!F50) ->  | M50: ='国内・海外学会参加伺書-1'!M50 -> 0.00 | O50: =TRUNC(M50*Q50) -> ¥0 | Q50: ='国内・海外学会参加伺書-1'!Q50 -> ¥0.00 | S50: =IF(ISERROR(VLOOKUP(L50,データ!$D$31:$E$48,2,0)),"",(VLOOKUP(L50,データ!$D$31:$E$48,2,0))) ->  | T50: =IF('国内・海外学会参加伺書-1'!T50="","",'国内・海外学会参加伺書-1'!T50) ->  | V50: =IF('国内・海外学会参加伺書-1'!V50="","",'国内・海外学会参加伺書-1'!V50) ->  | W50: =IF('国内・海外学会参加伺書-1'!W50="","",'国内・海外学会参加伺書-1'!W50) -> 
C51: =IF('国内・海外学会参加伺書-1'!C51="","",'国内・海外学会参加伺書-1'!C51) ->  | F51: =IF('国内・海外学会参加伺書-1'!F51="","",'国内・海外学会参加伺書-1'!F51) ->  | M51: ='国内・海外学会参加伺書-1'!M51 -> 0.00 | O51: =TRUNC(M51*Q51) -> ¥0 | Q51: ='国内・海外学会参加伺書-1'!Q51 -> ¥0.00 | S51: =IF(ISERROR(VLOOKUP(L51,データ!$D$31:$E$48,2,0)),"",(VLOOKUP(L51,データ!$D$31:$E$48,2,0))) ->  | T51: =IF('国内・海外学会参加伺書-1'!T51="","",'国内・海外学会参加伺書-1'!T51) ->  | V51: =IF('国内・海外学会参加伺書-1'!V51="","",'国内・海外学会参加伺書-1'!V51) ->  | W51: =IF('国内・海外学会参加伺書-1'!W51="","",'国内・海外学会参加伺書-1'!W51) -> 
C52: 計 | O52: =SUM(O49:P51) -> ¥0
B57: 本人精算 | F57: 合計額 | H57: =H59+H61 -> ¥0
F59: 研究開発費 | H59: =SUMIF(W28,"直",O28)+SUMIF(W49:W51,"直",O49:P51)-IF(W28="直",O44) -> ¥0
F61: 間接費 | H61: =O36+IF(W28="直",O44)+SUMIF(W28,"間",O29)+SUMIF(W49:W51,"間",O49:P51) -> ¥0
B65: =国内・海外学会参加伺書参考!B65 -> ※※ 海外出張を伴う学会参加の場合は､実施計画書への記載､予算措置を確認する。 予算措置がない場合は、【手続き方法】シートに書かれている【□事前承認】を参考に事前承認を得たあと、学会参加伺書を提出のこと。 ※1 参加する学会の主催学会会員/非会員をチェックする。 ※2 エビデンスには①､②のようにNo.を振る。 ※3 計上は研究開発直接費の場合は”直”､それ以外の間接費の場合は”間”を選択。 ※4 学会等参加費の換算レートは､学会参加伺書を作成した日付の東京三菱UFJ銀行外為TTSレートを使用し、エビデンスを添付して提出すること。 手数料が別記されている場合はその他に記載。
D66: 東京三菱UFJ銀行外為TTSレート | J66: http://www.bk.mufg.jp/gdocs/kinri/list_j/kinri/kawase.html | S66: を使用
B67: =国内・海外学会参加伺書参考!B67 -> ※5 バンケット､懇親会費用が学会等参加費に含まれる場合､金額が明記されている場合はエビデンスを添付し､その金額を懇親会等費用に記述する。 金額が明記されていない場合は\3,000/回とする。(学会等参加費の運用について参照) ※6 バンケット､懇親会費用について別途領収書が発行されている場合に記述。

Sheet 国内・海外学会参加伺書-2
G1: 国内 ・ 海外 学会参加伺書
G3: 本 部
B4: 決裁印 | G4: =国内・海外学会参加伺書参考!G4 -> 総務担当 部長 | I4: =国内・海外学会参加伺書参考!I4 -> 経理 | K4: =国内・海外学会参加伺書参考!K4 -> 業務管理者 | M4: =国内・海外学会参加伺書参考!M4 -> 担当部長 | O4: =国内・海外学会参加伺書参考!O4 -> 受付
T7: 起案日
B10: 海外出張を伴う学会等参加の場合 ※※
B15: 参加者 | F15: 研究実施場所 | J15: 役職 | M15: 氏名 | P15: 会員情報 ※1
F16: ='旅費・交通費、諸経費合計'!V7 -> 0 | J16: ='旅費・交通費、諸経費合計'!W8 -> 0 | M16: ='旅費・交通費、諸経費合計'!AC8 -> 0 | O16: ㊞
B18: 開催地(国･都市）
B20: 学会名（会場/訪問先）
B22: 学会会議概要と目的
C25: 1．学会等参加費
C27: 日付 | F27: 項目 | L27: 現地支払額 | O27: 円換算 | Q27: 換算レート ※4 | T27: 換算レートエビデンス資料No. | V27: エビデンス添付資料No. | W27: 計上
F28: 学会参加費 | O28: =TRUNC(M28*Q28) -> ¥0 | S28: =IF(ISERROR(VLOOKUP(L28,データ!$D$31:$E$48,2,0)),"",(VLOOKUP(L28,データ!$D$31:$E$48,2,0))) -> 
C29: 計 | O29: =SUM(O28:P28) -> ¥0
C31: =国内・海外学会参加伺書参考!C31 -> 2．学会等開催の懇親会等費用(懇親会等費用が参加費とは別途領収書が発行されている場合) ※6
C33: 日付 | F33: 項目 | L33: 現地支払額 | O33: 円換算 | Q33: 換算レート | T33: 換算レートエビデンス資料No. | V33: エビデンス添付資料No. | W33: 計上
F34: 懇親会費 | O34: =TRUNC(M34*Q34) -> ¥0 | S34: =IF(ISERROR(VLOOKUP(L34,データ!$D$31:$E$48,2,0)),"",(VLOOKUP(L34,データ!$D$31:$E$48,2,0))) ->  | W34: 間
O35: =TRUNC(M35*Q35) -> ¥0 | S35: =IF(ISERROR(VLOOKUP(L35,データ!$D$31:$E$48,2,0)),"",(VLOOKUP(L35,データ!$D$31:$E$48,2,0))) ->  | W35: 間
C36: 計 | O36: =SUM(O34:P35) -> ¥0
C38: =国内・海外学会参加伺書参考!C38 -> 3．学会等開催の懇親会等費用による参加費の研究開発直接費/間接費調整(学会等参加費に含まれる場合) ※5,※7
C40: 日付 | F40: 項目 | L40: 現地支払額 | O40: 円換算 | Q40: 換算レート | T40: 換算レートエビデンス資料No. | V40: エビデンス添付資料No. | W40: 計上
F41: =国内・海外学会参加伺書参考!F41 -> 学会開催の懇親会等費用 | O41: =TRUNC(M41*Q41) -> ¥0 | S41: =IF(ISERROR(VLOOKUP(L41,データ!$D$31:$E$48,2,0)),"",(VLOOKUP(L41,データ!$D$31:$E$48,2,0))) ->  | W41: 間
O42: =TRUNC(M42*Q42) -> ¥0 | S42: =IF(ISERROR(VLOOKUP(L42,データ!$D$31:$E$48,2,0)),"",(VLOOKUP(L42,データ!$D$31:$E$48,2,0))) ->  | W42: 間
O43: =TRUNC(M43*Q43) -> ¥0 | S43: =IF(ISERROR(VLOOKUP(L43,データ!$D$31:$E$48,2,0)),"",(VLOOKUP(L43,データ!$D$31:$E$48,2,0))) ->  | W43: 間
C44: 計 | O44: =SUM(O41:P43) -> ¥0
C46: 4．その他
C48: 日付 | F48: 項目 | L48: 現地支払額 | O48: 円換算 | Q48: 換算レート | T48: 換算レートエビデンス資料No. | V48: エビデンス添付資料No. | W48: 計上
F49: 両替手数料 | O49: =TRUNC(M49*Q49) -> ¥0 | S49: =IF(ISERROR(VLOOKUP(L49,データ!$D$31:$E$48,2,0)),"",(VLOOKUP(L49,データ!$D$31:$E$48,2,0))) -> 
O50: =TRUNC(M50*Q50) -> ¥0 | S50: =IF(ISERROR(VLOOKUP(L50,データ!$D$31:$E$48,2,0)),"",(VLOOKUP(L50,データ!$D$31:$E$48,2,0))) -> 
O51: =TRUNC(M51*Q51) -> ¥0 | S51: =IF(ISERROR(VLOOKUP(L51,データ!$D$31:$E$48,2,0)),"",(VLOOKUP(L51,データ!$D$31:$E$48,2,0))) -> 
C52: 計 | O52: =SUM(O49:P51) -> ¥0
B57: 本人精算 | F57: 合計額 | H57: =H59+H61 -> ¥0
F59: 研究開発費 | H59: =SUMIF(W28,"直",O28)+SUMIF(W49:W51,"直",O49:P51)-IF(W28="直",O44) -> ¥0
F61: 間接費 | H61: =O36+IF(W28="直",O44)+SUMIF(W28,"間",O29)+SUMIF(W49:W51,"間",O49:P51) -> ¥0
B65: =国内・海外学会参加伺書参考!B65 -> ※※ 海外出張を伴う学会参加の場合は､実施計画書への記載､予算措置を確認する。 予算措置がない場合は、【手続き方法】シートに書かれている【□事前承認】を参考に事前承認を得たあと、学会参加伺書を提出のこと。 ※1 参加する学会の主催学会会員/非会員をチェックする。 ※2 エビデンスには①､②のようにNo.を振る。 ※3 計上は研究開発直接費の場合は”直”､それ以外の間接費の場合は”間”を選択。 ※4 学会等参加費の換算レートは､学会参加伺書を作成した日付の東京三菱UFJ銀行外為TTSレートを使用し、エビデンスを添付して提出すること。 手数料が別記されている場合はその他に記載。
D66: 東京三菱UFJ銀行外為TTSレート | J66: http://www.bk.mufg.jp/gdocs/kinri/list_j/kinri/kawase.html
B67: =国内・海外学会参加伺書参考!B67 -> ※5 バンケット､懇親会費用が学会等参加費に含まれる場合､金額が明記されている場合はエビデンスを添付し､その金額を懇親会等費用に記述する。 金額が明記されていない場合は\3,000/回とする。(学会等参加費の運用について参照) ※6 バンケット､懇親会費用について別途領収書が発行されている場合に記述。

Sheet 国内・海外学会参加精算書-2
G1: 国内 ・ 海外 学会参加精算書
G3: 本 部
B4: 決裁印 | G4: =国内・海外学会参加伺書参考!G4 -> 総務担当 部長 | I4: =国内・海外学会参加伺書参考!I4 -> 経理 | K4: =国内・海外学会参加伺書参考!K4 -> 業務管理者 | M4: =国内・海外学会参加伺書参考!M4 -> 担当部長 | O4: =国内・海外学会参加伺書参考!O4 -> 受付
T7: 起案日
B10: 海外出張を伴う学会等参加の場合 ※※
B15: 参加者 | F15: 研究実施場所 | J15: 役職 | M15: 氏名 | P15: 会員情報 ※1
F16: ='国内・海外学会参加伺書-2'!F16 -> 0 | J16: ='国内・海外学会参加伺書-2'!J16 -> 0 | M16: ='国内・海外学会参加伺書-2'!M16 -> 0 | O16: ㊞
B18: 開催地(国･都市） | G18: ='国内・海外学会参加伺書-2'!G18 -> 0
B20: 学会名（会場/訪問先） | G20: ='国内・海外学会参加伺書-2'!G20 -> 0
B22: 学会会議概要と目的 | G22: ='国内・海外学会参加伺書-2'!G22 -> 0
C25: 1．学会等参加費
C27: 日付 | F27: 項目 | L27: 現地支払額 | O27: 円換算 | Q27: 換算レート ※4 | T27: 換算レートエビデンス資料No. | V27: エビデンス添付資料No. | W27: 計上
C28: =IF('国内・海外学会参加伺書-2'!C28="","",'国内・海外学会参加伺書-2'!C28) ->  | F28: =IF('国内・海外学会参加伺書-2'!F28="","",'国内・海外学会参加伺書-2'!F28) -> 学会参加費 | M28: ='国内・海外学会参加伺書-2'!M28:N28 -> 0.00 | O28: =TRUNC(M28*Q28) -> ¥0 | Q28: ='国内・海外学会参加伺書-2'!Q28 -> ¥0.00 | S28: =IF(ISERROR(VLOOKUP(L28,データ!$D$31:$E$48,2,0)),"",(VLOOKUP(L28,データ!$D$31:$E$48,2,0))) ->  | T28: =IF('国内・海外学会参加伺書-2'!T28="","",'国内・海外学会参加伺書-2'!T28) ->  | V28: =IF('国内・海外学会参加伺書-2'!V28="","",'国内・海外学会参加伺書-2'!V28) -> 
C29: 計 | O29: =SUM(O28:P28) -> ¥0
C31: =国内・海外学会参加伺書参考!C31 -> 2．学会等開催の懇親会等費用(懇親会等費用が参加費とは別途領収書が発行されている場合) ※6
C33: 日付 | F33: 項目 | L33: 現地支払額 | O33: 円換算 | Q33: 換算レート | T33: 換算レートエビデンス資料No. | V33: エビデンス添付資料No. | W33: 計上
C34: =IF('国内・海外学会参加伺書-2'!C34="","",'国内・海外学会参加伺書-2'!C34) ->  | F34: =IF('国内・海外学会参加伺書-2'!F34="","",'国内・海外学会参加伺書-2'!F34) -> 懇親会費 | M34: ='国内・海外学会参加伺書-2'!M34 -> 0.00 | O34: =TRUNC(M34*Q34) -> ¥0 | Q34: ='国内・海外学会参加伺書-2'!Q34 -> ¥0.00 | S34: =IF(ISERROR(VLOOKUP(L34,データ!$D$31:$E$48,2,0)),"",(VLOOKUP(L34,データ!$D$31:$E$48,2,0))) ->  | T34: =IF('国内・海外学会参加伺書-2'!T34="","",'国内・海外学会参加伺書-2'!T34) ->  | V34: =IF('国内・海外学会参加伺書-2'!V34="","",'国内・海外学会参加伺書-2'!V34) ->  | W34: =IF('国内・海外学会参加伺書-2'!W34="","",'国内・海外学会参加伺書-2'!W34) -> 間
C35: =IF('国内・海外学会参加伺書-2'!C35="","",'国内・海外学会参加伺書-2'!C35) ->  | F35: =IF('国内・海外学会参加伺書-2'!F35="","",'国内・海外学会参加伺書-2'!F35) ->  | M35: ='国内・海外学会参加伺書-2'!M35 -> 0.00 | O35: =TRUNC(M35*Q35) -> ¥0 | Q35: ='国内・海外学会参加伺書-2'!Q35 -> ¥0.00 | S35: =IF(ISERROR(VLOOKUP(L35,データ!$D$31:$E$48,2,0)),"",(VLOOKUP(L35,データ!$D$31:$E$48,2,0))) ->  | T35: =IF('国内・海外学会参加伺書-2'!T35="","",'国内・海外学会参加伺書-2'!T35) ->  | V35: =IF('国内・海外学会参加伺書-2'!V35="","",'国内・海外学会参加伺書-2'!V35) ->  | W35: =IF('国内・海外学会参加伺書-2'!W35="","",'国内・海外学会参加伺書-2'!W35) -> 間
C36: 計 | O36: =SUM(O34:P35) -> ¥0
C38: =国内・海外学会参加伺書参考!C38 -> 3．学会等開催の懇親会等費用による参加費の研究開発直接費/間接費調整(学会等参加費に含まれる場合) ※5,※7
C40: 日付 | F40: 項目 | L40: 現地支払額 | O40: 円換算 | Q40: 換算レート | T40: 換算レートエビデンス資料No. | V40: エビデンス添付資料No. | W40: 計上
F41: =国内・海外学会参加伺書参考!F41 -> 学会開催の懇親会等費用 | M41: ='国内・海外学会参加伺書-2'!M41 -> 0.00 | O41: =TRUNC(M41*Q41) -> ¥0 | Q41: ='国内・海外学会参加伺書-2'!Q41 -> ¥0.00 | S41: =IF(ISERROR(VLOOKUP(L41,データ!$D$31:$E$48,2,0)),"",(VLOOKUP(L41,データ!$D$31:$E$48,2,0))) ->  | T41: =IF('国内・海外学会参加伺書-2'!T41="","",'国内・海外学会参加伺書-2'!T41) ->  | V41: =IF('国内・海外学会参加伺書-2'!V41="","",'国内・海外学会参加伺書-2'!V41) ->  | W41: =IF('国内・海外学会参加伺書-2'!W41="","",'国内・海外学会参加伺書-2'!W41) -> 間
C42: =IF('国内・海外学会参加伺書-2'!C42="","",'国内・海外学会参加伺書-2'!C42) ->  | F42: =IF('国内・海外学会参加伺書-2'!F42="","",'国内・海外学会参加伺書-2'!F42) ->  | M42: ='国内・海外学会参加伺書-2'!M42 -> 0.00 | O42: =TRUNC(M42*Q42) -> ¥0 | Q42: ='国内・海外学会参加伺書-2'!Q42 -> ¥0.00 | S42: =IF(ISERROR(VLOOKUP(L42,データ!$D$31:$E$48,2,0)),"",(VLOOKUP(L42,データ!$D$31:$E$48,2,0))) ->  | T42: =IF('国内・海外学会参加伺書-2'!T42="","",'国内・海外学会参加伺書-2'!T42) ->  | V42: =IF('国内・海外学会参加伺書-2'!V42="","",'国内・海外学会参加伺書-2'!V42) ->  | W42: 間
C43: =IF('国内・海外学会参加伺書-2'!C43="","",'国内・海外学会参加伺書-2'!C43) ->  | F43: =IF('国内・海外学会参加伺書-2'!F43="","",'国内・海外学会参加伺書-2'!F43) ->  | M43: ='国内・海外学会参加伺書-2'!M43 -> 0.00 | O43: =TRUNC(M43*Q43) -> ¥0 | Q43: ='国内・海外学会参加伺書-2'!Q43 -> ¥0.00 | S43: =IF(ISERROR(VLOOKUP(L43,データ!$D$31:$E$48,2,0)),"",(VLOOKUP(L43,データ!$D$31:$E$48,2,0))) ->  | T43: =IF('国内・海外学会参加伺書-2'!T43="","",'国内・海外学会参加伺書-2'!T43) ->  | V43: =IF('国内・海外学会参加伺書-2'!V43="","",'国内・海外学会参加伺書-2'!V43) ->  | W43: 間
B44: ※1 経路には交通手段を記述する。 ※2 交通費のエビデンスとして､駅すぱあと等のプリントアウトを添付する。 ※3 出張先における行動が判るように記述する。宿泊先から出張先との往復も記述。交通費がかからない場合は徒歩と記述。 ※4 前泊､後泊は業務管理者の事前承認を得て､備考欄にその理由記述した場合のみ認める。 ※5 タクシー利用について､目的地までの公共機関がない場合、又は公共機関があっても待ち時間が１時間以上の場合､ 会議資料など大量の荷物がある場合で､担当副所長の事前承認を得て､備考欄にその理由記述した場合のみ認める。 ※6 旅行会社からの旅行代金お見積書､旅行計画表を添付する。 | C44: 計 | O44: =SUM(O41:P43) -> ¥0
C46: 4．その他
C48: 日付 | F48: 項目 | L48: 現地支払額 | O48: 円換算 | Q48: 換算レート | T48: 換算レートエビデンス資料No. | V48: エビデンス添付資料No. | W48: 計上
C49: =IF('国内・海外学会参加伺書-2'!C49="","",'国内・海外学会参加伺書-2'!C49) ->  | F49: =IF('国内・海外学会参加伺書-2'!F49="","",'国内・海外学会参加伺書-2'!F49) -> 両替手数料 | M49: ='国内・海外学会参加伺書-2'!M49 -> 0.00 | O49: =TRUNC(M49*Q49) -> ¥0 | Q49: ='国内・海外学会参加伺書-2'!Q49 -> ¥0.00 | S49: =IF(ISERROR(VLOOKUP(L49,データ!$D$31:$E$48,2,0)),"",(VLOOKUP(L49,データ!$D$31:$E$48,2,0))) ->  | T49: =IF('国内・海外学会参加伺書-2'!T49="","",'国内・海外学会参加伺書-2'!T49) ->  | V49: =IF('国内・海外学会参加伺書-2'!V49="","",'国内・海外学会参加伺書-2'!V49) ->  | W49: =IF('国内・海外学会参加伺書-2'!W49="","",'国内・海外学会参加伺書-2'!W49) -> 
C50: =IF('国内・海外学会参加伺書-2'!C50="","",'国内・海外学会参加伺書-2'!C50) ->  | F50: =IF('国内・海外学会参加伺書-2'!F50="","",'国内・海外学会参加伺書-2'!F50) ->  | M50: ='国内・海外学会参加伺書-2'!M50 -> 0.00 | O50: =TRUNC(M50*Q50) -> ¥0 | Q50: ='国内・海外学会参加伺書-2'!Q50 -> ¥0.00 | S50: =IF(ISERROR(VLOOKUP(L50,データ!$D$31:$E$48,2,0)),"",(VLOOKUP(L50,データ!$D$31:$E$48,2,0))) ->  | T50: =IF('国内・海外学会参加伺書-2'!T50="","",'国内・海外学会参加伺書-2'!T50) ->  | V50: =IF('国内・海外学会参加伺書-2'!V50="","",'国内・海外学会参加伺書-2'!V50) ->  | W50: =IF('国内・海外学会参加伺書-2'!W50="","",'国内・海外学会参加伺書-2'!W50) -> 
C51: =IF('国内・海外学会参加伺書-2'!C51="","",'国内・海外学会参加伺書-2'!C51) ->  | F51: =IF('国内・海外学会参加伺書-2'!F51="","",'国内・海外学会参加伺書-2'!F51) ->  | M51: ='国内・海外学会参加伺書-2'!M51 -> 0.00 | O51: =TRUNC(M51*Q51) -> ¥0 | Q51: ='国内・海外学会参加伺書-2'!Q51 -> ¥0.00 | S51: =IF(ISERROR(VLOOKUP(L51,データ!$D$31:$E$48,2,0)),"",(VLOOKUP(L51,データ!$D$31:$E$48,2,0))) ->  | T51: =IF('国内・海外学会参加伺書-2'!T51="","",'国内・海外学会参加伺書-2'!T51) ->  | V51: =IF('国内・海外学会参加伺書-2'!V51="","",'国内・海外学会参加伺書-2'!V51) ->  | W51: =IF('国内・海外学会参加伺書-2'!W51="","",'国内・海外学会参加伺書-2'!W51) -> 
C52: 計 | O52: =SUM(O49:P51) -> ¥0
B57: 本人精算 | F57: 合計額 | H57: =H59+H61 -> ¥0
F59: 研究開発費 | H59: =SUMIF(W28,"直",O28)+SUMIF(W49:W51,"直",O49:P51)-IF(W28="直",O44) -> ¥0
F61: 間接費 | H61: =O36+IF(W28="直",O44)+SUMIF(W28,"間",O29)+SUMIF(W49:W51,"間",O49:P51) -> ¥0
B65: =国内・海外学会参加伺書参考!B65 -> ※※ 海外出張を伴う学会参加の場合は､実施計画書への記載､予算措置を確認する。 予算措置がない場合は、【手続き方法】シートに書かれている【□事前承認】を参考に事前承認を得たあと、学会参加伺書を提出のこと。 ※1 参加する学会の主催学会会員/非会員をチェックする。 ※2 エビデンスには①､②のようにNo.を振る。 ※3 計上は研究開発直接費の場合は”直”､それ以外の間接費の場合は”間”を選択。 ※4 学会等参加費の換算レートは､学会参加伺書を作成した日付の東京三菱UFJ銀行外為TTSレートを使用し、エビデンスを添付して提出すること。 手数料が別記されている場合はその他に記載。
E66: 東京三菱UFJ銀行外為TTSレート | J66: http://www.bk.mufg.jp/gdocs/kinri/list_j/kinri/kawase.html | S66: を使用
B67: =国内・海外学会参加伺書参考!B67 -> ※5 バンケット､懇親会費用が学会等参加費に含まれる場合､金額が明記されている場合はエビデンスを添付し､その金額を懇親会等費用に記述する。 金額が明記されていない場合は\3,000/回とする。(学会等参加費の運用について参照) ※6 バンケット､懇親会費用について別途領収書が発行されている場合に記述。

Sheet 国内・海外学会参加伺書-3
G1: 国内 ・ 海外 学会参加伺書
G3: 本 部
B4: 決裁印 | G4: =国内・海外学会参加伺書参考!G4 -> 総務担当 部長 | I4: =国内・海外学会参加伺書参考!I4 -> 経理 | K4: =国内・海外学会参加伺書参考!K4 -> 業務管理者 | M4: =国内・海外学会参加伺書参考!M4 -> 担当部長 | O4: =国内・海外学会参加伺書参考!O4 -> 受付
T7: 起案日
B10: 海外出張を伴う学会等参加の場合 ※※
B15: 参加者 | F15: 研究実施場所 | J15: 役職 | M15: 氏名 | P15: 会員情報 ※1
F16: ='旅費・交通費、諸経費合計'!V7 -> 0 | J16: ='旅費・交通費、諸経費合計'!W8 -> 0 | M16: ='旅費・交通費、諸経費合計'!AC8 -> 0 | O16: ㊞
B18: 開催地(国･都市）
B20: 学会名（会場/訪問先）
B22: 学会会議概要と目的
C25: 1．学会等参加費
C27: 日付 | F27: 項目 | L27: 現地支払額 | O27: 円換算 | Q27: 換算レート ※4 | T27: 換算レートエビデンス資料No. | V27: エビデンス添付資料No. | W27: 計上
F28: 学会参加費 | O28: =TRUNC(M28*Q28) -> ¥0 | S28: =IF(ISERROR(VLOOKUP(L28,データ!$D$31:$E$48,2,0)),"",(VLOOKUP(L28,データ!$D$31:$E$48,2,0))) -> 
C29: 計 | O29: =SUM(O28:P28) -> ¥0
C31: =国内・海外学会参加伺書参考!C31 -> 2．学会等開催の懇親会等費用(懇親会等費用が参加費とは別途領収書が発行されている場合) ※6
C33: 日付 | F33: 項目 | L33: 現地支払額 | O33: 円換算 | Q33: 換算レート | T33: 換算レートエビデンス資料No. | V33: エビデンス添付資料No. | W33: 計上
F34: 懇親会費 | O34: =TRUNC(M34*Q34) -> ¥0 | S34: =IF(ISERROR(VLOOKUP(L34,データ!$D$31:$E$48,2,0)),"",(VLOOKUP(L34,データ!$D$31:$E$48,2,0))) ->  | W34: 間
O35: =TRUNC(M35*Q35) -> ¥0 | S35: =IF(ISERROR(VLOOKUP(L35,データ!$D$31:$E$48,2,0)),"",(VLOOKUP(L35,データ!$D$31:$E$48,2,0))) ->  | W35: 間
C36: 計 | O36: =SUM(O34:P35) -> ¥0
C38: =国内・海外学会参加伺書参考!C38 -> 3．学会等開催の懇親会等費用による参加費の研究開発直接費/間接費調整(学会等参加費に含まれる場合) ※5,※7
C40: 日付 | F40: 項目 | L40: 現地支払額 | O40: 円換算 | Q40: 換算レート | T40: 換算レートエビデンス資料No. | V40: エビデンス添付資料No. | W40: 計上
F41: =国内・海外学会参加伺書参考!F41 -> 学会開催の懇親会等費用 | O41: =TRUNC(M41*Q41) -> ¥0 | S41: =IF(ISERROR(VLOOKUP(L41,データ!$D$31:$E$48,2,0)),"",(VLOOKUP(L41,データ!$D$31:$E$48,2,0))) ->  | W41: 間
O42: =TRUNC(M42*Q42) -> ¥0 | S42: =IF(ISERROR(VLOOKUP(L42,データ!$D$31:$E$48,2,0)),"",(VLOOKUP(L42,データ!$D$31:$E$48,2,0))) ->  | W42: 間
O43: =TRUNC(M43*Q43) -> ¥0 | S43: =IF(ISERROR(VLOOKUP(L43,データ!$D$31:$E$48,2,0)),"",(VLOOKUP(L43,データ!$D$31:$E$48,2,0))) ->  | W43: 間
C44: 計 | O44: =SUM(O41:P43) -> ¥0
C46: 4．その他
C48: 日付 | F48: 項目 | L48: 現地支払額 | O48: 円換算 | Q48: 換算レート | T48: 換算レートエビデンス資料No. | V48: エビデンス添付資料No. | W48: 計上
F49: 両替手数料 | O49: =TRUNC(M49*Q49) -> ¥0 | S49: =IF(ISERROR(VLOOKUP(L49,データ!$D$31:$E$48,2,0)),"",(VLOOKUP(L49,データ!$D$31:$E$48,2,0))) -> 
O50: =TRUNC(M50*Q50) -> ¥0 | S50: =IF(ISERROR(VLOOKUP(L50,データ!$D$31:$E$48,2,0)),"",(VLOOKUP(L50,データ!$D$31:$E$48,2,0))) -> 
O51: =TRUNC(M51*Q51) -> ¥0 | S51: =IF(ISERROR(VLOOKUP(L51,データ!$D$31:$E$48,2,0)),"",(VLOOKUP(L51,データ!$D$31:$E$48,2,0))) -> 
C52: 計 | O52: =SUM(O49:P51) -> ¥0
B57: 本人精算 | F57: 合計額 | H57: =H59+H61 -> ¥0
F59: 研究開発費 | H59: =SUMIF(W28,"直",O28)+SUMIF(W49:W51,"直",O49:P51)-IF(W28="直",O44) -> ¥0
F61: 間接費 | H61: =O36+IF(W28="直",O44)+SUMIF(W28,"間",O29)+SUMIF(W49:W51,"間",O49:P51) -> ¥0
B65: =国内・海外学会参加伺書参考!B65 -> ※※ 海外出張を伴う学会参加の場合は､実施計画書への記載､予算措置を確認する。 予算措置がない場合は、【手続き方法】シートに書かれている【□事前承認】を参考に事前承認を得たあと、学会参加伺書を提出のこと。 ※1 参加する学会の主催学会会員/非会員をチェックする。 ※2 エビデンスには①､②のようにNo.を振る。 ※3 計上は研究開発直接費の場合は”直”､それ以外の間接費の場合は”間”を選択。 ※4 学会等参加費の換算レートは､学会参加伺書を作成した日付の東京三菱UFJ銀行外為TTSレートを使用し、エビデンスを添付して提出すること。 手数料が別記されている場合はその他に記載。
D66: 東京三菱UFJ銀行外為TTSレート | J66: http://www.bk.mufg.jp/gdocs/kinri/list_j/kinri/kawase.html
B67: =国内・海外学会参加伺書参考!B67 -> ※5 バンケット､懇親会費用が学会等参加費に含まれる場合､金額が明記されている場合はエビデンスを添付し､その金額を懇親会等費用に記述する。 金額が明記されていない場合は\3,000/回とする。(学会等参加費の運用について参照) ※6 バンケット､懇親会費用について別途領収書が発行されている場合に記述。

Sheet 国内・海外学会参加精算書-3
G1: 国内 ・ 海外 学会参加精算書
G3: 本 部
B4: 決裁印 | G4: =国内・海外学会参加伺書参考!G4 -> 総務担当 部長 | I4: =国内・海外学会参加伺書参考!I4 -> 経理 | K4: =国内・海外学会参加伺書参考!K4 -> 業務管理者 | M4: =国内・海外学会参加伺書参考!M4 -> 担当部長 | O4: =国内・海外学会参加伺書参考!O4 -> 受付
T7: 起案日
B10: 海外出張を伴う学会等参加の場合 ※※
B15: 参加者 | F15: 研究実施場所 | J15: 役職 | M15: 氏名 | P15: 会員情報 ※1
F16: ='国内・海外学会参加伺書-3'!F16 -> 0 | J16: ='国内・海外学会参加伺書-3'!J16 -> 0 | M16: ='国内・海外学会参加伺書-3'!M16 -> 0 | O16: ㊞
B18: 開催地(国･都市） | G18: ='国内・海外学会参加伺書-3'!G18 -> 0
B20: 学会名（会場/訪問先） | G20: ='国内・海外学会参加伺書-3'!G20 -> 0
B22: 学会会議概要と目的 | G22: ='国内・海外学会参加伺書-3'!G22 -> 0
C25: 1．学会等参加費
C27: 日付 | F27: 項目 | L27: 現地支払額 | O27: 円換算 | Q27: 換算レート ※4 | T27: 換算レートエビデンス資料No. | V27: エビデンス添付資料No. | W27: 計上
C28: =IF('国内・海外学会参加伺書-3'!C28="","",'国内・海外学会参加伺書-3'!C28) ->  | F28: =IF('国内・海外学会参加伺書-3'!F28="","",'国内・海外学会参加伺書-3'!F28) -> 学会参加費 | M28: ='国内・海外学会参加伺書-3'!M28:N28 -> 0.00 | O28: =TRUNC(M28*Q28) -> ¥0 | Q28: ='国内・海外学会参加伺書-3'!Q28 -> ¥0.00 | S28: =IF(ISERROR(VLOOKUP(L28,データ!$D$31:$E$48,2,0)),"",(VLOOKUP(L28,データ!$D$31:$E$48,2,0))) ->  | T28: =IF('国内・海外学会参加伺書-3'!T28="","",'国内・海外学会参加伺書-3'!T28) ->  | V28: =IF('国内・海外学会参加伺書-3'!V28="","",'国内・海外学会参加伺書-3'!V28) -> 
C29: 計 | O29: =SUM(O28:P28) -> ¥0
C31: =国内・海外学会参加伺書参考!C31 -> 2．学会等開催の懇親会等費用(懇親会等費用が参加費とは別途領収書が発行されている場合) ※6
C33: 日付 | F33: 項目 | L33: 現地支払額 | O33: 円換算 | Q33: 換算レート | T33: 換算レートエビデンス資料No. | V33: エビデンス添付資料No. | W33: 計上
C34: =IF('国内・海外学会参加伺書-3'!C34="","",'国内・海外学会参加伺書-3'!C34) ->  | F34: =IF('国内・海外学会参加伺書-3'!F34="","",'国内・海外学会参加伺書-3'!F34) -> 懇親会費 | M34: ='国内・海外学会参加伺書-3'!M34:N34 -> 0.00 | O34: =TRUNC(M34*Q34) -> ¥0 | Q34: ='国内・海外学会参加伺書-3'!Q34 -> ¥0.00 | S34: =IF(ISERROR(VLOOKUP(L34,データ!$D$31:$E$48,2,0)),"",(VLOOKUP(L34,データ!$D$31:$E$48,2,0))) ->  | T34: =IF('国内・海外学会参加伺書-3'!T34="","",'国内・海外学会参加伺書-3'!T34) ->  | V34: =IF('国内・海外学会参加伺書-3'!V34="","",'国内・海外学会参加伺書-3'!V34) ->  | W34: =IF('国内・海外学会参加伺書-3'!W34="","",'国内・海外学会参加伺書-3'!W34) -> 間
C35: =IF('国内・海外学会参加伺書-3'!C35="","",'国内・海外学会参加伺書-3'!C35) ->  | F35: =IF('国内・海外学会参加伺書-3'!F35="","",'国内・海外学会参加伺書-3'!F35) ->  | M35: ='国内・海外学会参加伺書-3'!M35:N35 -> 0.00 | O35: =TRUNC(M35*Q35) -> ¥0 | Q35: ='国内・海外学会参加伺書-3'!Q35 -> ¥0.00 | S35: =IF(ISERROR(VLOOKUP(L35,データ!$D$31:$E$48,2,0)),"",(VLOOKUP(L35,データ!$D$31:$E$48,2,0))) ->  | T35: =IF('国内・海外学会参加伺書-3'!T35="","",'国内・海外学会参加伺書-3'!T35) ->  | V35: =IF('国内・海外学会参加伺書-3'!V35="","",'国内・海外学会参加伺書-3'!V35) ->  | W35: =IF('国内・海外学会参加伺書-3'!W35="","",'国内・海外学会参加伺書-3'!W35) -> 間
C36: 計 | O36: =SUM(O34:P35) -> ¥0
C38: =国内・海外学会参加伺書参考!C38 -> 3．学会等開催の懇親会等費用による参加費の研究開発直接費/間接費調整(学会等参加費に含まれる場合) ※5,※7
C40: 日付 | F40: 項目 | L40: 現地支払額 | O40: 円換算 | Q40: 換算レート | T40: 換算レートエビデンス資料No. | V40: エビデンス添付資料No. | W40: 計上
F41: =国内・海外学会参加伺書参考!F41 -> 学会開催の懇親会等費用 | M41: ='国内・海外学会参加伺書-3'!M41:N41 -> 0.00 | O41: =TRUNC(M41*Q41) -> ¥0 | Q41: ='国内・海外学会参加伺書-3'!Q41 -> ¥0.00 | S41: =IF(ISERROR(VLOOKUP(L41,データ!$D$31:$E$48,2,0)),"",(VLOOKUP(L41,データ!$D$31:$E$48,2,0))) ->  | T41: =IF('国内・海外学会参加伺書-3'!T41="","",'国内・海外学会参加伺書-3'!T41) ->  | V41: =IF('国内・海外学会参加伺書-3'!V41="","",'国内・海外学会参加伺書-3'!V41) ->  | W41: =IF('国内・海外学会参加伺書-3'!W41="","",'国内・海外学会参加伺書-3'!W41) -> 間
C42: =IF('国内・海外学会参加伺書-3'!C42="","",'国内・海外学会参加伺書-3'!C42) ->  | F42: =IF('国内・海外学会参加伺書-3'!F42="","",'国内・海外学会参加伺書-3'!F42) ->  | M42: ='国内・海外学会参加伺書-3'!M42:N42 -> 0.00 | O42: =TRUNC(M42*Q42) -> ¥0 | Q42: ='国内・海外学会参加伺書-3'!Q42 -> ¥0.00 | S42: =IF(ISERROR(VLOOKUP(L42,データ!$D$31:$E$48,2,0)),"",(VLOOKUP(L42,データ!$D$31:$E$48,2,0))) ->  | T42: =IF('国内・海外学会参加伺書-3'!T42="","",'国内・海外学会参加伺書-3'!T42) ->  | V42: =IF('国内・海外学会参加伺書-3'!V42="","",'国内・海外学会参加伺書-3'!V42) ->  | W42: 間
C43: =IF('国内・海外学会参加伺書-3'!C43="","",'国内・海外学会参加伺書-3'!C43) ->  | F43: =IF('国内・海外学会参加伺書-3'!F43="","",'国内・海外学会参加伺書-3'!F43) ->  | M43: ='国内・海外学会参加伺書-3'!M43:N43 -> 0.00 | O43: =TRUNC(M43*Q43) -> ¥0 | Q43: ='国内・海外学会参加伺書-3'!Q43 -> ¥0.00 | S43: =IF(ISERROR(VLOOKUP(L43,データ!$D$31:$E$48,2,0)),"",(VLOOKUP(L43,データ!$D$31:$E$48,2,0))) ->  | T43: =IF('国内・海外学会参加伺書-3'!T43="","",'国内・海外学会参加伺書-3'!T43) ->  | V43: =IF('国内・海外学会参加伺書-3'!V43="","",'国内・海外学会参加伺書-3'!V43) ->  | W43: 間
B44: ※1 経路には交通手段を記述する。 ※2 交通費のエビデンスとして､駅すぱあと等のプリントアウトを添付する。 ※3 出張先における行動が判るように記述する。宿泊先から出張先との往復も記述。交通費がかからない場合は徒歩と記述。 ※4 前泊､後泊は業務管理者の事前承認を得て､備考欄にその理由記述した場合のみ認める。 ※5 タクシー利用について､目的地までの公共機関がない場合、又は公共機関があっても待ち時間が１時間以上の場合､ 会議資料など大量の荷物がある場合で､担当副所長の事前承認を得て､備考欄にその理由記述した場合のみ認める。 ※6 旅行会社からの旅行代金お見積書､旅行計画表を添付する。 | C44: 計 | O44: =SUM(O41:P43) -> ¥0
C46: 4．その他
C48: 日付 | F48: 項目 | L48: 現地支払額 | O48: 円換算 | Q48: 換算レート | T48: 換算レートエビデンス資料No. | V48: エビデンス添付資料No. | W48: 計上
C49: =IF('国内・海外学会参加伺書-3'!C49="","",'国内・海外学会参加伺書-3'!C49) ->  | F49: =IF('国内・海外学会参加伺書-3'!F49="","",'国内・海外学会参加伺書-3'!F49) -> 両替手数料 | M49: ='国内・海外学会参加伺書-3'!M49:N49 -> 0.00 | O49: =TRUNC(M49*Q49) -> ¥0 | Q49: ='国内・海外学会参加伺書-3'!Q49 -> ¥0.00 | S49: =IF(ISERROR(VLOOKUP(L49,データ!$D$31:$E$48,2,0)),"",(VLOOKUP(L49,データ!$D$31:$E$48,2,0))) ->  | T49: =IF('国内・海外学会参加伺書-3'!T49="","",'国内・海外学会参加伺書-3'!T49) ->  | V49: =IF('国内・海外学会参加伺書-3'!V49="","",'国内・海外学会参加伺書-3'!V49) ->  | W49: =IF('国内・海外学会参加伺書-3'!W49="","",'国内・海外学会参加伺書-3'!W49) -> 
C50: =IF('国内・海外学会参加伺書-3'!C50="","",'国内・海外学会参加伺書-3'!C50) ->  | F50: =IF('国内・海外学会参加伺書-3'!F50="","",'国内・海外学会参加伺書-3'!F50) ->  | M50: ='国内・海外学会参加伺書-3'!M50:N50 -> 0.00 | O50: =TRUNC(M50*Q50) -> ¥0 | Q50: ='国内・海外学会参加伺書-3'!Q50 -> ¥0.00 | S50: =IF(ISERROR(VLOOKUP(L50,データ!$D$31:$E$48,2,0)),"",(VLOOKUP(L50,データ!$D$31:$E$48,2,0))) ->  | T50: =IF('国内・海外学会参加伺書-3'!T50="","",'国内・海外学会参加伺書-3'!T50) ->  | V50: =IF('国内・海外学会参加伺書-3'!V50="","",'国内・海外学会参加伺書-3'!V50) ->  | W50: =IF('国内・海外学会参加伺書-3'!W50="","",'国内・海外学会参加伺書-3'!W50) -> 
C51: =IF('国内・海外学会参加伺書-3'!C51="","",'国内・海外学会参加伺書-3'!C51) ->  | F51: =IF('国内・海外学会参加伺書-3'!F51="","",'国内・海外学会参加伺書-3'!F51) ->  | M51: ='国内・海外学会参加伺書-3'!M51:N51 -> 0.00 | O51: =TRUNC(M51*Q51) -> ¥0 | Q51: ='国内・海外学会参加伺書-3'!Q51 -> ¥0.00 | S51: =IF(ISERROR(VLOOKUP(L51,データ!$D$31:$E$48,2,0)),"",(VLOOKUP(L51,データ!$D$31:$E$48,2,0))) ->  | T51: =IF('国内・海外学会参加伺書-3'!T51="","",'国内・海外学会参加伺書-3'!T51) ->  | V51: =IF('国内・海外学会参加伺書-3'!V51="","",'国内・海外学会参加伺書-3'!V51) ->  | W51: =IF('国内・海外学会参加伺書-3'!W51="","",'国内・海外学会参加伺書-3'!W51) -> 
C52: 計 | O52: =SUM(O49:P51) -> ¥0
B57: 本人精算 | F57: 合計額 | H57: =H59+H61 -> ¥0
F59: 研究開発費 | H59: =SUMIF(W28,"直",O28)+SUMIF(W49:W51,"直",O49:P51)-IF(W28="直",O44) -> ¥0
F61: 間接費 | H61: =O36+IF(W28="直",O44)+SUMIF(W28,"間",O29)+SUMIF(W49:W51,"間",O49:P51) -> ¥0
B65: =国内・海外学会参加伺書参考!B65 -> ※※ 海外出張を伴う学会参加の場合は､実施計画書への記載､予算措置を確認する。 予算措置がない場合は、【手続き方法】シートに書かれている【□事前承認】を参考に事前承認を得たあと、学会参加伺書を提出のこと。 ※1 参加する学会の主催学会会員/非会員をチェックする。 ※2 エビデンスには①､②のようにNo.を振る。 ※3 計上は研究開発直接費の場合は”直”､それ以外の間接費の場合は”間”を選択。 ※4 学会等参加費の換算レートは､学会参加伺書を作成した日付の東京三菱UFJ銀行外為TTSレートを使用し、エビデンスを添付して提出すること。 手数料が別記されている場合はその他に記載。
E66: 東京三菱UFJ銀行外為TTSレート | J66: http://www.bk.mufg.jp/gdocs/kinri/list_j/kinri/kawase.html | S66: を使用
B67: =国内・海外学会参加伺書参考!B67 -> ※5 バンケット､懇親会費用が学会等参加費に含まれる場合､金額が明記されている場合はエビデンスを添付し､その金額を懇親会等費用に記述する。 金額が明記されていない場合は\3,000/回とする。(学会等参加費の運用について参照) ※6 バンケット､懇親会費用について別途領収書が発行されている場合に記述。

Sheet 海外出張伺書参考
B1: 海外出張(伺書・精算)
B4: 決裁印 | D4: 本 部
D5: =国内・海外学会参加伺書参考!G4 -> 総務担当 部長 | E5: =国内・海外学会参加伺書参考!I4 -> 経理 | F5: =国内・海外学会参加伺書参考!K4 -> 業務管理者 | G5: =国内・海外学会参加伺書参考!M4 -> 担当部長 | H5: =国内・海外学会参加伺書参考!O4 -> 受付
B10: 研究実施場所 | E10: 役職 | G10: 氏 名 | M10: 起 案 日 | O10: 2013-01-10
B11: ①技術研究組合NMEMS技術研究機構 高効率ＭＥＨ研究所 | E11: 主幹研究員 | G11: ▲▼ △▽
B16: 用務先（機関等名称） | D16: 出張先所在地（国名・都市） | G16: 指定都市 | H16: 出張用務件名
B17: 2011 SPIE Advanced Lithography | D17: アメリカ・サンノゼ | G17: アビジャン地域 | H17: リソグラフィ技術をテーマとした世界最大の学会であり新規技術と市場経済との関係についての調査
B19: 出張期間 | F19: 2011-02-26 | H19: ～ | I19: 2011-03-04 | K19: 指定都市以外 | L19: （2 | M19: 泊 | N19: 4 | O19: 日）
K20: 指定都市 | L20: （1 | M20: 泊 | N20: 2 | O20: 日）
P21: 単位：円
B22: 日程 | C22: 出発地 | D22: 出発時刻 | E22: 経路 ※1､※2､※3 | I22: 宿泊地 | K22: 備 考
C23: 到着地 | D23: 到着時刻
B24: 2013-02-25 | C24: 秋葉原 | D24: 21:00:00 | E24: 秋葉原→日暮里(JR)→成田空港(京成本線特急)
C25: 成田空港 | D25: 23:00:00
B26: 2013-02-26 | C26: 成田空港 | D26: 01:00:00 | E26: 成田→サンノゼ→○○ホテル（シャトルバス）
C27: サンノゼ | D27: 17:00:00
B28: 2013-02-27 | E28: ○○ホテル⇔●●会場（ＶＴＡ） | I28: サンノゼ | K28: 2011 SPIE Advanced Lithography参加
B30: 2013-02-28 | E30: ○○ホテル⇔●●会場（ＶＴＡ） | I30: サンノゼ | K30: 2011 SPIE Advanced Lithography参加
B32: 2013-03-01 | E32: ○○ホテル⇔●●会場（ＶＴＡ） | I32: サンノゼ | K32: 2011 SPIE Advanced Lithography参加
B34: 2013-03-02 | E34: ○○ホテル⇔●●会場（ＶＴＡ） | I34: サンノゼ | K34: 2011 SPIE Advanced Lithography参加
B36: 2013-03-03 | C36: サンノゼ | D36: 11:00:00 | E36: （シャトルバス）○○ホテル→サンノゼ→成田 | I36: 機内泊
B38: 2013-03-04
C39: 成田空港 | D39: 15:00:00
B40: 2013-03-04 | C40: 成田空港 | D40: 16:00:00 | E40: 成田空港→日暮里(京成本線特急)→秋葉原(JR)
C41: 秋葉原 | D41: 17:30:00
B46: 備考 | K46: 請求金額については別途「海外旅費精算内訳書」参照
B50: 規程：詳細は旅費の運用についてを参照 ※※ 海外出張の場合は､実施計画書への記載､予算措置を確認する。 予算措置がない場合は、【手続き方法】シートに書かれている【□事前承認】を参考に事前承認を得たあと、海外出張伺書を提出のこと。 ※1 経路には交通手段を記述する。 ※2 交通費のエビデンスとして､駅すぱあと等のプリントアウトを添付する。 ※3 出張先における行動が判るように記述する。宿泊先から出張先との往復も記述。交通費がかからない場合は徒歩と記述。 ※4 前泊､後泊は業務管理者の事前承認を得て､備考欄にその理由記述した場合のみ認める。 ※5 タクシー利用について､目的地までの公共機関がない場合、又は公共機関があっても待ち時間が１時間以上の場合､ 会議資料など大量の荷物がある場合で､本部業務管理者の事前承認を得て､備考欄にその理由記述した場合のみ認める。 ※6 旅行会社からの旅行代金見積書､旅行計画表を添付する。
B56: 概算額 （支払先が旅行社か本人かを○で選択する．）
B58: 費用項目 | G58: 金額 | I58: 支払先 旅行社等 | J58: 支払先本人 | L58: エビデンス添付資料No. | N58: 計上 | O58: 備 考
J59: 精算時 | K59: 概算時
B60: 1.国内旅費交通費 | G60: ¥5,480 | J60: ○ | L60: ① | N60: 直
B61: 2.海外渡航費
C62: 航空運賃 | G62: ¥80,000 | I62: ○ | L62: ② | N62: 直
C63: 空港使用料他 | G63: ¥2,540 | I63: ○ | L63: ② | N63: 直
C64: 空港税 | G64: ¥4,300 | I64: ○ | L64: ② | N64: 直
C65: 航空保険料他 | G65: ¥600 | I65: ○ | L65: ② | N65: 直
C66: 海外傷害保険料 | G66: ¥9,520 | I66: ○ | L66: ③ | N66: 直
C67: 発券手数料 | G67: ¥4,200 | I67: ○ | L67: ② | N67: 直
C68: 燃油サーチャージ | G68: ¥58,000 | I68: ○ | L68: ② | N68: 直
C69: その他
B70: 3.海外滞在費
C71: 3.1.宿泊費 | G71: ¥95,000 | J71: ○ | N71: 直
C72: 3.2.日当 | G72: ¥42,000 | J72: ○ | N72: 直
C73: 3.3.宿泊費 | D73: (指定都市)
C74: 3.4.日当 | D74: (指定都市)
C75: 3.5.交通費 | D75: （公共交通）
C76: 3.6.交通費 | D76: （Taxi等)
C77: 3.7.通信費 | D77: （インターネット利用料､電話代）
C78: 3.8.会食費
C79: 3.9.その他
B80: 4.学会開催中の食事代等による日当調整 | G80: ¥-4,000 | J80: ○ | N80: 直
B82: 合計 | G82: =G60+SUM(G62:H69)+SUM(G71:H80) -> ¥297,640 | I82: =SUMIF(I60,"○",G60)+SUMIF(I62:I69,"○",G62:G69)+SUMIF(I71:I80,"○",G71:H80) -> ¥159,160 | J82: =SUMIF(J60,"○",G60)+SUMIF(J62:J69,"○",G62:G69)+SUMIF(J71:J80,"○",G71:H80) -> ¥138,480 | K82: =SUMIF(K60,"○",G60)+SUMIF(K62:K69,"○",G62:H69)+SUMIF(K71:K80,"○",G71:H80) -> ¥0

Sheet 海外出張伺書
B1: 海外出張 | D1: 伺 書
B4: 決裁印 | D4: 本 部
D5: =海外出張伺書参考!D5 -> 総務担当 部長 | E5: =海外出張伺書参考!E5 -> 経理 | F5: =海外出張伺書参考!F5 -> 業務管理者 | G5: =海外出張伺書参考!G5 -> 担当部長 | H5: =海外出張伺書参考!H5 -> 受付
B10: 研究実施場所 | F10: 役職 | H10: 氏 名 | Q10: 起 案 日
B11: ='旅費・交通費、諸経費合計'!V7 -> 0 | F11: ='旅費・交通費、諸経費合計'!W8 -> 0 | H11: ='旅費・交通費、諸経費合計'!AC8 -> 0 | O11: =IF(ISERROR(VLOOKUP($F$11,データ!C2:D5,2,0)),"",(VLOOKUP($F$11,データ!$C$2:$D$5,2,0))) -> 
B16: 用務先（機関等名称） | D16: 出張先所在地（国名・都市） | G16: 指定都市 | H16: 出張用務件名
B19: 出張期間 | H19: ～ | O19: 指定都市以外 | P19: （0 | Q19: 泊 | R19: 0 | S19: 日）
O20: 指定都市 | P20: （0 | Q20: 泊 | R20: 0 | S20: 日）
T21: 単位：円
B22: 日程 | C22: 出発地 | D22: 出発時刻 | E22: 経路 ※1､※2､※3 | I22: 宿泊地 | O22: 備 考
C23: 到着地 | D23: 到着時刻
B44: 備考 | O44: 請求金額については別途「海外旅費精算内訳書」参照
B48: =海外出張伺書参考!B50 -> 規程：詳細は旅費の運用についてを参照 ※※ 海外出張の場合は､実施計画書への記載､予算措置を確認する。 予算措置がない場合は、【手続き方法】シートに書かれている【□事前承認】を参考に事前承認を得たあと、海外出張伺書を提出のこと。 ※1 経路には交通手段を記述する。 ※2 交通費のエビデンスとして､駅すぱあと等のプリントアウトを添付する。 ※3 出張先における行動が判るように記述する。宿泊先から出張先との往復も記述。交通費がかからない場合は徒歩と記述。 ※4 前泊､後泊は業務管理者の事前承認を得て､備考欄にその理由記述した場合のみ認める。 ※5 タクシー利用について､目的地までの公共機関がない場合、又は公共機関があっても待ち時間が１時間以上の場合､ 会議資料など大量の荷物がある場合で､本部業務管理者の事前承認を得て､備考欄にその理由記述した場合のみ認める。 ※6 旅行会社からの旅行代金見積書､旅行計画表を添付する。
B54: 概算額 （支払先が旅行社か本人かを○で選択する．）
B56: 費用項目 | G56: 金額 | I56: 区分 | J56: 宿泊 | K56: 指定区分 | L56: 指定宿泊 | M56: 支払先 旅行社等 | N56: 支払先本人 | P56: エビデンス添付資料No. | R56: 計上 | S56: 備 考
J57: 日当 | L57: 指定日当 | N57: 精算時 | O57: 概算時
B58: 1.国内旅費交通費
B59: 2.海外渡航費
C60: 航空運賃
C61: 空港使用料他
C62: 空港税
C63: 航空保険料他
C64: 海外傷害保険料
C65: 発券手数料
C66: 燃油サーチャージ
C67: その他
B68: 3.海外滞在費
C69: 3.1.宿泊費 | G69: =IFERROR(IF(N69="○",$P$19*$J$69,0),"") -> 0 | I69: =IF(ISERROR(VLOOKUP($F$11,データ!$C$2:$D$7,2,0)),"",(VLOOKUP($F$11,データ!$C$2:$D$7,2,0))) ->  | J69: =(IF($F$11=0,"",IF($I69="A",データ!$E$16,IF($I69="B",データ!$E$17,IF($I69="C",データ!$E$18,IF($I69="D",データ!$E$19)))))) ->  | L69: =IF(K69="",0,IF($I$69="A",データ!$E$22,IF($I$69="B",データ!$E$23,IF($I$69="C",データ!$E$24,IF($I$69="D",データ!$E$25))))) -> ¥0
C70: 3.2.日当 | G70: =IFERROR(IF(N70="○",$R$19*$J$70,0),"") -> 0 | I70: =IF(ISERROR(VLOOKUP($F$11,データ!$C$2:$D$7,2,0)),"",(VLOOKUP($F$11,データ!$C$2:$D$7,2,0))) ->  | J70: =(IF($F$11=0,"",IF($I70="A",データ!$G$16,IF($I70="B",データ!$G$17,IF($I70="C",データ!$G$18,IF($I70="D",データ!$G$19)))))) ->  | L70: =IF(K69="",0,IF($I$69="A",データ!$G$22,IF($I$69="B",データ!$G$23,IF($I$69="C",データ!$G$24,IF($I$69="D",データ!$G$25))))) -> ¥0
C71: 3.3.宿泊費 | D71: (指定都市) | G71: =IFERROR(IF(N71="",0,$P$20*$L$71),"") -> 0 | I71: =IF(ISERROR(VLOOKUP($F$11,データ!$C$2:$D$7,2,0)),"",(VLOOKUP($F$11,データ!$C$2:$D$7,2,0))) ->  | K71: =IF(ISERROR(VLOOKUP($G$17,データ!$I$22:$J$36,2,0)),"",(VLOOKUP($G$17,データ!$I$22:$J$36,2,0))) ->  | L71: =IF($F$11=0,"",IF($I$69="A",データ!$E$22,IF($I$69="B",データ!$E$23,IF($I$69="C",データ!$E$24,IF($I$69="D",データ!$E$25))))) -> 
C72: 3.4.日当 | D72: (指定都市) | G72: =IFERROR(IF(N72="",0,$R$20*$L$72),"") -> 0 | I72: =IF(ISERROR(VLOOKUP($F$11,データ!$C$2:$D$7,2,0)),"",(VLOOKUP($F$11,データ!$C$2:$D$7,2,0))) ->  | K72: =IF(ISERROR(VLOOKUP($G$17,データ!$I$22:$J$36,2,0)),"",(VLOOKUP($G$17,データ!$I$22:$J$36,2,0))) ->  | L72: =IF($F$11=0,"",IF($I$69="A",データ!$G$22,IF($I$69="B",データ!$G$23,IF($I$69="C",データ!$G$24,IF($I$69="D",データ!$G$25))))) -> 
C73: 3.5.交通費 | D73: （公共交通）
C74: 3.6.交通費 | D74: （Taxi等)
C75: 3.7.通信費 | D75: （インターネット利用料､電話代）
C76: 3.8.会食費
C77: 3.9.その他
B78: 4.学会開催中の食事代等による日当調整
B80: 合計 | G80: =G58+SUM(G60:H67)+SUM(G69:H78) -> ¥0 | M80: =SUMIF(M58,"○",G58)+SUMIF(M60:M67,"○",G60:G67)+SUMIF(M69:M78,"○",G69:H78) -> ¥0 | N80: =SUMIF(N58,"○",G58)+SUMIF(N60:N67,"○",G60:G67)+SUMIF(N69:N78,"○",G69:H78) -> ¥0 | O80: =SUMIF(O58,"○",G58)+SUMIF(O60:O67,"○",G60:H67)+SUMIF(O69:O78,"○",G69:H78) -> ¥0

Sheet 海外出張精算書 参考
B1: 海外出張精算書
B4: 決裁印 | D4: 本 部
D5: =海外出張伺書参考!D5 -> 総務担当 部長 | E5: =海外出張伺書参考!E5 -> 経理 | F5: =海外出張伺書参考!F5 -> 業務管理者 | G5: =海外出張伺書参考!G5 -> 担当部長 | H5: =海外出張伺書参考!H5 -> 受付
B10: 研究実施場所 | F10: 役職 | H10: 氏 名 | N10: 起 案 日 | O10: 2015-04-03
B11: ='旅費・交通費、諸経費合計'!V7 -> 0 | F11: ='旅費・交通費、諸経費合計'!W8 -> 0 | H11: ='旅費・交通費、諸経費合計'!AC8 -> 0 | J11: ㊞
B13: 用務先（機関等名称） | D13: 出張先所在地（国名・都市） | G13: 指定都市 | H13: 出張用務件名
B14: =海外出張伺書参考!B17 -> 2011 SPIE Advanced Lithography | D14: =海外出張伺書参考!D17 -> アメリカ・サンノゼ | G14: =海外出張伺書参考!G17 -> アビジャン地域 | H14: =海外出張伺書参考!H17 -> リソグラフィ技術をテーマとした世界最大の学会であり新規技術と市場経済との関係についての調査
B16: 出張期間 | F16: =海外出張伺書参考!F19 -> 2011-02-26 | H16: ～ | I16: =海外出張伺書参考!I19 -> 2011-03-04 | K16: 指定都市以外 | L16: =海外出張伺書参考!P19 -> （0 | M16: 泊 | N16: =海外出張伺書参考!R19 -> 0 | O16: 日）
K17: 指定都市 | L17: =海外出張伺書参考!P20 -> （0 | M17: 泊 | N17: =海外出張伺書参考!R20 -> 0 | O17: 日）
P18: 単位：円
B19: 日程 | C19: 出発地 | D19: 出発時刻 | E19: 経路 ※1､※2､※3 | I19: 宿泊地 | K19: 備 考
C20: 到着地 | D20: 到着時刻
B21: =IF(海外出張伺書参考!B24="","",海外出張伺書参考!B24) -> 2013-02-25 | C21: =IF(海外出張伺書参考!C24="","",海外出張伺書参考!C24) -> 秋葉原 | D21: =IF(海外出張伺書参考!D24="","",海外出張伺書参考!D24) -> 21:00:00 | E21: =IF(海外出張伺書参考!E24="","",海外出張伺書参考!E24) -> 秋葉原→日暮里(JR)→成田空港(京成本線特急) | I21: =海外出張伺書参考!M24 -> 0 | K21: =IF(海外出張伺書参考!O24="","",海外出張伺書参考!O24) -> 
C22: =IF(海外出張伺書参考!C25="","",海外出張伺書参考!C25) -> 成田空港 | D22: =IF(海外出張伺書参考!D25="","",海外出張伺書参考!D25) -> 23:00:00
B23: =IF(海外出張伺書参考!B26="","",海外出張伺書参考!B26) -> 2013-02-26 | C23: =IF(海外出張伺書参考!C26="","",海外出張伺書参考!C26) -> 成田空港 | D23: =IF(海外出張伺書参考!D26="","",海外出張伺書参考!D26) -> 01:00:00 | E23: =IF(海外出張伺書参考!E26="","",海外出張伺書参考!E26) -> 成田→サンノゼ→○○ホテル（シャトルバス） | I23: =海外出張伺書参考!M26 -> 0 | K23: =IF(海外出張伺書参考!O26="","",海外出張伺書参考!O26) -> 
C24: =IF(海外出張伺書参考!C27="","",海外出張伺書参考!C27) -> サンノゼ | D24: =IF(海外出張伺書参考!D27="","",海外出張伺書参考!D27) -> 17:00:00
B25: =IF(海外出張伺書参考!B28="","",海外出張伺書参考!B28) -> 2013-02-27 | C25: =IF(海外出張伺書参考!C28="","",海外出張伺書参考!C28) ->  | D25: =IF(海外出張伺書参考!D28="","",海外出張伺書参考!D28) ->  | E25: =IF(海外出張伺書参考!E28="","",海外出張伺書参考!E28) -> ○○ホテル⇔●●会場（ＶＴＡ） | I25: =海外出張伺書参考!M28 -> 0 | K25: =IF(海外出張伺書参考!O28="","",海外出張伺書参考!O28) -> 
C26: =IF(海外出張伺書参考!C29="","",海外出張伺書参考!C29) ->  | D26: =IF(海外出張伺書参考!D29="","",海外出張伺書参考!D29) -> 
B27: =IF(海外出張伺書参考!B30="","",海外出張伺書参考!B30) -> 2013-02-28 | C27: =IF(海外出張伺書参考!C30="","",海外出張伺書参考!C30) ->  | D27: =IF(海外出張伺書参考!D30="","",海外出張伺書参考!D30) ->  | E27: =IF(海外出張伺書参考!E30="","",海外出張伺書参考!E30) -> ○○ホテル⇔●●会場（ＶＴＡ） | I27: =海外出張伺書参考!M30 -> 0 | K27: =IF(海外出張伺書参考!O30="","",海外出張伺書参考!O30) -> 
C28: =IF(海外出張伺書参考!C31="","",海外出張伺書参考!C31) ->  | D28: =IF(海外出張伺書参考!D31="","",海外出張伺書参考!D31) -> 
B29: =IF(海外出張伺書参考!B32="","",海外出張伺書参考!B32) -> 2013-03-01 | C29: =IF(海外出張伺書参考!C32="","",海外出張伺書参考!C32) ->  | D29: =IF(海外出張伺書参考!D32="","",海外出張伺書参考!D32) ->  | E29: =IF(海外出張伺書参考!E32="","",海外出張伺書参考!E32) -> ○○ホテル⇔●●会場（ＶＴＡ） | I29: =海外出張伺書参考!M32 -> 0 | K29: =IF(海外出張伺書参考!O32="","",海外出張伺書参考!O32) -> 
C30: =IF(海外出張伺書参考!C33="","",海外出張伺書参考!C33) ->  | D30: =IF(海外出張伺書参考!D33="","",海外出張伺書参考!D33) -> 
B31: =IF(海外出張伺書参考!B34="","",海外出張伺書参考!B34) -> 2013-03-02 | C31: =IF(海外出張伺書参考!C34="","",海外出張伺書参考!C34) ->  | D31: =IF(海外出張伺書参考!D34="","",海外出張伺書参考!D34) ->  | E31: =IF(海外出張伺書参考!E34="","",海外出張伺書参考!E34) -> ○○ホテル⇔●●会場（ＶＴＡ） | I31: =海外出張伺書参考!M34 -> 0 | K31: =IF(海外出張伺書参考!O34="","",海外出張伺書参考!O34) -> 
C32: =IF(海外出張伺書参考!C35="","",海外出張伺書参考!C35) ->  | D32: =IF(海外出張伺書参考!D35="","",海外出張伺書参考!D35) -> 
B33: =IF(海外出張伺書参考!B36="","",海外出張伺書参考!B36) -> 2013-03-03 | C33: =IF(海外出張伺書参考!C36="","",海外出張伺書参考!C36) -> サンノゼ | D33: =IF(海外出張伺書参考!D36="","",海外出張伺書参考!D36) -> 11:00:00 | E33: =IF(海外出張伺書参考!E36="","",海外出張伺書参考!E36) -> （シャトルバス）○○ホテル→サンノゼ→成田 | I33: =海外出張伺書参考!M36 -> 0 | K33: =IF(海外出張伺書参考!O36="","",海外出張伺書参考!O36) -> 
C34: =IF(海外出張伺書参考!C37="","",海外出張伺書参考!C37) ->  | D34: =IF(海外出張伺書参考!D37="","",海外出張伺書参考!D37) -> 
B35: =IF(海外出張伺書参考!B38="","",海外出張伺書参考!B38) -> 2013-03-04 | C35: =IF(海外出張伺書参考!C38="","",海外出張伺書参考!C38) ->  | D35: =IF(海外出張伺書参考!D38="","",海外出張伺書参考!D38) ->  | E35: =IF(海外出張伺書参考!E38="","",海外出張伺書参考!E38) ->  | I35: =海外出張伺書参考!M38 -> 0 | K35: =IF(海外出張伺書参考!O38="","",海外出張伺書参考!O38) -> 
C36: =IF(海外出張伺書参考!C39="","",海外出張伺書参考!C39) -> 成田空港 | D36: =IF(海外出張伺書参考!D39="","",海外出張伺書参考!D39) -> 15:00:00
B37: =IF(海外出張伺書参考!B40="","",海外出張伺書参考!B40) -> 2013-03-04 | C37: =IF(海外出張伺書参考!C40="","",海外出張伺書参考!C40) -> 成田空港 | D37: =IF(海外出張伺書参考!D40="","",海外出張伺書参考!D40) -> 16:00:00 | E37: =IF(海外出張伺書参考!E40="","",海外出張伺書参考!E40) -> 成田空港→日暮里(京成本線特急)→秋葉原(JR) | I37: =海外出張伺書参考!M40 -> 0 | K37: =IF(海外出張伺書参考!O40="","",海外出張伺書参考!O40) -> 
C38: =IF(海外出張伺書参考!C41="","",海外出張伺書参考!C41) -> 秋葉原 | D38: =IF(海外出張伺書参考!D41="","",海外出張伺書参考!D41) -> 17:30:00
B39: =IF(海外出張伺書参考!B42="","",海外出張伺書参考!B42) ->  | C39: =IF(海外出張伺書参考!C42="","",海外出張伺書参考!C42) ->  | D39: =IF(海外出張伺書参考!D42="","",海外出張伺書参考!D42) ->  | E39: =IF(海外出張伺書参考!E42="","",海外出張伺書参考!E42) ->  | I39: =海外出張伺書参考!M42 -> 0 | K39: =IF(海外出張伺書参考!O42="","",海外出張伺書参考!O42) -> 
C40: =IF(海外出張伺書参考!C43="","",海外出張伺書参考!C43) ->  | D40: =IF(海外出張伺書参考!D43="","",海外出張伺書参考!D43) -> 
B41: 備考 | C41: =IF(海外出張伺書参考!C44="","",海外出張伺書参考!C44) ->  | K41: 請求金額については別途「海外旅費精算内訳書」参照
B45: 規程：詳細は旅費の運用についてを参照 ※1 経路には交通手段を記述する。 ※2 交通費のエビデンスとして､駅すぱあと等のプリントアウトを添付する。 ※3 出張先における行動が判るように記述する。宿泊先から出張先との往復も記述。交通費がかからない場合は徒歩と記述。 ※4 前泊､後泊は業務管理者の事前承認を得て､備考欄にその理由記述した場合のみ認める。 ※5 タクシー利用について､目的地までの公共機関がない場合、又は公共機関があっても待ち時間が１時間以上の場合､ 会議資料など大量の荷物がある場合で､本部業務管理者の事前承認を得て､備考欄にその理由記述した場合のみ認める。 ※6 航空機を使用した場合は、半券添付必須（インター ネットでの申し込み等は、領収書添付を必須とする）。
B51: 出張目的 他 ※7､※8
B53: 詳細は別紙「海外出張報告書」の参照
B55: ※7 出張目的は｢出張用務件名｣が反映される。 ※8 会議､学会等の出張は､スケジュールの入ったプログラムの写し等を添付のこと。 ※9 詳細を別紙「海外出張報告書」に記述すること。(研究開発業務との関連､出張により得られた成果等を記入する)
D56: （精算時） 以下をチェックして下さい
E58: 外部発表を行った場合は外部発表に関する「届出日」を、行わなかった場合は「対象外」と入力する。
E60: 出張報告は、MEMSの波(ブログ)(http://www.nanomicro.biz/mems/)に掲載してください。
E61: 掲載した場合は「掲載日」を、また掲載されていない場合は「掲載予定日」を入力する。

Sheet 海外出張精算書
B1: 海外出張精算書
B4: 決裁印 | D4: 本 部
D5: =海外出張伺書参考!D5 -> 総務担当 部長 | E5: =海外出張伺書参考!E5 -> 経理 | F5: =海外出張伺書参考!F5 -> 業務管理者 | G5: =海外出張伺書参考!G5 -> 担当部長 | H5: =海外出張伺書参考!H5 -> 受付
B10: 研究実施場所 | F10: 役職 | H10: 氏 名 | N10: 起 案 日 | O10: =IF(海外出張精算内訳書!W4="","",海外出張精算内訳書!W4) -> 
B11: ='旅費・交通費、諸経費合計'!V7 -> 0 | F11: ='旅費・交通費、諸経費合計'!W8 -> 0 | H11: ='旅費・交通費、諸経費合計'!AC8 -> 0 | J11: ㊞ | K11: =IF(ISERROR(VLOOKUP($F$11,データ!C2:D5,2,0)),"",(VLOOKUP($F$11,データ!$C$2:$D$5,2,0))) -> 
B13: 用務先（機関等名称） | D13: 出張先所在地（国名・都市） | G13: 指定都市 | H13: 出張用務件名
B14: =海外出張伺書!B17 -> 0 | D14: =海外出張伺書!D17 -> 0 | G14: =海外出張伺書!G17 -> 0 | H14: =海外出張伺書!H17 -> 0
B16: 出張期間 | F16: =IF(海外出張伺書!F19="","",海外出張伺書!F19) ->  | H16: ～ | I16: =IF(海外出張伺書!I19="","",海外出張伺書!I19) ->  | K16: 指定都市以外 | L16: =海外出張伺書!P19 -> （0 | M16: 泊 | N16: =海外出張伺書!R19 -> 0 | O16: 日）
K17: 指定都市 | L17: =海外出張伺書!P20 -> （0 | M17: 泊 | N17: =海外出張伺書!R20 -> 0 | O17: 日）
P18: 単位：円
B19: 日程 | C19: 出発地 | D19: 出発時刻 | E19: 経路 ※1､※2､※3 | I19: 宿泊地 | K19: 備 考
C20: 到着地 | D20: 到着時刻
B21: =IF(海外出張伺書!B24="","",海外出張伺書!B24) ->  | C21: =IF(海外出張伺書!C24="","",海外出張伺書!C24) ->  | D21: =IF(海外出張伺書!D24="","",海外出張伺書!D24) ->  | E21: =IF(海外出張伺書!E24="","",海外出張伺書!E24) ->  | I21: =海外出張伺書!M24 -> 0 | K21: =IF(海外出張伺書!O24="","",海外出張伺書!O24) -> 
C22: =IF(海外出張伺書!C25="","",海外出張伺書!C25) ->  | D22: =IF(海外出張伺書!D25="","",海外出張伺書!D25) -> 
B23: =IF(海外出張伺書!B26="","",海外出張伺書!B26) ->  | C23: =IF(海外出張伺書!C26="","",海外出張伺書!C26) ->  | D23: =IF(海外出張伺書!D26="","",海外出張伺書!D26) ->  | E23: =IF(海外出張伺書!E26="","",海外出張伺書!E26) ->  | I23: =海外出張伺書!M26 -> 0 | K23: =IF(海外出張伺書!O26="","",海外出張伺書!O26) -> 
C24: =IF(海外出張伺書!C27="","",海外出張伺書!C27) ->  | D24: =IF(海外出張伺書!D27="","",海外出張伺書!D27) -> 
B25: =IF(海外出張伺書!B28="","",海外出張伺書!B28) ->  | C25: =IF(海外出張伺書!C28="","",海外出張伺書!C28) ->  | D25: =IF(海外出張伺書!D28="","",海外出張伺書!D28) ->  | E25: =IF(海外出張伺書!E28="","",海外出張伺書!E28) ->  | I25: =海外出張伺書!M28 -> 0 | K25: =IF(海外出張伺書!O28="","",海外出張伺書!O28) -> 
C26: =IF(海外出張伺書!C29="","",海外出張伺書!C29) ->  | D26: =IF(海外出張伺書!D29="","",海外出張伺書!D29) -> 
B27: =IF(海外出張伺書!B30="","",海外出張伺書!B30) ->  | C27: =IF(海外出張伺書!C30="","",海外出張伺書!C30) ->  | D27: =IF(海外出張伺書!D30="","",海外出張伺書!D30) ->  | E27: =IF(海外出張伺書!E30="","",海外出張伺書!E30) ->  | I27: =海外出張伺書!M30 -> 0 | K27: =IF(海外出張伺書!O30="","",海外出張伺書!O30) -> 
C28: =IF(海外出張伺書!C31="","",海外出張伺書!C31) ->  | D28: =IF(海外出張伺書!D31="","",海外出張伺書!D31) -> 
B29: =IF(海外出張伺書!B32="","",海外出張伺書!B32) ->  | C29: =IF(海外出張伺書!C32="","",海外出張伺書!C32) ->  | D29: =IF(海外出張伺書!D32="","",海外出張伺書!D32) ->  | E29: =IF(海外出張伺書!E32="","",海外出張伺書!E32) ->  | I29: =海外出張伺書!M32 -> 0 | K29: =IF(海外出張伺書!O32="","",海外出張伺書!O32) -> 
C30: =IF(海外出張伺書!C33="","",海外出張伺書!C33) ->  | D30: =IF(海外出張伺書!D33="","",海外出張伺書!D33) -> 
B31: =IF(海外出張伺書!B34="","",海外出張伺書!B34) ->  | C31: =IF(海外出張伺書!C34="","",海外出張伺書!C34) ->  | D31: =IF(海外出張伺書!D34="","",海外出張伺書!D34) ->  | E31: =IF(海外出張伺書!E34="","",海外出張伺書!E34) ->  | I31: =海外出張伺書!M34 -> 0 | K31: =IF(海外出張伺書!O34="","",海外出張伺書!O34) -> 
C32: =IF(海外出張伺書!C35="","",海外出張伺書!C35) ->  | D32: =IF(海外出張伺書!D35="","",海外出張伺書!D35) -> 
B33: =IF(海外出張伺書!B36="","",海外出張伺書!B36) ->  | C33: =IF(海外出張伺書!C36="","",海外出張伺書!C36) ->  | D33: =IF(海外出張伺書!D36="","",海外出張伺書!D36) ->  | E33: =IF(海外出張伺書!E36="","",海外出張伺書!E36) ->  | I33: =海外出張伺書!M36 -> 0 | K33: =IF(海外出張伺書!O36="","",海外出張伺書!O36) -> 
C34: =IF(海外出張伺書!C37="","",海外出張伺書!C37) ->  | D34: =IF(海外出張伺書!D37="","",海外出張伺書!D37) -> 
B35: =IF(海外出張伺書!B38="","",海外出張伺書!B38) ->  | C35: =IF(海外出張伺書!C38="","",海外出張伺書!C38) ->  | D35: =IF(海外出張伺書!D38="","",海外出張伺書!D38) ->  | E35: =IF(海外出張伺書!E38="","",海外出張伺書!E38) ->  | I35: =海外出張伺書!M38 -> 0 | K35: =IF(海外出張伺書!O38="","",海外出張伺書!O38) -> 
C36: =IF(海外出張伺書!C39="","",海外出張伺書!C39) ->  | D36: =IF(海外出張伺書!D39="","",海外出張伺書!D39) -> 
B37: =IF(海外出張伺書!B40="","",海外出張伺書!B40) ->  | C37: =IF(海外出張伺書!C40="","",海外出張伺書!C40) ->  | D37: =IF(海外出張伺書!D40="","",海外出張伺書!D40) ->  | E37: =IF(海外出張伺書!E40="","",海外出張伺書!E40) ->  | I37: =海外出張伺書!M40 -> 0 | K37: =IF(海外出張伺書!O40="","",海外出張伺書!O40) -> 
C38: =IF(海外出張伺書!C41="","",海外出張伺書!C41) ->  | D38: =IF(海外出張伺書!D41="","",海外出張伺書!D41) -> 
B39: =IF(海外出張伺書!B42="","",海外出張伺書!B42) ->  | C39: =IF(海外出張伺書!C42="","",海外出張伺書!C42) ->  | D39: =IF(海外出張伺書!D42="","",海外出張伺書!D42) ->  | E39: =IF(海外出張伺書!E42="","",海外出張伺書!E42) ->  | I39: =海外出張伺書!M42 -> 0 | K39: =IF(海外出張伺書!O42="","",海外出張伺書!O42) -> 
C40: =IF(海外出張伺書!C43="","",海外出張伺書!C43) ->  | D40: =IF(海外出張伺書!D43="","",海外出張伺書!D43) -> 
B41: 備考 | C41: =IF(海外出張伺書!C44="","",海外出張伺書!C44) ->  | K41: 請求金額については別途「海外旅費精算内訳書」参照
B45: ='海外出張精算書 参考'!B45:P49 -> 規程：詳細は旅費の運用についてを参照 ※1 経路には交通手段を記述する。 ※2 交通費のエビデンスとして､駅すぱあと等のプリントアウトを添付する。 ※3 出張先における行動が判るように記述する。宿泊先から出張先との往復も記述。交通費がかからない場合は徒歩と記述。 ※4 前泊､後泊は業務管理者の事前承認を得て､備考欄にその理由記述した場合のみ認める。 ※5 タクシー利用について､目的地までの公共機関がない場合、又は公共機関があっても待ち時間が１時間以上の場合､ 会議資料など大量の荷物がある場合で､本部業務管理者の事前承認を得て､備考欄にその理由記述した場合のみ認める。 ※6 航空機を使用した場合は、半券添付必須（インター ネットでの申し込み等は、領収書添付を必須とする）。
B51: 出張目的 他 ※7､※8
B53: 詳細は別紙「海外出張報告書」の参照
B55: ※7 出張目的は｢出張用務件名｣が反映される。 ※8 会議､学会等の出張は､スケジュールの入ったプログラムの写し等を添付のこと。 ※9 詳細を別紙「海外出張報告書」に記述すること。(研究開発業務との関連､出張により得られた成果等を記入する)
D56: （精算時） 以下をチェックして下さい
E58: ='海外出張精算書 参考'!E58 -> 外部発表を行った場合は外部発表に関する「届出日」を、行わなかった場合は「対象外」と入力する。
E60: ='海外出張精算書 参考'!E60 -> 出張報告は、MEMSの波(ブログ)(http://www.nanomicro.biz/mems/)に掲載してください。
E61: ='海外出張精算書 参考'!E61 -> 掲載した場合は「掲載日」を、また掲載されていない場合は「掲載予定日」を入力する。

Sheet 海外出張精算内訳書参考
A1: 海外出張精算内訳書
B3: 出張者 | G3: 研究実施場所 | M3: 役職 | P3: 氏名
G4: ①技術研究組合NMEMS技術研究機構 高効率ＭＥＨ研究所 | M4: =海外出張伺書参考!$E$11 -> 主幹研究員 | P4: =海外出張伺書参考!$G$11 -> ▲▼ △▽ | V4: 起案日 | W4: =海外出張伺書参考!O10 -> 2013-01-10
B6: 出張先(国･都市） | G6: =海外出張伺書参考!D17 -> アメリカ・サンノゼ
B8: 用務先（会場/訪問先） | G8: =海外出張伺書参考!B17 -> 2011 SPIE Advanced Lithography
B10: 出張目的 | G10: =海外出張伺書参考!H17 -> リソグラフィ技術をテーマとした世界最大の学会であり新規技術と市場経済との関係についての調査
B12: 出張期間 | F12: =海外出張伺書参考!F19 -> 2011-02-26 | I12: ～ | J12: =海外出張伺書参考!I19 -> 2011-03-04 | N12: 指定都市 | S12: （2 | T12: 泊 | U12: 3 | V12: 日）
N13: =海外出張伺書参考!G17 -> アビジャン地域 | Q13: 指定都市 | S13: （2 | T13: 泊 | U13: 3 | V13: 日）
B15: 支払額内訳
B17: 1.国内旅費交通費
C19: 日付 | F19: 経路 | N19: 交通費 | P19: 宿泊費 | R19: 日当 | T19: 宿泊地 | W19: エビデンス添付資料No. | X19: 計上
C20: 2013-02-25 | F20: 東京→成田空港 | N20: ¥2,740 | W20: ① | X20: 直
C21: 2013-03-04 | F21: 成田空港→東京 | N21: ¥2,740 | W21: ① | X21: 直
C24: 計 | N24: =SUM(N20:O23) -> ¥5,480 | P24: =SUM(P20:Q23) -> ¥0 | R24: =SUM(R20:S23) -> ¥0 | T24: 合計 | W24: =N24+P24+R24 -> ¥5,480
B26: 2.海外渡航費
C28: 項目 | G28: 金額 | J28: エビデンス添付資料No. | O28: 計上
C29: 航空運賃 | G29: =海外出張伺書参考!G62 -> ¥80,000 | J29: =海外出張伺書参考!L62 -> ② | O29: =海外出張伺書参考!N62 -> 直
C30: 空港使用料他 | G30: =海外出張伺書参考!G63 -> ¥2,540 | J30: =海外出張伺書参考!L63 -> ② | O30: =海外出張伺書参考!N63 -> 直
C31: 空港税 | G31: =海外出張伺書参考!G64 -> ¥4,300 | J31: =海外出張伺書参考!L64 -> ② | O31: =海外出張伺書参考!N64 -> 直
C32: 航空保険料他 | G32: =海外出張伺書参考!G65 -> ¥600 | J32: =海外出張伺書参考!L65 -> ② | O32: =海外出張伺書参考!N65 -> 直
C33: 海外傷害保険料 | G33: =海外出張伺書参考!G66 -> ¥9,520 | J33: =海外出張伺書参考!L66 -> ③ | O33: =海外出張伺書参考!N66 -> 直
C34: 発券手数料 | G34: =海外出張伺書参考!G67 -> ¥4,200 | J34: =海外出張伺書参考!L67 -> ② | O34: =海外出張伺書参考!N67 -> 直
C35: 燃油サーチャージ | G35: =海外出張伺書参考!G68 -> ¥58,000 | J35: =海外出張伺書参考!L68 -> ② | O35: =海外出張伺書参考!N68 -> 直
C36: その他 | G36: =海外出張伺書参考!G69 -> ¥0 | J36: =海外出張伺書参考!L69 -> 0 | O36: =海外出張伺書参考!N69 -> 0
B38: 3.海外滞在費（役職により宿泊費と日当の額を選択する）
C40: 3.1.宿泊費 | Q40: 3.2.日当
C42: 指定都市以外 | G42: ¥0/泊 | J42: × | K42: =S12 -> 2 | L42: 泊= | M42: =G42*K42 -> ¥0 | O42: 直 | R42: ¥0/日 | T42: × | U42: =U12 -> 3 | V42: 日= | W42: =R42*U42 -> ¥0 | X42: 直
C43: 指定都市 | G43: ¥0/泊 | J43: × | K43: =S13 -> 2 | L43: 泊= | M43: =G43*K43 -> ¥0 | R43: ¥0/日 | T43: × | U43: =U13 -> 3 | V43: 日= | W43: =R43*U43 -> ¥0
C45: 3.3.交通費（公共交通）
C47: 日付 | F47: 経路 | M47: 現地支払額 | P47: 円換算 | R47: 換算レート | U47: 換算レートエビデンス資料No. | W47: エビデンス添付資料No. | X47: 計上
C48: 2013-02-26 | F48: サンノゼ→ホテル(シャトルバス) | M48: USD | N48: 2.25 | P48: =TRUNC(N48*R48) -> ¥225 | R48: ¥100.00 | T48: =IF(ISERROR(VLOOKUP(M48,データ!$D$31:$E$48,2,0)),"",(VLOOKUP(M48,データ!$D$31:$E$48,2,0))) -> /USD | U48: ⑥ | W48: ④ | X48: 直
C49: 2013-02-27 | F49: ホテル⇔会場（ＶＴＡ） | M49: USD | N49: 1.75 | P49: ¥175 | R49: ¥100.00 | T49: =IF(ISERROR(VLOOKUP(M49,データ!$D$31:$E$48,2,0)),"",(VLOOKUP(M49,データ!$D$31:$E$48,2,0))) -> /USD | U49: ⑥ | W49: ⑤ | X49: 直
C50: 2013-02-28 | F50: ホテル⇔会場（ＶＴＡ） | M50: USD | N50: 1.75 | P50: ¥175 | R50: ¥100.00 | T50: =IF(ISERROR(VLOOKUP(M50,データ!$D$31:$E$48,2,0)),"",(VLOOKUP(M50,データ!$D$31:$E$48,2,0))) -> /USD | U50: ⑥ | W50: ⑤ | X50: 直
C51: 2013-03-01 | F51: ホテル⇔会場（ＶＴＡ） | M51: USD | N51: 1.75 | P51: ¥175 | R51: ¥100.00 | T51: =IF(ISERROR(VLOOKUP(M51,データ!$D$31:$E$48,2,0)),"",(VLOOKUP(M51,データ!$D$31:$E$48,2,0))) -> /USD | U51: ⑥ | W51: ⑤ | X51: 直
C52: 2013-03-02 | F52: ホテル⇔会場（ＶＴＡ） | M52: USD | N52: 1.75 | P52: ¥175 | R52: ¥100.00 | T52: =IF(ISERROR(VLOOKUP(M52,データ!$D$31:$E$48,2,0)),"",(VLOOKUP(M52,データ!$D$31:$E$48,2,0))) -> /USD | U52: ⑥ | W52: ⑤ | X52: 直
C53: 2013-03-03 | F53: ホテル→サンノゼ(シャトルバス) | M53: USD | N53: 2.25 | P53: ¥225 | R53: ¥100.00 | T53: =IF(ISERROR(VLOOKUP(M53,データ!$D$31:$E$48,2,0)),"",(VLOOKUP(M53,データ!$D$31:$E$48,2,0))) -> /USD | U53: ⑥ | W53: ④ | X53: 直
P54: ¥0 | T54: =IF(ISERROR(VLOOKUP(M54,データ!$D$31:$E$48,2,0)),"",(VLOOKUP(M54,データ!$D$31:$E$48,2,0))) -> 
P55: ¥0 | T55: =IF(ISERROR(VLOOKUP(M55,データ!$D$31:$E$48,2,0)),"",(VLOOKUP(M55,データ!$D$31:$E$48,2,0))) -> 
P56: ¥0 | T56: =IF(ISERROR(VLOOKUP(M56,データ!$D$31:$E$48,2,0)),"",(VLOOKUP(M56,データ!$D$31:$E$48,2,0))) -> 
P57: ¥0 | T57: =IF(ISERROR(VLOOKUP(M57,データ!$D$31:$E$48,2,0)),"",(VLOOKUP(M57,データ!$D$31:$E$48,2,0))) -> 
C58: 計 | P58: =SUM(P48:Q57) -> ¥1,150
C60: 3.4.交通費（Taxi等：利用理由を本資料下部に記述し、計上欄にてAを選択する）
C62: 日付 | F62: 経路 | M62: 現地支払額 | P62: 円換算 | R62: 換算レート | U62: 換算レートエビデンス資料No. | W62: エビデンス添付資料No. | X62: 計上
P63: =TRUNC(N63*R63) -> ¥0 | T63: =IF(ISERROR(VLOOKUP(M63,データ!$D$31:$E$48,2,0)),"",(VLOOKUP(M63,データ!$D$31:$E$48,2,0))) -> 
P64: =TRUNC(N64*R64) -> ¥0 | T64: =IF(ISERROR(VLOOKUP(M64,データ!$D$31:$E$48,2,0)),"",(VLOOKUP(M64,データ!$D$31:$E$48,2,0))) -> 
P65: =TRUNC(N65*R65) -> ¥0 | T65: =IF(ISERROR(VLOOKUP(M65,データ!$D$31:$E$48,2,0)),"",(VLOOKUP(M65,データ!$D$31:$E$48,2,0))) -> 
P66: =TRUNC(N66*R66) -> ¥0 | T66: =IF(ISERROR(VLOOKUP(M66,データ!$D$31:$E$48,2,0)),"",(VLOOKUP(M66,データ!$D$31:$E$48,2,0))) -> 
P67: =TRUNC(N67*R67) -> ¥0 | T67: =IF(ISERROR(VLOOKUP(M67,データ!$D$31:$E$48,2,0)),"",(VLOOKUP(M67,データ!$D$31:$E$48,2,0))) -> 
C68: 計 | P68: =SUM(P63:Q67) -> ¥0
C70: 3.5.通信費（インターネット利用料､電話代）
C72: 日付 | F72: 利用キャリア等 | M72: 現地支払額 | P72: 円換算 | R72: 換算レート | U72: 換算レートエビデンス資料No. | W72: エビデンス添付資料No. | X72: 計上
P73: =TRUNC(N73*R73) -> ¥0 | T73: =IF(ISERROR(VLOOKUP(M73,データ!$D$31:$E$48,2,0)),"",(VLOOKUP(M73,データ!$D$31:$E$48,2,0))) -> 
P74: =TRUNC(N74*R74) -> ¥0 | T74: =IF(ISERROR(VLOOKUP(M74,データ!$D$31:$E$48,2,0)),"",(VLOOKUP(M74,データ!$D$31:$E$48,2,0))) -> 
P75: =TRUNC(N75*R75) -> ¥0 | T75: =IF(ISERROR(VLOOKUP(M75,データ!$D$31:$E$48,2,0)),"",(VLOOKUP(M75,データ!$D$31:$E$48,2,0))) -> 
P76: =TRUNC(N76*R76) -> ¥0 | T76: =IF(ISERROR(VLOOKUP(M76,データ!$D$31:$E$48,2,0)),"",(VLOOKUP(M76,データ!$D$31:$E$48,2,0))) -> 
P77: =TRUNC(N77*R77) -> ¥0 | T77: =IF(ISERROR(VLOOKUP(M77,データ!$D$31:$E$48,2,0)),"",(VLOOKUP(M77,データ!$D$31:$E$48,2,0))) -> 
C78: 計 | P78: =SUM(P73:Q77) -> ¥0
C80: 3.6.会食費 （センター長及び所長の事前承認が必要）
C82: 日付 | F82: 参加者 | M82: 現地支払額 | P82: 円換算 | R82: 換算レート | U82: 換算レートエビデンス資料No. | W82: エビデンス添付資料No. | X82: 計上
P83: =TRUNC(N83*R83) -> ¥0 | T83: =IF(ISERROR(VLOOKUP(M83,データ!$D$31:$E$48,2,0)),"",(VLOOKUP(M83,データ!$D$31:$E$48,2,0))) -> 
P84: =TRUNC(N84*R84) -> ¥0 | T84: =IF(ISERROR(VLOOKUP(M84,データ!$D$31:$E$48,2,0)),"",(VLOOKUP(M84,データ!$D$31:$E$48,2,0))) -> 
P85: =TRUNC(N85*R85) -> ¥0 | T85: =IF(ISERROR(VLOOKUP(M85,データ!$D$31:$E$48,2,0)),"",(VLOOKUP(M85,データ!$D$31:$E$48,2,0))) -> 
P86: =TRUNC(N86*R86) -> ¥0 | T86: =IF(ISERROR(VLOOKUP(M86,データ!$D$31:$E$48,2,0)),"",(VLOOKUP(M86,データ!$D$31:$E$48,2,0))) -> 
C87: 計 | P87: =SUM(P83:Q86) -> ¥0
C89: 3.7.その他(手数料等)
C91: 日付 | F91: 項目 | M91: 現地支払額 | P91: 円換算 | R91: 換算レート | U91: 換算レートエビデンス資料No. | W91: エビデンス添付資料No. | X91: 計上
P92: =TRUNC(N92*R92) -> ¥0 | T92: =IF(ISERROR(VLOOKUP(M92,データ!$D$31:$E$48,2,0)),"",(VLOOKUP(M92,データ!$D$31:$E$48,2,0))) -> 
P93: =TRUNC(N93*R93) -> ¥0 | T93: =IF(ISERROR(VLOOKUP(M93,データ!$D$31:$E$48,2,0)),"",(VLOOKUP(M93,データ!$D$31:$E$48,2,0))) -> 
P94: =TRUNC(N94*R94) -> ¥0 | T94: =IF(ISERROR(VLOOKUP(M94,データ!$D$31:$E$48,2,0)),"",(VLOOKUP(M94,データ!$D$31:$E$48,2,0))) -> 
P95: =TRUNC(N95*R95) -> ¥0 | T95: =IF(ISERROR(VLOOKUP(M95,データ!$D$31:$E$48,2,0)),"",(VLOOKUP(M95,データ!$D$31:$E$48,2,0))) -> 
P96: =SUM(P92:Q95) -> ¥0
B98: 4.学会開催中の食事代等による日当調整(記入上の注意および旅費の運用についてを参照)
C100: 4.1.学会開催中における食事(学会から昼食等が用意される場合)
C102: 項目 | M102: 供与回数 | P102: 差し引き額
C103: 学会による昼食供与 | P103: =-1000*M103 -> ¥0
C104: 学会費に含まれる懇親会等夕食相当分 | M104: 4 | P104: =-1000*M104 -> ¥-4,000 | R104: 学会参加費にて参考
C106: Taxi等利用理由 | J106: =COUNTIF(X$63:X$67,"A") -> 0 | K106: 件
C108: 日付 | F108: 経路 | M108: 理由
C109: =IF(C63="","",C63) ->  | F109: =IF(F63="","",F63) -> 
C110: =IF(C64="","",C64) ->  | F110: =IF(F64="","",F64) -> 
C111: =IF(C65="","",C65) ->  | F111: =IF(F65="","",F65) -> 
C112: =IF(C66="","",C66) ->  | F112: =IF(F66="","",F66) -> 
C113: =IF(C67="","",C67) ->  | F113: =IF(F67="","",F67) -> 
B115: [記入上の注意]
B116: ※ エビデンスには①､②のようにNo.を振る。 ※ 計上は研究開発直接費の場合は”直”､それ以外の間接費の場合は”間”を選択。 ※ 日当､宿泊代については旅費規定を参照。 ※ 指定都市は以下の地域に宿泊した場合である。シンガポール､ロサンジェルス､ニューヨーク､サンフランシスコ､ワシントンDC､ジュネーブ､ ロンドン､ モスクワ､パリ､アブダビ､クェート､リヤド､アビジャン。 ※ 換算レートは､カード利用の場合はカード決済明細記載の変換レートを､現金利用の場合は両替時の変換レートを用いる｡ 手数料が別記されている場合は3.7その他に記載｡換算レートエビデンスがない場合は出発日（土日の場合は金曜日）の
E117: 東京三菱UFJ銀行外為TTSレート | J117: http://www.bk.mufg.jp/gdocs/kinri/list_j/kinri/kawase.html | S117: を使用
B118: ※ 国内移動の際の成田エクスプレス､京成スカイライナー等の特急利用は可能。 ※ 航空券は正規割引運賃(PEX運賃等)が適用された航空券であること｡それ以外の場合はNEDOが指定した理由書を添付すること。 ※ 機中泊は宿泊数に含まない。指定都市以外の日当のみ計上。 ※ バンケット､懇親会費用が学会参加費に含まれる場合､夕食分の食事代(\1,000/回)を日当から差し引く。(旅費の運用について参照) ※ 学会が昼食を用意している場合は日当からその分を差し引く。(旅費の運用について参照) ※ 航空機を使用した場合は半券添付必須（インター ネットでの申し込み等は、領収書添付する）。
B122: 海外出張精算内訳書 まとめ
B124: 出張者 | F124: =G4 -> ①技術研究組合NMEMS技術研究機構 高効率ＭＥＨ研究所 | K124: =M4 -> 主幹研究員 | P124: =P4 -> ▲▼ △▽ | W124: =W4 -> 2013-01-10
B126: 出張先 | F126: =G6 -> アメリカ・サンノゼ
B128: 出張期間 | F128: =海外出張伺書参考!F19 -> 2011-02-26 | I128: ～ | J128: =海外出張伺書参考!I19 -> 2011-03-04 | Q128: =海外出張伺書参考!L19+海外出張伺書参考!L20 -> （3 | S128: 泊 | T128: =海外出張伺書参考!N19+海外出張伺書参考!N20 -> 6 | V128: 日）
B130: 精算まとめ （支払先が旅行社か本人かを○で選択する．）
B132: 費用項目 | K132: 金額 | M132: 支払先 旅行社等 | O132: 支払先本人 | S132: 研究開発費 | U132: 間接費 | W132: 備考
O133: 精算時 | Q133: 概算時
B134: 1.国内旅費交通費 | K134: =W24 -> ¥5,480 | O134: ○ | S134: =SUMIF(X20:X23,"=直",N20:N23)+SUMIF(X20:X23,"=直",P20:P23)+SUMIF(X20:X23,"=直",R20:R23) -> ¥5,480 | U134: =SUMIF(X20:X23,"=間",N20:N23)+SUMIF(X20:X23,"=間",P20:P23)+SUMIF(X20:X23,"=間",R20:R23) -> ¥0
B135: 2.海外渡航費
C136: 航空運賃 | K136: =G29 -> ¥80,000 | M136: ○ | S136: =SUMIF(O29,"=直",G29) -> ¥80,000 | U136: =SUMIF(O29,"=間",G29) -> ¥0
C137: 空港使用料他 | K137: =G30 -> ¥2,540 | M137: ○ | S137: ¥2,540 | U137: ¥0
C138: 空港税 | K138: ¥4,300 | M138: ○ | S138: ¥4,300 | U138: ¥0
C139: 航空保険料他 | K139: ¥600 | M139: ○ | S139: ¥600 | U139: ¥0
C140: 海外傷害保険料 | K140: ¥9,520 | M140: ○ | S140: ¥9,520 | U140: ¥0
C141: 発券手数料 | K141: ¥4,200 | M141: ○ | S141: ¥4,200 | U141: ¥0
C142: 燃油サーチャージ | K142: ¥58,000 | M142: ○ | S142: ¥58,000 | U142: ¥0
C143: その他 | K143: ¥0 | S143: ¥0 | U143: ¥0
B144: 3.海外滞在費
C145: 3.1.宿泊費 | K145: =M42+M43 -> ¥0 | O145: ○ | S145: =SUMIF(O42:O43,"=直",M42:N43) -> ¥0 | U145: =SUMIF(O42:O43,"=間",M42:N43) -> ¥0
C146: 3.2.日当 | K146: =W42+W43 -> ¥0 | O146: ○ | S146: =SUMIF(X42:X43,"=直",W42:W43) -> ¥0 | U146: =SUMIF(X42:X43,"=間",W42:W43) -> ¥0
C147: 3.3.交通費（公共交通） | K147: =P58 -> ¥1,150 | O147: ○ | S147: =SUMIF(X48:X57,"=直",P48:P57) -> ¥1,150 | U147: =SUMIF(X48:X57,"=間",P48:P57) -> ¥0
C148: 3.4.交通費（Taxi等) | K148: =P68 -> ¥0 | O148: ○ | S148: =SUMIF(X63:X67,"=直",P63:P67) -> ¥0 | U148: =SUMIF(X63:X67,"=間",P63:P67) -> ¥0
C149: 3.5.通信費（インターネット利用料，電話代） | K149: =P78 -> ¥0 | O149: ○ | S149: =SUMIF(X73:X77,"=直",P73:P77) -> ¥0 | U149: =SUMIF(X73:X77,"=間",P73:P77) -> ¥0
C150: 3.6.会食費 | K150: =P87 -> ¥0 | O150: ○ | S150: =SUMIF(X83:X86,"=直",P83:P86) -> ¥0 | U150: =SUMIF(X83:X86,"=間",P83:P86) -> ¥0
C151: 3.7.その他 | K151: =P96 -> ¥0 | O151: ○ | S151: =SUMIF(X91:X95,"=直",P91:P95) -> ¥0 | U151: =SUMIF(X91:X95,"=間",P91:P95) -> ¥0
B152: 4.学会開催中の食事代等による日当調整 | K152: =P103+P104 -> ¥-4,000 | O152: ○ | S152: =K152 -> ¥-4,000
B154: 合計 | K154: =K134+SUM(K136:L143)+SUM(K145:L152) -> ¥161,790 | M154: =SUMIF(M134,"○",K134)+SUMIF(M136:M143,"○",K136:K143)+SUMIF(M145:N152,"○",K145:L152) -> ¥159,160 | O154: =SUMIF(O134,"○",K134)+SUMIF(O136:O143,"○",K136:K143)+SUMIF(O145:P152,"○",K145:L152) -> ¥2,630 | Q154: =SUMIF(Q134,"○",K134)+SUMIF(Q136:Q143,"○",K136:K143)+SUMIF(Q145:R152,"○",K145:L152) -> ¥0 | S154: =S134+SUM(S136:T143)+SUM(S145:T152) -> ¥161,790 | U154: =U134+SUM(U136:V143)+SUM(U145:V151) -> ¥0
B156: 内訳
B158: 本人精算 | F158: 合計額 | H158: =H160+H162 -> ¥2,630 | O158: 旅行社精算 | Q158: 合計額 | S158: =S160+S162 -> ¥159,160
F160: 研究開発費 | H160: =SUMIF(O134,"○",S134)+SUMIF(O136:P143,"○",S136:T143)+SUMIF(O145:P152,"○",S145:T152) -> ¥2,630 | Q160: 研究開発費 | S160: =SUMIF(M134,"○",S134)+SUMIF(M136:N143,"○",S136:T143)+SUMIF(M145:N152,"○",S145:T152) -> ¥159,160
F162: 間接費 | H162: =SUMIF(O134,"○",U134)+SUMIF(O136:P143,"○",U136:V143)+SUMIF(O145:P152,"○",U145:V152) -> ¥0 | Q162: 間接費 | S162: =SUMIF(M134,"○",U134)+SUMIF(M136:N143,"○",U136:V143)+SUMIF(M145:N152,"○",U145:V152) -> ¥0
F164: 仮払い | O164: 概算時精算 | Q164: 合計額 | S164: =S166+S168 -> ¥0
F166: 精算額 | H166: =H158-I164 -> ¥2,630 | L166: 合計額－仮払い | Q166: 研究開発費 | S166: =SUMIF(Q134,"○",S134)+SUMIF(Q136:R143,"○",S136:T143)+SUMIF(Q145:R152,"○",S145:T152) -> ¥0
Q168: 間接費 | S168: =SUMIF(Q134,"○",U134)+SUMIF(Q136:R143,"○",U136:V143)+SUMIF(Q145:R152,"○",U145:V152) -> ¥0
B171: 本人精算
B173: 研究開発費 | F173: 旅費交通費 | I173: =SUMIF(O134,"○",S134)+SUMIF(O136:P143,"○",S136:T143)+SUMIF(O145:P148,"○",S145:T148)+SUMIF(O152:P152,"○",S152) -> ¥2,630 | M173: 間接費 | O173: 旅費交通費 | R173: =SUMIF(O134,"○",U134)+SUMIF(O136:P143,"○",U136:V143)+SUMIF(O145:P148,"○",U145:V148)+SUMIF(O152,"○",U152) -> ¥0
F175: その他経費 | I175: =SUMIF(O149:P151,"○",S149:T151) -> ¥0 | O175: その他経費 | R175: =SUMIF(O149:P151,"○",U149:V151) -> ¥0

Sheet 海外出張精算内訳書
A1: 海外出張精算内訳書
B3: 出張者 | G3: 研究実施場所 | M3: 役職 | P3: 氏名
G4: ='旅費・交通費、諸経費合計'!V7 -> 0 | M4: ='旅費・交通費、諸経費合計'!W8 -> 0 | P4: ='旅費・交通費、諸経費合計'!AC8 -> 0 | T4: ㊞ | U4: =IF(ISERROR(VLOOKUP($M$4,データ!C2:D5,2,0)),"",(VLOOKUP($M$4,データ!$C$2:$D$5,2,0))) ->  | V4: 起案日
B6: 出張先(国･都市） | G6: =海外出張精算書!D14 -> 0
B8: 用務先（会場/訪問先） | G8: =海外出張精算書!B14 -> 0
B10: 出張目的 | G10: =海外出張精算書!H14 -> 0
B12: 出張期間 | F12: =IF(海外出張伺書!F19="","",海外出張伺書!F19) ->  | I12: ～ | J12: =IF(海外出張伺書!I19="","",海外出張伺書!I19) ->  | N12: 指定都市 | Q12: 指定都市以外 | S12: =海外出張伺書!P19 -> （0 | T12: 泊 | U12: =海外出張伺書!R19 -> 0 | V12: 日）
N13: =海外出張伺書!G17 -> 0 | Q13: 指定都市 | S13: =海外出張伺書!P20 -> （0 | T13: 泊 | U13: =海外出張伺書!R20 -> 0 | V13: 日）
B15: 支払額内訳
B17: 1.国内旅費交通費
C19: 日付 | F19: 経路 | N19: 交通費 | P19: 宿泊費 | R19: 日当 | T19: 宿泊地 | W19: エビデンス添付資料No. | X19: 計上
C24: 計 | N24: =SUM(N20:O23) -> ¥0 | P24: =SUM(P20:Q23) -> ¥0 | R24: =SUM(R20:S23) -> ¥0 | T24: 合計 | W24: =N24+P24+R24 -> ¥0
B26: 2.海外渡航費
C28: 項目 | G28: 金額 | J28: エビデンス添付資料No. | O28: 計上
C29: 航空運賃 | G29: =海外出張伺書!G60 -> ¥0 | J29: =海外出張伺書!P60 -> 0 | O29: =海外出張伺書!R60 -> 0
C30: 空港使用料他 | G30: =海外出張伺書!G61 -> ¥0 | J30: =海外出張伺書!P61 -> 0 | O30: =海外出張伺書!R61 -> 0
C31: 空港税 | G31: =海外出張伺書!G62 -> ¥0 | J31: =海外出張伺書!P62 -> 0 | O31: =海外出張伺書!R62 -> 0
C32: 航空保険料他 | G32: =海外出張伺書!G63 -> ¥0 | J32: =海外出張伺書!P63 -> 0 | O32: =海外出張伺書!R63 -> 0
C33: 海外傷害保険料 | G33: =海外出張伺書!G64 -> ¥0 | J33: =海外出張伺書!P64 -> 0 | O33: =海外出張伺書!R64 -> 0
C34: 発券手数料 | G34: =海外出張伺書!G65 -> ¥0 | J34: =海外出張伺書!P65 -> 0 | O34: =海外出張伺書!R65 -> 0
C35: 燃油サーチャージ | G35: =海外出張伺書!G66 -> ¥0 | J35: =海外出張伺書!P66 -> 0 | O35: =海外出張伺書!R66 -> 0
C36: その他 | G36: =海外出張伺書!G67 -> ¥0 | J36: =海外出張伺書!P67 -> 0 | O36: =海外出張伺書!R67 -> 0
B38: 3.海外滞在費（役職により宿泊費と日当の額を選択する）
C40: 3.1.宿泊費 | Q40: 3.2.日当
C42: 指定都市以外 | G42: =IF(海外出張伺書!J69="",0,海外出張伺書!J69) -> ¥0/泊 | J42: × | K42: =S12 -> 0 | L42: 泊= | M42: =IFERROR(G42*K42,0) -> ¥0 | O42: =海外出張伺書!R69 -> 0 | R42: =IF(海外出張伺書!J70="",0,海外出張伺書!J70) -> ¥0/日 | T42: × | U42: =U12 -> 0 | V42: 日= | W42: =IFERROR(R42*U42,0) -> ¥0 | X42: =海外出張伺書!R70 -> 0
C43: 指定都市 | G43: =IF(海外出張伺書!L71="",0,海外出張伺書!L71) -> ¥0/泊 | J43: × | K43: =S13 -> 0 | L43: 泊= | M43: =IFERROR(G43*K43,0) -> ¥0 | O43: =海外出張伺書!R71 -> 0 | R43: =IF(海外出張伺書!L72="",0,海外出張伺書!L72) -> ¥0/日 | T43: × | U43: =U13 -> 0 | V43: 日= | W43: =IFERROR(R43*U43,0) -> ¥0 | X43: =海外出張伺書!R72 -> 0
C45: 3.3.交通費（公共交通）
C47: 日付 | F47: 経路 | M47: 現地支払額 | P47: 円換算 | R47: 換算レート | U47: 換算レートエビデンス資料No. | W47: エビデンス添付資料No. | X47: 計上
P48: =TRUNC(N48*R48) -> ¥0 | T48: =IF(ISERROR(VLOOKUP(M48,データ!$D$31:$E$48,2,0)),"",(VLOOKUP(M48,データ!$D$31:$E$48,2,0))) -> 
P49: ¥0 | T49: =IF(ISERROR(VLOOKUP(M49,データ!$D$31:$E$48,2,0)),"",(VLOOKUP(M49,データ!$D$31:$E$48,2,0))) -> 
P50: ¥0 | T50: =IF(ISERROR(VLOOKUP(M50,データ!$D$31:$E$48,2,0)),"",(VLOOKUP(M50,データ!$D$31:$E$48,2,0))) -> 
P51: ¥0 | T51: =IF(ISERROR(VLOOKUP(M51,データ!$D$31:$E$48,2,0)),"",(VLOOKUP(M51,データ!$D$31:$E$48,2,0))) -> 
P52: ¥0 | T52: =IF(ISERROR(VLOOKUP(M52,データ!$D$31:$E$48,2,0)),"",(VLOOKUP(M52,データ!$D$31:$E$48,2,0))) -> 
P53: ¥0 | T53: =IF(ISERROR(VLOOKUP(M53,データ!$D$31:$E$48,2,0)),"",(VLOOKUP(M53,データ!$D$31:$E$48,2,0))) -> 
P54: ¥0 | T54: =IF(ISERROR(VLOOKUP(M54,データ!$D$31:$E$48,2,0)),"",(VLOOKUP(M54,データ!$D$31:$E$48,2,0))) -> 
P55: ¥0 | T55: =IF(ISERROR(VLOOKUP(M55,データ!$D$31:$E$48,2,0)),"",(VLOOKUP(M55,データ!$D$31:$E$48,2,0))) -> 
P56: ¥0 | T56: =IF(ISERROR(VLOOKUP(M56,データ!$D$31:$E$48,2,0)),"",(VLOOKUP(M56,データ!$D$31:$E$48,2,0))) -> 
P57: ¥0 | T57: =IF(ISERROR(VLOOKUP(M57,データ!$D$31:$E$48,2,0)),"",(VLOOKUP(M57,データ!$D$31:$E$48,2,0))) -> 
C58: 計 | P58: =SUM(P48:Q57) -> ¥0
C60: 3.4.交通費（Taxi等：利用理由を本資料下部に記述し、計上欄にてAを選択する）
C62: 日付 | F62: 経路 | M62: 現地支払額 | P62: 円換算 | R62: 換算レート | U62: 換算レートエビデンス資料No. | W62: エビデンス添付資料No. | X62: 計上
P63: =TRUNC(N63*R63) -> ¥0 | T63: =IF(ISERROR(VLOOKUP(M63,データ!$D$31:$E$48,2,0)),"",(VLOOKUP(M63,データ!$D$31:$E$48,2,0))) -> 
P64: =TRUNC(N64*R64) -> ¥0 | T64: =IF(ISERROR(VLOOKUP(M64,データ!$D$31:$E$48,2,0)),"",(VLOOKUP(M64,データ!$D$31:$E$48,2,0))) -> 
P65: =TRUNC(N65*R65) -> ¥0 | T65: =IF(ISERROR(VLOOKUP(M65,データ!$D$31:$E$48,2,0)),"",(VLOOKUP(M65,データ!$D$31:$E$48,2,0))) -> 
P66: =TRUNC(N66*R66) -> ¥0 | T66: =IF(ISERROR(VLOOKUP(M66,データ!$D$31:$E$48,2,0)),"",(VLOOKUP(M66,データ!$D$31:$E$48,2,0))) -> 
P67: =TRUNC(N67*R67) -> ¥0 | T67: =IF(ISERROR(VLOOKUP(M67,データ!$D$31:$E$48,2,0)),"",(VLOOKUP(M67,データ!$D$31:$E$48,2,0))) -> 
C68: 計 | P68: =SUM(P63:Q67) -> ¥0
C70: 3.5.通信費（インターネット利用料､電話代）
C72: 日付 | F72: 利用キャリア等 | M72: 現地支払額 | P72: 円換算 | R72: 換算レート | U72: 換算レートエビデンス資料No. | W72: エビデンス添付資料No. | X72: 計上
P73: =TRUNC(N73*R73) -> ¥0 | T73: =IF(ISERROR(VLOOKUP(M73,データ!$D$31:$E$48,2,0)),"",(VLOOKUP(M73,データ!$D$31:$E$48,2,0))) -> 
P74: =TRUNC(N74*R74) -> ¥0 | T74: =IF(ISERROR(VLOOKUP(M74,データ!$D$31:$E$48,2,0)),"",(VLOOKUP(M74,データ!$D$31:$E$48,2,0))) -> 
P75: =TRUNC(N75*R75) -> ¥0 | T75: =IF(ISERROR(VLOOKUP(M75,データ!$D$31:$E$48,2,0)),"",(VLOOKUP(M75,データ!$D$31:$E$48,2,0))) -> 
P76: =TRUNC(N76*R76) -> ¥0 | T76: =IF(ISERROR(VLOOKUP(M76,データ!$D$31:$E$48,2,0)),"",(VLOOKUP(M76,データ!$D$31:$E$48,2,0))) -> 
P77: =TRUNC(N77*R77) -> ¥0 | T77: =IF(ISERROR(VLOOKUP(M77,データ!$D$31:$E$48,2,0)),"",(VLOOKUP(M77,データ!$D$31:$E$48,2,0))) -> 
C78: 計 | P78: =SUM(P73:Q77) -> ¥0
C80: 3.6.会食費 （センター長及び所長の事前承認が必要）
C82: 日付 | F82: 参加者 | M82: 現地支払額 | P82: 円換算 | R82: 換算レート | U82: 換算レートエビデンス資料No. | W82: エビデンス添付資料No. | X82: 計上
P83: =TRUNC(N83*R83) -> ¥0 | T83: =IF(ISERROR(VLOOKUP(M83,データ!$D$31:$E$48,2,0)),"",(VLOOKUP(M83,データ!$D$31:$E$48,2,0))) -> 
P84: =TRUNC(N84*R84) -> ¥0 | T84: =IF(ISERROR(VLOOKUP(M84,データ!$D$31:$E$48,2,0)),"",(VLOOKUP(M84,データ!$D$31:$E$48,2,0))) -> 
P85: =TRUNC(N85*R85) -> ¥0 | T85: =IF(ISERROR(VLOOKUP(M85,データ!$D$31:$E$48,2,0)),"",(VLOOKUP(M85,データ!$D$31:$E$48,2,0))) -> 
P86: =TRUNC(N86*R86) -> ¥0 | T86: =IF(ISERROR(VLOOKUP(M86,データ!$D$31:$E$48,2,0)),"",(VLOOKUP(M86,データ!$D$31:$E$48,2,0))) -> 
C87: 計 | P87: =SUM(P83:Q86) -> ¥0
C89: 3.7.その他(手数料等)
C91: 日付 | F91: 項目 | M91: 現地支払額 | P91: 円換算 | R91: 換算レート | U91: 換算レートエビデンス資料No. | W91: エビデンス添付資料No. | X91: 計上
P92: =TRUNC(N92*R92) -> ¥0 | T92: =IF(ISERROR(VLOOKUP(M92,データ!$D$31:$E$48,2,0)),"",(VLOOKUP(M92,データ!$D$31:$E$48,2,0))) -> 
P93: =TRUNC(N93*R93) -> ¥0 | T93: =IF(ISERROR(VLOOKUP(M93,データ!$D$31:$E$48,2,0)),"",(VLOOKUP(M93,データ!$D$31:$E$48,2,0))) -> 
P94: =TRUNC(N94*R94) -> ¥0 | T94: =IF(ISERROR(VLOOKUP(M94,データ!$D$31:$E$48,2,0)),"",(VLOOKUP(M94,データ!$D$31:$E$48,2,0))) -> 
P95: =TRUNC(N95*R95) -> ¥0 | T95: =IF(ISERROR(VLOOKUP(M95,データ!$D$31:$E$48,2,0)),"",(VLOOKUP(M95,データ!$D$31:$E$48,2,0))) -> 
C96: 計 | P96: =SUM(P92:Q95) -> ¥0
B98: 4.学会開催中の食事代等による日当調整(記入上の注意および旅費の運用についてを参照)
C100: 4.1.学会開催中における食事(学会から昼食等が用意される場合)
C102: 項目 | M102: 供与回数 | P102: 差し引き額
C103: 学会による昼食供与 | P103: =-1000*M103 -> ¥0
C104: 学会費に含まれる懇親会等夕食相当分 | P104: =-1000*M104 -> ¥0 | R104: 学会参加費にて参考
C106: Taxi等利用理由
C108: 日付 | F108: 経路 | M108: 理由
C109: =IF(C63="","",C63) ->  | F109: =IF(F63="","",F63) -> 
C110: =IF(C64="","",C64) ->  | F110: =IF(F64="","",F64) -> 
C111: =IF(C65="","",C65) ->  | F111: =IF(F65="","",F65) -> 
C112: =IF(C66="","",C66) ->  | F112: =IF(F66="","",F66) -> 
C113: =IF(C67="","",C67) ->  | F113: =IF(F67="","",F67) -> 
B115: [記入上の注意]
B116: =海外出張精算内訳書参考!B116 -> ※ エビデンスには①､②のようにNo.を振る。 ※ 計上は研究開発直接費の場合は”直”､それ以外の間接費の場合は”間”を選択。 ※ 日当､宿泊代については旅費規定を参照。 ※ 指定都市は以下の地域に宿泊した場合である。シンガポール､ロサンジェルス､ニューヨーク､サンフランシスコ､ワシントンDC､ジュネーブ､ ロンドン､ モスクワ､パリ､アブダビ､クェート､リヤド､アビジャン。 ※ 換算レートは､カード利用の場合はカード決済明細記載の変換レートを､現金利用の場合は両替時の変換レートを用いる｡ 手数料が別記されている場合は3.7その他に記載｡換算レートエビデンスがない場合は出発日（土日の場合は金曜日）の
I117: 東京三菱UFJ銀行外為TTSレート | J117: http://www.bk.mufg.jp/gdocs/kinri/list_j/kinri/kawase.html | T117: を使用｡
B118: =海外出張精算内訳書参考!B118 -> ※ 国内移動の際の成田エクスプレス､京成スカイライナー等の特急利用は可能。 ※ 航空券は正規割引運賃(PEX運賃等)が適用された航空券であること｡それ以外の場合はNEDOが指定した理由書を添付すること。 ※ 機中泊は宿泊数に含まない。指定都市以外の日当のみ計上。 ※ バンケット､懇親会費用が学会参加費に含まれる場合､夕食分の食事代(\1,000/回)を日当から差し引く。(旅費の運用について参照) ※ 学会が昼食を用意している場合は日当からその分を差し引く。(旅費の運用について参照) ※ 航空機を使用した場合は半券添付必須（インター ネットでの申し込み等は、領収書添付する）。
B122: 海外出張精算内訳書 まとめ
B124: 出張者 | F124: =G4 -> 0 | K124: =M4 -> 0 | P124: =P4 -> 0 | T124: =IF(ISERROR(VLOOKUP($K$124,データ!C2:D5,2,0)),"",(VLOOKUP($K$124,データ!$C$2:$D$5,2,0))) ->  | W124: =W4 -> 00:00:00
B126: 出張先 | F126: =G6 -> 0
B128: 出張期間 | F128: =F12 ->  | I128: ～ | J128: =J12 ->  | N128: 指定都市 | Q128: 指定都市以外 | S128: =S12 -> （0 | T128: 泊 | U128: =U12 -> 0 | V128: 日）
N129: =N13 -> 0 | Q129: 指定都市 | S129: =S13 -> （0 | T129: 泊 | U129: =U13 -> 0 | V129: 日）
B131: 精算まとめ （支払先が旅行社か本人かを○で選択する．）
B133: 費用項目 | K133: 金額 | M133: 支払先 旅行社等 | O133: 支払先本人 | S133: 研究開発費 | U133: 間接費 | W133: 備考
O134: 精算時 | Q134: 概算時
B135: 1.国内旅費交通費 | K135: =W24 -> ¥0 | S135: =SUMIF(X20:X23,"=直",N20:N23)+SUMIF(X20:X23,"=直",P20:P23)+SUMIF(X20:X23,"=直",R20:R23) -> ¥0 | U135: =SUMIF(X20:X23,"=間",N20:N23)+SUMIF(X20:X23,"=間",P20:P23)+SUMIF(X20:X23,"=間",R20:R23) -> ¥0
B136: 2.海外渡航費
C137: 航空運賃 | K137: =G29 -> ¥0 | S137: =SUMIF(O29,"=直",G29) -> ¥0 | U137: =SUMIF(O29,"=間",G29) -> ¥0
C138: 空港使用料他 | K138: =G30 -> ¥0 | S138: ¥0 | U138: ¥0
C139: 空港税 | K139: ¥0 | S139: ¥0 | U139: ¥0
C140: 航空保険料他 | K140: ¥0 | S140: ¥0 | U140: ¥0
C141: 海外傷害保険料 | K141: ¥0 | S141: ¥0 | U141: ¥0
C142: 発券手数料 | K142: ¥0 | S142: ¥0 | U142: ¥0
C143: 燃油サーチャージ | K143: ¥0 | S143: ¥0 | U143: ¥0
C144: その他 | K144: ¥0 | S144: ¥0 | U144: ¥0
B145: 3.海外滞在費
C146: 3.1.宿泊費 | K146: =M42 -> ¥0 | S146: =IF(O42="直",M42,0) -> ¥0 | U146: =IF(O42="間",M42,0) -> ¥0
C147: 3.2.日当 | K147: =W42 -> ¥0 | S147: =IF(X42="直",W42,0) -> ¥0 | U147: =IF(X42="間",W42,0) -> ¥0
C148: 3.1.宿泊費 | F148: (指定都市) | K148: =M43 -> ¥0 | S148: =IF(O43="直",M43,0) -> ¥0 | U148: =IF(O43="間",M43,0) -> ¥0
C149: 3.2.日当 | F149: (指定都市) | K149: =W43 -> ¥0 | S149: =IF(X43="直",W43,0) -> ¥0 | U149: =IF(X43="間",W43,0) -> ¥0
C150: 3.3.交通費 | F150: （公共交通） | K150: =P58 -> ¥0 | S150: =SUMIF(X48:X57,"=直",P48:P57) -> ¥0 | U150: =SUMIF(X48:X57,"=間",P48:P57) -> ¥0
C151: 3.4.交通費 | F151: （Taxi等) | K151: =P68 -> ¥0 | S151: =SUMIF(X63:X67,"=直",P63:P67) -> ¥0 | U151: =SUMIF(X63:X67,"=間",P63:P67) -> ¥0
C152: 3.5.通信費 | F152: （インターネット利用料､電話代） | K152: =P78 -> ¥0 | S152: =SUMIF(X73:X77,"=直",P73:P77) -> ¥0 | U152: =SUMIF(X73:X77,"=間",P73:P77) -> ¥0
C153: 3.6.会食費 | K153: =P87 -> ¥0 | S153: =SUMIF(X83:X86,"=直",P83:P86) -> ¥0 | U153: =SUMIF(X83:X86,"=間",P83:P86) -> ¥0
C154: 3.7.その他 | K154: =P96 -> ¥0 | S154: =SUMIF(X91:X95,"=直",P91:P95) -> ¥0 | U154: =SUMIF(X91:X95,"=間",P91:P95) -> ¥0
B155: 4.学会開催中の食事代等による日当調整 | K155: =P103+P104 -> ¥0 | S155: =K155 -> ¥0
B157: 合計 | K157: =K135+SUM(K137:L144)+SUM(K146:L155) -> ¥0 | M157: =SUMIF(M135,"○",K135)+SUMIF(M137:M144,"○",K137:K144)+SUMIF(M146:N155,"○",K146:L155) -> ¥0 | O157: =SUMIF(O135,"○",K135)+SUMIF(O137:O144,"○",K137:K144)+SUMIF(O146:P155,"○",K146:L155) -> ¥0 | Q157: =SUMIF(Q135,"○",K135)+SUMIF(Q137:Q144,"○",K137:K144)+SUMIF(Q146:R155,"○",K146:L155) -> ¥0 | S157: =S135+SUM(S137:T144)+SUM(S146:T155) -> ¥0 | U157: =U135+SUM(U137:V144)+SUM(U146:V154) -> ¥0
B159: 内訳
B161: 本人精算 | F161: 合計額 | H161: =H163+H165 -> ¥0 | O161: 旅行社精算 | Q161: 合計額 | S161: =S163+S165 -> ¥0
F163: 研究開発費 | H163: =SUMIF(O135,"○",S135)+SUMIF(O137:P144,"○",S137:T144)+SUMIF(O146:P155,"○",S146:T155) -> ¥0 | Q163: 研究開発費 | S163: =SUMIF(M135,"○",S135)+SUMIF(M137:N144,"○",S137:T144)+SUMIF(M146:N155,"○",S146:T155) -> ¥0
F165: 間接費 | H165: =SUMIF(O135,"○",U135)+SUMIF(O137:P144,"○",U137:V144)+SUMIF(O146:P155,"○",U146:V155) -> ¥0 | Q165: 間接費 | S165: =SUMIF(M135,"○",U135)+SUMIF(M137:N144,"○",U137:V144)+SUMIF(M146:N155,"○",U146:V155) -> ¥0
F167: 仮払い | O167: 概算時精算 | Q167: 合計額 | S167: =S169+S171 -> ¥0
F169: 精算額 | H169: =H161-I167 -> ¥0 | L169: 合計額－仮払い | Q169: 研究開発費 | S169: =SUMIF(Q135,"○",S135)+SUMIF(Q137:R144,"○",S137:T144)+SUMIF(Q146:R155,"○",S146:T155) -> ¥0
Q171: 間接費 | S171: =SUMIF(Q135,"○",U135)+SUMIF(Q137:R144,"○",U137:V144)+SUMIF(Q146:R155,"○",U146:V155) -> ¥0
B174: 本人精算
B176: 研究開発費 | F176: 旅費交通費 | I176: =SUMIF(O135,"○",S135)+SUMIF(O137:P144,"○",S137:T144)+SUMIF(O146:P151,"○",S146:T151)+SUMIF(O155:P155,"○",S155) -> ¥0 | M176: 間接費 | O176: 旅費交通費 | R176: =SUMIF(O135,"○",U135)+SUMIF(O137:P144,"○",U137:V144)+SUMIF(O146:P151,"○",U146:V151)+SUMIF(O155,"○",U155) -> ¥0
F178: その他経費 | I178: =SUMIF(O152:P154,"○",S152:T154) -> ¥0 | O178: その他経費 | R178: =SUMIF(O152:P154,"○",U152:V154) -> ¥0

Sheet 海外出張報告書記入例
A1: 平成××年度 海外出張報告書（記入例）
E4: 作成日 | F4: 平成××年××月××日
A5: 1. 研究テーマ名 | B5: 「エネルギー・環境新技術先導プログラム／トリリオンセンサ社会を支える高効率MEMS振動発電デバイスの研究」
A6: 2. 研究実施場所 | B6: 体制表で登録している研究実施場所を記入ください。
A7: 3. 出張目的 | B7: 会議出席であれば会議名（学会名等）、調査目的であれば、～調査のため、のよう に記入して下さい。
A8: 4. 出張者（役職） | B8: 報告者名と役職を記入して下さい。
A9: 5. 同行者（内部） | B9: 本事業による同行者がいる場合、その方の氏名・所属・役職を入力して下さい。
A10: 6. 出張期間 | B10: 平成○○年○○月○○日 ～ 平成○○年○○月○○日
A11: 7. 出張先及び面談者 | B11: 訪問先名称、国名、都市名を記入して下さい。
B12: 面談された方の氏名を記入してください。
A13: 8. 出張概要 | B13: 目的・調査（開催）概要を簡潔に記入して下さい。 経緯・目的：BBB会議は・・・・に関する研究者が毎年集う世界的な会議である。本会議においてプロジェクトの成果である「・・・・・」について発表し、その評価を得るとともに広報を行い、あわせて関連情報の収集を行った。
A14: 9. 内容・所感 | B14: （状況調査、情報収集の場合） ・面談に至る経緯 ・面談の内容 ・面談（発表）時の質疑内容、反応、印象 ・本出張が当該事業にどのように役に立ったか。 ・情報収集の結果概要とその評価。 ・動向調査の結果概要と今後の対策として有益な情報。 ・出張の当初目的を達成したか。 （学会発表・参加の場合） ・発表の内容 ・発表時の質疑内容、反応 ・発表後の成果、今後の課題として残った点、 ・参加した学会等の結果概要、今後の注目点 ・出張の当初目的を達成したか。 などについて記入してください。 略称及び略号を使用する場合には、その説明を加えて下さい。ただし国際的に日常使用されているものについては不要です（例えば、IEEE等）。
A15: 10. その他 | B15: 「8.出張概要」の記載事項以外のことで特記事項があれ ば記入して下さい。 次回開催案内など。
A16: 添付した方がわかりやすい資料があれば添付して下さい。（写で可）

Sheet 海外出張報告書様式
A1: 平成○○年度 海外出張報告書
G4: 作成日： | H4: 平成 年 月 日
A5: 1. 研究テーマ名 | B5: =海外出張報告書記入例!B5 -> 「エネルギー・環境新技術先導プログラム／トリリオンセンサ社会を支える高効率MEMS振動発電デバイスの研究」
A6: 2. 研究実施場所
A7: 3. 出張目的
A8: 4. 出張者（役職）
A9: 5. 同行者（内部）
A10: 6. 出張期間
A11: 7. 出張先及び面談者
A13: 8. 出張概要
A14: 9. 内容・所感
A15: 10. その他
A18: （注）
A19: 1.記載方法は、適宜、行を追加して、「記入にあたって」及び「記入例」をご参照の上記入して下さい。
A20: 2. 本出張に関して必須の関連作業である①「外部発表に関する届出書」の本部提出、②出張報告に関するブログ掲載も併せて行われているか確認下さい。尚、ブログは一般公開ですので、非公表情報には十分に留意下さい。

Sheet データ
C1: 役職
C2: 首席研究員・理事長 | D2: A
C3: 主幹研究員・教授 | D3: B
C4: 主任研究員・准教授 | D4: C
C5: 研究員・研究補助員 | D5: D
C6: 役員 | D6: A
C7: 部長相当職 | D7: B
C8: 課長相当職 | D8: C
B9: 所属 | C9: 係長相当職・一般 | D9: D | E9: 国内出張宿泊料 | G9: 国内日当
A10: 1 | B10: ①技術研究組合NMEMS技術研究機構 高効率ＭＥＨ研究所 | D10: A | E10: 13,500 | G10: 3,500
A11: =A10+1 -> 2 | B11: ②国立大学法人静岡大学 | D11: B | E11: 12,000 | G11: 3,000
A12: =A11+1 -> 3 | B12: ③株式会社鷺宮製作所 Ｒ＆Ｄセンター | D12: C | E12: 10,500 | G12: 2,500
A13: 4 | B13: ④ダイキン工業株式会社 | D13: D | E13: 9,000 | G13: 2,000
A14: 5 | B14: ⑤一般財団法人マイクロマシンセンター
A15: 6 | B15: ⑥国立大学法人京都大学大学院工学研究科（桂キャンパス） | E15: 海外宿泊料 | G15: 海外日当
A16: 7 | E16: 21000 | F16: A | G16: 7000
A17: 8 | E17: 19000 | F17: B | G17: 6000
A18: 9 | E18: 18000 | F18: C | G18: 5000
A19: 10 | E19: 17000 | F19: D | G19: 4000
A20: 11
A21: 12 | E21: 海外宿泊料（指定都市） | G21: 海外日当（指定都市） | I21: 指定都市
A22: 13 | E22: 28000 | F22: E | G22: 8000 | I22: シンガポール | J22: ①
A23: 14 | E23: 26000 | F23: F | G23: 7000 | I23: ロサンゼルス | J23: ②
A24: 15 | E24: 24000 | F24: G | G24: 6000 | I24: ニューヨーク | J24: ③
A25: 16 | E25: 23000 | F25: H | G25: 5000 | I25: サンフランシスコ | J25: ④
I26: ワシントン | J26: ⑤
I27: ジュネーブ | J27: ⑥
I28: ロンドン | J28: ⑦
A29: AB選択 | B29: 学会参加費精算方法 | E29: 対円換算 | I29: モスクワ | J29: ⑧
A30: 直 | B30: 個人立替月末精算 | D30: 通貨単位 | I30: パリ | J30: ⑨
A31: 間 | B31: 振込依頼 | D31: USD | E31: /USD | I31: アブダビ | J31: ⑩
D32: EUR | E32: /EUR | I32: ジッダ | J32: ⑪
D33: CNY | E33: /CNY | I33: クウェート | J33: ⑫
D34: GBP | E34: /GBP | I34: リヤド | J34: ⑬
C35: USドル | D35: HKD | E35: /HKD | I35: アビジャン地域 | J35: ⑭
B36: ○ | C36: ユーロ | D36: KRW | E36: /KRW
C37: 中国元 | D37: AUD | E37: /AUD
C38: 英ポンド | D38: CAD | E38: /CAD
C39: 香港ドル | D39: CHF | E39: /CHF
C40: 韓国ウォン | D40: DKK | E40: /DKK
C41: オーストラリアドル | D41: MXN | E41: /MXN
C42: カナダドル | D42: NOK | E42: /NOK
C43: スイスフラン | D43: SEK | E43: /SEK
C44: デンマーク クローネ | D44: SGD | E44: /SGD
C45: メキシコ ペソ | D45: THB | E45: /THB
C46: ノルウェー クローネ | D46: TRY | E46: /TRY
C47: スウェーデン クローナ | D47: TWD | E47: /TWD
C48: シンガポール ドル | D48: YEN | E48: /YEN
C49: バーツ
C50: トルコ リラ
C51: 台湾元
C52: 円
